Workbook

Sheet InputWeights
A1: Risk Assessment Calculation
B4: Item | C4: Enter Weight | D4: Default*
B5: Exposure | C5: 3 | D5: 3 | E5: Overall Weight Factor for Exposure Variables
B6: Rainfall Causing Event | C6: 0.5 | D6: 0.5 | E6: Sub factor weighting
B7: In FEMA 1% Flood Plain | C7: 0.5 | D7: 0.5
B9: Sensitivity | C9: 3 | D9: 3 | E9: Overall Weight Factor for Sensitivity Variables
B10: Bridge Scour | C10: 0.4 | D10: 0.4 | E10: Sub factor weighting
B11: OPI | C11: 0.4 | D11: 0.4
B12: Deficient Pipe | C12: 0.2 | D12: 0.2
B14: Consequence | C14: 4 | D14: 4 | E14: Overall Weight Factor for Consequence Variables
B15: Traffic Volume | C15: 0.4 | D15: 0.4 | E15: Sub factor weighting
B16: Truck Volume | C16: 0.2 | D16: 0.2
B17: FC | C17: 0.3 | D17: 0.3
B18: Detour | C18: 0.1 | D18: 0.1
B25: * Current mapping of results based on default values
B27: INSTRUCTIONS:
A28: Step 1 | B28: Enter overall weights for the categories: Exposure, Sensitivity and Consequence (Sum should equal 10)
A29: Step 2 | B29: Enter weights for sub factors (Sum within each category should equal 1.0)
A30: Step 3 | B30: Click button to rank all road segments within statewide and District sheets
A31: Step 4 | B31: View remaining Sheets (blue) for statewide and district rankings (Note maximum score = 100)

Sheet Statewide Road Segments
A1: join_key | B1: SR Number | C1: County Code | D1: County | E1: District | F1: juris | G1: Segment | H1: seg_lngth_ | I1: seq_no | J1: sub_route | K1: yr_built | L1: yr_resurf | M1: fac_type | N1: total_widt | O1: surf_type | P1: lane_cnt | Q1: divsr_type | R1: divsr_widt | S1: rough_indx | T1: access_ctr | U1: Street Name | V1: traf_rt_no | W1: traf_rt__1 | X1: traf_rt__2 | Y1: bgn_desc | Z1: end_desc | AA1: maint_resp | AB1: urban_rura | AC1: nhs_ind | AD1: street_n_1 | AE1: iri_year | AF1: opi_year | AG1: iri_rating | AH1: opi_rating | AI1: functionalClass | AJ1: WikimapOrRCRS | AK1: Source | AL1: ADTT | AM1: 2WAYADTT | AN1: NumberClog | AO1: ClogPerMile | AP1: Amount_Category | AQ1: cur_aadt | AR1: 2Way_AADT | AT1: Amount_Score | AU1: Floodzone | AV1: Detour_Score | AW1: FuncClass_Score | AX1: Truck_Score | AY1: AADT_Score | AZ1: OPI_Score | BA1: Scour_Score | BB1: Clog_Score | BD1: Exposure | BE1: Consequence | BF1: Sensitivity | BG1: TotalScore | BH1: Percentile | BI1: Percentile Category
A2: 0200510371 | B2: 0051 | C2: 02 | D2: Allegheny | E2: 11 | F2: 1 | G2: 0371 | H2: 2263 | I2: 9400 | J2: 0 | K2: 1941 | L2: 2015 | M2: 1 | N2: 24 | O2: 62 | P2: 2 | Q2: 1 | R2: 1 | S2: 105 | T2: 3 | U2: SAW MILL RUN BL | V2: PA | W2: 051 | Y2: WHITED ST | Z2: EDGEBROOK AV | AA2: 49 | AB2: 4 | AC2: Y | AE2: 2016 | AF2: 2015 | AG2: GOOD | AH2: FAIR | AI2: 3 | AJ2: 2 | AK2: RCRS | AL2: 965 | AM2: 1930 | AN2: 1 | AO2: 2.333186 | AP2: 2 | AQ2: 19307 | AR2: 38614 | AT2: 5 | AU2: 10 | AV2: 0 | AW2: =IF(AI2=1,10,IF(AI2=2,7.5,IF(AI2=3,7.5,IF(AI2=4,2.5,IF(AI2=5,2.5,IF(AI2=6,2.5,IF(AI2=7,1,5))))))) -> 7.5 | AX2: =IF(AM2<500, 1, IF(AM2<1000, 2, IF(AM2<2000, 3, IF(AM2<3000, 4,IF(AM2<4000, 5, IF(AM2<5000, 6,IF(AM2<6000,7,IF(AM2<7000,8, IF(AM2<8000,9,10))))))))) -> 3 | AY2: 8 | AZ2: 7.5 | BA2: 10 | BB2: 10 | BD2: =(AT2*InputWeights!$C$6+AU2*InputWeights!$C$7) -> 7.5 | BE2: =(AY2*InputWeights!$C$15+AX2*InputWeights!$C$16+AW2*InputWeights!$C$17+AV2*InputWeights!$C$18) -> 6.05 | BF2: =(AZ2*InputWeights!$C$11+BA2*InputWeights!$C$10+BB2*InputWeights!$C$12) -> 9 | BG2: =(BE2*InputWeights!$C$14+BD2*InputWeights!$C$5+BF2*InputWeights!$C$9) -> 73.7 | BH2: =((_xlfn.RANK.EQ(BG2,$BG$2:$BG$6635,0))/(COUNT(BG$2:$BG$6635)))*100 -> 0.01507386192 | BI2: =IF(BH2<1,1,IF(BH2<5,5,IF(BH2<10,10,IF(BH2<15,15,IF(BH2<20,20,IF(BH2<25,25,0)))))) -> 1
A3: 0200510340 | B3: 0051 | C3: 02 | D3: Allegheny | E3: 11 | F3: 1 | G3: 0340 | H3: 1641 | I3: 9100 | J3: 0 | K3: 1930 | L3: 2015 | M3: 1 | N3: 30 | O3: 62 | P3: 2 | Q3: 1 | R3: 1 | S3: 240 | T3: 3 | U3: SAW MILL RUN BL | V3: PA | W3: 051 | Y3: LIBRARY RD | Z3: SEGMENT | AA3: 49 | AB3: 4 | AC3: Y | AF3: 2014 | AG3: POOR | AH3: POOR | AI3: 3 | AJ3: 2 | AK3: RCRS | AL3: 1346 | AM3: 2692 | AN3: 0 | AO3: 0 | AP3: 2 | AQ3: 22444 | AR3: 44888 | AT3: 5 | AU3: 10 | AV3: 0 | AW3: 7.5 | AX3: 4 | AY3: 9 | AZ3: 10 | BA3: 10 | BB3: 0 | BD3: =(AT3*InputWeights!$C$6+AU3*InputWeights!$C$7) -> 7.5 | BE3: =(AY3*InputWeights!$C$15+AX3*InputWeights!$C$16+AW3*InputWeights!$C$17+AV3*InputWeights!$C$18) -> 6.65 | BF3: =(AZ3*InputWeights!$C$11+BA3*InputWeights!$C$10+BB3*InputWeights!$C$12) -> 8 | BG3: =(BE3*InputWeights!$C$14+BD3*InputWeights!$C$5+BF3*InputWeights!$C$9) -> 73.1 | BH3: =((_xlfn.RANK.EQ(BG3,$BG$2:$BG$6635,0))/(COUNT(BG$2:$BG$6635)))*100 -> 0.03014772385 | BI3: 1
A4: 0200510380 | B4: 0051 | C4: 02 | D4: Allegheny | E4: 11 | F4: 1 | G4: 0380 | H4: 3669 | I4: 9500 | J4: 0 | K4: 1941 | L4: 2015 | M4: 1 | N4: 25 | O4: 62 | P4: 2 | Q4: 1 | R4: 1 | S4: 97 | T4: 3 | U4: SAW MILL RUN BL | V4: PA | W4: 051 | Y4: EDGEBROOK AV | Z4: BAUSMAN ST | AA4: 49 | AB4: 4 | AC4: Y | AE4: 2015 | AF4: 2015 | AG4: GOOD | AH4: GOOD | AI4: 3 | AJ4: 2 | AK4: RCRS | AL4: 1346 | AM4: 2692 | AN4: 2 | AO4: 2.878168 | AP4: 2 | AQ4: 22444 | AR4: 44888 | AT4: 5 | AU4: 10 | AV4: 0 | AW4: 7.5 | AX4: 4 | AY4: 9 | AZ4: 5 | BA4: 10 | BB4: 10 | BD4: =(AT4*InputWeights!$C$6+AU4*InputWeights!$C$7) -> 7.5 | BE4: =(AY4*InputWeights!$C$15+AX4*InputWeights!$C$16+AW4*InputWeights!$C$17+AV4*InputWeights!$C$18) -> 6.65 | BF4: =(AZ4*InputWeights!$C$11+BA4*InputWeights!$C$10+BB4*InputWeights!$C$12) -> 8 | BG4: =(BE4*InputWeights!$C$14+BD4*InputWeights!$C$5+BF4*InputWeights!$C$9) -> 73.1 | BH4: =((_xlfn.RANK.EQ(BG4,$BG$2:$BG$6635,0))/(COUNT(BG$2:$BG$6635)))*100 -> 0.03014772385 | BI4: 1
A5: 0200510361 | B5: 0051 | C5: 02 | D5: Allegheny | E5: 11 | F5: 1 | G5: 0361 | H5: 722 | I5: 9300 | J5: 0 | K5: 1935 | L5: 2015 | M5: 1 | N5: 23 | O5: 62 | P5: 2 | Q5: 1 | R5: 1 | S5: 189 | T5: 3 | U5: SAW MILL RUN BL | V5: PA | W5: 051 | Y5: ANSONIA PL | Z5: WHITED ST | AA5: 49 | AB5: 4 | AC5: Y | AE5: 2016 | AF5: 2015 | AG5: POOR | AH5: POOR | AI5: 3 | AJ5: 2 | AK5: RCRS | AL5: 965 | AM5: 1930 | AN5: 0 | AO5: 0 | AP5: 2 | AQ5: 19307 | AR5: 38614 | AT5: 5 | AU5: 10 | AV5: 0 | AW5: 7.5 | AX5: 3 | AY5: 8 | AZ5: 10 | BA5: 10 | BB5: 0 | BD5: =(AT5*InputWeights!$C$6+AU5*InputWeights!$C$7) -> 7.5 | BE5: =(AY5*InputWeights!$C$15+AX5*InputWeights!$C$16+AW5*InputWeights!$C$17+AV5*InputWeights!$C$18) -> 6.05 | BF5: =(AZ5*InputWeights!$C$11+BA5*InputWeights!$C$10+BB5*InputWeights!$C$12) -> 8 | BG5: =(BE5*InputWeights!$C$14+BD5*InputWeights!$C$5+BF5*InputWeights!$C$9) -> 70.7 | BH5: =((_xlfn.RANK.EQ(BG5,$BG$2:$BG$6635,0))/(COUNT(BG$2:$BG$6635)))*100 -> 0.06029544769 | BI5: 1
A6: 0400650010 | B6: 0065 | C6: 04 | D6: Beaver | E6: 11 | F6: 1 | G6: 0010 | H6: 2104 | I6: 3100 | J6: 0 | K6: 1958 | L6: 2011 | M6: 1 | N6: 24 | O6: 62 | P6: 2 | Q6: 2 | R6: 4 | S6: 136 | T6: 3 | U6: OHIO RIVER BL | V6: PA | W6: 065 | Y6: OHIO RIVER BL | Z6: FOURTH ST | AA6: 49 | AB6: 4 | AC6: Y | AE6: 2015 | AF6: 2015 | AG6: FAIR | AH6: FAIR | AI6: 3 | AJ6: 2 | AK6: RCRS | AL6: 612 | AM6: 1224 | AN6: 0 | AO6: 0 | AP6: 0 | AQ6: 10085 | AR6: 20170 | AT6: 10 | AU6: 10 | AV6: 0 | AW6: 7.5 | AX6: 3 | AY6: 5 | AZ6: 7.5 | BA6: 10 | BB6: 0 | BD6: =(AT6*InputWeights!$C$6+AU6*InputWeights!$C$7) -> 10 | BE6: =(AY6*InputWeights!$C$15+AX6*InputWeights!$C$16+AW6*InputWeights!$C$17+AV6*InputWeights!$C$18) -> 4.85 | BF6: =(AZ6*InputWeights!$C$11+BA6*InputWeights!$C$10+BB6*InputWeights!$C$12) -> 7 | BG6: =(BE6*InputWeights!$C$14+BD6*InputWeights!$C$5+BF6*InputWeights!$C$9) -> 70.4 | BH6: =((_xlfn.RANK.EQ(BG6,$BG$2:$BG$6635,0))/(COUNT(BG$2:$BG$6635)))*100 -> 0.07536930962 | BI6: 1
A7: 0200510360 | B7: 0051 | C7: 02 | D7: Allegheny | E7: 11 | F7: 1 | G7: 0360 | H7: 739 | I7: 9300 | J7: 0 | K7: 1935 | L7: 2015 | M7: 1 | N7: 20 | O7: 62 | P7: 2 | Q7: 1 | R7: 1 | S7: 245 | T7: 3 | U7: SAW MILL RUN BL | V7: PA | W7: 051 | Y7: ANSONIA PL | Z7: WHITED ST | AA7: 49 | AB7: 4 | AC7: Y | AF7: 2014 | AG7: POOR | AH7: FAIR | AI7: 3 | AJ7: 2 | AK7: RCRS | AL7: 1346 | AM7: 2692 | AN7: 0 | AO7: 0 | AP7: 2 | AQ7: 22444 | AR7: 44888 | AT7: 5 | AU7: 10 | AV7: 0 | AW7: 7.5 | AX7: 4 | AY7: 9 | AZ7: 7.5 | BA7: 10 | BB7: 0 | BD7: =(AT7*InputWeights!$C$6+AU7*InputWeights!$C$7) -> 7.5 | BE7: =(AY7*InputWeights!$C$15+AX7*InputWeights!$C$16+AW7*InputWeights!$C$17+AV7*InputWeights!$C$18) -> 6.65 | BF7: =(AZ7*InputWeights!$C$11+BA7*InputWeights!$C$10+BB7*InputWeights!$C$12) -> 7 | BG7: =(BE7*InputWeights!$C$14+BD7*InputWeights!$C$5+BF7*InputWeights!$C$9) -> 70.1 | BH7: =((_xlfn.RANK.EQ(BG7,$BG$2:$BG$6635,0))/(COUNT(BG$2:$BG$6635)))*100 -> 0.09044317154 | BI7: 1
A8: 2380250500 | B8: 8025 | C8: 23 | D8: Delaware | E8: 06 | F8: 1 | G8: 0500 | H8: 1870 | I8: 230003400 | J8: 500 | K8: 1987 | L8: 2005 | M8: 1 | N8: 24 | O8: 62 | P8: 2 | Q8: 0 | R8: 0 | T8: 1 | U8: RAMP M-4 RD | W8: 000 | AA8: 49 | AB8: 4 | AC8: Y | AF8: 0000 | AG8: OTHER | AH8: POOR | AI8: 1 | AJ8: 1 | AK8: Stakeholder Comment | AL8: 1203 | AM8: 2406 | AN8: 0 | AO8: 0 | AP8: 0 | AQ8: 24065 | AR8: 48130 | AT8: 5 | AU8: 10 | AV8: 10 | AW8: 10 | AX8: 4 | AY8: 10 | AZ8: 10 | BA8: 0 | BB8: 0 | BD8: =(AT8*InputWeights!$C$6+AU8*InputWeights!$C$7) -> 7.5 | BE8: =(AY8*InputWeights!$C$15+AX8*InputWeights!$C$16+AW8*InputWeights!$C$17+AV8*InputWeights!$C$18) -> 8.8 | BF8: =(AZ8*InputWeights!$C$11+BA8*InputWeights!$C$10+BB8*InputWeights!$C$12) -> 4 | BG8: =(BE8*InputWeights!$C$14+BD8*InputWeights!$C$5+BF8*InputWeights!$C$9) -> 69.7 | BH8: =((_xlfn.RANK.EQ(BG8,$BG$2:$BG$6635,0))/(COUNT(BG$2:$BG$6635)))*100 -> 0.1055170335 | BI8: 1
A9: 4603090371 | B9: 0309 | C9: 46 | D9: Montgomery | E9: 06 | F9: 1 | G9: 0371 | H9: 2537 | I9: 3700 | J9: 10 | K9: 1960 | L9: 2004 | M9: 1 | N9: 26 | O9: 62 | P9: 2 | Q9: 2 | R9: 20 | S9: 236 | T9: 3 | U9: BETHLEHEM PK | V9: PA | W9: 309 | Y9: BROAD ST | Z9: BRIDGE | AA9: 59 | AB9: 4 | AC9: Y | AE9: 2015 | AF9: 2015 | AG9: POOR | AH9: POOR | AI9: 3 | AJ9: 2 | AK9: RCRS | AL9: 658 | AM9: 1316 | AN9: 0 | AO9: 0 | AP9: 2 | AQ9: 15877 | AR9: 31754 | AT9: 5 | AU9: 10 | AV9: 0 | AW9: 7.5 | AX9: 3 | AY9: 7 | AZ9: 10 | BA9: 10 | BB9: 0 | BD9: =(AT9*InputWeights!$C$6+AU9*InputWeights!$C$7) -> 7.5 | BE9: =(AY9*InputWeights!$C$15+AX9*InputWeights!$C$16+AW9*InputWeights!$C$17+AV9*InputWeights!$C$18) -> 5.65 | BF9: =(AZ9*InputWeights!$C$11+BA9*InputWeights!$C$10+BB9*InputWeights!$C$12) -> 8 | BG9: =(BE9*InputWeights!$C$14+BD9*InputWeights!$C$5+BF9*InputWeights!$C$9) -> 69.1 | BH9: =((_xlfn.RANK.EQ(BG9,$BG$2:$BG$6635,0))/(COUNT(BG$2:$BG$6635)))*100 -> 0.1205908954 | BI9: 1
A10: 4603090381 | B10: 0309 | C10: 46 | D10: Montgomery | E10: 06 | F10: 1 | G10: 0381 | H10: 1677 | I10: 3800 | J10: 10 | K10: 1989 | L10: 2004 | M10: 1 | N10: 27 | O10: 52 | P10: 2 | Q10: 2 | R10: 20 | S10: 176 | T10: 3 | U10: BETHLEHEM PK | V10: PA | W10: 309 | Y10: BRIDGE | Z10: TREWIGTOWN RD | AA10: 59 | AB10: 4 | AC10: Y | AE10: 2015 | AF10: 2015 | AG10: POOR | AH10: POOR | AI10: 3 | AJ10: 2 | AK10: RCRS | AL10: 658 | AM10: 1316 | AN10: 0 | AO10: 0 | AP10: 2 | AQ10: 15877 | AR10: 31754 | AT10: 5 | AU10: 10 | AV10: 0 | AW10: 7.5 | AX10: 3 | AY10: 7 | AZ10: 10 | BA10: 10 | BB10: 0 | BD10: =(AT10*InputWeights!$C$6+AU10*InputWeights!$C$7) -> 7.5 | BE10: =(AY10*InputWeights!$C$15+AX10*InputWeights!$C$16+AW10*InputWeights!$C$17+AV10*InputWeights!$C$18) -> 5.65 | BF10: =(AZ10*InputWeights!$C$11+BA10*InputWeights!$C$10+BB10*InputWeights!$C$12) -> 8 | BG10: =(BE10*InputWeights!$C$14+BD10*InputWeights!$C$5+BF10*InputWeights!$C$9) -> 69.1 | BH10: =((_xlfn.RANK.EQ(BG10,$BG$2:$BG$6635,0))/(COUNT(BG$2:$BG$6635)))*100 -> 0.1205908954 | BI10: 1
A11: 0200280271 | B11: 0028 | C11: 02 | D11: Allegheny | E11: 11 | F11: 1 | G11: 0271 | H11: 3420 | I11: 2700 | J11: 0 | K11: 1964 | L11: 2008 | M11: 1 | N11: 24 | O11: 62 | P11: 2 | Q11: 3 | R11: 99 | S11: 94 | T11: 1 | U11: ALLEGHENY VALLEY EX | V11: PA | W11: 028 | Y11: BRIDGE | Z11: SEGMENT | AA11: 29 | AB11: 4 | AC11: Y | AE11: 2015 | AF11: 2015 | AG11: GOOD | AH11: GOOD | AI11: 2 | AJ11: 2 | AK11: RCRS | AL11: 1908 | AM11: 3816 | AN11: 0 | AO11: 0 | AP11: 0 | AQ11: 23841 | AR11: 47682 | AT11: 10 | AU11: 10 | AV11: 10 | AW11: 7.5 | AX11: 5 | AY11: 10 | AZ11: 5 | BA11: 0 | BB11: 0 | BD11: =(AT11*InputWeights!$C$6+AU11*InputWeights!$C$7) -> 10 | BE11: =(AY11*InputWeights!$C$15+AX11*InputWeights!$C$16+AW11*InputWeights!$C$17+AV11*InputWeights!$C$18) -> 8.25 | BF11: =(AZ11*InputWeights!$C$11+BA11*InputWeights!$C$10+BB11*InputWeights!$C$12) -> 2 | BG11: =(BE11*InputWeights!$C$14+BD11*InputWeights!$C$5+BF11*InputWeights!$C$9) -> 69 | BH11: =((_xlfn.RANK.EQ(BG11,$BG$2:$BG$6635,0))/(COUNT(BG$2:$BG$6635)))*100 -> 0.1507386192 | BI11: 1
A12: 0600610100 | B12: 0061 | C12: 06 | D12: Berks | E12: 05 | F12: 1 | G12: 0100 | H12: 2637 | I12: 1100 | J12: 0 | K12: 1939 | L12: 2010 | M12: 2 | N12: 33 | O12: 62 | P12: 2 | Q12: 0 | R12: 0 | S12: 137 | T12: 3 | U12: POTTSVILLE PK | V12: PA | W12: 061 | Y12: RAILROAD XING | Z12: WATER ST | AA12: 39 | AB12: 4 | AC12: Y | AE12: 2015 | AF12: 2015 | AG12: FAIR | AH12: FAIR | AI12: 3 | AJ12: 2 | AK12: RCRS | AL12: 1612 | AM12: 1612 | AN12: 0 | AO12: 0 | AP12: 0 | AQ12: 16455 | AR12: 16455 | AT12: 10 | AU12: 10 | AV12: 0 | AW12: 7.5 | AX12: 3 | AY12: 4 | AZ12: 7.5 | BA12: 10 | BB12: 0 | BD12: =(AT12*InputWeights!$C$6+AU12*InputWeights!$C$7) -> 10 | BE12: =(AY12*InputWeights!$C$15+AX12*InputWeights!$C$16+AW12*InputWeights!$C$17+AV12*InputWeights!$C$18) -> 4.45 | BF12: =(AZ12*InputWeights!$C$11+BA12*InputWeights!$C$10+BB12*InputWeights!$C$12) -> 7 | BG12: =(BE12*InputWeights!$C$14+BD12*InputWeights!$C$5+BF12*InputWeights!$C$9) -> 68.8 | BH12: =((_xlfn.RANK.EQ(BG12,$BG$2:$BG$6635,0))/(COUNT(BG$2:$BG$6635)))*100 -> 0.1658124812 | BI12: 1
A13: 4600763380 | B13: 0076 | C13: 46 | D13: Montgomery | E13: 06 | F13: 1 | G13: 3380 | H13: 2640 | I13: 2300 | J13: 0 | K13: 1986 | L13: 1986 | M13: 1 | N13: 35 | O13: 98 | P13: 2 | Q13: 2 | R13: 6 | S13: 181 | T13: 1 | U13: SCHUYLKILL EX | V13: I | W13: 076 | Y13: SEGMENT | Z13: SEGMENT | AA13: 39 | AB13: 4 | AC13: Y | AE13: 2015 | AF13: 2016 | AG13: POOR | AH13: GOOD | AI13: 1 | AJ13: 1 | AK13: Stakeholder Comment | AL13: 4217 | AM13: 8434 | AN13: 0 | AO13: 0 | AP13: 0 | AQ13: 76904 | AR13: 153808 | AT13: 5 | AU13: 10 | AV13: 10 | AW13: 10 | AX13: 10 | AY13: 10 | AZ13: 5 | BA13: 0 | BB13: 0 | BD13: =(AT13*InputWeights!$C$6+AU13*InputWeights!$C$7) -> 7.5 | BE13: =(AY13*InputWeights!$C$15+AX13*InputWeights!$C$16+AW13*InputWeights!$C$17+AV13*InputWeights!$C$18) -> 10 | BF13: =(AZ13*InputWeights!$C$11+BA13*InputWeights!$C$10+BB13*InputWeights!$C$12) -> 2 | BG13: =(BE13*InputWeights!$C$14+BD13*InputWeights!$C$5+BF13*InputWeights!$C$9) -> 68.5 | BH13: =((_xlfn.RANK.EQ(BG13,$BG$2:$BG$6635,0))/(COUNT(BG$2:$BG$6635)))*100 -> 0.1808863431 | BI13: 1
A14: 0200510341 | B14: 0051 | C14: 02 | D14: Allegheny | E14: 11 | F14: 1 | G14: 0341 | H14: 1692 | I14: 9100 | J14: 0 | K14: 1930 | L14: 2015 | M14: 1 | N14: 24 | O14: 62 | P14: 2 | Q14: 1 | R14: 1 | S14: 175 | T14: 3 | U14: SAW MILL RUN BL | V14: PA | W14: 051 | Y14: LIBRARY RD | Z14: SEGMENT | AA14: 49 | AB14: 4 | AC14: Y | AE14: 2016 | AF14: 2015 | AG14: POOR | AH14: FAIR | AI14: 3 | AJ14: 2 | AK14: RCRS | AL14: 965 | AM14: 1930 | AN14: 0 | AO14: 0 | AP14: 2 | AQ14: 19307 | AR14: 38614 | AT14: 5 | AU14: 10 | AV14: 0 | AW14: 7.5 | AX14: 3 | AY14: 8 | AZ14: 7.5 | BA14: 10 | BB14: 0 | BD14: =(AT14*InputWeights!$C$6+AU14*InputWeights!$C$7) -> 7.5 | BE14: =(AY14*InputWeights!$C$15+AX14*InputWeights!$C$16+AW14*InputWeights!$C$17+AV14*InputWeights!$C$18) -> 6.05 | BF14: =(AZ14*InputWeights!$C$11+BA14*InputWeights!$C$10+BB14*InputWeights!$C$12) -> 7 | BG14: =(BE14*InputWeights!$C$14+BD14*InputWeights!$C$5+BF14*InputWeights!$C$9) -> 67.7 | BH14: =((_xlfn.RANK.EQ(BG14,$BG$2:$BG$6635,0))/(COUNT(BG$2:$BG$6635)))*100 -> 0.195960205 | BI14: 1
A15: 0200510381 | B15: 0051 | C15: 02 | D15: Allegheny | E15: 11 | F15: 1 | G15: 0381 | H15: 3669 | I15: 9500 | J15: 0 | K15: 1999 | L15: 2015 | M15: 1 | N15: 25 | O15: 62 | P15: 2 | Q15: 1 | R15: 1 | S15: 99 | T15: 3 | U15: SAW MILL RUN BL | V15: PA | W15: 051 | Y15: EDGEBROOK AV | Z15: BAUSMAN ST | AA15: 49 | AB15: 4 | AC15: Y | AE15: 2016 | AF15: 2015 | AG15: GOOD | AH15: FAIR | AI15: 3 | AJ15: 2 | AK15: RCRS | AL15: 965 | AM15: 1930 | AN15: 0 | AO15: 0 | AP15: 2 | AQ15: 19307 | AR15: 38614 | AT15: 5 | AU15: 10 | AV15: 0 | AW15: 7.5 | AX15: 3 | AY15: 8 | AZ15: 7.5 | BA15: 10 | BB15: 0 | BD15: =(AT15*InputWeights!$C$6+AU15*InputWeights!$C$7) -> 7.5 | BE15: =(AY15*InputWeights!$C$15+AX15*InputWeights!$C$16+AW15*InputWeights!$C$17+AV15*InputWeights!$C$18) -> 6.05 | BF15: =(AZ15*InputWeights!$C$11+BA15*InputWeights!$C$10+BB15*InputWeights!$C$12) -> 7 | BG15: =(BE15*InputWeights!$C$14+BD15*InputWeights!$C$5+BF15*InputWeights!$C$9) -> 67.7 | BH15: =((_xlfn.RANK.EQ(BG15,$BG$2:$BG$6635,0))/(COUNT(BG$2:$BG$6635)))*100 -> 0.195960205 | BI15: 1
A16: 4806110180 | B16: 0611 | C16: 48 | D16: Northampton | E16: 05 | F16: 1 | G16: 0180 | H16: 444 | I16: 12700 | J16: 0 | K16: 1991 | L16: 1991 | M16: 1 | N16: 38 | O16: 98 | P16: 2 | Q16: 1 | R16: 1 | S16: 354 | T16: 3 | U16: LARRY HOLMES DR | V16: PA | W16: 611 | Y16: SMITH AV | Z16: SEGMENT | AA16: 29 | AB16: 4 | AC16: Y | AE16: 2015 | AF16: 2008 | AG16: POOR | AH16: POOR | AI16: 3 | AJ16: 3 | AK16: RCRS | AL16: 445 | AM16: 890 | AN16: 0 | AO16: 0 | AP16: 2 | AQ16: 9312 | AR16: 18624 | AT16: 5 | AU16: 10 | AV16: 10 | AW16: 7.5 | AX16: 2 | AY16: 4 | AZ16: 10 | BA16: 10 | BB16: 0 | BD16: =(AT16*InputWeights!$C$6+AU16*InputWeights!$C$7) -> 7.5 | BE16: =(AY16*InputWeights!$C$15+AX16*InputWeights!$C$16+AW16*InputWeights!$C$17+AV16*InputWeights!$C$18) -> 5.25 | BF16: =(AZ16*InputWeights!$C$11+BA16*InputWeights!$C$10+BB16*InputWeights!$C$12) -> 8 | BG16: =(BE16*InputWeights!$C$14+BD16*InputWeights!$C$5+BF16*InputWeights!$C$9) -> 67.5 | BH16: =((_xlfn.RANK.EQ(BG16,$BG$2:$BG$6635,0))/(COUNT(BG$2:$BG$6635)))*100 -> 0.2261079289 | BI16: 1
A17: 4900110010 | B17: 0011 | C17: 49 | D17: Northumberland | E17: 03 | F17: 1 | G17: 0010 | H17: 1964 | I17: 27300 | J17: 0 | K17: 1978 | L17: 1978 | M17: 2 | N17: 45 | O17: 98 | P17: 2 | Q17: 0 | R17: 0 | S17: 185 | T17: 3 | U17: SGT BRETT D SWANK MEM HWY | V17: US | W17: 011 | Y17: SR 0011 SH | Z17: SEGMENT | AA17: 29 | AB17: 1 | AC17: Y | AD17: SR 0011 SH | AF17: 0000 | AG17: POOR | AH17: POOR | AI17: 3 | AJ17: 1 | AK17: Stakeholder Comment | AL17: 2150 | AM17: 2150 | AN17: 0 | AO17: 0 | AP17: 0 | AQ17: 14422 | AR17: 14422 | AT17: 5 | AU17: 10 | AV17: 10 | AW17: 7.5 | AX17: 4 | AY17: 3 | AZ17: 10 | BA17: 10 | BB17: 0 | BD17: =(AT17*InputWeights!$C$6+AU17*InputWeights!$C$7) -> 7.5 | BE17: =(AY17*InputWeights!$C$15+AX17*InputWeights!$C$16+AW17*InputWeights!$C$17+AV17*InputWeights!$C$18) -> 5.25 | BF17: =(AZ17*InputWeights!$C$11+BA17*InputWeights!$C$10+BB17*InputWeights!$C$12) -> 8 | BG17: =(BE17*InputWeights!$C$14+BD17*InputWeights!$C$5+BF17*InputWeights!$C$9) -> 67.5 | BH17: =((_xlfn.RANK.EQ(BG17,$BG$2:$BG$6635,0))/(COUNT(BG$2:$BG$6635)))*100 -> 0.2261079289 | BI17: 1
A18: 6700763425 | B18: 0076 | C18: 67 | D18: Philadelphia | E18: 06 | F18: 1 | G18: 3425 | H18: 2731 | I18: 3200 | J18: 0 | K18: 1956 | L18: 2007 | M18: 1 | N18: 38 | O18: 62 | P18: 3 | Q18: 2 | R18: 22 | S18: 88 | T18: 1 | U18: SCHUYLKILL EX | V18: I | W18: 076 | Y18: O/P 4 CHORD T | Z18: RR OVERPASS | AA18: 49 | AB18: 4 | AC18: Y | AE18: 2015 | AF18: 2016 | AG18: GOOD | AH18: FAIR | AI18: 1 | AJ18: 1 | AK18: Stakeholder Comment | AL18: 5964 | AM18: 11928 | AN18: 0 | AO18: 0 | AP18: 0 | AQ18: 109753 | AR18: 219506 | AT18: 5 | AU18: 10 | AV18: 0 | AW18: 10 | AX18: 10 | AY18: 10 | AZ18: 7.5 | BA18: 0 | BB18: 0 | BD18: =(AT18*InputWeights!$C$6+AU18*InputWeights!$C$7) -> 7.5 | BE18: =(AY18*InputWeights!$C$15+AX18*InputWeights!$C$16+AW18*InputWeights!$C$17+AV18*InputWeights!$C$18) -> 9 | BF18: =(AZ18*InputWeights!$C$11+BA18*InputWeights!$C$10+BB18*InputWeights!$C$12) -> 3 | BG18: =(BE18*InputWeights!$C$14+BD18*InputWeights!$C$5+BF18*InputWeights!$C$9) -> 67.5 | BH18: =((_xlfn.RANK.EQ(BG18,$BG$2:$BG$6635,0))/(COUNT(BG$2:$BG$6635)))*100 -> 0.2261079289 | BI18: 1
A19: 0400650011 | B19: 0065 | C19: 04 | D19: Beaver | E19: 11 | F19: 1 | G19: 0011 | H19: 2116 | I19: 3100 | J19: 0 | K19: 1958 | L19: 2011 | M19: 1 | N19: 24 | O19: 62 | P19: 2 | Q19: 2 | R19: 4 | S19: 114 | T19: 3 | U19: OHIO RIVER BL | V19: PA | W19: 065 | Y19: OHIO RIVER BL | Z19: FOURTH ST | AA19: 49 | AB19: 4 | AC19: Y | AE19: 2015 | AF19: 2015 | AG19: GOOD | AH19: GOOD | AI19: 3 | AJ19: 2 | AK19: RCRS | AL19: 577 | AM19: 1154 | AN19: 0 | AO19: 0 | AP19: 0 | AQ19: 10282 | AR19: 20564 | AT19: 10 | AU19: 10 | AV19: 0 | AW19: 7.5 | AX19: 3 | AY19: 5 | AZ19: 5 | BA19: 10 | BB19: 0 | BD19: =(AT19*InputWeights!$C$6+AU19*InputWeights!$C$7) -> 10 | BE19: =(AY19*InputWeights!$C$15+AX19*InputWeights!$C$16+AW19*InputWeights!$C$17+AV19*InputWeights!$C$18) -> 4.85 | BF19: =(AZ19*InputWeights!$C$11+BA19*InputWeights!$C$10+BB19*InputWeights!$C$12) -> 6 | BG19: =(BE19*InputWeights!$C$14+BD19*InputWeights!$C$5+BF19*InputWeights!$C$9) -> 67.4 | BH19: =((_xlfn.RANK.EQ(BG19,$BG$2:$BG$6635,0))/(COUNT(BG$2:$BG$6635)))*100 -> 0.2713295146 | BI19: 1
A20: 4630160050 | B20: 3016 | C20: 46 | D20: Montgomery | E20: 06 | F20: 1 | G20: 0050 | H20: 2971 | I20: 460024600 | J20: 0 | K20: 1987 | L20: 1987 | M20: 1 | N20: 26 | O20: 98 | P20: 2 | Q20: 1 | R20: 1 | S20: 190 | T20: 3 | U20: FAYETTE ST | W20: 000 | Y20: SEGMENT | Z20: ELM ST | AA20: 39 | AB20: 4 | AC20: Y | AE20: 2015 | AF20: 2013 | AG20: POOR | AH20: FAIR | AI20: 3 | AJ20: 2 | AK20: RCRS | AL20: 785 | AM20: 1570 | AN20: 0 | AO20: 0 | AP20: 4 | AQ20: 20072 | AR20: 40144 | AT20: 1 | AU20: 10 | AV20: 10 | AW20: 7.5 | AX20: 3 | AY20: 9 | AZ20: 7.5 | BA20: 10 | BB20: 0 | BD20: =(AT20*InputWeights!$C$6+AU20*InputWeights!$C$7) -> 5.5 | BE20: =(AY20*InputWeights!$C$15+AX20*InputWeights!$C$16+AW20*InputWeights!$C$17+AV20*InputWeights!$C$18) -> 7.45 | BF20: =(AZ20*InputWeights!$C$11+BA20*InputWeights!$C$10+BB20*InputWeights!$C$12) -> 7 | BG20: =(BE20*InputWeights!$C$14+BD20*InputWeights!$C$5+BF20*InputWeights!$C$9) -> 67.3 | BH20: =((_xlfn.RANK.EQ(BG20,$BG$2:$BG$6635,0))/(COUNT(BG$2:$BG$6635)))*100 -> 0.2864033765 | BI20: 1
A21: 0200510370 | B21: 0051 | C21: 02 | D21: Allegheny | E21: 11 | F21: 1 | G21: 0370 | H21: 2267 | I21: 9400 | J21: 0 | K21: 1941 | L21: 2015 | M21: 1 | N21: 20 | O21: 62 | P21: 2 | Q21: 1 | R21: 1 | S21: 123 | T21: 3 | U21: SAW MILL RUN BL | V21: PA | W21: 051 | Y21: WHITED ST | Z21: EDGEBROOK AV | AA21: 49 | AB21: 4 | AC21: Y | AE21: 2015 | AF21: 2015 | AG21: FAIR | AH21: GOOD | AI21: 3 | AJ21: 2 | AK21: RCRS | AL21: 1346 | AM21: 2692 | AN21: 0 | AO21: 0 | AP21: 2 | AQ21: 22444 | AR21: 44888 | AT21: 5 | AU21: 10 | AV21: 0 | AW21: 7.5 | AX21: 4 | AY21: 9 | AZ21: 5 | BA21: 10 | BB21: 0 | BD21: =(AT21*InputWeights!$C$6+AU21*InputWeights!$C$7) -> 7.5 | BE21: =(AY21*InputWeights!$C$15+AX21*InputWeights!$C$16+AW21*InputWeights!$C$17+AV21*InputWeights!$C$18) -> 6.65 | BF21: =(AZ21*InputWeights!$C$11+BA21*InputWeights!$C$10+BB21*InputWeights!$C$12) -> 6 | BG21: =(BE21*InputWeights!$C$14+BD21*InputWeights!$C$5+BF21*InputWeights!$C$9) -> 67.1 | BH21: =((_xlfn.RANK.EQ(BG21,$BG$2:$BG$6635,0))/(COUNT(BG$2:$BG$6635)))*100 -> 0.3014772385 | BI21: 1
A22: 2304760002 | B22: 0476 | C22: 23 | D22: Delaware | E22: 06 | F22: 1 | G22: 0002 | H22: 2607 | I22: 100 | J22: 0 | K22: 1988 | L22: 1988 | M22: 1 | N22: 43 | O22: 71 | P22: 3 | Q22: 2 | R22: 32 | S22: 152 | T22: 1 | U22: MID COUNTY EX | V22: I | W22: 476 | Y22: RAMP M-4 RD | Z22: SEGMENT | AA22: 49 | AB22: 4 | AC22: Y | AD22: BLUE ROUTE | AE22: 2015 | AF22: 2015 | AG22: POOR | AH22: GOOD | AI22: 1 | AJ22: 1 | AK22: Stakeholder Comment | AL22: 3208 | AM22: 6416 | AN22: 0 | AO22: 0 | AP22: 0 | AQ22: 34775 | AR22: 69550 | AT22: 5 | AU22: 10 | AV22: 10 | AW22: 10 | AX22: 8 | AY22: 10 | AZ22: 5 | BA22: 0 | BB22: 0 | BD22: =(AT22*InputWeights!$C$6+AU22*InputWeights!$C$7) -> 7.5 | BE22: =(AY22*InputWeights!$C$15+AX22*InputWeights!$C$16+AW22*InputWeights!$C$17+AV22*InputWeights!$C$18) -> 9.6 | BF22: =(AZ22*InputWeights!$C$11+BA22*InputWeights!$C$10+BB22*InputWeights!$C$12) -> 2 | BG22: =(BE22*InputWeights!$C$14+BD22*InputWeights!$C$5+BF22*InputWeights!$C$9) -> 66.9 | BH22: =((_xlfn.RANK.EQ(BG22,$BG$2:$BG$6635,0))/(COUNT(BG$2:$BG$6635)))*100 -> 0.3165511004 | BI22: 1
A23: 0200510330 | B23: 0051 | C23: 02 | D23: Allegheny | E23: 11 | F23: 1 | G23: 0330 | H23: 1722 | I23: 9000 | J23: 0 | K23: 1930 | L23: 2015 | M23: 1 | N23: 24 | O23: 62 | P23: 2 | Q23: 1 | R23: 1 | S23: 188 | T23: 3 | U23: SAW MILL RUN BL | V23: PA | W23: 051 | Y23: BRIDGE | Z23: LIBRARY RD | AA23: 49 | AB23: 4 | AC23: Y | AF23: 2014 | AG23: POOR | AH23: POOR | AI23: 3 | AJ23: 3 | AK23: RCRS | AL23: 765 | AM23: 1530 | AN23: 0 | AO23: 0 | AP23: 2 | AQ23: 11961 | AR23: 23922 | AT23: 5 | AU23: 10 | AV23: 0 | AW23: 7.5 | AX23: 3 | AY23: 5 | AZ23: 10 | BA23: 10 | BB23: 0 | BD23: =(AT23*InputWeights!$C$6+AU23*InputWeights!$C$7) -> 7.5 | BE23: =(AY23*InputWeights!$C$15+AX23*InputWeights!$C$16+AW23*InputWeights!$C$17+AV23*InputWeights!$C$18) -> 4.85 | BF23: =(AZ23*InputWeights!$C$11+BA23*InputWeights!$C$10+BB23*InputWeights!$C$12) -> 8 | BG23: =(BE23*InputWeights!$C$14+BD23*InputWeights!$C$5+BF23*InputWeights!$C$9) -> 65.9 | BH23: =((_xlfn.RANK.EQ(BG23,$BG$2:$BG$6635,0))/(COUNT(BG$2:$BG$6635)))*100 -> 0.3316249623 | BI23: 1
A24: 6730070150 | B24: 3007 | C24: 67 | D24: Philadelphia | E24: 06 | F24: 1 | G24: 0150 | H24: 2212 | I24: 670060200 | J24: 0 | K24: 1964 | L24: 2015 | M24: 1 | N24: 32 | O24: 62 | P24: 2 | Q24: 3 | R24: 2 | S24: 189 | T24: 3 | U24: KELLY DR | W24: 000 | Y24: SEGMENT | Z24: LINCOLN DR | AA24: 39 | AB24: 4 | AC24: Y | AD24: EAST RIVER DR | AE24: 2015 | AF24: 2015 | AG24: POOR | AH24: FAIR | AI24: 3 | AJ24: 2 | AK24: RCRS | AL24: 234 | AM24: 468 | AN24: 0 | AO24: 0 | AP24: 4 | AQ24: 22354 | AR24: 44708 | AT24: 1 | AU24: 10 | AV24: 10 | AW24: 7.5 | AX24: 1 | AY24: 9 | AZ24: 7.5 | BA24: 10 | BB24: 0 | BD24: =(AT24*InputWeights!$C$6+AU24*InputWeights!$C$7) -> 5.5 | BE24: =(AY24*InputWeights!$C$15+AX24*InputWeights!$C$16+AW24*InputWeights!$C$17+AV24*InputWeights!$C$18) -> 7.05 | BF24: =(AZ24*InputWeights!$C$11+BA24*InputWeights!$C$10+BB24*InputWeights!$C$12) -> 7 | BG24: =(BE24*InputWeights!$C$14+BD24*InputWeights!$C$5+BF24*InputWeights!$C$9) -> 65.7 | BH24: =((_xlfn.RANK.EQ(BG24,$BG$2:$BG$6635,0))/(COUNT(BG$2:$BG$6635)))*100 -> 0.3466988242 | BI24: 1
A25: 6700950134 | B25: 0095 | C25: 67 | D25: Philadelphia | E25: 06 | F25: 1 | G25: 0134 | H25: 3021 | I25: 2800 | J25: 0 | K25: 1985 | L25: 2014 | M25: 1 | N25: 72 | O25: 62 | P25: 4 | Q25: 2 | R25: 48 | S25: 149 | T25: 1 | U25: DELAWARE EX | V25: I | W25: 095 | Y25: SEGMENT | Z25: BRIDGE | AA25: 49 | AB25: 4 | AC25: Y | AE25: 2015 | AF25: 2015 | AG25: FAIR | AH25: GOOD | AI25: 1 | AJ25: 1 | AK25: Stakeholder Comment | AL25: 2222 | AM25: 4444 | AN25: 0 | AO25: 0 | AP25: 0 | AQ25: 49680 | AR25: 99360 | AT25: 5 | AU25: 10 | AV25: 10 | AW25: 10 | AX25: 6 | AY25: 10 | AZ25: 5 | BA25: 0 | BB25: 0 | BD25: =(AT25*InputWeights!$C$6+AU25*InputWeights!$C$7) -> 7.5 | BE25: =(AY25*InputWeights!$C$15+AX25*InputWeights!$C$16+AW25*InputWeights!$C$17+AV25*InputWeights!$C$18) -> 9.2 | BF25: =(AZ25*InputWeights!$C$11+BA25*InputWeights!$C$10+BB25*InputWeights!$C$12) -> 2 | BG25: =(BE25*InputWeights!$C$14+BD25*InputWeights!$C$5+BF25*InputWeights!$C$9) -> 65.3 | BH25: =((_xlfn.RANK.EQ(BG25,$BG$2:$BG$6635,0))/(COUNT(BG$2:$BG$6635)))*100 -> 0.3617726862 | BI25: 1
A26: 0200280261 | B26: 0028 | C26: 02 | D26: Allegheny | E26: 11 | F26: 1 | G26: 0261 | H26: 2879 | I26: 2600 | J26: 0 | K26: 1968 | L26: 2008 | M26: 1 | N26: 24 | O26: 62 | P26: 2 | Q26: 3 | R26: 36 | S26: 136 | T26: 1 | U26: ALLEGHENY VALLEY EX | V26: PA | W26: 028 | Y26: DRAIN LEFT | Z26: BRIDGE | AA26: 29 | AB26: 4 | AC26: Y | AE26: 2015 | AF26: 2015 | AG26: FAIR | AH26: GOOD | AI26: 2 | AJ26: 2 | AK26: RCRS | AL26: 1908 | AM26: 3816 | AN26: 0 | AO26: 0 | AP26: 0 | AQ26: 23841 | AR26: 47682 | AT26: 10 | AU26: 10 | AV26: 0 | AW26: 7.5 | AX26: 5 | AY26: 10 | AZ26: 5 | BA26: 0 | BB26: 0 | BD26: =(AT26*InputWeights!$C$6+AU26*InputWeights!$C$7) -> 10 | BE26: =(AY26*InputWeights!$C$15+AX26*InputWeights!$C$16+AW26*InputWeights!$C$17+AV26*InputWeights!$C$18) -> 7.25 | BF26: =(AZ26*InputWeights!$C$11+BA26*InputWeights!$C$10+BB26*InputWeights!$C$12) -> 2 | BG26: =(BE26*InputWeights!$C$14+BD26*InputWeights!$C$5+BF26*InputWeights!$C$9) -> 65 | BH26: =((_xlfn.RANK.EQ(BG26,$BG$2:$BG$6635,0))/(COUNT(BG$2:$BG$6635)))*100 -> 0.3768465481 | BI26: 1
A27: 4830040080 | B27: 3004 | C27: 48 | D27: Northampton | E27: 05 | F27: 1 | G27: 0080 | H27: 1262 | I27: 480043400 | J27: 0 | K27: 1900 | L27: 2010 | M27: 2 | N27: 28 | O27: 61 | P27: 2 | Q27: 0 | R27: 0 | S27: 267 | T27: 3 | U27: FRIEDENSVILLE RD | W27: 000 | Y27: BRIDGE | Z27: MAIN ST | AA27: 29 | AB27: 4 | AC27: N | AE27: 2015 | AF27: 2015 | AG27: POOR | AH27: POOR | AI27: 4 | AJ27: 2 | AK27: RCRS | AL27: 236 | AM27: 236 | AN27: 0 | AO27: 0 | AP27: 0 | AQ27: 7883 | AR27: 7883 | AT27: 10 | AU27: 10 | AV27: 10 | AW27: 2.5 | AX27: 1 | AY27: 2 | AZ27: 10 | BA27: 10 | BB27: 0 | BD27: =(AT27*InputWeights!$C$6+AU27*InputWeights!$C$7) -> 10 | BE27: =(AY27*InputWeights!$C$15+AX27*InputWeights!$C$16+AW27*InputWeights!$C$17+AV27*InputWeights!$C$18) -> 2.75 | BF27: =(AZ27*InputWeights!$C$11+BA27*InputWeights!$C$10+BB27*InputWeights!$C$12) -> 8 | BG27: =(BE27*InputWeights!$C$14+BD27*InputWeights!$C$5+BF27*InputWeights!$C$9) -> 65 | BH27: =((_xlfn.RANK.EQ(BG27,$BG$2:$BG$6635,0))/(COUNT(BG$2:$BG$6635)))*100 -> 0.3768465481 | BI27: 1
A28: 0201300322 | B28: 0130 | C28: 02 | D28: Allegheny | E28: 11 | F28: 1 | G28: 0322 | H28: 2351 | I28: 3200 | J28: 0 | K28: 1985 | L28: 2011 | M28: 2 | N28: 28 | O28: 52 | P28: 2 | Q28: 0 | R28: 0 | S28: 99 | T28: 3 | U28: FIFTH ST | V28: PA | W28: 130 | Y28: BRINTON AV | Z28: MOSS SIDE BL | AA28: 59 | AB28: 4 | AC28: Y | AE28: 2015 | AF28: 2015 | AG28: GOOD | AH28: FAIR | AI28: 3 | AJ28: 2 | AK28: RCRS | AL28: 797 | AM28: 797 | AN28: 1 | AO28: 2.245853 | AP28: 2 | AQ28: 10931 | AR28: 10931 | AT28: 5 | AU28: 10 | AV28: 0 | AW28: 7.5 | AX28: 2 | AY28: 3 | AZ28: 7.5 | BA28: 10 | BB28: 10 | BD28: =(AT28*InputWeights!$C$6+AU28*InputWeights!$C$7) -> 7.5 | BE28: =(AY28*InputWeights!$C$15+AX28*InputWeights!$C$16+AW28*InputWeights!$C$17+AV28*InputWeights!$C$18) -> 3.85 | BF28: =(AZ28*InputWeights!$C$11+BA28*InputWeights!$C$10+BB28*InputWeights!$C$12) -> 9 | BG28: =(BE28*InputWeights!$C$14+BD28*InputWeights!$C$5+BF28*InputWeights!$C$9) -> 64.9 | BH28: =((_xlfn.RANK.EQ(BG28,$BG$2:$BG$6635,0))/(COUNT(BG$2:$BG$6635)))*100 -> 0.4069942719 | BI28: 1
A29: 0800060350 | B29: 0006 | C29: 08 | D29: Bradford | E29: 03 | F29: 1 | G29: 0350 | H29: 2946 | I29: 58100 | J29: 0 | K29: 1926 | L29: 2007 | M29: 2 | N29: 22 | O29: 62 | P29: 2 | Q29: 0 | R29: 0 | S29: 196 | T29: 3 | U29: MAIN ST | V29: US | W29: 006 | Y29: STEAM HOLLOW | Z29: BRIDGE | AA29: 39 | AB29: 1 | AC29: Y | AE29: 2016 | AF29: 2016 | AG29: POOR | AH29: POOR | AI29: 3 | AJ29: 1 | AK29: Stakeholder Comment | AL29: 535 | AM29: 535 | AN29: 2 | AO29: 3.584521 | AP29: 0 | AQ29: 3915 | AR29: 3915 | AT29: 5 | AU29: 10 | AV29: 0 | AW29: 7.5 | AX29: 2 | AY29: 1 | AZ29: 10 | BA29: 10 | BB29: 10 | BD29: =(AT29*InputWeights!$C$6+AU29*InputWeights!$C$7) -> 7.5 | BE29: =(AY29*InputWeights!$C$15+AX29*InputWeights!$C$16+AW29*InputWeights!$C$17+AV29*InputWeights!$C$18) -> 3.05 | BF29: =(AZ29*InputWeights!$C$11+BA29*InputWeights!$C$10+BB29*InputWeights!$C$12) -> 10 | BG29: =(BE29*InputWeights!$C$14+BD29*InputWeights!$C$5+BF29*InputWeights!$C$9) -> 64.7 | BH29: =((_xlfn.RANK.EQ(BG29,$BG$2:$BG$6635,0))/(COUNT(BG$2:$BG$6635)))*100 -> 0.4220681339 | BI29: 1
A30: 0800060360 | B30: 0006 | C30: 08 | D30: Bradford | E30: 03 | F30: 1 | G30: 0360 | H30: 2606 | I30: 58200 | J30: 0 | K30: 1926 | L30: 2007 | M30: 2 | N30: 22 | O30: 62 | P30: 2 | Q30: 0 | R30: 0 | S30: 133 | T30: 3 | U30: MAIN ST | V30: US | W30: 006 | Y30: BRIDGE | Z30: SEGMENT | AA30: 39 | AB30: 1 | AC30: Y | AE30: 2016 | AF30: 2016 | AG30: FAIR | AH30: POOR | AI30: 3 | AJ30: 1 | AK30: Stakeholder Comment | AL30: 535 | AM30: 535 | AN30: 1 | AO30: 2.026094 | AP30: 0 | AQ30: 3915 | AR30: 3915 | AT30: 5 | AU30: 10 | AV30: 0 | AW30: 7.5 | AX30: 2 | AY30: 1 | AZ30: 10 | BA30: 10 | BB30: 10 | BD30: =(AT30*InputWeights!$C$6+AU30*InputWeights!$C$7) -> 7.5 | BE30: =(AY30*InputWeights!$C$15+AX30*InputWeights!$C$16+AW30*InputWeights!$C$17+AV30*InputWeights!$C$18) -> 3.05 | BF30: =(AZ30*InputWeights!$C$11+BA30*InputWeights!$C$10+BB30*InputWeights!$C$12) -> 10 | BG30: =(BE30*InputWeights!$C$14+BD30*InputWeights!$C$5+BF30*InputWeights!$C$9) -> 64.7 | BH30: =((_xlfn.RANK.EQ(BG30,$BG$2:$BG$6635,0))/(COUNT(BG$2:$BG$6635)))*100 -> 0.4220681339 | BI30: 1
A31: 0800060370 | B31: 0006 | C31: 08 | D31: Bradford | E31: 03 | F31: 1 | G31: 0370 | H31: 2504 | I31: 58300 | J31: 0 | K31: 1926 | L31: 2007 | M31: 2 | N31: 22 | O31: 62 | P31: 2 | Q31: 0 | R31: 0 | S31: 157 | T31: 3 | U31: MAIN ST | V31: US | W31: 006 | Y31: SEGMENT | Z31: MAC RD | AA31: 39 | AB31: 1 | AC31: Y | AE31: 2016 | AF31: 2016 | AG31: FAIR | AH31: POOR | AI31: 3 | AJ31: 1 | AK31: Stakeholder Comment | AL31: 535 | AM31: 535 | AN31: 1 | AO31: 2.108626 | AP31: 0 | AQ31: 3915 | AR31: 3915 | AT31: 5 | AU31: 10 | AV31: 0 | AW31: 7.5 | AX31: 2 | AY31: 1 | AZ31: 10 | BA31: 10 | BB31: 10 | BD31: =(AT31*InputWeights!$C$6+AU31*InputWeights!$C$7) -> 7.5 | BE31: =(AY31*InputWeights!$C$15+AX31*InputWeights!$C$16+AW31*InputWeights!$C$17+AV31*InputWeights!$C$18) -> 3.05 | BF31: =(AZ31*InputWeights!$C$11+BA31*InputWeights!$C$10+BB31*InputWeights!$C$12) -> 10 | BG31: =(BE31*InputWeights!$C$14+BD31*InputWeights!$C$5+BF31*InputWeights!$C$9) -> 64.7 | BH31: =((_xlfn.RANK.EQ(BG31,$BG$2:$BG$6635,0))/(COUNT(BG$2:$BG$6635)))*100 -> 0.4220681339 | BI31: 1
A32: 0200510331 | B32: 0051 | C32: 02 | D32: Allegheny | E32: 11 | F32: 1 | G32: 0331 | H32: 1684 | I32: 9000 | J32: 0 | K32: 1930 | L32: 2015 | M32: 1 | N32: 24 | O32: 62 | P32: 2 | Q32: 1 | R32: 1 | S32: 169 | T32: 3 | U32: SAW MILL RUN BL | V32: PA | W32: 051 | Y32: BRIDGE | Z32: LIBRARY RD | AA32: 49 | AB32: 4 | AC32: Y | AE32: 2015 | AF32: 2015 | AG32: FAIR | AH32: FAIR | AI32: 3 | AJ32: 3 | AK32: RCRS | AL32: 736 | AM32: 1472 | AN32: 0 | AO32: 0 | AP32: 2 | AQ32: 12524 | AR32: 25048 | AT32: 5 | AU32: 10 | AV32: 0 | AW32: 7.5 | AX32: 3 | AY32: 6 | AZ32: 7.5 | BA32: 10 | BB32: 0 | BD32: =(AT32*InputWeights!$C$6+AU32*InputWeights!$C$7) -> 7.5 | BE32: =(AY32*InputWeights!$C$15+AX32*InputWeights!$C$16+AW32*InputWeights!$C$17+AV32*InputWeights!$C$18) -> 5.25 | BF32: =(AZ32*InputWeights!$C$11+BA32*InputWeights!$C$10+BB32*InputWeights!$C$12) -> 7 | BG32: =(BE32*InputWeights!$C$14+BD32*InputWeights!$C$5+BF32*InputWeights!$C$9) -> 64.5 | BH32: =((_xlfn.RANK.EQ(BG32,$BG$2:$BG$6635,0))/(COUNT(BG$2:$BG$6635)))*100 -> 0.4672897196 | BI32: 1
A33: 2304760095 | B33: 0476 | C33: 23 | D33: Delaware | E33: 06 | F33: 1 | G33: 0095 | H33: 2611 | I33: 2000 | J33: 0 | K33: 1991 | L33: 2006 | M33: 1 | N33: 36 | O33: 61 | P33: 3 | Q33: 2 | R33: 50 | S33: 105 | T33: 1 | U33: MID COUNTY EX | V33: I | W33: 476 | Y33: DRAIN LEFT | Z33: HAVERFORD | AA33: 39 | AB33: 4 | AC33: Y | AD33: BLUE ROUTE | AE33: 2015 | AF33: 2016 | AG33: FAIR | AH33: GOOD | AI33: 1 | AJ33: 1 | AK33: Stakeholder Comment | AL33: 5434 | AM33: 10868 | AN33: 0 | AO33: 0 | AP33: 0 | AQ33: 49376 | AR33: 98752 | AT33: 5 | AU33: 10 | AV33: 0 | AW33: 10 | AX33: 10 | AY33: 10 | AZ33: 5 | BA33: 0 | BB33: 0 | BD33: =(AT33*InputWeights!$C$6+AU33*InputWeights!$C$7) -> 7.5 | BE33: =(AY33*InputWeights!$C$15+AX33*InputWeights!$C$16+AW33*InputWeights!$C$17+AV33*InputWeights!$C$18) -> 9 | BF33: =(AZ33*InputWeights!$C$11+BA33*InputWeights!$C$10+BB33*InputWeights!$C$12) -> 2 | BG33: =(BE33*InputWeights!$C$14+BD33*InputWeights!$C$5+BF33*InputWeights!$C$9) -> 64.5 | BH33: =((_xlfn.RANK.EQ(BG33,$BG$2:$BG$6635,0))/(COUNT(BG$2:$BG$6635)))*100 -> 0.4672897196 | BI33: 1
A34: 6730130040 | B34: 3013 | C34: 67 | D34: Philadelphia | E34: 06 | F34: 1 | G34: 0040 | H34: 2537 | I34: 670046100 | J34: 0 | K34: 1947 | L34: 1999 | M34: 1 | N34: 33 | O34: 62 | P34: 2 | Q34: 1 | R34: 1 | S34: 393 | T34: 3 | U34: ISLAND AV | W34: 000 | Y34: BUIST AV | Z34: MAIN ST | AA34: 49 | AB34: 4 | AC34: Y | AE34: 2015 | AF34: 2015 | AG34: POOR | AH34: POOR | AI34: 3 | AJ34: 2 | AK34: RCRS | AL34: 553 | AM34: 1106 | AN34: 0 | AO34: 0 | AP34: 2 | AQ34: 8953 | AR34: 17906 | AT34: 5 | AU34: 10 | AV34: 0 | AW34: 7.5 | AX34: 3 | AY34: 4 | AZ34: 10 | BA34: 10 | BB34: 0 | BD34: =(AT34*InputWeights!$C$6+AU34*InputWeights!$C$7) -> 7.5 | BE34: =(AY34*InputWeights!$C$15+AX34*InputWeights!$C$16+AW34*InputWeights!$C$17+AV34*InputWeights!$C$18) -> 4.45 | BF34: =(AZ34*InputWeights!$C$11+BA34*InputWeights!$C$10+BB34*InputWeights!$C$12) -> 8 | BG34: =(BE34*InputWeights!$C$14+BD34*InputWeights!$C$5+BF34*InputWeights!$C$9) -> 64.3 | BH34: =((_xlfn.RANK.EQ(BG34,$BG$2:$BG$6635,0))/(COUNT(BG$2:$BG$6635)))*100 -> 0.4974374435 | BI34: 1
A35: 2402190020 | B35: 0219 | C35: 24 | D35: Elk | E35: 02 | F35: 1 | G35: 0020 | H35: 1885 | I35: 31500 | J35: 0 | K35: 1925 | L35: 2010 | M35: 2 | N35: 22 | O35: 62 | P35: 2 | Q35: 0 | R35: 0 | S35: 69 | T35: 3 | U35: BUFFALO PITTSBURGH HW | V35: US | W35: 219 | Y35: HOWARD RD | Z35: SEGMENT | AA35: 59 | AB35: 1 | AC35: Y | AE35: 2015 | AF35: 2015 | AG35: EXCELLENT | AH35: GOOD | AI35: 3 | AJ35: 2 | AK35: RCRS | AL35: 629 | AM35: 629 | AN35: 1 | AO35: 2.801061 | AP35: 1 | AQ35: 5717 | AR35: 5717 | AT35: 7.5 | AU35: 10 | AV35: 0 | AW35: 7.5 | AX35: 2 | AY35: 2 | AZ35: 5 | BA35: 10 | BB35: 10 | BD35: =(AT35*InputWeights!$C$6+AU35*InputWeights!$C$7) -> 8.75 | BE35: =(AY35*InputWeights!$C$15+AX35*InputWeights!$C$16+AW35*InputWeights!$C$17+AV35*InputWeights!$C$18) -> 3.45 | BF35: =(AZ35*InputWeights!$C$11+BA35*InputWeights!$C$10+BB35*InputWeights!$C$12) -> 8 | BG35: =(BE35*InputWeights!$C$14+BD35*InputWeights!$C$5+BF35*InputWeights!$C$9) -> 64.05 | BH35: =((_xlfn.RANK.EQ(BG35,$BG$2:$BG$6635,0))/(COUNT(BG$2:$BG$6635)))*100 -> 0.5125113054 | BI35: 1
A36: 2500080600 | B36: 0008 | C36: 25 | D36: Erie | E36: 01 | F36: 1 | G36: 0600 | H36: 2299 | I36: 30800 | J36: 10 | K36: 1900 | L36: 2009 | M36: 2 | N36: 22 | O36: 62 | P36: 2 | Q36: 0 | R36: 0 | S36: 108 | T36: 3 | U36: WATTSBURG RD | V36: PA | W36: 008 | Y36: RR OVERPASS | Z36: NORCROSS RD | AA36: 39 | AB36: 3 | AC36: Y | AE36: 2016 | AF36: 2016 | AG36: GOOD | AH36: FAIR | AI36: 3 | AJ36: 2 | AK36: RCRS | AL36: 400 | AM36: 400 | AN36: 0 | AO36: 0 | AP36: 0 | AQ36: 8049 | AR36: 8049 | AT36: 10 | AU36: 10 | AV36: 0 | AW36: 7.5 | AX36: 1 | AY36: 2 | AZ36: 7.5 | BA36: 10 | BB36: 0 | BD36: =(AT36*InputWeights!$C$6+AU36*InputWeights!$C$7) -> 10 | BE36: =(AY36*InputWeights!$C$15+AX36*InputWeights!$C$16+AW36*InputWeights!$C$17+AV36*InputWeights!$C$18) -> 3.25 | BF36: =(AZ36*InputWeights!$C$11+BA36*InputWeights!$C$10+BB36*InputWeights!$C$12) -> 7 | BG36: =(BE36*InputWeights!$C$14+BD36*InputWeights!$C$5+BF36*InputWeights!$C$9) -> 64 | BH36: =((_xlfn.RANK.EQ(BG36,$BG$2:$BG$6635,0))/(COUNT(BG$2:$BG$6635)))*100 -> 0.5275851673 | BI36: 1
A37: 5300810990 | B37: 0081 | C37: 53 | D37: Schuylkill | E37: 05 | F37: 1 | G37: 0990 | H37: 2650 | I37: 20000 | J37: 0 | K37: 1968 | L37: 1998 | M37: 1 | N37: 24 | O37: 62 | P37: 2 | Q37: 7 | R37: 120 | S37: 145 | T37: 1 | U37: AMERICAN LEGION MEM HW | V37: I | W37: 081 | Y37: SEGMENT | Z37: SEGMENT | AA37: 59 | AB37: 1 | AC37: Y | AF37: 2014 | AG37: FAIR | AH37: FAIR | AI37: 1 | AJ37: 1 | AK37: Stakeholder Comment | AL37: 4099 | AM37: 8198 | AN37: 0 | AO37: 0 | AP37: 0 | AQ37: 12067 | AR37: 24134 | AT37: 5 | AU37: 10 | AV37: 10 | AW37: 10 | AX37: 10 | AY37: 5 | AZ37: 7.5 | BA37: 0 | BB37: 0 | BD37: =(AT37*InputWeights!$C$6+AU37*InputWeights!$C$7) -> 7.5 | BE37: =(AY37*InputWeights!$C$15+AX37*InputWeights!$C$16+AW37*InputWeights!$C$17+AV37*InputWeights!$C$18) -> 8 | BF37: =(AZ37*InputWeights!$C$11+BA37*InputWeights!$C$10+BB37*InputWeights!$C$12) -> 3 | BG37: =(BE37*InputWeights!$C$14+BD37*InputWeights!$C$5+BF37*InputWeights!$C$9) -> 63.5 | BH37: =((_xlfn.RANK.EQ(BG37,$BG$2:$BG$6635,0))/(COUNT(BG$2:$BG$6635)))*100 -> 0.5426590292 | BI37: 1
A38: 1430140081 | B38: 3014 | C38: 14 | D38: Centre | E38: 02 | F38: 1 | G38: 0081 | H38: 2795 | I38: 140004800 | J38: 0 | K38: 1930 | L38: 1998 | M38: 1 | N38: 20 | O38: 62 | P38: 2 | Q38: 4 | R38: 8 | S38: 228 | T38: 3 | U38: NORTH ATHERTON ST | V38: US | W38: 322 | X38: B | Y38: BLUE COURSE D | Z38: WOODLAND DR | AA38: 39 | AB38: 3 | AC38: 6 | AE38: 2015 | AF38: 2015 | AG38: POOR | AH38: POOR | AI38: 3 | AJ38: 2 | AK38: RCRS | AL38: 1376 | AM38: 2752 | AN38: 4 | AO38: 7.556351 | AP38: 3 | AQ38: 20962 | AR38: 41924 | AT38: 2.5 | AU38: 10 | AV38: 0 | AW38: 7.5 | AX38: 4 | AY38: 9 | AZ38: 10 | BA38: 0 | BB38: 10 | BD38: =(AT38*InputWeights!$C$6+AU38*InputWeights!$C$7) -> 6.25 | BE38: =(AY38*InputWeights!$C$15+AX38*InputWeights!$C$16+AW38*InputWeights!$C$17+AV38*InputWeights!$C$18) -> 6.65 | BF38: =(AZ38*InputWeights!$C$11+BA38*InputWeights!$C$10+BB38*InputWeights!$C$12) -> 6 | BG38: =(BE38*InputWeights!$C$14+BD38*InputWeights!$C$5+BF38*InputWeights!$C$9) -> 63.35 | BH38: =((_xlfn.RANK.EQ(BG38,$BG$2:$BG$6635,0))/(COUNT(BG$2:$BG$6635)))*100 -> 0.5577328912 | BI38: 1
A39: 4603090361 | B39: 0309 | C39: 46 | D39: Montgomery | E39: 06 | F39: 1 | G39: 0361 | H39: 3620 | I39: 3600 | J39: 10 | K39: 1960 | L39: 2004 | M39: 1 | N39: 26 | O39: 62 | P39: 2 | Q39: 2 | R39: 20 | S39: 193 | T39: 3 | U39: BETHLEHEM PK | V39: PA | W39: 309 | Y39: TAYLOR RD | Z39: BROAD ST | AA39: 59 | AB39: 4 | AC39: Y | AE39: 2015 | AF39: 2015 | AG39: POOR | AH39: FAIR | AI39: 3 | AJ39: 2 | AK39: RCRS | AL39: 565 | AM39: 1130 | AN39: 0 | AO39: 0 | AP39: 2 | AQ39: 12082 | AR39: 24164 | AT39: 5 | AU39: 10 | AV39: 0 | AW39: 7.5 | AX39: 3 | AY39: 5 | AZ39: 7.5 | BA39: 10 | BB39: 0 | BD39: =(AT39*InputWeights!$C$6+AU39*InputWeights!$C$7) -> 7.5 | BE39: =(AY39*InputWeights!$C$15+AX39*InputWeights!$C$16+AW39*InputWeights!$C$17+AV39*InputWeights!$C$18) -> 4.85 | BF39: =(AZ39*InputWeights!$C$11+BA39*InputWeights!$C$10+BB39*InputWeights!$C$12) -> 7 | BG39: =(BE39*InputWeights!$C$14+BD39*InputWeights!$C$5+BF39*InputWeights!$C$9) -> 62.9 | BH39: =((_xlfn.RANK.EQ(BG39,$BG$2:$BG$6635,0))/(COUNT(BG$2:$BG$6635)))*100 -> 0.5728067531 | BI39: 1
A40: 6700950145 | B40: 0095 | C40: 67 | D40: Philadelphia | E40: 06 | F40: 1 | G40: 0145 | H40: 3124 | I40: 3000 | J40: 0 | K40: 2010 | L40: 2010 | M40: 1 | N40: 55 | O40: 98 | P40: 4 | Q40: 2 | R40: 1 | S40: 165 | T40: 1 | U40: DELAWARE EX | V40: I | W40: 095 | Y40: BRIDGE | Z40: BRIDGE | AA40: 49 | AB40: 4 | AC40: Y | AE40: 2015 | AF40: 2015 | AG40: POOR | AH40: GOOD | AI40: 1 | AJ40: 1 | AK40: Stakeholder Comment | AL40: 3206 | AM40: 6412 | AN40: 0 | AO40: 0 | AP40: 0 | AQ40: 53931 | AR40: 107862 | AT40: 5 | AU40: 10 | AV40: 0 | AW40: 10 | AX40: 8 | AY40: 10 | AZ40: 5 | BA40: 0 | BB40: 0 | BD40: =(AT40*InputWeights!$C$6+AU40*InputWeights!$C$7) -> 7.5 | BE40: =(AY40*InputWeights!$C$15+AX40*InputWeights!$C$16+AW40*InputWeights!$C$17+AV40*InputWeights!$C$18) -> 8.6 | BF40: =(AZ40*InputWeights!$C$11+BA40*InputWeights!$C$10+BB40*InputWeights!$C$12) -> 2 | BG40: =(BE40*InputWeights!$C$14+BD40*InputWeights!$C$5+BF40*InputWeights!$C$9) -> 62.9 | BH40: =((_xlfn.RANK.EQ(BG40,$BG$2:$BG$6635,0))/(COUNT(BG$2:$BG$6635)))*100 -> 0.5728067531 | BI40: 1
A41: 0520190060 | B41: 2019 | C41: 05 | D41: Bedford | E41: 09 | F41: 1 | G41: 0060 | H41: 2727 | I41: 50002200 | J41: 0 | K41: 1938 | L41: 2006 | M41: 2 | N41: 18 | O41: 52 | P41: 2 | Q41: 0 | R41: 0 | S41: 191 | T41: 3 | U41: LUTZVILLE RD | W41: 000 | Y41: BRIDGE | Z41: DRAIN LEFT | AA41: 49 | AB41: 1 | AC41: N | AD41: SR 2019 SH | AE41: 2015 | AF41: 2015 | AG41: FAIR | AH41: FAIR | AI41: 6 | AJ41: 2 | AK41: RCRS | AL41: 35 | AM41: 35 | AN41: 1 | AO41: 1.936194 | AP41: 1 | AQ41: 781 | AR41: 781 | AT41: 7.5 | AU41: 10 | AV41: 10 | AW41: 2.5 | AX41: 1 | AY41: 1 | AZ41: 7.5 | BA41: 10 | BB41: 10 | BD41: =(AT41*InputWeights!$C$6+AU41*InputWeights!$C$7) -> 8.75 | BE41: =(AY41*InputWeights!$C$15+AX41*InputWeights!$C$16+AW41*InputWeights!$C$17+AV41*InputWeights!$C$18) -> 2.35 | BF41: =(AZ41*InputWeights!$C$11+BA41*InputWeights!$C$10+BB41*InputWeights!$C$12) -> 9 | BG41: =(BE41*InputWeights!$C$14+BD41*InputWeights!$C$5+BF41*InputWeights!$C$9) -> 62.65 | BH41: =((_xlfn.RANK.EQ(BG41,$BG$2:$BG$6635,0))/(COUNT(BG$2:$BG$6635)))*100 -> 0.6029544769 | BI41: 1
A42: 1030060010 | B42: 3006 | C42: 10 | D42: Butler | E42: 10 | F42: 1 | G42: 0010 | H42: 3521 | I42: 100004800 | J42: 0 | K42: 1940 | L42: 2015 | M42: 2 | N42: 23 | O42: 61 | P42: 2 | Q42: 0 | R42: 0 | S42: 351 | T42: 3 | U42: RENFREW RD | W42: 000 | Y42: MERIDIAN RD | Z42: HICKS RD | AA42: 59 | AB42: 1 | AC42: N | AE42: 2015 | AF42: 2015 | AG42: POOR | AH42: FAIR | AI42: 5 | AJ42: 2 | AK42: RCRS | AL42: 25 | AM42: 25 | AN42: 3 | AO42: 4.498722 | AP42: 0 | AQ42: 848 | AR42: 848 | AT42: 10 | AU42: 10 | AV42: 0 | AW42: 2.5 | AX42: 1 | AY42: 1 | AZ42: 7.5 | BA42: 10 | BB42: 10 | BD42: =(AT42*InputWeights!$C$6+AU42*InputWeights!$C$7) -> 10 | BE42: =(AY42*InputWeights!$C$15+AX42*InputWeights!$C$16+AW42*InputWeights!$C$17+AV42*InputWeights!$C$18) -> 1.35 | BF42: =(AZ42*InputWeights!$C$11+BA42*InputWeights!$C$10+BB42*InputWeights!$C$12) -> 9 | BG42: =(BE42*InputWeights!$C$14+BD42*InputWeights!$C$5+BF42*InputWeights!$C$9) -> 62.4 | BH42: =((_xlfn.RANK.EQ(BG42,$BG$2:$BG$6635,0))/(COUNT(BG$2:$BG$6635)))*100 -> 0.6180283389 | BI42: 1
A43: 5202440264 | B43: 0244 | C43: 52 | D43: Potter | E43: 02 | F43: 1 | G43: 0264 | H43: 2318 | I43: 2600 | J43: 0 | K43: 1931 | L43: 2010 | M43: 2 | N43: 20 | O43: 61 | P43: 2 | Q43: 0 | R43: 0 | S43: 286 | T43: 3 | U43: ANDREWS SETTLEMENT RD | V43: PA | W43: 244 | Y43: SEGMENT | Z43: SEGMENT | AA43: 49 | AB43: 1 | AC43: N | AF43: 2014 | AG43: POOR | AH43: FAIR | AI43: 5 | AJ43: 2 | AK43: RCRS | AL43: 9 | AM43: 9 | AN43: 7 | AO43: 15.94478 | AP43: 0 | AQ43: 298 | AR43: 298 | AT43: 10 | AU43: 10 | AV43: 0 | AW43: 2.5 | AX43: 1 | AY43: 1 | AZ43: 7.5 | BA43: 10 | BB43: 10 | BD43: =(AT43*InputWeights!$C$6+AU43*InputWeights!$C$7) -> 10 | BE43: =(AY43*InputWeights!$C$15+AX43*InputWeights!$C$16+AW43*InputWeights!$C$17+AV43*InputWeights!$C$18) -> 1.35 | BF43: =(AZ43*InputWeights!$C$11+BA43*InputWeights!$C$10+BB43*InputWeights!$C$12) -> 9 | BG43: =(BE43*InputWeights!$C$14+BD43*InputWeights!$C$5+BF43*InputWeights!$C$9) -> 62.4 | BH43: =((_xlfn.RANK.EQ(BG43,$BG$2:$BG$6635,0))/(COUNT(BG$2:$BG$6635)))*100 -> 0.6180283389 | BI43: 1
A44: 5701670090 | B44: 0167 | C44: 57 | D44: Susquehanna | E44: 04 | F44: 1 | G44: 0090 | H44: 1555 | I44: 900 | J44: 0 | K44: 2015 | L44: 2015 | M44: 2 | N44: 24 | O44: 52 | P44: 2 | Q44: 0 | R44: 0 | S44: 135 | T44: 3 | U44: BROOKLYN RD | V44: PA | W44: 167 | Y44: LINDAVILLE RD | Z44: DIMOCK-BROOKL | AA44: 59 | AB44: 1 | AC44: N | AE44: 2015 | AF44: 2013 | AG44: GOOD | AH44: FAIR | AI44: 5 | AJ44: 2 | AK44: RCRS | AL44: 131 | AM44: 131 | AN44: 2 | AO44: 6.790997 | AP44: 0 | AQ44: 1052 | AR44: 1052 | AT44: 10 | AU44: 10 | AV44: 0 | AW44: 2.5 | AX44: 1 | AY44: 1 | AZ44: 7.5 | BA44: 10 | BB44: 10 | BD44: =(AT44*InputWeights!$C$6+AU44*InputWeights!$C$7) -> 10 | BE44: =(AY44*InputWeights!$C$15+AX44*InputWeights!$C$16+AW44*InputWeights!$C$17+AV44*InputWeights!$C$18) -> 1.35 | BF44: =(AZ44*InputWeights!$C$11+BA44*InputWeights!$C$10+BB44*InputWeights!$C$12) -> 9 | BG44: =(BE44*InputWeights!$C$14+BD44*InputWeights!$C$5+BF44*InputWeights!$C$9) -> 62.4 | BH44: =((_xlfn.RANK.EQ(BG44,$BG$2:$BG$6635,0))/(COUNT(BG$2:$BG$6635)))*100 -> 0.6180283389 | BI44: 1
A45: 6402590070 | B45: 0259 | C45: 64 | D45: Westmoreland | E45: 12 | F45: 1 | G45: 0070 | H45: 3425 | I45: 700 | J45: 0 | K45: 1961 | L45: 2005 | M45: 2 | N45: 19 | O45: 52 | P45: 2 | Q45: 0 | R45: 0 | S45: 296 | T45: 3 | U45: COAL PIT RD | V45: PA | W45: 259 | Y45: BRIDGE | Z45: BERKLEY RD | AA45: 70 | AB45: 1 | AC45: N | AE45: 2015 | AF45: 2015 | AG45: POOR | AH45: FAIR | AI45: 6 | AJ45: 2 | AK45: RCRS | AL45: 45 | AM45: 45 | AN45: 3 | AO45: 4.624818 | AP45: 0 | AQ45: 563 | AR45: 563 | AT45: 10 | AU45: 10 | AV45: 0 | AW45: 2.5 | AX45: 1 | AY45: 1 | AZ45: 7.5 | BA45: 10 | BB45: 10 | BD45: =(AT45*InputWeights!$C$6+AU45*InputWeights!$C$7) -> 10 | BE45: =(AY45*InputWeights!$C$15+AX45*InputWeights!$C$16+AW45*InputWeights!$C$17+AV45*InputWeights!$C$18) -> 1.35 | BF45: =(AZ45*InputWeights!$C$11+BA45*InputWeights!$C$10+BB45*InputWeights!$C$12) -> 9 | BG45: =(BE45*InputWeights!$C$14+BD45*InputWeights!$C$5+BF45*InputWeights!$C$9) -> 62.4 | BH45: =((_xlfn.RANK.EQ(BG45,$BG$2:$BG$6635,0))/(COUNT(BG$2:$BG$6635)))*100 -> 0.6180283389 | BI45: 1
A46: 4630200050 | B46: 3020 | C46: 46 | D46: Montgomery | E46: 06 | F46: 1 | G46: 0050 | H46: 1631 | I46: 460018900 | J46: 0 | K46: 1953 | L46: 1953 | M46: 1 | N46: 36 | O46: 72 | P46: 3 | Q46: 2 | R46: 2 | S46: 282 | T46: 3 | U46: MARKLEY ST | V46: US | W46: 202 | Y46: RR OVERPASS | Z46: NORRISTOWN | AA46: 39 | AB46: 4 | AC46: Y | AE46: 2015 | AF46: 2015 | AG46: POOR | AH46: POOR | AI46: 3 | AJ46: 2 | AK46: RCRS | AL46: 535 | AM46: 1070 | AN46: 1 | AO46: 3.237278 | AP46: 1 | AQ46: 8917 | AR46: 17834 | AT46: 7.5 | AU46: 10 | AV46: 0 | AW46: 7.5 | AX46: 3 | AY46: 4 | AZ46: 10 | BA46: 0 | BB46: 10 | BD46: =(AT46*InputWeights!$C$6+AU46*InputWeights!$C$7) -> 8.75 | BE46: =(AY46*InputWeights!$C$15+AX46*InputWeights!$C$16+AW46*InputWeights!$C$17+AV46*InputWeights!$C$18) -> 4.45 | BF46: =(AZ46*InputWeights!$C$11+BA46*InputWeights!$C$10+BB46*InputWeights!$C$12) -> 6 | BG46: =(BE46*InputWeights!$C$14+BD46*InputWeights!$C$5+BF46*InputWeights!$C$9) -> 62.05 | BH46: =((_xlfn.RANK.EQ(BG46,$BG$2:$BG$6635,0))/(COUNT(BG$2:$BG$6635)))*100 -> 0.6783237866 | BI46: 1
A47: 1120130070 | B47: 2013 | C47: 11 | D47: Cambria | E47: 09 | F47: 1 | G47: 0070 | H47: 1797 | I47: 110008100 | J47: 0 | K47: 1931 | L47: 2012 | M47: 2 | N47: 20 | O47: 61 | P47: 2 | Q47: 0 | R47: 0 | S47: 322 | T47: 3 | U47: WILMORE RD | W47: 000 | Y47: BRIDGE | Z47: WM PENN HW | AA47: 49 | AB47: 1 | AC47: N | AE47: 2015 | AF47: 2015 | AG47: POOR | AH47: POOR | AI47: 6 | AJ47: 1 | AK47: Stakeholder Comment | AL47: 21 | AM47: 21 | AN47: 1 | AO47: 2.93823 | AP47: 0 | AQ47: 356 | AR47: 356 | AT47: 5 | AU47: 10 | AV47: 10 | AW47: 2.5 | AX47: 1 | AY47: 1 | AZ47: 10 | BA47: 10 | BB47: 10 | BD47: =(AT47*InputWeights!$C$6+AU47*InputWeights!$C$7) -> 7.5 | BE47: =(AY47*InputWeights!$C$15+AX47*InputWeights!$C$16+AW47*InputWeights!$C$17+AV47*InputWeights!$C$18) -> 2.35 | BF47: =(AZ47*InputWeights!$C$11+BA47*InputWeights!$C$10+BB47*InputWeights!$C$12) -> 10 | BG47: =(BE47*InputWeights!$C$14+BD47*InputWeights!$C$5+BF47*InputWeights!$C$9) -> 61.9 | BH47: =((_xlfn.RANK.EQ(BG47,$BG$2:$BG$6635,0))/(COUNT(BG$2:$BG$6635)))*100 -> 0.6933976485 | BI47: 1
A48: 4010090021 | B48: 1009 | C48: 40 | D48: Luzerne | E48: 04 | F48: 1 | G48: 0021 | H48: 2798 | I48: 400030000 | J48: 0 | K48: 1934 | L48: 2005 | M48: 1 | N48: 41 | O48: 62 | P48: 2 | Q48: 1 | R48: 1 | S48: 167 | T48: 3 | U48: MARKET ST | W48: 000 | Y48: RIVER ST | Z48: THIRD AV | AA48: 30 | AB48: 4 | AC48: Y | AE48: 2015 | AF48: 2015 | AG48: FAIR | AH48: POOR | AI48: 3 | AJ48: 2 | AK48: RCRS | AL48: 257 | AM48: 514 | AN48: 0 | AO48: 0 | AP48: 2 | AQ48: 6819 | AR48: 13638 | AT48: 5 | AU48: 10 | AV48: 0 | AW48: 7.5 | AX48: 2 | AY48: 3 | AZ48: 10 | BA48: 10 | BB48: 0 | BD48: =(AT48*InputWeights!$C$6+AU48*InputWeights!$C$7) -> 7.5 | BE48: =(AY48*InputWeights!$C$15+AX48*InputWeights!$C$16+AW48*InputWeights!$C$17+AV48*InputWeights!$C$18) -> 3.85 | BF48: =(AZ48*InputWeights!$C$11+BA48*InputWeights!$C$10+BB48*InputWeights!$C$12) -> 8 | BG48: =(BE48*InputWeights!$C$14+BD48*InputWeights!$C$5+BF48*InputWeights!$C$9) -> 61.9 | BH48: =((_xlfn.RANK.EQ(BG48,$BG$2:$BG$6635,0))/(COUNT(BG$2:$BG$6635)))*100 -> 0.6933976485 | BI48: 1
A49: 5308950010 | B49: 0895 | C49: 53 | D49: Schuylkill | E49: 05 | F49: 1 | G49: 0010 | H49: 3196 | I49: 100 | J49: 0 | K49: 1900 | L49: 1989 | M49: 2 | N49: 20 | O49: 61 | P49: 2 | Q49: 0 | R49: 0 | S49: 296 | T49: 3 | U49: ROCK RD | V49: PA | W49: 895 | Y49: TULPEHOCKEN S | Z49: BETHEL MTN RD | AA49: 59 | AB49: 1 | AC49: N | AE49: 2015 | AF49: 2015 | AG49: POOR | AH49: POOR | AI49: 5 | AJ49: 1 | AK49: Stakeholder Comment | AL49: 275 | AM49: 275 | AN49: 5 | AO49: 8.260325 | AP49: 0 | AQ49: 3265 | AR49: 3265 | AT49: 5 | AU49: 10 | AV49: 10 | AW49: 2.5 | AX49: 1 | AY49: 1 | AZ49: 10 | BA49: 10 | BB49: 10 | BD49: =(AT49*InputWeights!$C$6+AU49*InputWeights!$C$7) -> 7.5 | BE49: =(AY49*InputWeights!$C$15+AX49*InputWeights!$C$16+AW49*InputWeights!$C$17+AV49*InputWeights!$C$18) -> 2.35 | BF49: =(AZ49*InputWeights!$C$11+BA49*InputWeights!$C$10+BB49*InputWeights!$C$12) -> 10 | BG49: =(BE49*InputWeights!$C$14+BD49*InputWeights!$C$5+BF49*InputWeights!$C$9) -> 61.9 | BH49: =((_xlfn.RANK.EQ(BG49,$BG$2:$BG$6635,0))/(COUNT(BG$2:$BG$6635)))*100 -> 0.6933976485 | BI49: 1
A50: 2202300031 | B50: 0230 | C50: 22 | D50: Dauphin | E50: 08 | F50: 1 | G50: 0031 | H50: 1705 | I50: 300 | J50: 0 | K50: 1986 | L50: 1986 | M50: 1 | N50: 23 | O50: 72 | P50: 2 | Q50: 1 | R50: 1 | S50: 225 | T50: 3 | U50: CAMERON ST | V50: PA | W50: 230 | Y50: HERR ST | Z50: THIRTEENTH ST | AA50: 19 | AB50: 4 | AC50: 4 | AE50: 2016 | AF50: 2016 | AG50: POOR | AH50: FAIR | AI50: 3 | AJ50: 2 | AK50: RCRS | AL50: 1555 | AM50: 3110 | AN50: 2 | AO50: 6.193548 | AP50: 2 | AQ50: 15536 | AR50: 31072 | AT50: 5 | AU50: 10 | AV50: 0 | AW50: 7.5 | AX50: 5 | AY50: 7 | AZ50: 7.5 | BA50: 0 | BB50: 10 | BD50: =(AT50*InputWeights!$C$6+AU50*InputWeights!$C$7) -> 7.5 | BE50: =(AY50*InputWeights!$C$15+AX50*InputWeights!$C$16+AW50*InputWeights!$C$17+AV50*InputWeights!$C$18) -> 6.05 | BF50: =(AZ50*InputWeights!$C$11+BA50*InputWeights!$C$10+BB50*InputWeights!$C$12) -> 5 | BG50: =(BE50*InputWeights!$C$14+BD50*InputWeights!$C$5+BF50*InputWeights!$C$9) -> 61.7 | BH50: =((_xlfn.RANK.EQ(BG50,$BG$2:$BG$6635,0))/(COUNT(BG$2:$BG$6635)))*100 -> 0.7386192342 | BI50: 1
A51: 3030010270 | B51: 3001 | C51: 30 | D51: Greene | E51: 12 | F51: 1 | G51: 0270 | H51: 2719 | I51: 300033200 | J51: 0 | K51: 1959 | L51: 2009 | M51: 2 | N51: 16 | O51: 52 | P51: 2 | Q51: 0 | R51: 0 | S51: 359 | T51: 3 | U51: ALEPPO RD | W51: 000 | Y51: BRIDGE | Z51: RIGGS RD | AA51: 30 | AB51: 1 | AC51: N | AE51: 2015 | AF51: 2015 | AG51: POOR | AH51: POOR | AI51: 5 | AJ51: 2 | AK51: RCRS | AL51: 14 | AM51: 14 | AN51: 8 | AO51: 15.535123 | AP51: 1 | AQ51: 311 | AR51: 311 | AT51: 7.5 | AU51: 10 | AV51: 0 | AW51: 2.5 | AX51: 1 | AY51: 1 | AZ51: 10 | BA51: 10 | BB51: 10 | BD51: =(AT51*InputWeights!$C$6+AU51*InputWeights!$C$7) -> 8.75 | BE51: =(AY51*InputWeights!$C$15+AX51*InputWeights!$C$16+AW51*InputWeights!$C$17+AV51*InputWeights!$C$18) -> 1.35 | BF51: =(AZ51*InputWeights!$C$11+BA51*InputWeights!$C$10+BB51*InputWeights!$C$12) -> 10 | BG51: =(BE51*InputWeights!$C$14+BD51*InputWeights!$C$5+BF51*InputWeights!$C$9) -> 61.65 | BH51: =((_xlfn.RANK.EQ(BG51,$BG$2:$BG$6635,0))/(COUNT(BG$2:$BG$6635)))*100 -> 0.7536930962 | BI51: 1
A52: 5840170290 | B52: 4017 | C52: 58 | D52: Tioga | E52: 03 | F52: 1 | G52: 0290 | H52: 3168 | I52: 580028600 | J52: 0 | K52: 1900 | L52: 2010 | M52: 2 | N52: 20 | O52: 52 | P52: 2 | Q52: 0 | R52: 0 | S52: 353 | T52: 3 | U52: HOLDEN BROOK RD | W52: 000 | Y52: BRIDGE | Z52: NEW YORK STAT | AA52: 49 | AB52: 1 | AC52: N | AF52: 2014 | AG52: POOR | AH52: POOR | AI52: 6 | AJ52: 2 | AK52: RCRS | AL52: 61 | AM52: 61 | AN52: 2 | AO52: 3.333333 | AP52: 1 | AQ52: 415 | AR52: 415 | AT52: 7.5 | AU52: 10 | AV52: 0 | AW52: 2.5 | AX52: 1 | AY52: 1 | AZ52: 10 | BA52: 10 | BB52: 10 | BD52: =(AT52*InputWeights!$C$6+AU52*InputWeights!$C$7) -> 8.75 | BE52: =(AY52*InputWeights!$C$15+AX52*InputWeights!$C$16+AW52*InputWeights!$C$17+AV52*InputWeights!$C$18) -> 1.35 | BF52: =(AZ52*InputWeights!$C$11+BA52*InputWeights!$C$10+BB52*InputWeights!$C$12) -> 10 | BG52: =(BE52*InputWeights!$C$14+BD52*InputWeights!$C$5+BF52*InputWeights!$C$9) -> 61.65 | BH52: =((_xlfn.RANK.EQ(BG52,$BG$2:$BG$6635,0))/(COUNT(BG$2:$BG$6635)))*100 -> 0.7536930962 | BI52: 1
A53: 6720010101 | B53: 2001 | C53: 67 | D53: Philadelphia | E53: 06 | F53: 1 | G53: 0101 | H53: 2733 | I53: 670067000 | J53: 0 | K53: 1921 | L53: 2003 | M53: 1 | N53: 42 | O53: 62 | P53: 3 | Q53: 1 | R53: 1 | S53: 228 | T53: 3 | U53: CHRISTOPHER COLUMBUS BL | W53: 000 | Y53: O/P CHESTNUT | Z53: VINE ST | AA53: 49 | AB53: 4 | AC53: Y | AE53: 2015 | AF53: 2015 | AG53: POOR | AH53: POOR | AI53: 3 | AJ53: 2 | AK53: RCRS | AL53: 573 | AM53: 1146 | AN53: 0 | AO53: 0 | AP53: 1 | AQ53: 11457 | AR53: 22914 | AT53: 7.5 | AU53: 10 | AV53: 10 | AW53: 7.5 | AX53: 3 | AY53: 5 | AZ53: 10 | BA53: 0 | BB53: 0 | BD53: =(AT53*InputWeights!$C$6+AU53*InputWeights!$C$7) -> 8.75 | BE53: =(AY53*InputWeights!$C$15+AX53*InputWeights!$C$16+AW53*InputWeights!$C$17+AV53*InputWeights!$C$18) -> 5.85 | BF53: =(AZ53*InputWeights!$C$11+BA53*InputWeights!$C$10+BB53*InputWeights!$C$12) -> 4 | BG53: =(BE53*InputWeights!$C$14+BD53*InputWeights!$C$5+BF53*InputWeights!$C$9) -> 61.65 | BH53: =((_xlfn.RANK.EQ(BG53,$BG$2:$BG$6635,0))/(COUNT(BG$2:$BG$6635)))*100 -> 0.7536930962 | BI53: 1
A54: 4010090020 | B54: 1009 | C54: 40 | D54: Luzerne | E54: 04 | F54: 1 | G54: 0020 | H54: 2790 | I54: 400030000 | J54: 0 | K54: 1934 | L54: 2005 | M54: 1 | N54: 26 | O54: 62 | P54: 2 | Q54: 1 | R54: 1 | S54: 199 | T54: 3 | U54: MARKET ST | W54: 000 | Y54: RIVER ST | Z54: THIRD AV | AA54: 29 | AB54: 4 | AC54: Y | AE54: 2015 | AF54: 2015 | AG54: POOR | AH54: POOR | AI54: 3 | AJ54: 2 | AK54: RCRS | AL54: 198 | AM54: 396 | AN54: 0 | AO54: 0 | AP54: 2 | AQ54: 6646 | AR54: 13292 | AT54: 5 | AU54: 10 | AV54: 0 | AW54: 7.5 | AX54: 1 | AY54: 3 | AZ54: 10 | BA54: 10 | BB54: 0 | BD54: =(AT54*InputWeights!$C$6+AU54*InputWeights!$C$7) -> 7.5 | BE54: =(AY54*InputWeights!$C$15+AX54*InputWeights!$C$16+AW54*InputWeights!$C$17+AV54*InputWeights!$C$18) -> 3.65 | BF54: =(AZ54*InputWeights!$C$11+BA54*InputWeights!$C$10+BB54*InputWeights!$C$12) -> 8 | BG54: =(BE54*InputWeights!$C$14+BD54*InputWeights!$C$5+BF54*InputWeights!$C$9) -> 61.1 | BH54: =((_xlfn.RANK.EQ(BG54,$BG$2:$BG$6635,0))/(COUNT(BG$2:$BG$6635)))*100 -> 0.7989146819 | BI54: 1
A55: 0220010240 | B55: 2001 | C55: 02 | D55: Allegheny | E55: 11 | F55: 1 | G55: 0240 | H55: 2367 | I55: 20005100 | J55: 10 | K55: 1900 | L55: 2013 | M55: 2 | N55: 20 | O55: 61 | P55: 2 | Q55: 0 | R55: 0 | S55: 124 | T55: 3 | U55: LINCOLN BL | W55: 000 | Y55: BRIDGE | Z55: SEGMENT | AA55: 79 | AB55: 4 | AC55: N | AE55: 2015 | AF55: 2015 | AG55: GOOD | AH55: GOOD | AI55: 4 | AJ55: 2 | AK55: RCRS | AL55: 308 | AM55: 308 | AN55: 2 | AO55: 4.461343 | AP55: 0 | AQ55: 6537 | AR55: 6537 | AT55: 10 | AU55: 10 | AV55: 0 | AW55: 2.5 | AX55: 1 | AY55: 2 | AZ55: 5 | BA55: 10 | BB55: 10 | BD55: =(AT55*InputWeights!$C$6+AU55*InputWeights!$C$7) -> 10 | BE55: =(AY55*InputWeights!$C$15+AX55*InputWeights!$C$16+AW55*InputWeights!$C$17+AV55*InputWeights!$C$18) -> 1.75 | BF55: =(AZ55*InputWeights!$C$11+BA55*InputWeights!$C$10+BB55*InputWeights!$C$12) -> 8 | BG55: =(BE55*InputWeights!$C$14+BD55*InputWeights!$C$5+BF55*InputWeights!$C$9) -> 61 | BH55: =((_xlfn.RANK.EQ(BG55,$BG$2:$BG$6635,0))/(COUNT(BG$2:$BG$6635)))*100 -> 0.8139885439 | BI55: 1
A56: 0220010270 | B56: 2001 | C56: 02 | D56: Allegheny | E56: 11 | F56: 1 | G56: 0270 | H56: 2137 | I56: 20005400 | J56: 10 | K56: 1900 | L56: 2013 | M56: 2 | N56: 20 | O56: 61 | P56: 2 | Q56: 0 | R56: 0 | S56: 128 | T56: 3 | U56: LINCOLN BL | W56: 000 | Y56: BELLBRIDGE RD | Z56: DRAIN RIGHT | AA56: 79 | AB56: 4 | AC56: N | AE56: 2015 | AF56: 2015 | AG56: GOOD | AH56: GOOD | AI56: 4 | AJ56: 2 | AK56: RCRS | AL56: 303 | AM56: 303 | AN56: 1 | AO56: 2.470753 | AP56: 0 | AQ56: 7059 | AR56: 7059 | AT56: 10 | AU56: 10 | AV56: 0 | AW56: 2.5 | AX56: 1 | AY56: 2 | AZ56: 5 | BA56: 10 | BB56: 10 | BD56: =(AT56*InputWeights!$C$6+AU56*InputWeights!$C$7) -> 10 | BE56: =(AY56*InputWeights!$C$15+AX56*InputWeights!$C$16+AW56*InputWeights!$C$17+AV56*InputWeights!$C$18) -> 1.75 | BF56: =(AZ56*InputWeights!$C$11+BA56*InputWeights!$C$10+BB56*InputWeights!$C$12) -> 8 | BG56: =(BE56*InputWeights!$C$14+BD56*InputWeights!$C$5+BF56*InputWeights!$C$9) -> 61 | BH56: =((_xlfn.RANK.EQ(BG56,$BG$2:$BG$6635,0))/(COUNT(BG$2:$BG$6635)))*100 -> 0.8139885439 | BI56: 1
A57: 0920060041 | B57: 2006 | C57: 09 | D57: Bucks | E57: 06 | F57: 1 | G57: 0041 | H57: 3899 | I57: 90007600 | J57: 10 | K57: 1972 | L57: 2012 | M57: 1 | N57: 22 | O57: 62 | P57: 2 | Q57: 4 | R57: 11 | S57: 110 | T57: 3 | U57: NEW FALLS RD | W57: 000 | Y57: GIANT FOOD PL | Z57: BRIDGE | AA57: 69 | AB57: 4 | AC57: Y | AE57: 2015 | AF57: 2015 | AG57: GOOD | AH57: FAIR | AI57: 3 | AJ57: 2 | AK57: RCRS | AL57: 715 | AM57: 1430 | AN57: 0 | AO57: 0 | AP57: 4 | AQ57: 10217 | AR57: 20434 | AT57: 1 | AU57: 10 | AV57: 10 | AW57: 7.5 | AX57: 3 | AY57: 5 | AZ57: 7.5 | BA57: 10 | BB57: 0 | BD57: =(AT57*InputWeights!$C$6+AU57*InputWeights!$C$7) -> 5.5 | BE57: =(AY57*InputWeights!$C$15+AX57*InputWeights!$C$16+AW57*InputWeights!$C$17+AV57*InputWeights!$C$18) -> 5.85 | BF57: =(AZ57*InputWeights!$C$11+BA57*InputWeights!$C$10+BB57*InputWeights!$C$12) -> 7 | BG57: =(BE57*InputWeights!$C$14+BD57*InputWeights!$C$5+BF57*InputWeights!$C$9) -> 60.9 | BH57: =((_xlfn.RANK.EQ(BG57,$BG$2:$BG$6635,0))/(COUNT(BG$2:$BG$6635)))*100 -> 0.8441362677 | BI57: 1
A58: 4700540261 | B58: 0054 | C58: 47 | D58: Montour | E58: 03 | F58: 1 | G58: 0261 | H58: 2461 | I58: 5600 | J58: 0 | K58: 1970 | L58: 2008 | M58: 1 | N58: 25 | O58: 62 | P58: 2 | Q58: 3 | R58: 10 | S58: 99 | T58: 3 | U58: CONTINENTAL BL | V58: PA | W58: 054 | Y58: DRAIN LEFT | Z58: NORTHUMBERLAN | AA58: 20 | AB58: 3 | AC58: Y | AE58: 2016 | AF58: 2016 | AG58: GOOD | AH58: FAIR | AI58: 3 | AJ58: 2 | AK58: RCRS | AL58: 990 | AM58: 1980 | AN58: 0 | AO58: 0 | AP58: 4 | AQ58: 10997 | AR58: 21994 | AT58: 1 | AU58: 10 | AV58: 10 | AW58: 7.5 | AX58: 3 | AY58: 5 | AZ58: 7.5 | BA58: 10 | BB58: 0 | BD58: =(AT58*InputWeights!$C$6+AU58*InputWeights!$C$7) -> 5.5 | BE58: =(AY58*InputWeights!$C$15+AX58*InputWeights!$C$16+AW58*InputWeights!$C$17+AV58*InputWeights!$C$18) -> 5.85 | BF58: =(AZ58*InputWeights!$C$11+BA58*InputWeights!$C$10+BB58*InputWeights!$C$12) -> 7 | BG58: =(BE58*InputWeights!$C$14+BD58*InputWeights!$C$5+BF58*InputWeights!$C$9) -> 60.9 | BH58: =((_xlfn.RANK.EQ(BG58,$BG$2:$BG$6635,0))/(COUNT(BG$2:$BG$6635)))*100 -> 0.8441362677 | BI58: 1
A59: 1503220450 | B59: 0322 | C59: 15 | D59: Chester | E59: 06 | F59: 1 | G59: 0450 | H59: 2675 | I59: 58100 | J59: 0 | K59: 1928 | L59: 1997 | M59: 2 | N59: 26 | O59: 62 | P59: 2 | Q59: 0 | R59: 0 | S59: 150 | T59: 3 | U59: DOWNINGTOWN PK | V59: US | W59: 322 | Y59: BRIDGE | Z59: BRIDGE | AA59: 39 | AB59: 4 | AC59: Y | AE59: 2015 | AF59: 2015 | AG59: FAIR | AH59: FAIR | AI59: 3 | AJ59: 2 | AK59: RCRS | AL59: 757 | AM59: 757 | AN59: 0 | AO59: 0 | AP59: 2 | AQ59: 15139 | AR59: 15139 | AT59: 5 | AU59: 10 | AV59: 0 | AW59: 7.5 | AX59: 2 | AY59: 4 | AZ59: 7.5 | BA59: 10 | BB59: 0 | BD59: =(AT59*InputWeights!$C$6+AU59*InputWeights!$C$7) -> 7.5 | BE59: =(AY59*InputWeights!$C$15+AX59*InputWeights!$C$16+AW59*InputWeights!$C$17+AV59*InputWeights!$C$18) -> 4.25 | BF59: =(AZ59*InputWeights!$C$11+BA59*InputWeights!$C$10+BB59*InputWeights!$C$12) -> 7 | BG59: =(BE59*InputWeights!$C$14+BD59*InputWeights!$C$5+BF59*InputWeights!$C$9) -> 60.5 | BH59: =((_xlfn.RANK.EQ(BG59,$BG$2:$BG$6635,0))/(COUNT(BG$2:$BG$6635)))*100 -> 0.8742839916 | BI59: 1
A60: 0204000360 | B60: 0400 | C60: 02 | D60: Allegheny | E60: 11 | F60: 1 | G60: 0360 | H60: 3532 | I60: 3900 | J60: 20 | K60: 1927 | L60: 2012 | M60: 2 | N60: 22 | O60: 62 | P60: 2 | Q60: 0 | R60: 0 | S60: 144 | T60: 3 | U60: SALTSBURG RD | V60: PA | W60: 380 | Y60: BRIDGE | Z60: SEGMENT | AA60: 59 | AB60: 4 | AC60: Y | AE60: 2015 | AF60: 2015 | AG60: FAIR | AH60: GOOD | AI60: 3 | AJ60: 2 | AK60: RCRS | AL60: 527 | AM60: 527 | AN60: 1 | AO60: 1.494904 | AP60: 2 | AQ60: 7525 | AR60: 7525 | AT60: 5 | AU60: 10 | AV60: 0 | AW60: 7.5 | AX60: 2 | AY60: 2 | AZ60: 5 | BA60: 10 | BB60: 10 | BD60: =(AT60*InputWeights!$C$6+AU60*InputWeights!$C$7) -> 7.5 | BE60: =(AY60*InputWeights!$C$15+AX60*InputWeights!$C$16+AW60*InputWeights!$C$17+AV60*InputWeights!$C$18) -> 3.45 | BF60: =(AZ60*InputWeights!$C$11+BA60*InputWeights!$C$10+BB60*InputWeights!$C$12) -> 8 | BG60: =(BE60*InputWeights!$C$14+BD60*InputWeights!$C$5+BF60*InputWeights!$C$9) -> 60.3 | BH60: =((_xlfn.RANK.EQ(BG60,$BG$2:$BG$6635,0))/(COUNT(BG$2:$BG$6635)))*100 -> 0.8893578535 | BI60: 1
A61: 4806110181 | B61: 0611 | C61: 48 | D61: Northampton | E61: 05 | F61: 1 | G61: 0181 | H61: 444 | I61: 12700 | J61: 0 | K61: 1991 | L61: 1991 | M61: 1 | N61: 38 | O61: 98 | P61: 2 | Q61: 1 | R61: 1 | S61: 197 | T61: 3 | U61: LARRY HOLMES DR | V61: PA | W61: 611 | Y61: SMITH AV | Z61: SEGMENT | AA61: 29 | AB61: 4 | AC61: Y | AF61: 2008 | AG61: POOR | AH61: FAIR | AI61: 3 | AJ61: 2 | AK61: RCRS | AL61: 451 | AM61: 902 | AN61: 0 | AO61: 0 | AP61: 4 | AQ61: 10073 | AR61: 20146 | AT61: 1 | AU61: 10 | AV61: 10 | AW61: 7.5 | AX61: 2 | AY61: 5 | AZ61: 7.5 | BA61: 10 | BB61: 0 | BD61: =(AT61*InputWeights!$C$6+AU61*InputWeights!$C$7) -> 5.5 | BE61: =(AY61*InputWeights!$C$15+AX61*InputWeights!$C$16+AW61*InputWeights!$C$17+AV61*InputWeights!$C$18) -> 5.65 | BF61: =(AZ61*InputWeights!$C$11+BA61*InputWeights!$C$10+BB61*InputWeights!$C$12) -> 7 | BG61: =(BE61*InputWeights!$C$14+BD61*InputWeights!$C$5+BF61*InputWeights!$C$9) -> 60.1 | BH61: =((_xlfn.RANK.EQ(BG61,$BG$2:$BG$6635,0))/(COUNT(BG$2:$BG$6635)))*100 -> 0.9044317154 | BI61: 1
A62: 5540230070 | B62: 4023 | C62: 55 | D62: Somerset | E62: 09 | F62: 1 | G62: 0070 | H62: 2948 | I62: 550018200 | J62: 0 | K62: 1936 | L62: 2008 | M62: 2 | N62: 18 | O62: 52 | P62: 2 | Q62: 0 | R62: 0 | S62: 320 | T62: 3 | U62: BLACKS HILL RD | W62: 000 | Y62: LINCOLN HW | Z62: BRIDGE | AA62: 49 | AB62: 1 | AC62: N | AE62: 2015 | AF62: 2015 | AG62: POOR | AH62: POOR | AI62: 7 | AJ62: 2 | AK62: RCRS | AL62: 55 | AM62: 55 | AN62: 1 | AO62: 1.791045 | AP62: 2 | AQ62: 612 | AR62: 612 | AT62: 5 | AU62: 10 | AV62: 10 | AW62: 1 | AX62: 1 | AY62: 1 | AZ62: 10 | BA62: 10 | BB62: 10 | BD62: =(AT62*InputWeights!$C$6+AU62*InputWeights!$C$7) -> 7.5 | BE62: =(AY62*InputWeights!$C$15+AX62*InputWeights!$C$16+AW62*InputWeights!$C$17+AV62*InputWeights!$C$18) -> 1.9 | BF62: =(AZ62*InputWeights!$C$11+BA62*InputWeights!$C$10+BB62*InputWeights!$C$12) -> 10 | BG62: =(BE62*InputWeights!$C$14+BD62*InputWeights!$C$5+BF62*InputWeights!$C$9) -> 60.1 | BH62: =((_xlfn.RANK.EQ(BG62,$BG$2:$BG$6635,0))/(COUNT(BG$2:$BG$6635)))*100 -> 0.9044317154 | BI62: 1
A63: 48A0110020 | B63: A011 | C63: 48 | D63: Northampton | E63: 05 | F63: 5 | G63: 0020 | H63: 316 | I63: 2 | J63: 0 | K63: 0 | L63: 0 | M63: 1 | N63: 25 | O63: 72 | P63: 2 | Q63: 0 | R63: 0 | S63: 309 | T63: 3 | U63: LARRY HOLMES DR | V63: PA | W63: 611 | Y63: SITGREAVES ST | Z63: THIRD ST | AB63: 4 | AC63: Y | AE63: 2012 | AG63: OTHER | AH63: OTHER | AI63: 3 | AJ63: 1 | AK63: Stakeholder Comment | AL63: 299 | AM63: 598 | AN63: 0 | AO63: 0 | AP63: 0 | AQ63: 6542 | AR63: 13084 | AT63: 5 | AU63: 10 | AV63: 10 | AW63: 7.5 | AX63: 2 | AY63: 3 | AZ63: 5 | BA63: 10 | BB63: 0 | BD63: =(AT63*InputWeights!$C$6+AU63*InputWeights!$C$7) -> 7.5 | BE63: =(AY63*InputWeights!$C$15+AX63*InputWeights!$C$16+AW63*InputWeights!$C$17+AV63*InputWeights!$C$18) -> 4.85 | BF63: =(AZ63*InputWeights!$C$11+BA63*InputWeights!$C$10+BB63*InputWeights!$C$12) -> 6 | BG63: =(BE63*InputWeights!$C$14+BD63*InputWeights!$C$5+BF63*InputWeights!$C$9) -> 59.9 | BH63: =((_xlfn.RANK.EQ(BG63,$BG$2:$BG$6635,0))/(COUNT(BG$2:$BG$6635)))*100 -> 0.9345794393 | BI63: 1
A64: 3210530040 | B64: 1053 | C64: 32 | D64: Indiana | E64: 10 | F64: 1 | G64: 0040 | H64: 3417 | I64: 320002600 | J64: 0 | K64: 1900 | L64: 2011 | M64: 2 | N64: 16 | O64: 52 | P64: 2 | Q64: 0 | R64: 0 | S64: 377 | T64: 3 | U64: LOCKVALE RD | W64: 000 | Y64: SEGMENT | Z64: BRIDGE | AA64: 59 | AB64: 1 | AC64: N | AF64: 2014 | AG64: POOR | AH64: POOR | AI64: 7 | AJ64: 2 | AK64: RCRS | AL64: 18 | AM64: 18 | AN64: 2 | AO64: 3.09043 | AP64: 1 | AQ64: 59 | AR64: 59 | AT64: 7.5 | AU64: 10 | AV64: 0 | AW64: 1 | AX64: 1 | AY64: 1 | AZ64: 10 | BA64: 10 | BB64: 10 | BD64: =(AT64*InputWeights!$C$6+AU64*InputWeights!$C$7) -> 8.75 | BE64: =(AY64*InputWeights!$C$15+AX64*InputWeights!$C$16+AW64*InputWeights!$C$17+AV64*InputWeights!$C$18) -> 0.9 | BF64: =(AZ64*InputWeights!$C$11+BA64*InputWeights!$C$10+BB64*InputWeights!$C$12) -> 10 | BG64: =(BE64*InputWeights!$C$14+BD64*InputWeights!$C$5+BF64*InputWeights!$C$9) -> 59.85 | BH64: =((_xlfn.RANK.EQ(BG64,$BG$2:$BG$6635,0))/(COUNT(BG$2:$BG$6635)))*100 -> 0.9496533012 | BI64: 1
A65: 0600610110 | B65: 0061 | C65: 06 | D65: Berks | E65: 05 | F65: 1 | G65: 0110 | H65: 1954 | I65: 1200 | J65: 0 | K65: 1939 | L65: 2010 | M65: 2 | N65: 33 | O65: 62 | P65: 2 | Q65: 0 | R65: 0 | S65: 276 | T65: 3 | U65: POTTSVILLE PK | V65: PA | W65: 061 | Y65: WATER ST | Z65: SEGMENT | AA65: 39 | AB65: 4 | AC65: Y | AE65: 2015 | AF65: 2015 | AG65: POOR | AH65: POOR | AI65: 3 | AJ65: 2 | AK65: RCRS | AL65: 1612 | AM65: 1612 | AN65: 0 | AO65: 0 | AP65: 0 | AQ65: 16455 | AR65: 16455 | AT65: 10 | AU65: 10 | AV65: 0 | AW65: 7.5 | AX65: 3 | AY65: 4 | AZ65: 10 | BA65: 0 | BB65: 0 | BD65: =(AT65*InputWeights!$C$6+AU65*InputWeights!$C$7) -> 10 | BE65: =(AY65*InputWeights!$C$15+AX65*InputWeights!$C$16+AW65*InputWeights!$C$17+AV65*InputWeights!$C$18) -> 4.45 | BF65: =(AZ65*InputWeights!$C$11+BA65*InputWeights!$C$10+BB65*InputWeights!$C$12) -> 4 | BG65: =(BE65*InputWeights!$C$14+BD65*InputWeights!$C$5+BF65*InputWeights!$C$9) -> 59.8 | BH65: =((_xlfn.RANK.EQ(BG65,$BG$2:$BG$6635,0))/(COUNT(BG$2:$BG$6635)))*100 -> 0.9647271631 | BI65: 1
A66: 0520190050 | B66: 2019 | C66: 05 | D66: Bedford | E66: 09 | F66: 1 | G66: 0050 | H66: 1707 | I66: 50002100 | J66: 0 | K66: 1938 | L66: 2006 | M66: 2 | N66: 18 | O66: 52 | P66: 2 | Q66: 0 | R66: 0 | S66: 208 | T66: 3 | U66: LUTZVILLE RD | W66: 000 | Y66: ASHCOM RD | Z66: BRIDGE | AA66: 49 | AB66: 1 | AC66: N | AD66: SR 2019 SH | AE66: 2015 | AF66: 2015 | AG66: FAIR | AH66: GOOD | AI66: 6 | AJ66: 2 | AK66: RCRS | AL66: 35 | AM66: 35 | AN66: 1 | AO66: 3.093146 | AP66: 1 | AQ66: 781 | AR66: 781 | AT66: 7.5 | AU66: 10 | AV66: 10 | AW66: =IF(AI66=1,10,IF(AI66=2,7.5,IF(AI66=3,7.5,IF(AI66=4,2.5,IF(AI66=5,2.5,IF(AI66=6,2.5,IF(AI66=7,1,5))))))) -> 2.5 | AX66: =IF(AM66<500, 1, IF(AM66<1000, 2, IF(AM66<2000, 3, IF(AM66<3000, 4,IF(AM66<4000, 5, IF(AM66<5000, 6,IF(AM66<6000,7,IF(AM66<7000,8, IF(AM66<8000,9,10))))))))) -> 1 | AY66: 1 | AZ66: 5 | BA66: 10 | BB66: 10 | BD66: =(AT66*InputWeights!$C$6+AU66*InputWeights!$C$7) -> 8.75 | BE66: =(AY66*InputWeights!$C$15+AX66*InputWeights!$C$16+AW66*InputWeights!$C$17+AV66*InputWeights!$C$18) -> 2.35 | BF66: =(AZ66*InputWeights!$C$11+BA66*InputWeights!$C$10+BB66*InputWeights!$C$12) -> 8 | BG66: =(BE66*InputWeights!$C$14+BD66*InputWeights!$C$5+BF66*InputWeights!$C$9) -> 59.65 | BH66: =((_xlfn.RANK.EQ(BG66,$BG$2:$BG$6635,0))/(COUNT(BG$2:$BG$6635)))*100 -> 0.979801025 | BI66: =IF(BH66<1,1,IF(BH66<5,5,IF(BH66<10,10,IF(BH66<15,15,IF(BH66<20,20,IF(BH66<25,25,0)))))) -> 1
A67: 4805120060 | B67: 0512 | C67: 48 | D67: Northampton | E67: 05 | F67: 1 | G67: 0060 | H67: 3077 | I67: 700 | J67: 0 | K67: 1900 | L67: 1987 | M67: 2 | N67: 24 | O67: 62 | P67: 2 | Q67: 0 | R67: 0 | S67: 216 | T67: 3 | U67: BETH BATH PK | V67: PA | W67: 512 | Y67: SEGMENT | Z67: RAILROAD XING | AA67: 39 | AB67: 1 | AC67: N | AE67: 2015 | AF67: 2015 | AG67: POOR | AH67: POOR | AI67: 4 | AJ67: 3 | AK67: RCRS | AL67: 891 | AM67: 891 | AN67: 0 | AO67: 0 | AP67: 1 | AQ67: 12735 | AR67: 12735 | AT67: 7.5 | AU67: 10 | AV67: 0 | AW67: 2.5 | AX67: 2 | AY67: 3 | AZ67: 10 | BA67: 10 | BB67: 0 | BD67: =(AT67*InputWeights!$C$6+AU67*InputWeights!$C$7) -> 8.75 | BE67: =(AY67*InputWeights!$C$15+AX67*InputWeights!$C$16+AW67*InputWeights!$C$17+AV67*InputWeights!$C$18) -> 2.35 | BF67: =(AZ67*InputWeights!$C$11+BA67*InputWeights!$C$10+BB67*InputWeights!$C$12) -> 8 | BG67: =(BE67*InputWeights!$C$14+BD67*InputWeights!$C$5+BF67*InputWeights!$C$9) -> 59.65 | BH67: =((_xlfn.RANK.EQ(BG67,$BG$2:$BG$6635,0))/(COUNT(BG$2:$BG$6635)))*100 -> 0.979801025 | BI67: 1
A68: 0220580080 | B68: 2058 | C68: 02 | D68: Allegheny | E68: 11 | F68: 1 | G68: 0080 | H68: 1451 | I68: 20000800 | J68: 0 | K68: 1985 | L68: 1998 | M68: 2 | N68: 22 | O68: 52 | P68: 2 | Q68: 0 | R68: 0 | S68: 210 | T68: 3 | U68: VERONA RD | W68: 000 | Y68: SEGMENT | Z68: SEGMENT | AA68: 59 | AB68: 4 | AC68: N | AF68: 2014 | AG68: POOR | AH68: FAIR | AI68: 4 | AJ68: 2 | AK68: RCRS | AL68: 329 | AM68: 329 | AN68: 0 | AO68: 0 | AP68: 0 | AQ68: 13689 | AR68: 13689 | AT68: 10 | AU68: 10 | AV68: 0 | AW68: 2.5 | AX68: 1 | AY68: 3 | AZ68: 7.5 | BA68: 10 | BB68: 0 | BD68: =(AT68*InputWeights!$C$6+AU68*InputWeights!$C$7) -> 10 | BE68: =(AY68*InputWeights!$C$15+AX68*InputWeights!$C$16+AW68*InputWeights!$C$17+AV68*InputWeights!$C$18) -> 2.15 | BF68: =(AZ68*InputWeights!$C$11+BA68*InputWeights!$C$10+BB68*InputWeights!$C$12) -> 7 | BG68: =(BE68*InputWeights!$C$14+BD68*InputWeights!$C$5+BF68*InputWeights!$C$9) -> 59.6 | BH68: =((_xlfn.RANK.EQ(BG68,$BG$2:$BG$6635,0))/(COUNT(BG$2:$BG$6635)))*100 -> 1.009948749 | BI68: 5
A69: 6730130010 | B69: 3013 | C69: 67 | D69: Philadelphia | E69: 06 | F69: 1 | G69: 0010 | H69: 1468 | I69: 670045800 | J69: 0 | K69: 1947 | L69: 2015 | M69: 1 | N69: 38 | O69: 62 | P69: 2 | Q69: 3 | R69: 1 | S69: 127 | T69: 3 | U69: ISLAND AV | W69: 000 | Y69: ISLAND AV | Z69: BRIDGE | AA69: 49 | AB69: 4 | AC69: 2 | AE69: 2016 | AF69: 2015 | AG69: FAIR | AH69: POOR | AI69: 3 | AJ69: 2 | AK69: RCRS | AL69: 962 | AM69: 1924 | AN69: 0 | AO69: 0 | AP69: 2 | AQ69: 13743 | AR69: 27486 | AT69: 5 | AU69: 10 | AV69: 10 | AW69: 7.5 | AX69: 3 | AY69: 6 | AZ69: 10 | BA69: 0 | BB69: 0 | BD69: =(AT69*InputWeights!$C$6+AU69*InputWeights!$C$7) -> 7.5 | BE69: =(AY69*InputWeights!$C$15+AX69*InputWeights!$C$16+AW69*InputWeights!$C$17+AV69*InputWeights!$C$18) -> 6.25 | BF69: =(AZ69*InputWeights!$C$11+BA69*InputWeights!$C$10+BB69*InputWeights!$C$12) -> 4 | BG69: =(BE69*InputWeights!$C$14+BD69*InputWeights!$C$5+BF69*InputWeights!$C$9) -> 59.5 | BH69: =((_xlfn.RANK.EQ(BG69,$BG$2:$BG$6635,0))/(COUNT(BG$2:$BG$6635)))*100 -> 1.025022611 | BI69: 5
A70: 0330070080 | B70: 3007 | C70: 03 | D70: Armstrong | E70: 10 | F70: 1 | G70: 0080 | H70: 3274 | I70: 30002200 | J70: 0 | K70: 1900 | L70: 2013 | M70: 2 | N70: 20 | O70: 61 | P70: 2 | Q70: 0 | R70: 0 | S70: 462 | T70: 3 | U70: GLADE RUN RD | W70: 000 | Y70: SEGMENT | Z70: SOTOS DR | AA70: 59 | AB70: 1 | AC70: N | AF70: 2014 | AG70: POOR | AH70: POOR | AI70: 6 | AJ70: 2 | AK70: RCRS | AL70: 27 | AM70: 27 | AN70: 0 | AO70: 0 | AP70: 0 | AQ70: 309 | AR70: 309 | AT70: 10 | AU70: 10 | AV70: 0 | AW70: 2.5 | AX70: 1 | AY70: 1 | AZ70: 10 | BA70: 10 | BB70: 0 | BD70: =(AT70*InputWeights!$C$6+AU70*InputWeights!$C$7) -> 10 | BE70: =(AY70*InputWeights!$C$15+AX70*InputWeights!$C$16+AW70*InputWeights!$C$17+AV70*InputWeights!$C$18) -> 1.35 | BF70: =(AZ70*InputWeights!$C$11+BA70*InputWeights!$C$10+BB70*InputWeights!$C$12) -> 8 | BG70: =(BE70*InputWeights!$C$14+BD70*InputWeights!$C$5+BF70*InputWeights!$C$9) -> 59.4 | BH70: =((_xlfn.RANK.EQ(BG70,$BG$2:$BG$6635,0))/(COUNT(BG$2:$BG$6635)))*100 -> 1.040096473 | BI70: 5
A71: 2010110030 | B71: 1011 | C71: 20 | D71: Crawford | E71: 01 | F71: 1 | G71: 0030 | H71: 3201 | I71: 200017600 | J71: 0 | K71: 1900 | L71: 2015 | M71: 2 | N71: 20 | O71: 52 | P71: 2 | Q71: 0 | R71: 0 | S71: 309 | T71: 3 | U71: MYSTIC PARK RD | W71: 000 | Y71: SEGMENT | Z71: SEGMENT | AA71: 39 | AB71: 1 | AC71: N | AF71: 2014 | AG71: POOR | AH71: POOR | AI71: 6 | AJ71: 2 | AK71: RCRS | AL71: 5 | AM71: 5 | AN71: 0 | AO71: 0 | AP71: 0 | AQ71: 530 | AR71: 530 | AT71: 10 | AU71: 10 | AV71: 0 | AW71: 2.5 | AX71: 1 | AY71: 1 | AZ71: 10 | BA71: 10 | BB71: 0 | BD71: =(AT71*InputWeights!$C$6+AU71*InputWeights!$C$7) -> 10 | BE71: =(AY71*InputWeights!$C$15+AX71*InputWeights!$C$16+AW71*InputWeights!$C$17+AV71*InputWeights!$C$18) -> 1.35 | BF71: =(AZ71*InputWeights!$C$11+BA71*InputWeights!$C$10+BB71*InputWeights!$C$12) -> 8 | BG71: =(BE71*InputWeights!$C$14+BD71*InputWeights!$C$5+BF71*InputWeights!$C$9) -> 59.4 | BH71: =((_xlfn.RANK.EQ(BG71,$BG$2:$BG$6635,0))/(COUNT(BG$2:$BG$6635)))*100 -> 1.040096473 | BI71: 5
A72: 2010160010 | B72: 1016 | C72: 20 | D72: Crawford | E72: 01 | F72: 1 | G72: 0010 | H72: 3460 | I72: 200013000 | J72: 0 | K72: 1946 | L72: 2014 | M72: 2 | N72: 20 | O72: 52 | P72: 2 | Q72: 0 | R72: 0 | S72: 183 | T72: 3 | U72: MILLER STATION RD | W72: 000 | Y72: LAKES TO SEA | Z72: SEGMENT | AA72: 69 | AB72: 1 | AC72: N | AE72: 2015 | AF72: 2015 | AG72: FAIR | AH72: GOOD | AI72: 6 | AJ72: 3 | AK72: RCRS | AL72: 5 | AM72: 5 | AN72: 2 | AO72: 3.052023 | AP72: 0 | AQ72: 627 | AR72: 627 | AT72: 10 | AU72: 10 | AV72: 0 | AW72: 2.5 | AX72: 1 | AY72: 1 | AZ72: 5 | BA72: 10 | BB72: 10 | BD72: =(AT72*InputWeights!$C$6+AU72*InputWeights!$C$7) -> 10 | BE72: =(AY72*InputWeights!$C$15+AX72*InputWeights!$C$16+AW72*InputWeights!$C$17+AV72*InputWeights!$C$18) -> 1.35 | BF72: =(AZ72*InputWeights!$C$11+BA72*InputWeights!$C$10+BB72*InputWeights!$C$12) -> 8 | BG72: =(BE72*InputWeights!$C$14+BD72*InputWeights!$C$5+BF72*InputWeights!$C$9) -> 59.4 | BH72: =((_xlfn.RANK.EQ(BG72,$BG$2:$BG$6635,0))/(COUNT(BG$2:$BG$6635)))*100 -> 1.040096473 | BI72: 5
A73: 2603810080 | B73: 0381 | C73: 26 | D73: Fayette | E73: 12 | F73: 1 | G73: 0080 | H73: 2275 | I73: 800 | J73: 0 | K73: 1973 | L73: 2015 | M73: 2 | N73: 20 | O73: 52 | P73: 2 | Q73: 0 | R73: 0 | S73: 268 | T73: 3 | U73: WHARTON FURNACE RD | V73: PA | W73: 381 | Y73: SEGMENT | Z73: WHARTON FURNA | AA73: 60 | AB73: 1 | AC73: N | AE73: 2015 | AF73: 2015 | AG73: POOR | AH73: GOOD | AI73: 5 | AJ73: 2 | AK73: RCRS | AL73: 30 | AM73: 30 | AN73: 3 | AO73: 6.962637 | AP73: 0 | AQ73: 331 | AR73: 331 | AT73: 10 | AU73: 10 | AV73: 0 | AW73: 2.5 | AX73: 1 | AY73: 1 | AZ73: 5 | BA73: 10 | BB73: 10 | BD73: =(AT73*InputWeights!$C$6+AU73*InputWeights!$C$7) -> 10 | BE73: =(AY73*InputWeights!$C$15+AX73*InputWeights!$C$16+AW73*InputWeights!$C$17+AV73*InputWeights!$C$18) -> 1.35 | BF73: =(AZ73*InputWeights!$C$11+BA73*InputWeights!$C$10+BB73*InputWeights!$C$12) -> 8 | BG73: =(BE73*InputWeights!$C$14+BD73*InputWeights!$C$5+BF73*InputWeights!$C$9) -> 59.4 | BH73: =((_xlfn.RANK.EQ(BG73,$BG$2:$BG$6635,0))/(COUNT(BG$2:$BG$6635)))*100 -> 1.040096473 | BI73: 5
A74: 5202440250 | B74: 0244 | C74: 52 | D74: Potter | E74: 02 | F74: 1 | G74: 0250 | H74: 2798 | I74: 2500 | J74: 0 | K74: 1931 | L74: 2010 | M74: 2 | N74: 18 | O74: 61 | P74: 2 | Q74: 0 | R74: 0 | S74: 225 | T74: 3 | U74: ANDREWS SETTLEMENT RD | V74: PA | W74: 244 | Y74: SEGMENT | Z74: SEGMENT | AA74: 49 | AB74: 1 | AC74: N | AF74: 2014 | AG74: POOR | AH74: GOOD | AI74: 5 | AJ74: 2 | AK74: RCRS | AL74: 9 | AM74: 9 | AN74: 3 | AO74: 5.661187 | AP74: 0 | AQ74: 298 | AR74: 298 | AT74: 10 | AU74: 10 | AV74: 0 | AW74: 2.5 | AX74: 1 | AY74: 1 | AZ74: 5 | BA74: 10 | BB74: 10 | BD74: =(AT74*InputWeights!$C$6+AU74*InputWeights!$C$7) -> 10 | BE74: =(AY74*InputWeights!$C$15+AX74*InputWeights!$C$16+AW74*InputWeights!$C$17+AV74*InputWeights!$C$18) -> 1.35 | BF74: =(AZ74*InputWeights!$C$11+BA74*InputWeights!$C$10+BB74*InputWeights!$C$12) -> 8 | BG74: =(BE74*InputWeights!$C$14+BD74*InputWeights!$C$5+BF74*InputWeights!$C$9) -> 59.4 | BH74: =((_xlfn.RANK.EQ(BG74,$BG$2:$BG$6635,0))/(COUNT(BG$2:$BG$6635)))*100 -> 1.040096473 | BI74: 5
A75: 6109570170 | B75: 0957 | C75: 61 | D75: Warren | E75: 01 | F75: 1 | G75: 0170 | H75: 3404 | I75: 1700 | J75: 0 | K75: 1900 | L75: 2015 | M75: 2 | N75: 20 | O75: 62 | P75: 2 | Q75: 0 | R75: 0 | S75: 316 | T75: 3 | U75: SR 0957 SH | V75: PA | W75: 957 | Y75: SR 0958 SH | Z75: SR 0958 SH | AA75: 49 | AB75: 1 | AC75: N | AE75: 2015 | AF75: 2015 | AG75: POOR | AH75: POOR | AI75: 4 | AJ75: 2 | AK75: RCRS | AL75: 110 | AM75: 110 | AN75: 0 | AO75: 0 | AP75: 0 | AQ75: 1388 | AR75: 1388 | AT75: 10 | AU75: 10 | AV75: 0 | AW75: 2.5 | AX75: 1 | AY75: 1 | AZ75: 10 | BA75: 10 | BB75: 0 | BD75: =(AT75*InputWeights!$C$6+AU75*InputWeights!$C$7) -> 10 | BE75: =(AY75*InputWeights!$C$15+AX75*InputWeights!$C$16+AW75*InputWeights!$C$17+AV75*InputWeights!$C$18) -> 1.35 | BF75: =(AZ75*InputWeights!$C$11+BA75*InputWeights!$C$10+BB75*InputWeights!$C$12) -> 8 | BG75: =(BE75*InputWeights!$C$14+BD75*InputWeights!$C$5+BF75*InputWeights!$C$9) -> 59.4 | BH75: =((_xlfn.RANK.EQ(BG75,$BG$2:$BG$6635,0))/(COUNT(BG$2:$BG$6635)))*100 -> 1.040096473 | BI75: 5
A76: 2202300011 | B76: 0230 | C76: 22 | D76: Dauphin | E76: 08 | F76: 1 | G76: 0011 | H76: 1247 | I76: 100 | J76: 0 | K76: 1975 | L76: 1975 | M76: 1 | N76: 30 | O76: 72 | P76: 2 | Q76: 1 | R76: 1 | S76: 269 | T76: 3 | U76: CAMERON ST | V76: PA | W76: 230 | Y76: CAMERON ST | Z76: KELKER ST | AA76: 19 | AB76: 4 | AC76: 4 | AE76: 2016 | AF76: 2016 | AG76: POOR | AH76: FAIR | AI76: 3 | AJ76: 2 | AK76: RCRS | AL76: 1064 | AM76: 2128 | AN76: 3 | AO76: 12.702486 | AP76: 2 | AQ76: 12575 | AR76: 25150 | AT76: 5 | AU76: 10 | AV76: 0 | AW76: 7.5 | AX76: 4 | AY76: 6 | AZ76: 7.5 | BA76: 0 | BB76: 10 | BD76: =(AT76*InputWeights!$C$6+AU76*InputWeights!$C$7) -> 7.5 | BE76: =(AY76*InputWeights!$C$15+AX76*InputWeights!$C$16+AW76*InputWeights!$C$17+AV76*InputWeights!$C$18) -> 5.45 | BF76: =(AZ76*InputWeights!$C$11+BA76*InputWeights!$C$10+BB76*InputWeights!$C$12) -> 5 | BG76: =(BE76*InputWeights!$C$14+BD76*InputWeights!$C$5+BF76*InputWeights!$C$9) -> 59.3 | BH76: =((_xlfn.RANK.EQ(BG76,$BG$2:$BG$6635,0))/(COUNT(BG$2:$BG$6635)))*100 -> 1.130539644 | BI76: 5
A77: 2202300021 | B77: 0230 | C77: 22 | D77: Dauphin | E77: 08 | F77: 1 | G77: 0021 | H77: 2729 | I77: 200 | J77: 0 | K77: 1986 | L77: 1986 | M77: 1 | N77: 23 | O77: 72 | P77: 2 | Q77: 1 | R77: 1 | S77: 227 | T77: 3 | U77: CAMERON ST | V77: PA | W77: 230 | Y77: KELKER ST | Z77: HERR ST | AA77: 19 | AB77: 4 | AC77: 4 | AE77: 2016 | AF77: 2016 | AG77: POOR | AH77: FAIR | AI77: 3 | AJ77: 2 | AK77: RCRS | AL77: 1064 | AM77: 2128 | AN77: 3 | AO77: 5.804324 | AP77: 2 | AQ77: 12575 | AR77: 25150 | AT77: 5 | AU77: 10 | AV77: 0 | AW77: 7.5 | AX77: 4 | AY77: 6 | AZ77: 7.5 | BA77: 0 | BB77: 10 | BD77: =(AT77*InputWeights!$C$6+AU77*InputWeights!$C$7) -> 7.5 | BE77: =(AY77*InputWeights!$C$15+AX77*InputWeights!$C$16+AW77*InputWeights!$C$17+AV77*InputWeights!$C$18) -> 5.45 | BF77: =(AZ77*InputWeights!$C$11+BA77*InputWeights!$C$10+BB77*InputWeights!$C$12) -> 5 | BG77: =(BE77*InputWeights!$C$14+BD77*InputWeights!$C$5+BF77*InputWeights!$C$9) -> 59.3 | BH77: =((_xlfn.RANK.EQ(BG77,$BG$2:$BG$6635,0))/(COUNT(BG$2:$BG$6635)))*100 -> 1.130539644 | BI77: 5
A78: 2202300030 | B78: 0230 | C78: 22 | D78: Dauphin | E78: 08 | F78: 1 | G78: 0030 | H78: 1714 | I78: 300 | J78: 0 | K78: 1986 | L78: 1986 | M78: 1 | N78: 23 | O78: 72 | P78: 2 | Q78: 1 | R78: 1 | S78: 210 | T78: 3 | U78: CAMERON ST | V78: PA | W78: 230 | Y78: HERR ST | Z78: THIRTEENTH ST | AA78: 19 | AB78: 4 | AC78: 4 | AE78: 2015 | AF78: 2015 | AG78: POOR | AH78: FAIR | AI78: 3 | AJ78: 2 | AK78: RCRS | AL78: 1049 | AM78: 2098 | AN78: 1 | AO78: 3.080513 | AP78: 2 | AQ78: 13103 | AR78: 26206 | AT78: 5 | AU78: 10 | AV78: 0 | AW78: 7.5 | AX78: 4 | AY78: 6 | AZ78: 7.5 | BA78: 0 | BB78: 10 | BD78: =(AT78*InputWeights!$C$6+AU78*InputWeights!$C$7) -> 7.5 | BE78: =(AY78*InputWeights!$C$15+AX78*InputWeights!$C$16+AW78*InputWeights!$C$17+AV78*InputWeights!$C$18) -> 5.45 | BF78: =(AZ78*InputWeights!$C$11+BA78*InputWeights!$C$10+BB78*InputWeights!$C$12) -> 5 | BG78: =(BE78*InputWeights!$C$14+BD78*InputWeights!$C$5+BF78*InputWeights!$C$9) -> 59.3 | BH78: =((_xlfn.RANK.EQ(BG78,$BG$2:$BG$6635,0))/(COUNT(BG$2:$BG$6635)))*100 -> 1.130539644 | BI78: 5
A79: 4502090290 | B79: 0209 | C79: 45 | D79: Monroe | E79: 05 | F79: 1 | G79: 0290 | H79: 2650 | I79: 22100 | J79: 10 | K79: 1963 | L79: 2011 | M79: 1 | N79: 24 | O79: 61 | P79: 2 | Q79: 2 | R79: 20 | S79: 67 | T79: 1 | U79: HAMILTON WEST | V79: US | W79: 209 | Y79: BRIDGE | Z79: SEGMENT | AA79: 29 | AB79: 3 | AC79: Y | AE79: 2015 | AF79: 2015 | AG79: EXCELLENT | AH79: EXCELLENT | AI79: 2 | AJ79: 1 | AK79: Stakeholder Comment | AL79: 3328 | AM79: 6656 | AN79: 0 | AO79: 0 | AP79: 0 | AQ79: 20436 | AR79: 40872 | AT79: 5 | AU79: 10 | AV79: 10 | AW79: 7.5 | AX79: 8 | AY79: 9 | AZ79: 2.5 | BA79: 0 | BB79: 0 | BD79: =(AT79*InputWeights!$C$6+AU79*InputWeights!$C$7) -> 7.5 | BE79: =(AY79*InputWeights!$C$15+AX79*InputWeights!$C$16+AW79*InputWeights!$C$17+AV79*InputWeights!$C$18) -> 8.45 | BF79: =(AZ79*InputWeights!$C$11+BA79*InputWeights!$C$10+BB79*InputWeights!$C$12) -> 1 | BG79: =(BE79*InputWeights!$C$14+BD79*InputWeights!$C$5+BF79*InputWeights!$C$9) -> 59.3 | BH79: =((_xlfn.RANK.EQ(BG79,$BG$2:$BG$6635,0))/(COUNT(BG$2:$BG$6635)))*100 -> 1.130539644 | BI79: 5
A80: 48A0100020 | B80: A010 | C80: 48 | D80: Northampton | E80: 05 | F80: 5 | G80: 0020 | H80: 316 | I80: 2 | J80: 0 | K80: 0 | L80: 0 | M80: 1 | N80: 25 | O80: 72 | P80: 2 | Q80: 0 | R80: 0 | S80: 285 | T80: 3 | U80: LARRY HOLMES DR | V80: PA | W80: 611 | Y80: THIRD ST | Z80: SITGREAVES ST | AB80: 4 | AC80: Y | AE80: 2012 | AG80: OTHER | AH80: OTHER | AI80: 3 | AJ80: 1 | AK80: Stakeholder Comment | AL80: 219 | AM80: 438 | AN80: 0 | AO80: 0 | AP80: 0 | AQ80: 5562 | AR80: 11124 | AT80: 5 | AU80: 10 | AV80: 10 | AW80: 7.5 | AX80: 1 | AY80: 3 | AZ80: 5 | BA80: 10 | BB80: 0 | BD80: =(AT80*InputWeights!$C$6+AU80*InputWeights!$C$7) -> 7.5 | BE80: =(AY80*InputWeights!$C$15+AX80*InputWeights!$C$16+AW80*InputWeights!$C$17+AV80*InputWeights!$C$18) -> 4.65 | BF80: =(AZ80*InputWeights!$C$11+BA80*InputWeights!$C$10+BB80*InputWeights!$C$12) -> 6 | BG80: =(BE80*InputWeights!$C$14+BD80*InputWeights!$C$5+BF80*InputWeights!$C$9) -> 59.1 | BH80: =((_xlfn.RANK.EQ(BG80,$BG$2:$BG$6635,0))/(COUNT(BG$2:$BG$6635)))*100 -> 1.190835092 | BI80: 5
A81: 1430400370 | B81: 3040 | C81: 14 | D81: Centre | E81: 02 | F81: 1 | G81: 0370 | H81: 2238 | I81: 140004300 | J81: 0 | K81: 1925 | L81: 2002 | M81: 2 | N81: 22 | O81: 62 | P81: 2 | Q81: 0 | R81: 0 | S81: 108 | T81: 3 | U81: ALT 0220 | V81: US | W81: 220 | X81: A | Y81: SEGMENT | Z81: CHESTNUT ST | AA81: 49 | AB81: 1 | AC81: P | AD81: UNION ST | AE81: 2015 | AF81: 2015 | AG81: GOOD | AH81: FAIR | AI81: 3 | AJ81: 2 | AK81: RCRS | AL81: 332 | AM81: 332 | AN81: 0 | AO81: 0 | AP81: 2 | AQ81: 2596 | AR81: 2596 | AT81: 5 | AU81: 10 | AV81: 10 | AW81: 7.5 | AX81: 1 | AY81: 1 | AZ81: 7.5 | BA81: 10 | BB81: 0 | BD81: =(AT81*InputWeights!$C$6+AU81*InputWeights!$C$7) -> 7.5 | BE81: =(AY81*InputWeights!$C$15+AX81*InputWeights!$C$16+AW81*InputWeights!$C$17+AV81*InputWeights!$C$18) -> 3.85 | BF81: =(AZ81*InputWeights!$C$11+BA81*InputWeights!$C$10+BB81*InputWeights!$C$12) -> 7 | BG81: =(BE81*InputWeights!$C$14+BD81*InputWeights!$C$5+BF81*InputWeights!$C$9) -> 58.9 | BH81: =((_xlfn.RANK.EQ(BG81,$BG$2:$BG$6635,0))/(COUNT(BG$2:$BG$6635)))*100 -> 1.205908954 | BI81: 5
A82: 1702550200 | B82: 0255 | C82: 17 | D82: Clearfield | E82: 02 | F82: 1 | G82: 0200 | H82: 2515 | I82: 2000 | J82: 0 | K82: 1930 | L82: 2002 | M82: 2 | N82: 22 | O82: 62 | P82: 2 | Q82: 0 | R82: 0 | S82: 149 | T82: 3 | U82: WINTERBURN TO PENFIELD RD | V82: PA | W82: 255 | Y82: BRIDGE | Z82: SEGMENT | AA82: 59 | AB82: 1 | AC82: N | AE82: 2015 | AF82: 2015 | AG82: GOOD | AH82: FAIR | AI82: 4 | AJ82: 2 | AK82: RCRS | AL82: 325 | AM82: 325 | AN82: 2 | AO82: 4.198807 | AP82: 2 | AQ82: 4663 | AR82: 4663 | AT82: 5 | AU82: 10 | AV82: 10 | AW82: 2.5 | AX82: 1 | AY82: 1 | AZ82: 7.5 | BA82: 10 | BB82: 10 | BD82: =(AT82*InputWeights!$C$6+AU82*InputWeights!$C$7) -> 7.5 | BE82: =(AY82*InputWeights!$C$15+AX82*InputWeights!$C$16+AW82*InputWeights!$C$17+AV82*InputWeights!$C$18) -> 2.35 | BF82: =(AZ82*InputWeights!$C$11+BA82*InputWeights!$C$10+BB82*InputWeights!$C$12) -> 9 | BG82: =(BE82*InputWeights!$C$14+BD82*InputWeights!$C$5+BF82*InputWeights!$C$9) -> 58.9 | BH82: =((_xlfn.RANK.EQ(BG82,$BG$2:$BG$6635,0))/(COUNT(BG$2:$BG$6635)))*100 -> 1.205908954 | BI82: 5
A83: 4630370012 | B83: 3037 | C83: 46 | D83: Montgomery | E83: 06 | F83: 1 | G83: 0012 | H83: 3923 | I83: 460008600 | J83: 0 | K83: 1953 | L83: 2008 | M83: 2 | N83: 22 | O83: 61 | P83: 2 | Q83: 0 | R83: 0 | S83: 201 | T83: 3 | U83: BALLIGOMINGO RD | W83: 000 | Y83: TRINITY LN | Z83: PORTLAND RD | AA83: 39 | AB83: 4 | AC83: N | AF83: 2014 | AG83: POOR | AH83: FAIR | AI83: 5 | AJ83: 2 | AK83: RCRS | AL83: 273 | AM83: 273 | AN83: 1 | AO83: 1.345909 | AP83: 2 | AQ83: 2726 | AR83: 2726 | AT83: 5 | AU83: 10 | AV83: 10 | AW83: 2.5 | AX83: 1 | AY83: 1 | AZ83: 7.5 | BA83: 10 | BB83: 10 | BD83: =(AT83*InputWeights!$C$6+AU83*InputWeights!$C$7) -> 7.5 | BE83: =(AY83*InputWeights!$C$15+AX83*InputWeights!$C$16+AW83*InputWeights!$C$17+AV83*InputWeights!$C$18) -> 2.35 | BF83: =(AZ83*InputWeights!$C$11+BA83*InputWeights!$C$10+BB83*InputWeights!$C$12) -> 9 | BG83: =(BE83*InputWeights!$C$14+BD83*InputWeights!$C$5+BF83*InputWeights!$C$9) -> 58.9 | BH83: =((_xlfn.RANK.EQ(BG83,$BG$2:$BG$6635,0))/(COUNT(BG$2:$BG$6635)))*100 -> 1.205908954 | BI83: 5
A84: 4806110170 | B84: 0611 | C84: 48 | D84: Northampton | E84: 05 | F84: 1 | G84: 0170 | H84: 1257 | I84: 12600 | J84: 0 | K84: 1900 | L84: 2008 | M84: 2 | N84: 21 | O84: 62 | P84: 2 | Q84: 0 | R84: 0 | S84: 114 | T84: 3 | U84: LACKAWANNA TR | V84: PA | W84: 611 | Y84: SEGMENT | Z84: SMITH AV | AA84: 29 | AB84: 4 | AC84: Y | AE84: 2015 | AF84: 2015 | AG84: GOOD | AH84: FAIR | AI84: 3 | AJ84: 3 | AK84: RCRS | AL84: 161 | AM84: 161 | AN84: 0 | AO84: 0 | AP84: 2 | AQ84: 4018 | AR84: 4018 | AT84: 5 | AU84: 10 | AV84: 10 | AW84: 7.5 | AX84: 1 | AY84: 1 | AZ84: 7.5 | BA84: 10 | BB84: 0 | BD84: =(AT84*InputWeights!$C$6+AU84*InputWeights!$C$7) -> 7.5 | BE84: =(AY84*InputWeights!$C$15+AX84*InputWeights!$C$16+AW84*InputWeights!$C$17+AV84*InputWeights!$C$18) -> 3.85 | BF84: =(AZ84*InputWeights!$C$11+BA84*InputWeights!$C$10+BB84*InputWeights!$C$12) -> 7 | BG84: =(BE84*InputWeights!$C$14+BD84*InputWeights!$C$5+BF84*InputWeights!$C$9) -> 58.9 | BH84: =((_xlfn.RANK.EQ(BG84,$BG$2:$BG$6635,0))/(COUNT(BG$2:$BG$6635)))*100 -> 1.205908954 | BI84: 5
A85: 0102340150 | B85: 0234 | C85: 01 | D85: Adams | E85: 08 | F85: 1 | G85: 0150 | H85: 3881 | I85: 1500 | J85: 0 | K85: 1922 | L85: 1998 | M85: 2 | N85: 22 | O85: 61 | P85: 2 | Q85: 0 | R85: 0 | S85: 161 | T85: 3 | U85: NARROWS RD | V85: PA | W85: 234 | Y85: BRIDGE | Z85: BRIDGE | AA85: 29 | AB85: 1 | AC85: N | AE85: 2015 | AF85: 2015 | AG85: FAIR | AH85: FAIR | AI85: 6 | AJ85: 2 | AK85: RCRS | AL85: 47 | AM85: 47 | AN85: 1 | AO85: 1.360474 | AP85: 1 | AQ85: 2013 | AR85: 2013 | AT85: 7.5 | AU85: 10 | AV85: 0 | AW85: 2.5 | AX85: 1 | AY85: 1 | AZ85: 7.5 | BA85: 10 | BB85: 10 | BD85: =(AT85*InputWeights!$C$6+AU85*InputWeights!$C$7) -> 8.75 | BE85: =(AY85*InputWeights!$C$15+AX85*InputWeights!$C$16+AW85*InputWeights!$C$17+AV85*InputWeights!$C$18) -> 1.35 | BF85: =(AZ85*InputWeights!$C$11+BA85*InputWeights!$C$10+BB85*InputWeights!$C$12) -> 9 | BG85: =(BE85*InputWeights!$C$14+BD85*InputWeights!$C$5+BF85*InputWeights!$C$9) -> 58.65 | BH85: =((_xlfn.RANK.EQ(BG85,$BG$2:$BG$6635,0))/(COUNT(BG$2:$BG$6635)))*100 -> 1.266204402 | BI85: 5
A86: 1904870680 | B86: 0487 | C86: 19 | D86: Columbia | E86: 03 | F86: 1 | G86: 0680 | H86: 2556 | I86: 8100 | J86: 30 | K86: 1907 | L86: 2016 | M86: 2 | N86: 20 | O86: 61 | P86: 2 | Q86: 0 | R86: 0 | S86: 69 | T86: 3 | U86: RED ROCK RD | V86: PA | W86: 487 | Y86: SEGMENT | Z86: BRIDGE | AA86: 30 | AB86: 1 | AC86: N | AE86: 2016 | AF86: 2014 | AG86: EXCELLENT | AH86: FAIR | AI86: 4 | AJ86: 2 | AK86: RCRS | AL86: 322 | AM86: 322 | AN86: 2 | AO86: 4.131455 | AP86: 1 | AQ86: 2687 | AR86: 2687 | AT86: 7.5 | AU86: 10 | AV86: 0 | AW86: 2.5 | AX86: 1 | AY86: 1 | AZ86: 7.5 | BA86: 10 | BB86: 10 | BD86: =(AT86*InputWeights!$C$6+AU86*InputWeights!$C$7) -> 8.75 | BE86: =(AY86*InputWeights!$C$15+AX86*InputWeights!$C$16+AW86*InputWeights!$C$17+AV86*InputWeights!$C$18) -> 1.35 | BF86: =(AZ86*InputWeights!$C$11+BA86*InputWeights!$C$10+BB86*InputWeights!$C$12) -> 9 | BG86: =(BE86*InputWeights!$C$14+BD86*InputWeights!$C$5+BF86*InputWeights!$C$9) -> 58.65 | BH86: =((_xlfn.RANK.EQ(BG86,$BG$2:$BG$6635,0))/(COUNT(BG$2:$BG$6635)))*100 -> 1.266204402 | BI86: 5
A87: 1904870690 | B87: 0487 | C87: 19 | D87: Columbia | E87: 03 | F87: 1 | G87: 0690 | H87: 3424 | I87: 8200 | J87: 30 | K87: 1907 | L87: 2016 | M87: 2 | N87: 24 | O87: 61 | P87: 2 | Q87: 0 | R87: 0 | S87: 65 | T87: 3 | U87: RED ROCK RD | V87: PA | W87: 487 | Y87: BRIDGE | Z87: HACKETT RD | AA87: 30 | AB87: 1 | AC87: N | AE87: 2016 | AF87: 2014 | AG87: EXCELLENT | AH87: FAIR | AI87: 4 | AJ87: 2 | AK87: RCRS | AL87: 322 | AM87: 322 | AN87: 3 | AO87: 4.626168 | AP87: 1 | AQ87: 2687 | AR87: 2687 | AT87: 7.5 | AU87: 10 | AV87: 0 | AW87: 2.5 | AX87: 1 | AY87: 1 | AZ87: 7.5 | BA87: 10 | BB87: 10 | BD87: =(AT87*InputWeights!$C$6+AU87*InputWeights!$C$7) -> 8.75 | BE87: =(AY87*InputWeights!$C$15+AX87*InputWeights!$C$16+AW87*InputWeights!$C$17+AV87*InputWeights!$C$18) -> 1.35 | BF87: =(AZ87*InputWeights!$C$11+BA87*InputWeights!$C$10+BB87*InputWeights!$C$12) -> 9 | BG87: =(BE87*InputWeights!$C$14+BD87*InputWeights!$C$5+BF87*InputWeights!$C$9) -> 58.65 | BH87: =((_xlfn.RANK.EQ(BG87,$BG$2:$BG$6635,0))/(COUNT(BG$2:$BG$6635)))*100 -> 1.266204402 | BI87: 5
A88: 3000210200 | B88: 0021 | C88: 30 | D88: Greene | E88: 12 | F88: 1 | G88: 0200 | H88: 2256 | I88: 2000 | J88: 0 | K88: 1928 | L88: 2006 | M88: 2 | N88: 21 | O88: 62 | P88: 2 | Q88: 0 | R88: 0 | S88: 166 | T88: 3 | U88: ROY E FURMAN HW | V88: PA | W88: 021 | Y88: BRIDGE | Z88: GRANGE RD | AA88: 30 | AB88: 1 | AC88: N | AE88: 2015 | AF88: 2015 | AG88: GOOD | AH88: FAIR | AI88: 4 | AJ88: 2 | AK88: RCRS | AL88: 79 | AM88: 79 | AN88: 3 | AO88: 7.021277 | AP88: 1 | AQ88: 1579 | AR88: 1579 | AT88: 7.5 | AU88: 10 | AV88: 0 | AW88: 2.5 | AX88: 1 | AY88: 1 | AZ88: 7.5 | BA88: 10 | BB88: 10 | BD88: =(AT88*InputWeights!$C$6+AU88*InputWeights!$C$7) -> 8.75 | BE88: =(AY88*InputWeights!$C$15+AX88*InputWeights!$C$16+AW88*InputWeights!$C$17+AV88*InputWeights!$C$18) -> 1.35 | BF88: =(AZ88*InputWeights!$C$11+BA88*InputWeights!$C$10+BB88*InputWeights!$C$12) -> 9 | BG88: =(BE88*InputWeights!$C$14+BD88*InputWeights!$C$5+BF88*InputWeights!$C$9) -> 58.65 | BH88: =((_xlfn.RANK.EQ(BG88,$BG$2:$BG$6635,0))/(COUNT(BG$2:$BG$6635)))*100 -> 1.266204402 | BI88: 5
A89: 3030010220 | B89: 3001 | C89: 30 | D89: Greene | E89: 12 | F89: 1 | G89: 0220 | H89: 2939 | I89: 300032700 | J89: 0 | K89: 1995 | L89: 2009 | M89: 2 | N89: 16 | O89: 51 | P89: 2 | Q89: 0 | R89: 0 | S89: 294 | T89: 3 | U89: ALEPPO RD | W89: 000 | Y89: BRIDGE | Z89: KUHN HILL RD | AA89: 30 | AB89: 1 | AC89: N | AE89: 2015 | AF89: 2015 | AG89: POOR | AH89: FAIR | AI89: 5 | AJ89: 2 | AK89: RCRS | AL89: 21 | AM89: 21 | AN89: 4 | AO89: 7.186118 | AP89: 1 | AQ89: 360 | AR89: 360 | AT89: 7.5 | AU89: 10 | AV89: 0 | AW89: 2.5 | AX89: 1 | AY89: 1 | AZ89: 7.5 | BA89: 10 | BB89: 10 | BD89: =(AT89*InputWeights!$C$6+AU89*InputWeights!$C$7) -> 8.75 | BE89: =(AY89*InputWeights!$C$15+AX89*InputWeights!$C$16+AW89*InputWeights!$C$17+AV89*InputWeights!$C$18) -> 1.35 | BF89: =(AZ89*InputWeights!$C$11+BA89*InputWeights!$C$10+BB89*InputWeights!$C$12) -> 9 | BG89: =(BE89*InputWeights!$C$14+BD89*InputWeights!$C$5+BF89*InputWeights!$C$9) -> 58.65 | BH89: =((_xlfn.RANK.EQ(BG89,$BG$2:$BG$6635,0))/(COUNT(BG$2:$BG$6635)))*100 -> 1.266204402 | BI89: 5
A90: 3030010260 | B90: 3001 | C90: 30 | D90: Greene | E90: 12 | F90: 1 | G90: 0260 | H90: 1537 | I90: 300033100 | J90: 0 | K90: 1959 | L90: 2011 | M90: 2 | N90: 16 | O90: 52 | P90: 2 | Q90: 0 | R90: 0 | S90: 296 | T90: 3 | U90: ALEPPO RD | W90: 000 | Y90: DRAIN RIGHT | Z90: BRIDGE | AA90: 30 | AB90: 1 | AC90: N | AE90: 2015 | AF90: 2015 | AG90: POOR | AH90: FAIR | AI90: 5 | AJ90: 2 | AK90: RCRS | AL90: 24 | AM90: 24 | AN90: 3 | AO90: 10.305791 | AP90: 1 | AQ90: 273 | AR90: 273 | AT90: 7.5 | AU90: 10 | AV90: 0 | AW90: 2.5 | AX90: 1 | AY90: 1 | AZ90: 7.5 | BA90: 10 | BB90: 10 | BD90: =(AT90*InputWeights!$C$6+AU90*InputWeights!$C$7) -> 8.75 | BE90: =(AY90*InputWeights!$C$15+AX90*InputWeights!$C$16+AW90*InputWeights!$C$17+AV90*InputWeights!$C$18) -> 1.35 | BF90: =(AZ90*InputWeights!$C$11+BA90*InputWeights!$C$10+BB90*InputWeights!$C$12) -> 9 | BG90: =(BE90*InputWeights!$C$14+BD90*InputWeights!$C$5+BF90*InputWeights!$C$9) -> 58.65 | BH90: =((_xlfn.RANK.EQ(BG90,$BG$2:$BG$6635,0))/(COUNT(BG$2:$BG$6635)))*100 -> 1.266204402 | BI90: 5
A91: 2202300010 | B91: 0230 | C91: 22 | D91: Dauphin | E91: 08 | F91: 1 | G91: 0010 | H91: 1257 | I91: 100 | J91: 0 | K91: 1975 | L91: 1975 | M91: 1 | N91: 30 | O91: 72 | P91: 2 | Q91: 1 | R91: 1 | S91: 279 | T91: 3 | U91: CAMERON ST | V91: PA | W91: 230 | Y91: CAMERON ST | Z91: KELKER ST | AA91: 19 | AB91: 4 | AC91: 4 | AE91: 2015 | AF91: 2015 | AG91: POOR | AH91: FAIR | AI91: 3 | AJ91: 2 | AK91: RCRS | AL91: 803 | AM91: 1606 | AN91: 2 | AO91: 8.400955 | AP91: 2 | AQ91: 13088 | AR91: 26176 | AT91: 5 | AU91: 10 | AV91: 0 | AW91: 7.5 | AX91: 3 | AY91: 6 | AZ91: 7.5 | BA91: 0 | BB91: 10 | BD91: =(AT91*InputWeights!$C$6+AU91*InputWeights!$C$7) -> 7.5 | BE91: =(AY91*InputWeights!$C$15+AX91*InputWeights!$C$16+AW91*InputWeights!$C$17+AV91*InputWeights!$C$18) -> 5.25 | BF91: =(AZ91*InputWeights!$C$11+BA91*InputWeights!$C$10+BB91*InputWeights!$C$12) -> 5 | BG91: =(BE91*InputWeights!$C$14+BD91*InputWeights!$C$5+BF91*InputWeights!$C$9) -> 58.5 | BH91: =((_xlfn.RANK.EQ(BG91,$BG$2:$BG$6635,0))/(COUNT(BG$2:$BG$6635)))*100 -> 1.356647573 | BI91: 5
A92: 2202300020 | B92: 0230 | C92: 22 | D92: Dauphin | E92: 08 | F92: 1 | G92: 0020 | H92: 2725 | I92: 200 | J92: 0 | K92: 1986 | L92: 1986 | M92: 1 | N92: 23 | O92: 72 | P92: 2 | Q92: 1 | R92: 1 | S92: 228 | T92: 3 | U92: CAMERON ST | V92: PA | W92: 230 | Y92: KELKER ST | Z92: HERR ST | AA92: 19 | AB92: 4 | AC92: 4 | AE92: 2015 | AF92: 2015 | AG92: POOR | AH92: FAIR | AI92: 3 | AJ92: 2 | AK92: RCRS | AL92: 803 | AM92: 1606 | AN92: 6 | AO92: 11.625688 | AP92: 2 | AQ92: 13088 | AR92: 26176 | AT92: 5 | AU92: 10 | AV92: 0 | AW92: 7.5 | AX92: 3 | AY92: 6 | AZ92: 7.5 | BA92: 0 | BB92: 10 | BD92: =(AT92*InputWeights!$C$6+AU92*InputWeights!$C$7) -> 7.5 | BE92: =(AY92*InputWeights!$C$15+AX92*InputWeights!$C$16+AW92*InputWeights!$C$17+AV92*InputWeights!$C$18) -> 5.25 | BF92: =(AZ92*InputWeights!$C$11+BA92*InputWeights!$C$10+BB92*InputWeights!$C$12) -> 5 | BG92: =(BE92*InputWeights!$C$14+BD92*InputWeights!$C$5+BF92*InputWeights!$C$9) -> 58.5 | BH92: =((_xlfn.RANK.EQ(BG92,$BG$2:$BG$6635,0))/(COUNT(BG$2:$BG$6635)))*100 -> 1.356647573 | BI92: 5
A93: 1900110100 | B93: 0011 | C93: 19 | D93: Columbia | E93: 03 | F93: 1 | G93: 0100 | H93: 1900 | I93: 32100 | J93: 0 | K93: 1921 | L93: 2008 | M93: 2 | N93: 24 | O93: 62 | P93: 2 | Q93: 0 | R93: 0 | S93: 97 | T93: 2 | U93: MAIN ST | V93: US | W93: 011 | Y93: SEGMENT | Z93: DRAIN RIGHT | AA93: 30 | AB93: 3 | AC93: Y | AE93: 2016 | AF93: 2016 | AG93: GOOD | AH93: FAIR | AI93: 3 | AJ93: 3 | AK93: RCRS | AL93: 671 | AM93: 671 | AN93: 0 | AO93: 0 | AP93: 0 | AQ93: 13723 | AR93: 13723 | AT93: 10 | AU93: 10 | AV93: 10 | AW93: 7.5 | AX93: 2 | AY93: 3 | AZ93: 7.5 | BA93: 0 | BB93: 0 | BD93: =(AT93*InputWeights!$C$6+AU93*InputWeights!$C$7) -> 10 | BE93: =(AY93*InputWeights!$C$15+AX93*InputWeights!$C$16+AW93*InputWeights!$C$17+AV93*InputWeights!$C$18) -> 4.85 | BF93: =(AZ93*InputWeights!$C$11+BA93*InputWeights!$C$10+BB93*InputWeights!$C$12) -> 3 | BG93: =(BE93*InputWeights!$C$14+BD93*InputWeights!$C$5+BF93*InputWeights!$C$9) -> 58.4 | BH93: =((_xlfn.RANK.EQ(BG93,$BG$2:$BG$6635,0))/(COUNT(BG$2:$BG$6635)))*100 -> 1.386795297 | BI93: 5
A94: 4620090080 | B94: 2009 | C94: 46 | D94: Montgomery | E94: 06 | F94: 1 | G94: 0080 | H94: 2743 | I94: 460036500 | J94: 0 | K94: 1954 | L94: 2004 | M94: 2 | N94: 31 | O94: 61 | P94: 2 | Q94: 0 | R94: 0 | S94: 180 | T94: 3 | U94: BYBERRY RD | W94: 000 | Y94: SEGMENT | Z94: BRIDGE | AA94: 59 | AB94: 4 | AC94: N | AE94: 2015 | AF94: 2015 | AG94: FAIR | AH94: FAIR | AI94: 4 | AJ94: 3 | AK94: RCRS | AL94: 349 | AM94: 349 | AN94: 3 | AO94: 5.774699 | AP94: 2 | AQ94: 11625 | AR94: 11625 | AT94: 5 | AU94: 10 | AV94: 0 | AW94: 2.5 | AX94: 1 | AY94: 3 | AZ94: 7.5 | BA94: 10 | BB94: 10 | BD94: =(AT94*InputWeights!$C$6+AU94*InputWeights!$C$7) -> 7.5 | BE94: =(AY94*InputWeights!$C$15+AX94*InputWeights!$C$16+AW94*InputWeights!$C$17+AV94*InputWeights!$C$18) -> 2.15 | BF94: =(AZ94*InputWeights!$C$11+BA94*InputWeights!$C$10+BB94*InputWeights!$C$12) -> 9 | BG94: =(BE94*InputWeights!$C$14+BD94*InputWeights!$C$5+BF94*InputWeights!$C$9) -> 58.1 | BH94: =((_xlfn.RANK.EQ(BG94,$BG$2:$BG$6635,0))/(COUNT(BG$2:$BG$6635)))*100 -> 1.401869159 | BI94: 5
A95: 4620130032 | B95: 2013 | C95: 46 | D95: Montgomery | E95: 06 | F95: 1 | G95: 0032 | H95: 2427 | I95: 460025100 | J95: 0 | K95: 1930 | L95: 1965 | M95: 2 | N95: 24 | O95: 62 | P95: 2 | Q95: 0 | R95: 0 | S95: 137 | T95: 3 | U95: PHILMONT AV | W95: 000 | Y95: BRIDGE | Z95: PINE RD | AA95: 59 | AB95: 4 | AC95: Y | AE95: 2015 | AF95: 2015 | AG95: FAIR | AH95: FAIR | AI95: 3 | AJ95: 1 | AK95: Stakeholder Comment | AL95: 402 | AM95: 402 | AN95: 0 | AO95: 0 | AP95: 0 | AQ95: 13395 | AR95: 13395 | AT95: 5 | AU95: 10 | AV95: 0 | AW95: 7.5 | AX95: 1 | AY95: 3 | AZ95: 7.5 | BA95: 10 | BB95: 0 | BD95: =(AT95*InputWeights!$C$6+AU95*InputWeights!$C$7) -> 7.5 | BE95: =(AY95*InputWeights!$C$15+AX95*InputWeights!$C$16+AW95*InputWeights!$C$17+AV95*InputWeights!$C$18) -> 3.65 | BF95: =(AZ95*InputWeights!$C$11+BA95*InputWeights!$C$10+BB95*InputWeights!$C$12) -> 7 | BG95: =(BE95*InputWeights!$C$14+BD95*InputWeights!$C$5+BF95*InputWeights!$C$9) -> 58.1 | BH95: =((_xlfn.RANK.EQ(BG95,$BG$2:$BG$6635,0))/(COUNT(BG$2:$BG$6635)))*100 -> 1.401869159 | BI95: 5
A96: 0900320770 | B96: 0032 | C96: 09 | D96: Bucks | E96: 06 | F96: 1 | G96: 0770 | H96: 3099 | I96: 7700 | J96: 0 | K96: 1927 | L96: 2007 | M96: 2 | N96: 24 | O96: 61 | P96: 2 | Q96: 0 | R96: 0 | S96: 232 | T96: 3 | U96: RIVER RD | V96: PA | W96: 032 | Y96: BRIDGETON HIL | Z96: BRIDGE | AA96: 49 | AB96: 1 | AC96: N | AE96: 2015 | AF96: 2015 | AG96: POOR | AH96: POOR | AI96: 4 | AJ96: 1 | AK96: Stakeholder Comment | AL96: 246 | AM96: 246 | AN96: 2 | AO96: 3.407551 | AP96: 0 | AQ96: 2233 | AR96: 2233 | AT96: 5 | AU96: 10 | AV96: 0 | AW96: 2.5 | AX96: 1 | AY96: 1 | AZ96: 10 | BA96: 10 | BB96: 10 | BD96: =(AT96*InputWeights!$C$6+AU96*InputWeights!$C$7) -> 7.5 | BE96: =(AY96*InputWeights!$C$15+AX96*InputWeights!$C$16+AW96*InputWeights!$C$17+AV96*InputWeights!$C$18) -> 1.35 | BF96: =(AZ96*InputWeights!$C$11+BA96*InputWeights!$C$10+BB96*InputWeights!$C$12) -> 10 | BG96: =(BE96*InputWeights!$C$14+BD96*InputWeights!$C$5+BF96*InputWeights!$C$9) -> 57.9 | BH96: =((_xlfn.RANK.EQ(BG96,$BG$2:$BG$6635,0))/(COUNT(BG$2:$BG$6635)))*100 -> 1.432016883 | BI96: 5
A97: 1100560200 | B97: 0056 | C97: 11 | D97: Cambria | E97: 09 | F97: 1 | G97: 0200 | H97: 2300 | I97: 13900 | J97: 0 | K97: 1964 | L97: 2003 | M97: 1 | N97: 24 | O97: 62 | P97: 2 | Q97: 2 | R97: 2 | S97: 78 | T97: 1 | U97: JOHNSTOWN EX | V97: PA | W97: 056 | Y97: BRIDGE | Z97: SEGMENT | AA97: 29 | AB97: 3 | AC97: Y | AE97: 2015 | AF97: 2015 | AG97: GOOD | AH97: GOOD | AI97: 2 | AJ97: 1 | AK97: Stakeholder Comment | AL97: 628 | AM97: 1256 | AN97: 5 | AO97: 11.478261 | AP97: 0 | AQ97: 11338 | AR97: 22676 | AT97: 5 | AU97: 10 | AV97: 10 | AW97: 7.5 | AX97: 3 | AY97: 5 | AZ97: 5 | BA97: 0 | BB97: 10 | BD97: =(AT97*InputWeights!$C$6+AU97*InputWeights!$C$7) -> 7.5 | BE97: =(AY97*InputWeights!$C$15+AX97*InputWeights!$C$16+AW97*InputWeights!$C$17+AV97*InputWeights!$C$18) -> 5.85 | BF97: =(AZ97*InputWeights!$C$11+BA97*InputWeights!$C$10+BB97*InputWeights!$C$12) -> 4 | BG97: =(BE97*InputWeights!$C$14+BD97*InputWeights!$C$5+BF97*InputWeights!$C$9) -> 57.9 | BH97: =((_xlfn.RANK.EQ(BG97,$BG$2:$BG$6635,0))/(COUNT(BG$2:$BG$6635)))*100 -> 1.432016883 | BI97: 5
A98: 1100560220 | B98: 0056 | C98: 11 | D98: Cambria | E98: 09 | F98: 1 | G98: 0220 | H98: 3291 | I98: 14100 | J98: 0 | K98: 1964 | L98: 2003 | M98: 1 | N98: 24 | O98: 62 | P98: 2 | Q98: 2 | R98: 4 | S98: 68 | T98: 1 | U98: JOHNSTOWN EX | V98: PA | W98: 056 | Y98: SEGMENT | Z98: RICHLAND | AA98: 29 | AB98: 1 | AC98: Y | AE98: 2015 | AF98: 2015 | AG98: EXCELLENT | AH98: GOOD | AI98: 2 | AJ98: 1 | AK98: Stakeholder Comment | AL98: 628 | AM98: 1256 | AN98: 2 | AO98: 3.208751 | AP98: 0 | AQ98: 11338 | AR98: 22676 | AT98: 5 | AU98: 10 | AV98: 10 | AW98: 7.5 | AX98: 3 | AY98: 5 | AZ98: 5 | BA98: 0 | BB98: 10 | BD98: =(AT98*InputWeights!$C$6+AU98*InputWeights!$C$7) -> 7.5 | BE98: =(AY98*InputWeights!$C$15+AX98*InputWeights!$C$16+AW98*InputWeights!$C$17+AV98*InputWeights!$C$18) -> 5.85 | BF98: =(AZ98*InputWeights!$C$11+BA98*InputWeights!$C$10+BB98*InputWeights!$C$12) -> 4 | BG98: =(BE98*InputWeights!$C$14+BD98*InputWeights!$C$5+BF98*InputWeights!$C$9) -> 57.9 | BH98: =((_xlfn.RANK.EQ(BG98,$BG$2:$BG$6635,0))/(COUNT(BG$2:$BG$6635)))*100 -> 1.432016883 | BI98: 5
A99: 2331010010 | B99: 3101 | C99: 23 | D99: Delaware | E99: 06 | F99: 1 | G99: 0010 | H99: 1915 | I99: 230000400 | J99: 0 | K99: 1927 | L99: 2012 | M99: 2 | N99: 20 | O99: 52 | P99: 2 | Q99: 0 | R99: 0 | S99: 310 | T99: 3 | U99: ROCKY HILL RD | W99: 000 | Y99: CHADDS FORD R | Z99: BULLOCK RD | AA99: 49 | AB99: 4 | AC99: N | AE99: 2015 | AF99: 2015 | AG99: POOR | AH99: POOR | AI99: 5 | AJ99: 1 | AK99: Stakeholder Comment | AL99: 75 | AM99: 75 | AN99: 3 | AO99: 8.27154 | AP99: 0 | AQ99: 2303 | AR99: 2303 | AT99: 5 | AU99: 10 | AV99: 0 | AW99: 2.5 | AX99: 1 | AY99: 1 | AZ99: 10 | BA99: 10 | BB99: 10 | BD99: =(AT99*InputWeights!$C$6+AU99*InputWeights!$C$7) -> 7.5 | BE99: =(AY99*InputWeights!$C$15+AX99*InputWeights!$C$16+AW99*InputWeights!$C$17+AV99*InputWeights!$C$18) -> 1.35 | BF99: =(AZ99*InputWeights!$C$11+BA99*InputWeights!$C$10+BB99*InputWeights!$C$12) -> 10 | BG99: =(BE99*InputWeights!$C$14+BD99*InputWeights!$C$5+BF99*InputWeights!$C$9) -> 57.9 | BH99: =((_xlfn.RANK.EQ(BG99,$BG$2:$BG$6635,0))/(COUNT(BG$2:$BG$6635)))*100 -> 1.432016883 | BI99: 5
A100: 3330310060 | B100: 3031 | C100: 33 | D100: Jefferson | E100: 10 | F100: 1 | G100: 0060 | H100: 3762 | I100: 330006200 | J100: 0 | K100: 1979 | L100: 2015 | M100: 2 | N100: 20 | O100: 52 | P100: 2 | Q100: 0 | R100: 0 | S100: 312 | T100: 3 | U100: RIVER RD | W100: 000 | Y100: PINE RUN CHUR | Z100: HOFFMAN HOLLO | AA100: 39 | AB100: 1 | AC100: N | AF100: 2014 | AG100: POOR | AH100: POOR | AI100: 6 | AJ100: 2 | AK100: RCRS | AL100: 13 | AM100: 13 | AN100: 2 | AO100: 2.807018 | AP100: 2 | AQ100: 313 | AR100: 313 | AT100: 5 | AU100: 10 | AV100: 0 | AW100: 2.5 | AX100: 1 | AY100: 1 | AZ100: 10 | BA100: 10 | BB100: 10 | BD100: =(AT100*InputWeights!$C$6+AU100*InputWeights!$C$7) -> 7.5 | BE100: =(AY100*InputWeights!$C$15+AX100*InputWeights!$C$16+AW100*InputWeights!$C$17+AV100*InputWeights!$C$18) -> 1.35 | BF100: =(AZ100*InputWeights!$C$11+BA100*InputWeights!$C$10+BB100*InputWeights!$C$12) -> 10 | BG100: =(BE100*InputWeights!$C$14+BD100*InputWeights!$C$5+BF100*InputWeights!$C$9) -> 57.9 | BH100: =((_xlfn.RANK.EQ(BG100,$BG$2:$BG$6635,0))/(COUNT(BG$2:$BG$6635)))*100 -> 1.432016883 | BI100: 5
A101: 4700540260 | B101: 0054 | C101: 47 | D101: Montour | E101: 03 | F101: 1 | G101: 0260 | H101: 2425 | I101: 5600 | J101: 0 | K101: 1970 | L101: 2008 | M101: 1 | N101: 25 | O101: 62 | P101: 2 | Q101: 3 | R101: 10 | S101: 71 | T101: 3 | U101: CONTINENTAL BL | V101: PA | W101: 054 | Y101: DANVILLE | Z101: NORTHUMBERLAN | AA101: 20 | AB101: 3 | AC101: Y | AE101: 2016 | AF101: 2016 | AG101: EXCELLENT | AH101: GOOD | AI101: 3 | AJ101: 2 | AK101: RCRS | AL101: 893 | AM101: 1786 | AN101: 0 | AO101: 0 | AP101: 4 | AQ101: 11152 | AR101: 22304 | AT101: 1 | AU101: 10 | AV101: 10 | AW101: 7.5 | AX101: 3 | AY101: 5 | AZ101: 5 | BA101: 10 | BB101: 0 | BD101: =(AT101*InputWeights!$C$6+AU101*InputWeights!$C$7) -> 5.5 | BE101: =(AY101*InputWeights!$C$15+AX101*InputWeights!$C$16+AW101*InputWeights!$C$17+AV101*InputWeights!$C$18) -> 5.85 | BF101: =(AZ101*InputWeights!$C$11+BA101*InputWeights!$C$10+BB101*InputWeights!$C$12) -> 6 | BG101: =(BE101*InputWeights!$C$14+BD101*InputWeights!$C$5+BF101*InputWeights!$C$9) -> 57.9 | BH101: =((_xlfn.RANK.EQ(BG101,$BG$2:$BG$6635,0))/(COUNT(BG$2:$BG$6635)))*100 -> 1.432016883 | BI101: 5
A102: 1702550050 | B102: 0255 | C102: 17 | D102: Clearfield | E102: 02 | F102: 1 | G102: 0050 | H102: 2784 | I102: 500 | J102: 0 | K102: 1940 | L102: 2013 | M102: 2 | N102: 22 | O102: 62 | P102: 2 | Q102: 0 | R102: 0 | S102: 75 | T102: 3 | U102: DUBOIS TO SABULA RD | V102: PA | W102: 255 | Y102: PLATT RD | Z102: RAMP A RD | AA102: 59 | AB102: 1 | AC102: N | AE102: 2015 | AF102: 2015 | AG102: EXCELLENT | AH102: EXCELLENT | AI102: 4 | AJ102: 2 | AK102: RCRS | AL102: 1254 | AM102: 1254 | AN102: 1 | AO102: 1.896552 | AP102: 2 | AQ102: 14013 | AR102: 14013 | AT102: 5 | AU102: 10 | AV102: 10 | AW102: 2.5 | AX102: 3 | AY102: 3 | AZ102: 2.5 | BA102: 10 | BB102: 10 | BD102: =(AT102*InputWeights!$C$6+AU102*InputWeights!$C$7) -> 7.5 | BE102: =(AY102*InputWeights!$C$15+AX102*InputWeights!$C$16+AW102*InputWeights!$C$17+AV102*InputWeights!$C$18) -> 3.55 | BF102: =(AZ102*InputWeights!$C$11+BA102*InputWeights!$C$10+BB102*InputWeights!$C$12) -> 7 | BG102: =(BE102*InputWeights!$C$14+BD102*InputWeights!$C$5+BF102*InputWeights!$C$9) -> 57.7 | BH102: =((_xlfn.RANK.EQ(BG102,$BG$2:$BG$6635,0))/(COUNT(BG$2:$BG$6635)))*100 -> 1.522460054 | BI102: 5
A103: 2202300041 | B103: 0230 | C103: 22 | D103: Dauphin | E103: 08 | F103: 1 | G103: 0041 | H103: 2870 | I103: 400 | J103: 0 | K103: 1986 | L103: 1986 | M103: 1 | N103: 23 | O103: 72 | P103: 2 | Q103: 1 | R103: 1 | S103: 249 | T103: 3 | U103: CAMERON ST | V103: PA | W103: 230 | Y103: THIRTEENTH ST | Z103: KITTATINY ST | AA103: 19 | AB103: 4 | AC103: 4 | AE103: 2016 | AF103: 2016 | AG103: POOR | AH103: FAIR | AI103: 3 | AJ103: 2 | AK103: RCRS | AL103: 1168 | AM103: 2336 | AN103: 8 | AO103: 14.71777 | AP103: 2 | AQ103: 10077 | AR103: 20154 | AT103: 5 | AU103: 10 | AV103: 0 | AW103: 7.5 | AX103: 4 | AY103: 5 | AZ103: 7.5 | BA103: 0 | BB103: 10 | BD103: =(AT103*InputWeights!$C$6+AU103*InputWeights!$C$7) -> 7.5 | BE103: =(AY103*InputWeights!$C$15+AX103*InputWeights!$C$16+AW103*InputWeights!$C$17+AV103*InputWeights!$C$18) -> 5.05 | BF103: =(AZ103*InputWeights!$C$11+BA103*InputWeights!$C$10+BB103*InputWeights!$C$12) -> 5 | BG103: =(BE103*InputWeights!$C$14+BD103*InputWeights!$C$5+BF103*InputWeights!$C$9) -> 57.7 | BH103: =((_xlfn.RANK.EQ(BG103,$BG$2:$BG$6635,0))/(COUNT(BG$2:$BG$6635)))*100 -> 1.522460054 | BI103: 5
A104: 1410020340 | B104: 1002 | C104: 14 | D104: Centre | E104: 02 | F104: 1 | G104: 0340 | H104: 2226 | I104: 140010300 | J104: 0 | K104: 1932 | L104: 2005 | M104: 2 | N104: 21 | O104: 52 | P104: 2 | Q104: 0 | R104: 0 | S104: 163 | T104: 3 | U104: SAYERS DAM RD | W104: 000 | Y104: SEGMENT | Z104: RIDGE CREST D | AA104: 49 | AB104: 1 | AC104: N | AF104: 2014 | AG104: GOOD | AH104: GOOD | AI104: 7 | AJ104: 2 | AK104: RCRS | AL104: 19 | AM104: 19 | AN104: 1 | AO104: 2.371968 | AP104: 0 | AQ104: 189 | AR104: 189 | AT104: 10 | AU104: 10 | AV104: 0 | AW104: 1 | AX104: 1 | AY104: 1 | AZ104: 5 | BA104: 10 | BB104: 10 | BD104: =(AT104*InputWeights!$C$6+AU104*InputWeights!$C$7) -> 10 | BE104: =(AY104*InputWeights!$C$15+AX104*InputWeights!$C$16+AW104*InputWeights!$C$17+AV104*InputWeights!$C$18) -> 0.9 | BF104: =(AZ104*InputWeights!$C$11+BA104*InputWeights!$C$10+BB104*InputWeights!$C$12) -> 8 | BG104: =(BE104*InputWeights!$C$14+BD104*InputWeights!$C$5+BF104*InputWeights!$C$9) -> 57.6 | BH104: =((_xlfn.RANK.EQ(BG104,$BG$2:$BG$6635,0))/(COUNT(BG$2:$BG$6635)))*100 -> 1.552607778 | BI104: 5
A105: 1540060054 | B105: 4006 | C105: 15 | D105: Chester | E105: 06 | F105: 1 | G105: 0054 | H105: 1827 | I105: 150011500 | J105: 10 | K105: 1931 | L105: 2012 | M105: 2 | N105: 20 | O105: 61 | P105: 2 | Q105: 0 | R105: 0 | S105: 180 | T105: 3 | U105: LITTLE WASHINGTON RD | W105: 000 | Y105: EVERGREEN DR | Z105: WILLOW OAK WY | AA105: 39 | AB105: 4 | AC105: N | AE105: 2015 | AF105: 2015 | AG105: FAIR | AH105: GOOD | AI105: 7 | AJ105: 2 | AK105: RCRS | AL105: 123 | AM105: 123 | AN105: 1 | AO105: 2.889984 | AP105: 0 | AQ105: 1230 | AR105: 1230 | AT105: 10 | AU105: 10 | AV105: 0 | AW105: 1 | AX105: 1 | AY105: 1 | AZ105: 5 | BA105: 10 | BB105: 10 | BD105: =(AT105*InputWeights!$C$6+AU105*InputWeights!$C$7) -> 10 | BE105: =(AY105*InputWeights!$C$15+AX105*InputWeights!$C$16+AW105*InputWeights!$C$17+AV105*InputWeights!$C$18) -> 0.9 | BF105: =(AZ105*InputWeights!$C$11+BA105*InputWeights!$C$10+BB105*InputWeights!$C$12) -> 8 | BG105: =(BE105*InputWeights!$C$14+BD105*InputWeights!$C$5+BF105*InputWeights!$C$9) -> 57.6 | BH105: =((_xlfn.RANK.EQ(BG105,$BG$2:$BG$6635,0))/(COUNT(BG$2:$BG$6635)))*100 -> 1.552607778 | BI105: 5
A106: 1540060060 | B106: 4006 | C106: 15 | D106: Chester | E106: 06 | F106: 1 | G106: 0060 | H106: 1867 | I106: 150011600 | J106: 10 | K106: 1931 | L106: 2012 | M106: 2 | N106: 20 | O106: 61 | P106: 2 | Q106: 0 | R106: 0 | S106: 184 | T106: 3 | U106: LITTLE WASHINGTON RD | W106: 000 | Y106: WILLOW OAK WY | Z106: MARSHALL RD | AA106: 39 | AB106: 4 | AC106: N | AE106: 2015 | AF106: 2015 | AG106: FAIR | AH106: GOOD | AI106: 7 | AJ106: 2 | AK106: RCRS | AL106: 123 | AM106: 123 | AN106: 2 | AO106: 5.656133 | AP106: 0 | AQ106: 1230 | AR106: 1230 | AT106: 10 | AU106: 10 | AV106: 0 | AW106: 1 | AX106: 1 | AY106: 1 | AZ106: 5 | BA106: 10 | BB106: 10 | BD106: =(AT106*InputWeights!$C$6+AU106*InputWeights!$C$7) -> 10 | BE106: =(AY106*InputWeights!$C$15+AX106*InputWeights!$C$16+AW106*InputWeights!$C$17+AV106*InputWeights!$C$18) -> 0.9 | BF106: =(AZ106*InputWeights!$C$11+BA106*InputWeights!$C$10+BB106*InputWeights!$C$12) -> 8 | BG106: =(BE106*InputWeights!$C$14+BD106*InputWeights!$C$5+BF106*InputWeights!$C$9) -> 57.6 | BH106: =((_xlfn.RANK.EQ(BG106,$BG$2:$BG$6635,0))/(COUNT(BG$2:$BG$6635)))*100 -> 1.552607778 | BI106: 5
A107: 1540060064 | B107: 4006 | C107: 15 | D107: Chester | E107: 06 | F107: 1 | G107: 0064 | H107: 2332 | I107: 150011700 | J107: 10 | K107: 1931 | L107: 2012 | M107: 2 | N107: 20 | O107: 52 | P107: 2 | Q107: 0 | R107: 0 | S107: 181 | T107: 3 | U107: LITTLE WASHINGTON RD | W107: 000 | Y107: MARSHALL RD | Z107: BRIDGE | AA107: 39 | AB107: 4 | AC107: N | AE107: 2015 | AF107: 2015 | AG107: FAIR | AH107: GOOD | AI107: 7 | AJ107: 2 | AK107: RCRS | AL107: 123 | AM107: 123 | AN107: 3 | AO107: 6.792453 | AP107: 0 | AQ107: 1230 | AR107: 1230 | AT107: 10 | AU107: 10 | AV107: 0 | AW107: 1 | AX107: 1 | AY107: 1 | AZ107: 5 | BA107: 10 | BB107: 10 | BD107: =(AT107*InputWeights!$C$6+AU107*InputWeights!$C$7) -> 10 | BE107: =(AY107*InputWeights!$C$15+AX107*InputWeights!$C$16+AW107*InputWeights!$C$17+AV107*InputWeights!$C$18) -> 0.9 | BF107: =(AZ107*InputWeights!$C$11+BA107*InputWeights!$C$10+BB107*InputWeights!$C$12) -> 8 | BG107: =(BE107*InputWeights!$C$14+BD107*InputWeights!$C$5+BF107*InputWeights!$C$9) -> 57.6 | BH107: =((_xlfn.RANK.EQ(BG107,$BG$2:$BG$6635,0))/(COUNT(BG$2:$BG$6635)))*100 -> 1.552607778 | BI107: 5
A108: 1540060070 | B108: 4006 | C108: 15 | D108: Chester | E108: 06 | F108: 1 | G108: 0070 | H108: 2267 | I108: 150011800 | J108: 10 | K108: 1931 | L108: 2012 | M108: 2 | N108: 20 | O108: 52 | P108: 2 | Q108: 0 | R108: 0 | S108: 199 | T108: 3 | U108: LITTLE WASHINGTON RD | W108: 000 | Y108: BRIDGE | Z108: CREEK RD | AA108: 39 | AB108: 4 | AC108: N | AE108: 2015 | AF108: 2015 | AG108: FAIR | AH108: GOOD | AI108: 7 | AJ108: 2 | AK108: RCRS | AL108: 123 | AM108: 123 | AN108: 2 | AO108: 4.658139 | AP108: 0 | AQ108: 1230 | AR108: 1230 | AT108: 10 | AU108: 10 | AV108: 0 | AW108: 1 | AX108: 1 | AY108: 1 | AZ108: 5 | BA108: 10 | BB108: 10 | BD108: =(AT108*InputWeights!$C$6+AU108*InputWeights!$C$7) -> 10 | BE108: =(AY108*InputWeights!$C$15+AX108*InputWeights!$C$16+AW108*InputWeights!$C$17+AV108*InputWeights!$C$18) -> 0.9 | BF108: =(AZ108*InputWeights!$C$11+BA108*InputWeights!$C$10+BB108*InputWeights!$C$12) -> 8 | BG108: =(BE108*InputWeights!$C$14+BD108*InputWeights!$C$5+BF108*InputWeights!$C$9) -> 57.6 | BH108: =((_xlfn.RANK.EQ(BG108,$BG$2:$BG$6635,0))/(COUNT(BG$2:$BG$6635)))*100 -> 1.552607778 | BI108: 5
A109: =C109&B109&G109 -> 4510030010 | B109: 1003 | C109: 45 | D109: Monroe | E109: 05 | F109: 1 | G109: 0010 | H109: 157 | I109: 450039300 | J109: 0 | K109: 1932 | L109: 1932 | M109: 2 | N109: 22 | O109: 98 | P109: 2 | Q109: 0 | R109: 0 | S109: 340 | T109: 3 | U109: HALLET RD | W109: 000 | Y109: HALLET RD | Z109: SEGMENT | AA109: 29 | AB109: 3 | AC109: N | AF109: 0000 | AG109: POOR | AH109: POOR | AI109: 7 | AJ109: 2 | AK109: RCRS | AL109: 67 | AM109: 67 | AN109: 0 | AP109: 0 | AQ109: 4111 | AR109: 4111 | AT109: 10 | AU109: 10 | AV109: 0 | AW109: 1 | AX109: 1 | AY109: 1 | AZ109: 10 | BA109: 10 | BB109: 0 | BD109: =(AT109*InputWeights!$C$6+AU109*InputWeights!$C$7) -> 10 | BE109: =(AY109*InputWeights!$C$15+AX109*InputWeights!$C$16+AW109*InputWeights!$C$17+AV109*InputWeights!$C$18) -> 0.9 | BF109: =(AZ109*InputWeights!$C$11+BA109*InputWeights!$C$10+BB109*InputWeights!$C$12) -> 8 | BG109: =(BE109*InputWeights!$C$14+BD109*InputWeights!$C$5+BF109*InputWeights!$C$9) -> 57.6 | BH109: =((_xlfn.RANK.EQ(BG109,$BG$2:$BG$6635,0))/(COUNT(BG$2:$BG$6635)))*100 -> 1.552607778 | BI109: 5
A110: 1503220440 | B110: 0322 | C110: 15 | D110: Chester | E110: 06 | F110: 1 | G110: 0440 | H110: 2063 | I110: 58000 | J110: 0 | K110: 1928 | L110: 1997 | M110: 2 | N110: 26 | O110: 62 | P110: 2 | Q110: 0 | R110: 0 | S110: 141 | T110: 3 | U110: DOWNINGTOWN PK | V110: US | W110: 322 | Y110: BRIDGE | Z110: BRIDGE | AA110: 39 | AB110: 4 | AC110: Y | AE110: 2015 | AF110: 2015 | AG110: FAIR | AH110: GOOD | AI110: 3 | AJ110: 2 | AK110: RCRS | AL110: 757 | AM110: 757 | AN110: 0 | AO110: 0 | AP110: 2 | AQ110: 15139 | AR110: 15139 | AT110: 5 | AU110: 10 | AV110: 0 | AW110: 7.5 | AX110: 2 | AY110: 4 | AZ110: 5 | BA110: 10 | BB110: 0 | BD110: =(AT110*InputWeights!$C$6+AU110*InputWeights!$C$7) -> 7.5 | BE110: =(AY110*InputWeights!$C$15+AX110*InputWeights!$C$16+AW110*InputWeights!$C$17+AV110*InputWeights!$C$18) -> 4.25 | BF110: =(AZ110*InputWeights!$C$11+BA110*InputWeights!$C$10+BB110*InputWeights!$C$12) -> 6 | BG110: =(BE110*InputWeights!$C$14+BD110*InputWeights!$C$5+BF110*InputWeights!$C$9) -> 57.5 | BH110: =((_xlfn.RANK.EQ(BG110,$BG$2:$BG$6635,0))/(COUNT(BG$2:$BG$6635)))*100 -> 1.64305095 | BI110: 5
A111: 4603200040 | B111: 0320 | C111: 46 | D111: Montgomery | E111: 06 | F111: 1 | G111: 0040 | H111: 3256 | I111: 3600 | J111: 10 | K111: 1990 | L111: 1992 | M111: 2 | N111: 26 | O111: 52 | P111: 2 | Q111: 0 | R111: 0 | S111: 260 | T111: 3 | U111: HOLSTEIN RD | V111: PA | W111: 320 | Y111: GULPH RD | Z111: SWEDELAND RD | AA111: 39 | AB111: 4 | AC111: N | AF111: 2014 | AG111: POOR | AH111: POOR | AI111: 4 | AJ111: 1 | AK111: Stakeholder Comment | AL111: 299 | AM111: 299 | AN111: 0 | AO111: 0 | AP111: 0 | AQ111: 5199 | AR111: 5199 | AT111: 5 | AU111: 10 | AV111: 10 | AW111: 2.5 | AX111: 1 | AY111: 2 | AZ111: 10 | BA111: 10 | BB111: 0 | BD111: =(AT111*InputWeights!$C$6+AU111*InputWeights!$C$7) -> 7.5 | BE111: =(AY111*InputWeights!$C$15+AX111*InputWeights!$C$16+AW111*InputWeights!$C$17+AV111*InputWeights!$C$18) -> 2.75 | BF111: =(AZ111*InputWeights!$C$11+BA111*InputWeights!$C$10+BB111*InputWeights!$C$12) -> 8 | BG111: =(BE111*InputWeights!$C$14+BD111*InputWeights!$C$5+BF111*InputWeights!$C$9) -> 57.5 | BH111: =((_xlfn.RANK.EQ(BG111,$BG$2:$BG$6635,0))/(COUNT(BG$2:$BG$6635)))*100 -> 1.64305095 | BI111: 5
A112: 4620420030 | B112: 2042 | C112: 46 | D112: Montgomery | E112: 06 | F112: 1 | G112: 0030 | H112: 1487 | I112: 460004300 | J112: 0 | K112: 1938 | L112: 1995 | M112: 2 | N112: 22 | O112: 52 | P112: 2 | Q112: 0 | R112: 0 | S112: 268 | T112: 3 | U112: DAVISVILLE RD | W112: 000 | Y112: TERWOOD RD | Z112: BRIDGE | AA112: 59 | AB112: 4 | AC112: N | AE112: 2015 | AF112: 2015 | AG112: POOR | AH112: POOR | AI112: 4 | AJ112: 1 | AK112: Stakeholder Comment | AL112: 819 | AM112: 819 | AN112: 0 | AO112: 0 | AP112: 0 | AQ112: 16082 | AR112: 16082 | AT112: 5 | AU112: 10 | AV112: 0 | AW112: 2.5 | AX112: 2 | AY112: 4 | AZ112: 10 | BA112: 10 | BB112: 0 | BD112: =(AT112*InputWeights!$C$6+AU112*InputWeights!$C$7) -> 7.5 | BE112: =(AY112*InputWeights!$C$15+AX112*InputWeights!$C$16+AW112*InputWeights!$C$17+AV112*InputWeights!$C$18) -> 2.75 | BF112: =(AZ112*InputWeights!$C$11+BA112*InputWeights!$C$10+BB112*InputWeights!$C$12) -> 8 | BG112: =(BE112*InputWeights!$C$14+BD112*InputWeights!$C$5+BF112*InputWeights!$C$9) -> 57.5 | BH112: =((_xlfn.RANK.EQ(BG112,$BG$2:$BG$6635,0))/(COUNT(BG$2:$BG$6635)))*100 -> 1.64305095 | BI112: 5
A113: 6730950020 | B113: 3095 | C113: 67 | D113: Philadelphia | E113: 06 | F113: 1 | G113: 0020 | H113: 1414 | I113: 670000800 | J113: 0 | K113: 2000 | L113: 2015 | M113: 1 | N113: 48 | O113: 62 | P113: 2 | Q113: 6 | R113: 30 | S113: 157 | T113: 3 | U113: I-95 COLLECTOR RD | W113: 000 | Y113: SEGMENT | Z113: DELAWARE EX | AB113: 4 | AC113: Y | AE113: 2016 | AF113: 2015 | AG113: FAIR | AH113: GOOD | AI113: 3 | AJ113: 2 | AK113: RCRS | AL113: 1463 | AM113: 2926 | AN113: 0 | AO113: 0 | AP113: 2 | AQ113: 18291 | AR113: 36582 | AT113: 5 | AU113: 10 | AV113: 10 | AW113: 7.5 | AX113: 4 | AY113: 8 | AZ113: 5 | BA113: 0 | BB113: 0 | BD113: =(AT113*InputWeights!$C$6+AU113*InputWeights!$C$7) -> 7.5 | BE113: =(AY113*InputWeights!$C$15+AX113*InputWeights!$C$16+AW113*InputWeights!$C$17+AV113*InputWeights!$C$18) -> 7.25 | BF113: =(AZ113*InputWeights!$C$11+BA113*InputWeights!$C$10+BB113*InputWeights!$C$12) -> 2 | BG113: =(BE113*InputWeights!$C$14+BD113*InputWeights!$C$5+BF113*InputWeights!$C$9) -> 57.5 | BH113: =((_xlfn.RANK.EQ(BG113,$BG$2:$BG$6635,0))/(COUNT(BG$2:$BG$6635)))*100 -> 1.64305095 | BI113: 5
A114: 2100110864 | B114: 0011 | C114: 21 | D114: Cumberland | E114: 08 | F114: 1 | G114: 0864 | H114: 3385 | I114: 14300 | J114: 10 | K114: 1937 | L114: 2009 | M114: 2 | N114: 42 | O114: 62 | P114: 2 | Q114: 0 | R114: 0 | S114: 123 | T114: 3 | U114: FRONT ST | V114: US | W114: 011 | Y114: STELLA ST | Z114: SEGMENT | AA114: 49 | AB114: 4 | AC114: S | AE114: 2015 | AF114: 2015 | AG114: FAIR | AH114: FAIR | AI114: 3 | AJ114: 2 | AK114: RCRS | AL114: 461 | AM114: 461 | AN114: 1 | AO114: 1.559823 | AP114: 1 | AQ114: 15459 | AR114: 15459 | AT114: 7.5 | AU114: 10 | AV114: 0 | AW114: 7.5 | AX114: 1 | AY114: 4 | AZ114: 7.5 | BA114: 0 | BB114: 10 | BD114: =(AT114*InputWeights!$C$6+AU114*InputWeights!$C$7) -> 8.75 | BE114: =(AY114*InputWeights!$C$15+AX114*InputWeights!$C$16+AW114*InputWeights!$C$17+AV114*InputWeights!$C$18) -> 4.05 | BF114: =(AZ114*InputWeights!$C$11+BA114*InputWeights!$C$10+BB114*InputWeights!$C$12) -> 5 | BG114: =(BE114*InputWeights!$C$14+BD114*InputWeights!$C$5+BF114*InputWeights!$C$9) -> 57.45 | BH114: =((_xlfn.RANK.EQ(BG114,$BG$2:$BG$6635,0))/(COUNT(BG$2:$BG$6635)))*100 -> 1.703346397 | BI114: 5
A115: 3000210350 | B115: 0021 | C115: 30 | D115: Greene | E115: 12 | F115: 1 | G115: 0350 | H115: 2720 | I115: 3600 | J115: 10 | K115: 1923 | L115: 1998 | M115: 2 | N115: 24 | O115: 62 | P115: 2 | Q115: 0 | R115: 0 | S115: 122 | T115: 3 | U115: HIGH ST | V115: PA | W115: 021 | Y115: ROY E FURMAN | Z115: CIRCLE AL | AA115: 30 | AB115: 2 | AC115: Y | AE115: 2015 | AF115: 2015 | AG115: FAIR | AH115: FAIR | AI115: 3 | AJ115: 2 | AK115: RCRS | AL115: 1450 | AM115: 1450 | AN115: 3 | AO115: 5.823529 | AP115: 1 | AQ115: 12072 | AR115: 12072 | AT115: 7.5 | AU115: 10 | AV115: 0 | AW115: 7.5 | AX115: 3 | AY115: 3 | AZ115: 7.5 | BA115: 0 | BB115: 10 | BD115: =(AT115*InputWeights!$C$6+AU115*InputWeights!$C$7) -> 8.75 | BE115: =(AY115*InputWeights!$C$15+AX115*InputWeights!$C$16+AW115*InputWeights!$C$17+AV115*InputWeights!$C$18) -> 4.05 | BF115: =(AZ115*InputWeights!$C$11+BA115*InputWeights!$C$10+BB115*InputWeights!$C$12) -> 5 | BG115: =(BE115*InputWeights!$C$14+BD115*InputWeights!$C$5+BF115*InputWeights!$C$9) -> 57.45 | BH115: =((_xlfn.RANK.EQ(BG115,$BG$2:$BG$6635,0))/(COUNT(BG$2:$BG$6635)))*100 -> 1.703346397 | BI115: 5
A116: 4900610261 | B116: 0061 | C116: 49 | D116: Northumberland | E116: 03 | F116: 1 | G116: 0261 | H116: 3026 | I116: 15900 | J116: 50 | K116: 1927 | L116: 2015 | M116: 1 | N116: 24 | O116: 62 | P116: 2 | Q116: 1 | R116: 1 | S116: 52 | T116: 3 | U116: SR 0061 SH | V116: PA | W116: 061 | Y116: SEGMENT | Z116: SEGMENT | AA116: 39 | AB116: 1 | AC116: Y | AE116: 2015 | AF116: 2015 | AG116: EXCELLENT | AH116: EXCELLENT | AI116: 3 | AJ116: 2 | AK116: RCRS | AL116: 880 | AM116: 1760 | AN116: 0 | AO116: 0 | AP116: 1 | AQ116: 6237 | AR116: 12474 | AT116: 7.5 | AU116: 10 | AV116: 0 | AW116: 7.5 | AX116: 3 | AY116: 3 | AZ116: 2.5 | BA116: 10 | BB116: 0 | BD116: =(AT116*InputWeights!$C$6+AU116*InputWeights!$C$7) -> 8.75 | BE116: =(AY116*InputWeights!$C$15+AX116*InputWeights!$C$16+AW116*InputWeights!$C$17+AV116*InputWeights!$C$18) -> 4.05 | BF116: =(AZ116*InputWeights!$C$11+BA116*InputWeights!$C$10+BB116*InputWeights!$C$12) -> 5 | BG116: =(BE116*InputWeights!$C$14+BD116*InputWeights!$C$5+BF116*InputWeights!$C$9) -> 57.45 | BH116: =((_xlfn.RANK.EQ(BG116,$BG$2:$BG$6635,0))/(COUNT(BG$2:$BG$6635)))*100 -> 1.703346397 | BI116: 5
A117: 4900610271 | B117: 0061 | C117: 49 | D117: Northumberland | E117: 03 | F117: 1 | G117: 0271 | H117: 3537 | I117: 16000 | J117: 50 | K117: 1947 | L117: 2015 | M117: 1 | N117: 23 | O117: 62 | P117: 2 | Q117: 5 | R117: 4 | S117: 50 | T117: 3 | U117: SR 0061 SH | V117: PA | W117: 061 | Y117: SEGMENT | Z117: READING TURNP | AA117: 39 | AB117: 1 | AC117: Y | AE117: 2015 | AF117: 2015 | AG117: EXCELLENT | AH117: EXCELLENT | AI117: 3 | AJ117: 2 | AK117: RCRS | AL117: 880 | AM117: 1760 | AN117: 0 | AO117: 0 | AP117: 1 | AQ117: 6237 | AR117: 12474 | AT117: 7.5 | AU117: 10 | AV117: 0 | AW117: 7.5 | AX117: 3 | AY117: 3 | AZ117: 2.5 | BA117: 10 | BB117: 0 | BD117: =(AT117*InputWeights!$C$6+AU117*InputWeights!$C$7) -> 8.75 | BE117: =(AY117*InputWeights!$C$15+AX117*InputWeights!$C$16+AW117*InputWeights!$C$17+AV117*InputWeights!$C$18) -> 4.05 | BF117: =(AZ117*InputWeights!$C$11+BA117*InputWeights!$C$10+BB117*InputWeights!$C$12) -> 5 | BG117: =(BE117*InputWeights!$C$14+BD117*InputWeights!$C$5+BF117*InputWeights!$C$9) -> 57.45 | BH117: =((_xlfn.RANK.EQ(BG117,$BG$2:$BG$6635,0))/(COUNT(BG$2:$BG$6635)))*100 -> 1.703346397 | BI117: 5
A118: 0204000350 | B118: 0400 | C118: 02 | D118: Allegheny | E118: 11 | F118: 1 | G118: 0350 | H118: 3162 | I118: 3800 | J118: 20 | K118: 1952 | L118: 2012 | M118: 2 | N118: 23 | O118: 61 | P118: 2 | Q118: 0 | R118: 0 | S118: 142 | T118: 3 | U118: SALTSBURG RD | V118: PA | W118: 380 | Y118: DRAIN LEFT | Z118: BRIDGE | AA118: 59 | AB118: 4 | AC118: Y | AE118: 2015 | AF118: 2015 | AG118: FAIR | AH118: FAIR | AI118: 3 | AJ118: 2 | AK118: RCRS | AL118: 527 | AM118: 527 | AN118: 0 | AO118: 0 | AP118: 2 | AQ118: 7525 | AR118: 7525 | AT118: 5 | AU118: 10 | AV118: 0 | AW118: 7.5 | AX118: 2 | AY118: 2 | AZ118: 7.5 | BA118: 10 | BB118: 0 | BD118: =(AT118*InputWeights!$C$6+AU118*InputWeights!$C$7) -> 7.5 | BE118: =(AY118*InputWeights!$C$15+AX118*InputWeights!$C$16+AW118*InputWeights!$C$17+AV118*InputWeights!$C$18) -> 3.45 | BF118: =(AZ118*InputWeights!$C$11+BA118*InputWeights!$C$10+BB118*InputWeights!$C$12) -> 7 | BG118: =(BE118*InputWeights!$C$14+BD118*InputWeights!$C$5+BF118*InputWeights!$C$9) -> 57.3 | BH118: =((_xlfn.RANK.EQ(BG118,$BG$2:$BG$6635,0))/(COUNT(BG$2:$BG$6635)))*100 -> 1.763641845 | BI118: 5
A119: 0430160260 | B119: 3016 | C119: 04 | D119: Beaver | E119: 11 | F119: 1 | G119: 0260 | H119: 2260 | I119: 40003400 | J119: 0 | K119: 1923 | L119: 2005 | M119: 2 | N119: 43 | O119: 62 | P119: 2 | Q119: 0 | R119: 0 | S119: 177 | T119: 3 | U119: FRANKLIN AV | W119: 000 | Y119: WAUGAMAN ST | Z119: SPRING ST | AA119: 29 | AB119: 4 | AC119: N | AE119: 2015 | AF119: 2015 | AG119: FAIR | AH119: FAIR | AI119: 4 | AJ119: 2 | AK119: RCRS | AL119: 589 | AM119: 589 | AN119: 1 | AO119: 2.336283 | AP119: 2 | AQ119: 8409 | AR119: 8409 | AT119: 5 | AU119: 10 | AV119: 0 | AW119: 2.5 | AX119: 2 | AY119: 2 | AZ119: 7.5 | BA119: 10 | BB119: 10 | BD119: =(AT119*InputWeights!$C$6+AU119*InputWeights!$C$7) -> 7.5 | BE119: =(AY119*InputWeights!$C$15+AX119*InputWeights!$C$16+AW119*InputWeights!$C$17+AV119*InputWeights!$C$18) -> 1.95 | BF119: =(AZ119*InputWeights!$C$11+BA119*InputWeights!$C$10+BB119*InputWeights!$C$12) -> 9 | BG119: =(BE119*InputWeights!$C$14+BD119*InputWeights!$C$5+BF119*InputWeights!$C$9) -> 57.3 | BH119: =((_xlfn.RANK.EQ(BG119,$BG$2:$BG$6635,0))/(COUNT(BG$2:$BG$6635)))*100 -> 1.763641845 | BI119: 5
A120: 6700010291 | B120: 0001 | C120: 67 | D120: Philadelphia | E120: 06 | F120: 1 | G120: 0291 | H120: 3487 | I120: 13100 | J120: 10 | K120: 1964 | L120: 2014 | M120: 1 | N120: 38 | O120: 62 | P120: 3 | Q120: 5 | R120: 3 | S120: 108 | T120: 3 | U120: ROOSEVELT BL | V120: US | W120: 001 | Y120: STRAHLE ST | Z120: WOODWARD ST | AA120: 39 | AB120: 4 | AC120: Y | AE120: 2015 | AF120: 2015 | AG120: GOOD | AH120: GOOD | AI120: 3 | AJ120: 2 | AK120: RCRS | AL120: 504 | AM120: 1008 | AN120: 0 | AO120: 0 | AP120: 4 | AQ120: 16805 | AR120: 33610 | AT120: 1 | AU120: 10 | AV120: 0 | AW120: 7.5 | AX120: 3 | AY120: 7 | AZ120: 5 | BA120: 10 | BB120: 0 | BD120: =(AT120*InputWeights!$C$6+AU120*InputWeights!$C$7) -> 5.5 | BE120: =(AY120*InputWeights!$C$15+AX120*InputWeights!$C$16+AW120*InputWeights!$C$17+AV120*InputWeights!$C$18) -> 5.65 | BF120: =(AZ120*InputWeights!$C$11+BA120*InputWeights!$C$10+BB120*InputWeights!$C$12) -> 6 | BG120: =(BE120*InputWeights!$C$14+BD120*InputWeights!$C$5+BF120*InputWeights!$C$9) -> 57.1 | BH120: =((_xlfn.RANK.EQ(BG120,$BG$2:$BG$6635,0))/(COUNT(BG$2:$BG$6635)))*100 -> 1.793789569 | BI120: 5
A121: 6720010091 | B121: 2001 | C121: 67 | D121: Philadelphia | E121: 06 | F121: 1 | G121: 0091 | H121: 2391 | I121: 670066900 | J121: 0 | K121: 1921 | L121: 2003 | M121: 1 | N121: 42 | O121: 62 | P121: 3 | Q121: 1 | R121: 1 | S121: 149 | T121: 3 | U121: CHRISTOPHER COLUMBUS BL | W121: 000 | Y121: RAMP DELAWARE | Z121: O/P CHESTNUT | AA121: 49 | AB121: 4 | AC121: Y | AE121: 2015 | AF121: 2015 | AG121: FAIR | AH121: FAIR | AI121: 3 | AJ121: 2 | AK121: RCRS | AL121: 936 | AM121: 1872 | AN121: 0 | AO121: 0 | AP121: 1 | AQ121: 9465 | AR121: 18930 | AT121: 7.5 | AU121: 10 | AV121: 10 | AW121: 7.5 | AX121: 3 | AY121: 4 | AZ121: 7.5 | BA121: 0 | BB121: 0 | BD121: =(AT121*InputWeights!$C$6+AU121*InputWeights!$C$7) -> 8.75 | BE121: =(AY121*InputWeights!$C$15+AX121*InputWeights!$C$16+AW121*InputWeights!$C$17+AV121*InputWeights!$C$18) -> 5.45 | BF121: =(AZ121*InputWeights!$C$11+BA121*InputWeights!$C$10+BB121*InputWeights!$C$12) -> 3 | BG121: =(BE121*InputWeights!$C$14+BD121*InputWeights!$C$5+BF121*InputWeights!$C$9) -> 57.05 | BH121: =((_xlfn.RANK.EQ(BG121,$BG$2:$BG$6635,0))/(COUNT(BG$2:$BG$6635)))*100 -> 1.808863431 | BI121: 5
A122: 6730070080 | B122: 3007 | C122: 67 | D122: Philadelphia | E122: 06 | F122: 1 | G122: 0080 | H122: 3984 | I122: 670059400 | J122: 0 | K122: 1957 | L122: 2008 | M122: 1 | N122: 42 | O122: 61 | P122: 2 | Q122: 1 | R122: 2 | S122: 153 | T122: 3 | U122: KELLY DR | W122: 000 | Y122: SEGMENT | Z122: FOUNTAIN GREE | AA122: 39 | AB122: 4 | AC122: Y | AD122: EAST RIVER DR | AE122: 2015 | AF122: 2015 | AG122: FAIR | AH122: FAIR | AI122: 3 | AJ122: 2 | AK122: RCRS | AL122: 79 | AM122: 158 | AN122: 0 | AO122: 0 | AP122: 4 | AQ122: 13615 | AR122: 27230 | AT122: 1 | AU122: 10 | AV122: 0 | AW122: 7.5 | AX122: 1 | AY122: 6 | AZ122: 7.5 | BA122: 10 | BB122: 0 | BD122: =(AT122*InputWeights!$C$6+AU122*InputWeights!$C$7) -> 5.5 | BE122: =(AY122*InputWeights!$C$15+AX122*InputWeights!$C$16+AW122*InputWeights!$C$17+AV122*InputWeights!$C$18) -> 4.85 | BF122: =(AZ122*InputWeights!$C$11+BA122*InputWeights!$C$10+BB122*InputWeights!$C$12) -> 7 | BG122: =(BE122*InputWeights!$C$14+BD122*InputWeights!$C$5+BF122*InputWeights!$C$9) -> 56.9 | BH122: =((_xlfn.RANK.EQ(BG122,$BG$2:$BG$6635,0))/(COUNT(BG$2:$BG$6635)))*100 -> 1.823937293 | BI122: 5
A123: 2202300040 | B123: 0230 | C123: 22 | D123: Dauphin | E123: 08 | F123: 1 | G123: 0040 | H123: 2894 | I123: 400 | J123: 0 | K123: 1986 | L123: 1986 | M123: 1 | N123: 23 | O123: 72 | P123: 2 | Q123: 1 | R123: 1 | S123: 231 | T123: 3 | U123: CAMERON ST | V123: PA | W123: 230 | Y123: THIRTEENTH ST | Z123: KITTATINY ST | AA123: 19 | AB123: 4 | AC123: 4 | AE123: 2015 | AF123: 2015 | AG123: POOR | AH123: FAIR | AI123: 3 | AJ123: 2 | AK123: RCRS | AL123: 849 | AM123: 1698 | AN123: 1 | AO123: 1.824464 | AP123: 2 | AQ123: 11372 | AR123: 22744 | AT123: 5 | AU123: 10 | AV123: 0 | AW123: 7.5 | AX123: 3 | AY123: 5 | AZ123: 7.5 | BA123: 0 | BB123: 10 | BD123: =(AT123*InputWeights!$C$6+AU123*InputWeights!$C$7) -> 7.5 | BE123: =(AY123*InputWeights!$C$15+AX123*InputWeights!$C$16+AW123*InputWeights!$C$17+AV123*InputWeights!$C$18) -> 4.85 | BF123: =(AZ123*InputWeights!$C$11+BA123*InputWeights!$C$10+BB123*InputWeights!$C$12) -> 5 | BG123: =(BE123*InputWeights!$C$14+BD123*InputWeights!$C$5+BF123*InputWeights!$C$9) -> 56.9 | BH123: =((_xlfn.RANK.EQ(BG123,$BG$2:$BG$6635,0))/(COUNT(BG$2:$BG$6635)))*100 -> 1.839011155 | BI123: 5
A124: 2202300050 | B124: 0230 | C124: 22 | D124: Dauphin | E124: 08 | F124: 1 | G124: 0050 | H124: 1897 | I124: 500 | J124: 0 | K124: 1986 | L124: 1986 | M124: 1 | N124: 23 | O124: 72 | P124: 2 | Q124: 1 | R124: 1 | S124: 238 | T124: 3 | U124: CAMERON ST | V124: PA | W124: 230 | Y124: KITTATINY ST | Z124: PAXTON ST | AA124: 19 | AB124: 4 | AC124: 4 | AE124: 2015 | AF124: 2015 | AG124: POOR | AH124: FAIR | AI124: 3 | AJ124: 2 | AK124: RCRS | AL124: 849 | AM124: 1698 | AN124: 2 | AO124: 5.566684 | AP124: 2 | AQ124: 11372 | AR124: 22744 | AT124: 5 | AU124: 10 | AV124: 0 | AW124: 7.5 | AX124: 3 | AY124: 5 | AZ124: 7.5 | BA124: 0 | BB124: 10 | BD124: =(AT124*InputWeights!$C$6+AU124*InputWeights!$C$7) -> 7.5 | BE124: =(AY124*InputWeights!$C$15+AX124*InputWeights!$C$16+AW124*InputWeights!$C$17+AV124*InputWeights!$C$18) -> 4.85 | BF124: =(AZ124*InputWeights!$C$11+BA124*InputWeights!$C$10+BB124*InputWeights!$C$12) -> 5 | BG124: =(BE124*InputWeights!$C$14+BD124*InputWeights!$C$5+BF124*InputWeights!$C$9) -> 56.9 | BH124: =((_xlfn.RANK.EQ(BG124,$BG$2:$BG$6635,0))/(COUNT(BG$2:$BG$6635)))*100 -> 1.839011155 | BI124: 5
A125: 4820260091 | B125: 2026 | C125: 48 | D125: Northampton | E125: 05 | F125: 1 | G125: 0091 | H125: 563 | I125: 480014900 | J125: 0 | K125: 1975 | L125: 2012 | M125: 1 | N125: 25 | O125: 62 | P125: 2 | Q125: 1 | R125: 1 | S125: 210 | T125: 3 | U125: WASHINGTON ST | W125: 000 | Y125: FOURTH ST | Z125: SMITH AVENUE | AA125: 29 | AB125: 4 | AC125: N | AE125: 2015 | AF125: 2015 | AG125: POOR | AH125: GOOD | AI125: 4 | AJ125: 2 | AK125: RCRS | AL125: 133 | AM125: 266 | AN125: 0 | AO125: 0 | AP125: 1 | AQ125: 6444 | AR125: 12888 | AT125: 7.5 | AU125: 10 | AV125: 10 | AW125: 2.5 | AX125: 1 | AY125: 3 | AZ125: 5 | BA125: 10 | BB125: 0 | BD125: =(AT125*InputWeights!$C$6+AU125*InputWeights!$C$7) -> 8.75 | BE125: =(AY125*InputWeights!$C$15+AX125*InputWeights!$C$16+AW125*InputWeights!$C$17+AV125*InputWeights!$C$18) -> 3.15 | BF125: =(AZ125*InputWeights!$C$11+BA125*InputWeights!$C$10+BB125*InputWeights!$C$12) -> 6 | BG125: =(BE125*InputWeights!$C$14+BD125*InputWeights!$C$5+BF125*InputWeights!$C$9) -> 56.85 | BH125: =((_xlfn.RANK.EQ(BG125,$BG$2:$BG$6635,0))/(COUNT(BG$2:$BG$6635)))*100 -> 1.869158879 | BI125: 5
A126: 4805120070 | B126: 0512 | C126: 48 | D126: Northampton | E126: 05 | F126: 1 | G126: 0070 | H126: 2537 | I126: 800 | J126: 0 | K126: 1900 | L126: 1987 | M126: 2 | N126: 24 | O126: 62 | P126: 2 | Q126: 0 | R126: 0 | S126: 208 | T126: 3 | U126: BETH BATH PK | V126: PA | W126: 512 | Y126: RAILROAD XING | Z126: SCHOOL RD | AA126: 39 | AB126: 1 | AC126: N | AE126: 2015 | AF126: 2015 | AG126: POOR | AH126: FAIR | AI126: 4 | AJ126: 3 | AK126: RCRS | AL126: 891 | AM126: 891 | AN126: 0 | AO126: 0 | AP126: 1 | AQ126: 12735 | AR126: 12735 | AT126: 7.5 | AU126: 10 | AV126: 0 | AW126: 2.5 | AX126: 2 | AY126: 3 | AZ126: 7.5 | BA126: 10 | BB126: 0 | BD126: =(AT126*InputWeights!$C$6+AU126*InputWeights!$C$7) -> 8.75 | BE126: =(AY126*InputWeights!$C$15+AX126*InputWeights!$C$16+AW126*InputWeights!$C$17+AV126*InputWeights!$C$18) -> 2.35 | BF126: =(AZ126*InputWeights!$C$11+BA126*InputWeights!$C$10+BB126*InputWeights!$C$12) -> 7 | BG126: =(BE126*InputWeights!$C$14+BD126*InputWeights!$C$5+BF126*InputWeights!$C$9) -> 56.65 | BH126: =((_xlfn.RANK.EQ(BG126,$BG$2:$BG$6635,0))/(COUNT(BG$2:$BG$6635)))*100 -> 1.88423274 | BI126: 5
A127: 4900610251 | B127: 0061 | C127: 49 | D127: Northumberland | E127: 03 | F127: 1 | G127: 0251 | H127: 2114 | I127: 15800 | J127: 50 | K127: 1927 | L127: 2015 | M127: 1 | N127: 24 | O127: 62 | P127: 2 | Q127: 1 | R127: 1 | S127: 48 | T127: 3 | U127: SR 0061 SH | V127: PA | W127: 061 | Y127: BRIDGE | Z127: SEGMENT | AA127: 39 | AB127: 1 | AC127: Y | AE127: 2015 | AF127: 2015 | AG127: EXCELLENT | AH127: EXCELLENT | AI127: 3 | AJ127: 2 | AK127: RCRS | AL127: 444 | AM127: 888 | AN127: 0 | AO127: 0 | AP127: 1 | AQ127: 5960 | AR127: 11920 | AT127: 7.5 | AU127: 10 | AV127: 0 | AW127: 7.5 | AX127: 2 | AY127: 3 | AZ127: 2.5 | BA127: 10 | BB127: 0 | BD127: =(AT127*InputWeights!$C$6+AU127*InputWeights!$C$7) -> 8.75 | BE127: =(AY127*InputWeights!$C$15+AX127*InputWeights!$C$16+AW127*InputWeights!$C$17+AV127*InputWeights!$C$18) -> 3.85 | BF127: =(AZ127*InputWeights!$C$11+BA127*InputWeights!$C$10+BB127*InputWeights!$C$12) -> 5 | BG127: =(BE127*InputWeights!$C$14+BD127*InputWeights!$C$5+BF127*InputWeights!$C$9) -> 56.65 | BH127: =((_xlfn.RANK.EQ(BG127,$BG$2:$BG$6635,0))/(COUNT(BG$2:$BG$6635)))*100 -> 1.88423274 | BI127: 5
A128: 5300810991 | B128: 0081 | C128: 53 | D128: Schuylkill | E128: 05 | F128: 1 | G128: 0991 | H128: 2685 | I128: 20000 | J128: 0 | K128: 1968 | L128: 1998 | M128: 1 | N128: 24 | O128: 62 | P128: 2 | Q128: 7 | R128: 120 | S128: 117 | T128: 1 | U128: AMERICAN LEGION MEM HW | V128: I | W128: 081 | Y128: SEGMENT | Z128: SEGMENT | AA128: 59 | AB128: 1 | AC128: Y | AE128: 2015 | AF128: 2016 | AG128: FAIR | AH128: GOOD | AI128: 1 | AJ128: 1 | AK128: Stakeholder Comment | AL128: 4158 | AM128: 8316 | AN128: 0 | AO128: 0 | AP128: 0 | AQ128: 12002 | AR128: 24004 | AT128: 5 | AU128: 10 | AV128: 0 | AW128: 10 | AX128: 10 | AY128: 5 | AZ128: 5 | BA128: 0 | BB128: 0 | BD128: =(AT128*InputWeights!$C$6+AU128*InputWeights!$C$7) -> 7.5 | BE128: =(AY128*InputWeights!$C$15+AX128*InputWeights!$C$16+AW128*InputWeights!$C$17+AV128*InputWeights!$C$18) -> 7 | BF128: =(AZ128*InputWeights!$C$11+BA128*InputWeights!$C$10+BB128*InputWeights!$C$12) -> 2 | BG128: =(BE128*InputWeights!$C$14+BD128*InputWeights!$C$5+BF128*InputWeights!$C$9) -> 56.5 | BH128: =((_xlfn.RANK.EQ(BG128,$BG$2:$BG$6635,0))/(COUNT(BG$2:$BG$6635)))*100 -> 1.914380464 | BI128: 5
A129: 2402190030 | B129: 0219 | C129: 24 | D129: Elk | E129: 02 | F129: 1 | G129: 0030 | H129: 2895 | I129: 31600 | J129: 0 | K129: 1925 | L129: 2010 | M129: 2 | N129: 22 | O129: 61 | P129: 2 | Q129: 0 | R129: 0 | S129: 77 | T129: 3 | U129: BUFFALO PITTSBURGH HW | V129: US | W129: 219 | Y129: SEGMENT | Z129: SEGMENT | AA129: 59 | AB129: 1 | AC129: Y | AE129: 2015 | AF129: 2015 | AG129: GOOD | AH129: GOOD | AI129: 3 | AJ129: 2 | AK129: RCRS | AL129: 638 | AM129: 638 | AN129: 0 | AO129: 0 | AP129: 1 | AQ129: 4810 | AR129: 4810 | AT129: 7.5 | AU129: 10 | AV129: 0 | AW129: 7.5 | AX129: 2 | AY129: 1 | AZ129: 5 | BA129: 10 | BB129: 0 | BD129: =(AT129*InputWeights!$C$6+AU129*InputWeights!$C$7) -> 8.75 | BE129: =(AY129*InputWeights!$C$15+AX129*InputWeights!$C$16+AW129*InputWeights!$C$17+AV129*InputWeights!$C$18) -> 3.05 | BF129: =(AZ129*InputWeights!$C$11+BA129*InputWeights!$C$10+BB129*InputWeights!$C$12) -> 6 | BG129: =(BE129*InputWeights!$C$14+BD129*InputWeights!$C$5+BF129*InputWeights!$C$9) -> 56.45 | BH129: =((_xlfn.RANK.EQ(BG129,$BG$2:$BG$6635,0))/(COUNT(BG$2:$BG$6635)))*100 -> 1.929454326 | BI129: 5
A130: 4140010130 | B130: 4001 | C130: 41 | D130: Lycoming | E130: 03 | F130: 1 | G130: 0130 | H130: 2540 | I130: 410037100 | J130: 0 | K130: 1968 | L130: 2015 | M130: 2 | N130: 18 | O130: 52 | P130: 2 | Q130: 0 | R130: 0 | S130: 470 | T130: 3 | U130: LITTLE PINE CREEK RD | W130: 000 | Y130: SEGMENT | Z130: SEGMENT | AA130: 29 | AB130: 1 | AC130: N | AE130: 2015 | AF130: 2015 | AG130: POOR | AH130: FAIR | AI130: 5 | AJ130: 2 | AK130: RCRS | AL130: 5 | AM130: 5 | AN130: 0 | AO130: 0 | AP130: 0 | AQ130: 182 | AR130: 182 | AT130: 10 | AU130: 10 | AV130: 0 | AW130: =IF(AI130=1,10,IF(AI130=2,7.5,IF(AI130=3,7.5,IF(AI130=4,2.5,IF(AI130=5,2.5,IF(AI130=6,2.5,IF(AI130=7,1,5))))))) -> 2.5 | AX130: =IF(AM130<500, 1, IF(AM130<1000, 2, IF(AM130<2000, 3, IF(AM130<3000, 4,IF(AM130<4000, 5, IF(AM130<5000, 6,IF(AM130<6000,7,IF(AM130<7000,8, IF(AM130<8000,9,10))))))))) -> 1 | AY130: 1 | AZ130: 7.5 | BA130: 10 | BB130: 0 | BD130: =(AT130*InputWeights!$C$6+AU130*InputWeights!$C$7) -> 10 | BE130: =(AY130*InputWeights!$C$15+AX130*InputWeights!$C$16+AW130*InputWeights!$C$17+AV130*InputWeights!$C$18) -> 1.35 | BF130: =(AZ130*InputWeights!$C$11+BA130*InputWeights!$C$10+BB130*InputWeights!$C$12) -> 7 | BG130: =(BE130*InputWeights!$C$14+BD130*InputWeights!$C$5+BF130*InputWeights!$C$9) -> 56.4 | BH130: =((_xlfn.RANK.EQ(BG130,$BG$2:$BG$6635,0))/(COUNT(BG$2:$BG$6635)))*100 -> 1.944528188 | BI130: =IF(BH130<1,1,IF(BH130<5,5,IF(BH130<10,10,IF(BH130<15,15,IF(BH130<20,20,IF(BH130<25,25,0)))))) -> 5
A131: 5702670250 | B131: 0267 | C131: 57 | D131: Susquehanna | E131: 04 | F131: 1 | G131: 0250 | H131: 2210 | I131: 3200 | J131: 0 | K131: 1900 | L131: 2014 | M131: 2 | N131: 20 | O131: 62 | P131: 2 | Q131: 0 | R131: 0 | S131: 98 | T131: 3 | U131: SR 0267 SH | V131: PA | W131: 267 | Y131: BUNNELL RD | Z131: BRIDGE | AA131: 59 | AB131: 1 | AC131: N | AE131: 2015 | AF131: 2015 | AG131: EXCELLENT | AH131: EXCELLENT | AI131: 4 | AJ131: 2 | AK131: RCRS | AL131: 337 | AM131: 337 | AN131: 1 | AO131: 2.38914 | AP131: 0 | AQ131: 1553 | AR131: 1553 | AT131: 10 | AU131: 10 | AV131: 0 | AW131: 2.5 | AX131: 1 | AY131: 1 | AZ131: 2.5 | BA131: 10 | BB131: 10 | BD131: =(AT131*InputWeights!$C$6+AU131*InputWeights!$C$7) -> 10 | BE131: =(AY131*InputWeights!$C$15+AX131*InputWeights!$C$16+AW131*InputWeights!$C$17+AV131*InputWeights!$C$18) -> 1.35 | BF131: =(AZ131*InputWeights!$C$11+BA131*InputWeights!$C$10+BB131*InputWeights!$C$12) -> 7 | BG131: =(BE131*InputWeights!$C$14+BD131*InputWeights!$C$5+BF131*InputWeights!$C$9) -> 56.4 | BH131: =((_xlfn.RANK.EQ(BG131,$BG$2:$BG$6635,0))/(COUNT(BG$2:$BG$6635)))*100 -> 1.944528188 | BI131: 5
A132: 6402590060 | B132: 0259 | C132: 64 | D132: Westmoreland | E132: 12 | F132: 1 | G132: 0060 | H132: 1877 | I132: 600 | J132: 0 | K132: 1961 | L132: 2005 | M132: 2 | N132: 19 | O132: 52 | P132: 2 | Q132: 0 | R132: 0 | S132: 251 | T132: 3 | U132: COAL PIT RD | V132: PA | W132: 259 | Y132: DRAIN LEFT | Z132: BRIDGE | AA132: 70 | AB132: 1 | AC132: N | AE132: 2015 | AF132: 2015 | AG132: POOR | AH132: FAIR | AI132: 6 | AJ132: 2 | AK132: RCRS | AL132: 45 | AM132: 45 | AN132: 0 | AO132: 0 | AP132: 0 | AQ132: 563 | AR132: 563 | AT132: 10 | AU132: 10 | AV132: 0 | AW132: 2.5 | AX132: 1 | AY132: 1 | AZ132: 7.5 | BA132: 10 | BB132: 0 | BD132: =(AT132*InputWeights!$C$6+AU132*InputWeights!$C$7) -> 10 | BE132: =(AY132*InputWeights!$C$15+AX132*InputWeights!$C$16+AW132*InputWeights!$C$17+AV132*InputWeights!$C$18) -> 1.35 | BF132: =(AZ132*InputWeights!$C$11+BA132*InputWeights!$C$10+BB132*InputWeights!$C$12) -> 7 | BG132: =(BE132*InputWeights!$C$14+BD132*InputWeights!$C$5+BF132*InputWeights!$C$9) -> 56.4 | BH132: =((_xlfn.RANK.EQ(BG132,$BG$2:$BG$6635,0))/(COUNT(BG$2:$BG$6635)))*100 -> 1.944528188 | BI132: 5
A133: 4502090291 | B133: 0209 | C133: 45 | D133: Monroe | E133: 05 | F133: 1 | G133: 0291 | H133: 2576 | I133: 22100 | J133: 10 | K133: 1963 | L133: 2011 | M133: 1 | N133: 24 | O133: 61 | P133: 2 | Q133: 2 | R133: 20 | S133: 56 | T133: 1 | U133: HAMILTON WEST | V133: US | W133: 209 | Y133: BRIDGE | Z133: SEGMENT | AA133: 29 | AB133: 3 | AC133: Y | AE133: 2015 | AF133: 2015 | AG133: EXCELLENT | AH133: EXCELLENT | AI133: 2 | AJ133: 1 | AK133: Stakeholder Comment | AL133: 2375 | AM133: 4750 | AN133: 0 | AO133: 0 | AP133: 0 | AQ133: 19090 | AR133: 38180 | AT133: 5 | AU133: 10 | AV133: 10 | AW133: 7.5 | AX133: 6 | AY133: 8 | AZ133: 2.5 | BA133: 0 | BB133: 0 | BD133: =(AT133*InputWeights!$C$6+AU133*InputWeights!$C$7) -> 7.5 | BE133: =(AY133*InputWeights!$C$15+AX133*InputWeights!$C$16+AW133*InputWeights!$C$17+AV133*InputWeights!$C$18) -> 7.65 | BF133: =(AZ133*InputWeights!$C$11+BA133*InputWeights!$C$10+BB133*InputWeights!$C$12) -> 1 | BG133: =(BE133*InputWeights!$C$14+BD133*InputWeights!$C$5+BF133*InputWeights!$C$9) -> 56.1 | BH133: =((_xlfn.RANK.EQ(BG133,$BG$2:$BG$6635,0))/(COUNT(BG$2:$BG$6635)))*100 -> 1.989749774 | BI133: 5
A134: 4520120220 | B134: 2012 | C134: 45 | D134: Monroe | E134: 05 | F134: 1 | G134: 0220 | H134: 1336 | I134: 450031400 | J134: 0 | K134: 1943 | L134: 2014 | M134: 2 | N134: 50 | O134: 61 | P134: 2 | Q134: 0 | R134: 0 | S134: 337 | T134: 3 | U134: MAIN ST | V134: US | W134: 209 | X134: B | Y134: DREHER AV | Z134: SEGMENT | AA134: 29 | AB134: 3 | AC134: Y | AE134: 2015 | AF134: 2015 | AG134: POOR | AH134: FAIR | AI134: 3 | AJ134: 2 | AK134: RCRS | AL134: 387 | AM134: 387 | AN134: 0 | AO134: 0 | AP134: 4 | AQ134: 12888 | AR134: 12888 | AT134: 1 | AU134: 10 | AV134: 10 | AW134: 7.5 | AX134: 1 | AY134: 3 | AZ134: 7.5 | BA134: 10 | BB134: 0 | BD134: =(AT134*InputWeights!$C$6+AU134*InputWeights!$C$7) -> 5.5 | BE134: =(AY134*InputWeights!$C$15+AX134*InputWeights!$C$16+AW134*InputWeights!$C$17+AV134*InputWeights!$C$18) -> 4.65 | BF134: =(AZ134*InputWeights!$C$11+BA134*InputWeights!$C$10+BB134*InputWeights!$C$12) -> 7 | BG134: =(BE134*InputWeights!$C$14+BD134*InputWeights!$C$5+BF134*InputWeights!$C$9) -> 56.1 | BH134: =((_xlfn.RANK.EQ(BG134,$BG$2:$BG$6635,0))/(COUNT(BG$2:$BG$6635)))*100 -> 1.989749774 | BI134: 5
A135: 4820260090 | B135: 2026 | C135: 48 | D135: Northampton | E135: 05 | F135: 1 | G135: 0090 | H135: 528 | I135: 480014900 | J135: 0 | K135: 1975 | L135: 2012 | M135: 1 | N135: 25 | O135: 62 | P135: 2 | Q135: 1 | R135: 1 | S135: 257 | T135: 3 | U135: LARRY HOLMES DR | W135: 000 | Y135: WASHINGTON ST | Z135: SMITH AVENUE | AA135: 29 | AB135: 4 | AC135: N | AF135: 2011 | AG135: POOR | AH135: FAIR | AI135: 4 | AJ135: 2 | AK135: RCRS | AL135: 136 | AM135: 272 | AN135: 0 | AO135: 0 | AP135: 2 | AQ135: 6139 | AR135: 12278 | AT135: 5 | AU135: 10 | AV135: 10 | AW135: 2.5 | AX135: 1 | AY135: 3 | AZ135: 7.5 | BA135: 10 | BB135: 0 | BD135: =(AT135*InputWeights!$C$6+AU135*InputWeights!$C$7) -> 7.5 | BE135: =(AY135*InputWeights!$C$15+AX135*InputWeights!$C$16+AW135*InputWeights!$C$17+AV135*InputWeights!$C$18) -> 3.15 | BF135: =(AZ135*InputWeights!$C$11+BA135*InputWeights!$C$10+BB135*InputWeights!$C$12) -> 7 | BG135: =(BE135*InputWeights!$C$14+BD135*InputWeights!$C$5+BF135*InputWeights!$C$9) -> 56.1 | BH135: =((_xlfn.RANK.EQ(BG135,$BG$2:$BG$6635,0))/(COUNT(BG$2:$BG$6635)))*100 -> 1.989749774 | BI135: 5
A136: 0900320060 | B136: 0032 | C136: 09 | D136: Bucks | E136: 06 | F136: 1 | G136: 0060 | H136: 3214 | I136: 600 | J136: 0 | K136: 1937 | L136: 1999 | M136: 2 | N136: 30 | O136: 52 | P136: 2 | Q136: 0 | R136: 0 | S136: 227 | T136: 3 | U136: DELMORR AV | V136: PA | W136: 032 | Y136: FRANKLIN ST | Z136: FERRY RD | AA136: 59 | AB136: 4 | AC136: Y | AE136: 2015 | AF136: 2015 | AG136: POOR | AH136: POOR | AI136: 3 | AJ136: 2 | AK136: RCRS | AL136: 105 | AM136: 105 | AN136: 0 | AO136: 0 | AP136: 4 | AQ136: 4632 | AR136: 4632 | AT136: 1 | AU136: 10 | AV136: 10 | AW136: 7.5 | AX136: 1 | AY136: 1 | AZ136: 10 | BA136: 10 | BB136: 0 | BD136: =(AT136*InputWeights!$C$6+AU136*InputWeights!$C$7) -> 5.5 | BE136: =(AY136*InputWeights!$C$15+AX136*InputWeights!$C$16+AW136*InputWeights!$C$17+AV136*InputWeights!$C$18) -> 3.85 | BF136: =(AZ136*InputWeights!$C$11+BA136*InputWeights!$C$10+BB136*InputWeights!$C$12) -> 8 | BG136: =(BE136*InputWeights!$C$14+BD136*InputWeights!$C$5+BF136*InputWeights!$C$9) -> 55.9 | BH136: =((_xlfn.RANK.EQ(BG136,$BG$2:$BG$6635,0))/(COUNT(BG$2:$BG$6635)))*100 -> 2.03497136 | BI136: 5
A137: 0903130052 | B137: 0313 | C137: 09 | D137: Bucks | E137: 06 | F137: 1 | G137: 0052 | H137: 1831 | I137: 500 | J137: 0 | K137: 1964 | L137: 2006 | M137: 2 | N137: 34 | O137: 52 | P137: 2 | Q137: 0 | R137: 0 | S137: 245 | T137: 3 | U137: WEST BROAD ST | V137: PA | W137: 313 | Y137: HELLERTOWN AV | Z137: FRANKLIN ST | AA137: 49 | AB137: 4 | AC137: Y | AE137: 2015 | AF137: 2015 | AG137: POOR | AH137: POOR | AI137: 3 | AJ137: 2 | AK137: RCRS | AL137: 670 | AM137: 670 | AN137: 0 | AO137: 0 | AP137: 4 | AQ137: 13395 | AR137: 13395 | AT137: 1 | AU137: 10 | AV137: 0 | AW137: 7.5 | AX137: 2 | AY137: 3 | AZ137: 10 | BA137: 10 | BB137: 0 | BD137: =(AT137*InputWeights!$C$6+AU137*InputWeights!$C$7) -> 5.5 | BE137: =(AY137*InputWeights!$C$15+AX137*InputWeights!$C$16+AW137*InputWeights!$C$17+AV137*InputWeights!$C$18) -> 3.85 | BF137: =(AZ137*InputWeights!$C$11+BA137*InputWeights!$C$10+BB137*InputWeights!$C$12) -> 8 | BG137: =(BE137*InputWeights!$C$14+BD137*InputWeights!$C$5+BF137*InputWeights!$C$9) -> 55.9 | BH137: =((_xlfn.RANK.EQ(BG137,$BG$2:$BG$6635,0))/(COUNT(BG$2:$BG$6635)))*100 -> 2.03497136 | BI137: 5
A138: 0903130062 | B138: 0313 | C138: 09 | D138: Bucks | E138: 06 | F138: 1 | G138: 0062 | H138: 1654 | I138: 600 | J138: 0 | K138: 1964 | L138: 2006 | M138: 2 | N138: 34 | O138: 52 | P138: 2 | Q138: 0 | R138: 0 | S138: 321 | T138: 3 | U138: BROAD ST | V138: PA | W138: 313 | Y138: FRANKLIN ST | Z138: CHESTNUT ST | AA138: 49 | AB138: 4 | AC138: Y | AD138: WEST BROAD ST | AE138: 2015 | AF138: 2015 | AG138: POOR | AH138: POOR | AI138: 3 | AJ138: 2 | AK138: RCRS | AL138: 670 | AM138: 670 | AN138: 0 | AO138: 0 | AP138: 4 | AQ138: 13395 | AR138: 13395 | AT138: 1 | AU138: 10 | AV138: 0 | AW138: 7.5 | AX138: 2 | AY138: 3 | AZ138: 10 | BA138: 10 | BB138: 0 | BD138: =(AT138*InputWeights!$C$6+AU138*InputWeights!$C$7) -> 5.5 | BE138: =(AY138*InputWeights!$C$15+AX138*InputWeights!$C$16+AW138*InputWeights!$C$17+AV138*InputWeights!$C$18) -> 3.85 | BF138: =(AZ138*InputWeights!$C$11+BA138*InputWeights!$C$10+BB138*InputWeights!$C$12) -> 8 | BG138: =(BE138*InputWeights!$C$14+BD138*InputWeights!$C$5+BF138*InputWeights!$C$9) -> 55.9 | BH138: =((_xlfn.RANK.EQ(BG138,$BG$2:$BG$6635,0))/(COUNT(BG$2:$BG$6635)))*100 -> 2.03497136 | BI138: 5
A139: 1503220430 | B139: 0322 | C139: 15 | D139: Chester | E139: 06 | F139: 1 | G139: 0430 | H139: 2798 | I139: 57900 | J139: 0 | K139: 1928 | L139: 2007 | M139: 2 | N139: 26 | O139: 62 | P139: 2 | Q139: 0 | R139: 0 | S139: 104 | T139: 3 | U139: DOWNINGTOWN PK | V139: US | W139: 322 | Y139: CRAWFORD LN | Z139: BRIDGE | AA139: 39 | AB139: 4 | AC139: Y | AE139: 2015 | AF139: 2015 | AG139: GOOD | AH139: GOOD | AI139: 3 | AJ139: 2 | AK139: RCRS | AL139: 690 | AM139: 690 | AN139: 0 | AO139: 0 | AP139: 2 | AQ139: 13804 | AR139: 13804 | AT139: 5 | AU139: 10 | AV139: 0 | AW139: 7.5 | AX139: 2 | AY139: 3 | AZ139: 5 | BA139: 10 | BB139: 0 | BD139: =(AT139*InputWeights!$C$6+AU139*InputWeights!$C$7) -> 7.5 | BE139: =(AY139*InputWeights!$C$15+AX139*InputWeights!$C$16+AW139*InputWeights!$C$17+AV139*InputWeights!$C$18) -> 3.85 | BF139: =(AZ139*InputWeights!$C$11+BA139*InputWeights!$C$10+BB139*InputWeights!$C$12) -> 6 | BG139: =(BE139*InputWeights!$C$14+BD139*InputWeights!$C$5+BF139*InputWeights!$C$9) -> 55.9 | BH139: =((_xlfn.RANK.EQ(BG139,$BG$2:$BG$6635,0))/(COUNT(BG$2:$BG$6635)))*100 -> 2.03497136 | BI139: 5
A140: 1702550230 | B140: 0255 | C140: 17 | D140: Clearfield | E140: 02 | F140: 1 | G140: 0230 | H140: 2826 | I140: 2300 | J140: 0 | K140: 1925 | L140: 2007 | M140: 2 | N140: 22 | O140: 62 | P140: 2 | Q140: 0 | R140: 0 | S140: 91 | T140: 3 | U140: WINTERBURN TO PENFIELD RD | V140: PA | W140: 255 | Y140: BRIDGE | Z140: SEGMENT | AA140: 59 | AB140: 1 | AC140: N | AE140: 2015 | AF140: 2015 | AG140: EXCELLENT | AH140: GOOD | AI140: 4 | AJ140: 2 | AK140: RCRS | AL140: 325 | AM140: 325 | AN140: 1 | AO140: 1.868365 | AP140: 2 | AQ140: 4663 | AR140: 4663 | AT140: 5 | AU140: 10 | AV140: 10 | AW140: 2.5 | AX140: 1 | AY140: 1 | AZ140: 5 | BA140: 10 | BB140: 10 | BD140: =(AT140*InputWeights!$C$6+AU140*InputWeights!$C$7) -> 7.5 | BE140: =(AY140*InputWeights!$C$15+AX140*InputWeights!$C$16+AW140*InputWeights!$C$17+AV140*InputWeights!$C$18) -> 2.35 | BF140: =(AZ140*InputWeights!$C$11+BA140*InputWeights!$C$10+BB140*InputWeights!$C$12) -> 8 | BG140: =(BE140*InputWeights!$C$14+BD140*InputWeights!$C$5+BF140*InputWeights!$C$9) -> 55.9 | BH140: =((_xlfn.RANK.EQ(BG140,$BG$2:$BG$6635,0))/(COUNT(BG$2:$BG$6635)))*100 -> 2.03497136 | BI140: 5
A141: 4600630042 | B141: 0063 | C141: 46 | D141: Montgomery | E141: 06 | F141: 1 | G141: 0042 | H141: 2725 | I141: 400 | J141: 0 | K141: 1930 | L141: 2014 | M141: 2 | N141: 22 | O141: 62 | P141: 2 | Q141: 0 | R141: 0 | S141: 118 | T141: 3 | U141: SUMNEYTOWN PK | V141: PA | W141: 063 | Y141: BRIDGE | Z141: SKIPPACK RD | AA141: 49 | AB141: 4 | AC141: Y | AE141: 2015 | AF141: 2015 | AG141: GOOD | AH141: GOOD | AI141: 3 | AJ141: 1 | AK141: Stakeholder Comment | AL141: 966 | AM141: 966 | AN141: 0 | AO141: 0 | AP141: 0 | AQ141: 13127 | AR141: 13127 | AT141: 5 | AU141: 10 | AV141: 0 | AW141: 7.5 | AX141: 2 | AY141: 3 | AZ141: 5 | BA141: 10 | BB141: 0 | BD141: =(AT141*InputWeights!$C$6+AU141*InputWeights!$C$7) -> 7.5 | BE141: =(AY141*InputWeights!$C$15+AX141*InputWeights!$C$16+AW141*InputWeights!$C$17+AV141*InputWeights!$C$18) -> 3.85 | BF141: =(AZ141*InputWeights!$C$11+BA141*InputWeights!$C$10+BB141*InputWeights!$C$12) -> 6 | BG141: =(BE141*InputWeights!$C$14+BD141*InputWeights!$C$5+BF141*InputWeights!$C$9) -> 55.9 | BH141: =((_xlfn.RANK.EQ(BG141,$BG$2:$BG$6635,0))/(COUNT(BG$2:$BG$6635)))*100 -> 2.03497136 | BI141: 5
A142: 0310030040 | B142: 1003 | C142: 03 | D142: Armstrong | E142: 10 | F142: 1 | G142: 0040 | H142: 2735 | I142: 30002100 | J142: 0 | K142: 1942 | L142: 2014 | M142: 2 | N142: 23 | O142: 52 | P142: 2 | Q142: 0 | R142: 0 | S142: 354 | T142: 3 | U142: MAHONING RD | W142: 000 | Y142: BRIDGE | Z142: SEGMENT | AA142: 49 | AB142: 1 | AC142: N | AE142: 2015 | AF142: 2015 | AG142: POOR | AH142: POOR | AI142: 5 | AJ142: 2 | AK142: RCRS | AL142: 4 | AM142: 4 | AN142: 0 | AO142: 0 | AP142: 1 | AQ142: 599 | AR142: 599 | AT142: 7.5 | AU142: 10 | AV142: 0 | AW142: 2.5 | AX142: 1 | AY142: 1 | AZ142: 10 | BA142: 10 | BB142: 0 | BD142: =(AT142*InputWeights!$C$6+AU142*InputWeights!$C$7) -> 8.75 | BE142: =(AY142*InputWeights!$C$15+AX142*InputWeights!$C$16+AW142*InputWeights!$C$17+AV142*InputWeights!$C$18) -> 1.35 | BF142: =(AZ142*InputWeights!$C$11+BA142*InputWeights!$C$10+BB142*InputWeights!$C$12) -> 8 | BG142: =(BE142*InputWeights!$C$14+BD142*InputWeights!$C$5+BF142*InputWeights!$C$9) -> 55.65 | BH142: =((_xlfn.RANK.EQ(BG142,$BG$2:$BG$6635,0))/(COUNT(BG$2:$BG$6635)))*100 -> 2.125414531 | BI142: 5
A143: 0540190150 | B143: 4019 | C143: 05 | D143: Bedford | E143: 09 | F143: 1 | G143: 0150 | H143: 2708 | I143: 50004500 | J143: 0 | K143: 1961 | L143: 2002 | M143: 2 | N143: 20 | O143: 52 | P143: 2 | Q143: 0 | R143: 0 | S143: 217 | T143: 3 | U143: BOBS CREEK RD | W143: 000 | Y143: BRIDGE | Z143: SEGMENT | AA143: 29 | AB143: 1 | AC143: N | AD143: SR 4019 SH | AF143: 2014 | AG143: FAIR | AH143: GOOD | AI143: 6 | AJ143: 2 | AK143: RCRS | AL143: 18 | AM143: 18 | AN143: 1 | AO143: 1.949778 | AP143: 1 | AQ143: 871 | AR143: 871 | AT143: 7.5 | AU143: 10 | AV143: 0 | AW143: 2.5 | AX143: 1 | AY143: 1 | AZ143: 5 | BA143: 10 | BB143: 10 | BD143: =(AT143*InputWeights!$C$6+AU143*InputWeights!$C$7) -> 8.75 | BE143: =(AY143*InputWeights!$C$15+AX143*InputWeights!$C$16+AW143*InputWeights!$C$17+AV143*InputWeights!$C$18) -> 1.35 | BF143: =(AZ143*InputWeights!$C$11+BA143*InputWeights!$C$10+BB143*InputWeights!$C$12) -> 8 | BG143: =(BE143*InputWeights!$C$14+BD143*InputWeights!$C$5+BF143*InputWeights!$C$9) -> 55.65 | BH143: =((_xlfn.RANK.EQ(BG143,$BG$2:$BG$6635,0))/(COUNT(BG$2:$BG$6635)))*100 -> 2.125414531 | BI143: 5
A144: 0740180030 | B144: 4018 | C144: 07 | D144: Blair | E144: 09 | F144: 1 | G144: 0030 | H144: 2497 | I144: 70003600 | J144: 0 | K144: 1938 | L144: 2006 | M144: 2 | N144: 20 | O144: 52 | P144: 2 | Q144: 0 | R144: 0 | S144: 156 | T144: 3 | U144: LOWER RIGGLES GAP RD | W144: 000 | Y144: BRIDGE | Z144: BRIDGE | AA144: 29 | AB144: 3 | AC144: N | AF144: 2014 | AG144: GOOD | AH144: GOOD | AI144: 5 | AJ144: 2 | AK144: RCRS | AL144: 11 | AM144: 11 | AN144: 1 | AO144: 2.114537 | AP144: 1 | AQ144: 1098 | AR144: 1098 | AT144: 7.5 | AU144: 10 | AV144: 0 | AW144: 2.5 | AX144: 1 | AY144: 1 | AZ144: 5 | BA144: 10 | BB144: 10 | BD144: =(AT144*InputWeights!$C$6+AU144*InputWeights!$C$7) -> 8.75 | BE144: =(AY144*InputWeights!$C$15+AX144*InputWeights!$C$16+AW144*InputWeights!$C$17+AV144*InputWeights!$C$18) -> 1.35 | BF144: =(AZ144*InputWeights!$C$11+BA144*InputWeights!$C$10+BB144*InputWeights!$C$12) -> 8 | BG144: =(BE144*InputWeights!$C$14+BD144*InputWeights!$C$5+BF144*InputWeights!$C$9) -> 55.65 | BH144: =((_xlfn.RANK.EQ(BG144,$BG$2:$BG$6635,0))/(COUNT(BG$2:$BG$6635)))*100 -> 2.125414531 | BI144: 5
A145: 1702190020 | B145: 0219 | C145: 17 | D145: Clearfield | E145: 02 | F145: 1 | G145: 0020 | H145: 2108 | I145: 19400 | J145: 0 | K145: 1925 | L145: 2012 | M145: 2 | N145: 22 | O145: 62 | P145: 2 | Q145: 0 | R145: 0 | S145: 101 | T145: 3 | U145: CHERRY TREE TO PATCHIN RD | V145: US | W145: 219 | Y145: SEGMENT | Z145: DRAIN RIGHT | AA145: 69 | AB145: 2 | AC145: Y | AE145: 2015 | AF145: 2015 | AG145: GOOD | AH145: GOOD | AI145: 3 | AJ145: 2 | AK145: RCRS | AL145: 120 | AM145: 120 | AN145: 0 | AO145: 0 | AP145: 1 | AQ145: 1616 | AR145: 1616 | AT145: 7.5 | AU145: 10 | AV145: 0 | AW145: 7.5 | AX145: 1 | AY145: 1 | AZ145: 5 | BA145: 10 | BB145: 0 | BD145: =(AT145*InputWeights!$C$6+AU145*InputWeights!$C$7) -> 8.75 | BE145: =(AY145*InputWeights!$C$15+AX145*InputWeights!$C$16+AW145*InputWeights!$C$17+AV145*InputWeights!$C$18) -> 2.85 | BF145: =(AZ145*InputWeights!$C$11+BA145*InputWeights!$C$10+BB145*InputWeights!$C$12) -> 6 | BG145: =(BE145*InputWeights!$C$14+BD145*InputWeights!$C$5+BF145*InputWeights!$C$9) -> 55.65 | BH145: =((_xlfn.RANK.EQ(BG145,$BG$2:$BG$6635,0))/(COUNT(BG$2:$BG$6635)))*100 -> 2.125414531 | BI145: 5
A146: =C146&B146&G146 -> 1730320010 | B146: 3032 | C146: 17 | D146: Clearfield | E146: 02 | F146: 1 | G146: 0010 | H146: 3460 | I146: 170006000 | J146: 0 | K146: 1956 | L146: 2008 | M146: 2 | N146: 18 | O146: 52 | P146: 2 | Q146: 0 | R146: 0 | S146: 237 | T146: 3 | U146: SHADYBROOK DR | W146: 000 | Y146: NAULTON RD | Z146: SEGMENT | AA146: 59 | AB146: 1 | AC146: N | AE146: 2015 | AF146: 2015 | AG146: POOR | AH146: GOOD | AI146: 5 | AJ146: 2 | AK146: RCRS | AL146: 4 | AM146: 4 | AN146: 2 | AP146: 1 | AQ146: 144 | AR146: 144 | AT146: 7.5 | AU146: 10 | AV146: 0 | AW146: 2.5 | AX146: 1 | AY146: 1 | AZ146: 5 | BA146: 10 | BB146: 10 | BD146: =(AT146*InputWeights!$C$6+AU146*InputWeights!$C$7) -> 8.75 | BE146: =(AY146*InputWeights!$C$15+AX146*InputWeights!$C$16+AW146*InputWeights!$C$17+AV146*InputWeights!$C$18) -> 1.35 | BF146: =(AZ146*InputWeights!$C$11+BA146*InputWeights!$C$10+BB146*InputWeights!$C$12) -> 8 | BG146: =(BE146*InputWeights!$C$14+BD146*InputWeights!$C$5+BF146*InputWeights!$C$9) -> 55.65 | BH146: =((_xlfn.RANK.EQ(BG146,$BG$2:$BG$6635,0))/(COUNT(BG$2:$BG$6635)))*100 -> 2.125414531 | BI146: 5
A147: 3000180550 | B147: 0018 | C147: 30 | D147: Greene | E147: 12 | F147: 1 | G147: 0550 | H147: 3299 | I147: 5400 | J147: 0 | K147: 1925 | L147: 2006 | M147: 2 | N147: 21 | O147: 62 | P147: 2 | Q147: 0 | R147: 0 | S147: 149 | T147: 3 | U147: BROWNS CREEK RD | V147: PA | W147: 018 | Y147: DRAIN LEFT | Z147: BRIDGE | AA147: 30 | AB147: 1 | AC147: N | AE147: 2015 | AF147: 2015 | AG147: GOOD | AH147: GOOD | AI147: 5 | AJ147: 2 | AK147: RCRS | AL147: 254 | AM147: 254 | AN147: 1 | AO147: 1.600485 | AP147: 1 | AQ147: 1589 | AR147: 1589 | AT147: 7.5 | AU147: 10 | AV147: 0 | AW147: 2.5 | AX147: 1 | AY147: 1 | AZ147: 5 | BA147: 10 | BB147: 10 | BD147: =(AT147*InputWeights!$C$6+AU147*InputWeights!$C$7) -> 8.75 | BE147: =(AY147*InputWeights!$C$15+AX147*InputWeights!$C$16+AW147*InputWeights!$C$17+AV147*InputWeights!$C$18) -> 1.35 | BF147: =(AZ147*InputWeights!$C$11+BA147*InputWeights!$C$10+BB147*InputWeights!$C$12) -> 8 | BG147: =(BE147*InputWeights!$C$14+BD147*InputWeights!$C$5+BF147*InputWeights!$C$9) -> 55.65 | BH147: =((_xlfn.RANK.EQ(BG147,$BG$2:$BG$6635,0))/(COUNT(BG$2:$BG$6635)))*100 -> 2.125414531 | BI147: 5
A148: 3000210190 | B148: 0021 | C148: 30 | D148: Greene | E148: 12 | F148: 1 | G148: 0190 | H148: 2455 | I148: 1900 | J148: 0 | K148: 1928 | L148: 2006 | M148: 2 | N148: 21 | O148: 62 | P148: 2 | Q148: 0 | R148: 0 | S148: 114 | T148: 3 | U148: ROY E FURMAN HW | V148: PA | W148: 021 | Y148: MAIN ST | Z148: BRIDGE | AA148: 30 | AB148: 1 | AC148: N | AE148: 2015 | AF148: 2015 | AG148: EXCELLENT | AH148: GOOD | AI148: 4 | AJ148: 2 | AK148: RCRS | AL148: 79 | AM148: 79 | AN148: 3 | AO148: 6.452138 | AP148: 1 | AQ148: 1579 | AR148: 1579 | AT148: 7.5 | AU148: 10 | AV148: 0 | AW148: 2.5 | AX148: 1 | AY148: 1 | AZ148: 5 | BA148: 10 | BB148: 10 | BD148: =(AT148*InputWeights!$C$6+AU148*InputWeights!$C$7) -> 8.75 | BE148: =(AY148*InputWeights!$C$15+AX148*InputWeights!$C$16+AW148*InputWeights!$C$17+AV148*InputWeights!$C$18) -> 1.35 | BF148: =(AZ148*InputWeights!$C$11+BA148*InputWeights!$C$10+BB148*InputWeights!$C$12) -> 8 | BG148: =(BE148*InputWeights!$C$14+BD148*InputWeights!$C$5+BF148*InputWeights!$C$9) -> 55.65 | BH148: =((_xlfn.RANK.EQ(BG148,$BG$2:$BG$6635,0))/(COUNT(BG$2:$BG$6635)))*100 -> 2.125414531 | BI148: 5
A149: 3930010080 | B149: 3001 | C149: 39 | D149: Lehigh | E149: 05 | F149: 1 | G149: 0080 | H149: 1275 | I149: 390042700 | J149: 0 | K149: 1900 | L149: 2006 | M149: 2 | N149: 20 | O149: 61 | P149: 2 | Q149: 0 | R149: 0 | S149: 285 | T149: 3 | U149: SPRING CREEK RD | W149: 000 | Y149: TREXLERTOWN R | Z149: RED OAK LN | AA149: 39 | AB149: 4 | AC149: N | AF149: 2014 | AG149: POOR | AH149: POOR | AI149: 5 | AJ149: 2 | AK149: RCRS | AL149: 30 | AM149: 30 | AN149: 0 | AO149: 0 | AP149: 1 | AQ149: 3069 | AR149: 3069 | AT149: 7.5 | AU149: 10 | AV149: 0 | AW149: 2.5 | AX149: 1 | AY149: 1 | AZ149: 10 | BA149: 10 | BB149: 0 | BD149: =(AT149*InputWeights!$C$6+AU149*InputWeights!$C$7) -> 8.75 | BE149: =(AY149*InputWeights!$C$15+AX149*InputWeights!$C$16+AW149*InputWeights!$C$17+AV149*InputWeights!$C$18) -> 1.35 | BF149: =(AZ149*InputWeights!$C$11+BA149*InputWeights!$C$10+BB149*InputWeights!$C$12) -> 8 | BG149: =(BE149*InputWeights!$C$14+BD149*InputWeights!$C$5+BF149*InputWeights!$C$9) -> 55.65 | BH149: =((_xlfn.RANK.EQ(BG149,$BG$2:$BG$6635,0))/(COUNT(BG$2:$BG$6635)))*100 -> 2.125414531 | BI149: 5
A150: 5840170270 | B150: 4017 | C150: 58 | D150: Tioga | E150: 03 | F150: 1 | G150: 0270 | H150: 2114 | I150: 580028400 | J150: 0 | K150: 1938 | L150: 2010 | M150: 2 | N150: 20 | O150: 52 | P150: 2 | Q150: 0 | R150: 0 | S150: 312 | T150: 3 | U150: HOLDEN BROOK RD | W150: 000 | Y150: SEGMENT | Z150: BRIDGE | AA150: 49 | AB150: 1 | AC150: N | AF150: 2014 | AG150: POOR | AH150: POOR | AI150: 6 | AJ150: 2 | AK150: RCRS | AL150: 61 | AM150: 61 | AN150: 0 | AO150: 0 | AP150: 1 | AQ150: 415 | AR150: 415 | AT150: 7.5 | AU150: 10 | AV150: 0 | AW150: 2.5 | AX150: 1 | AY150: 1 | AZ150: 10 | BA150: 10 | BB150: 0 | BD150: =(AT150*InputWeights!$C$6+AU150*InputWeights!$C$7) -> 8.75 | BE150: =(AY150*InputWeights!$C$15+AX150*InputWeights!$C$16+AW150*InputWeights!$C$17+AV150*InputWeights!$C$18) -> 1.35 | BF150: =(AZ150*InputWeights!$C$11+BA150*InputWeights!$C$10+BB150*InputWeights!$C$12) -> 8 | BG150: =(BE150*InputWeights!$C$14+BD150*InputWeights!$C$5+BF150*InputWeights!$C$9) -> 55.65 | BH150: =((_xlfn.RANK.EQ(BG150,$BG$2:$BG$6635,0))/(COUNT(BG$2:$BG$6635)))*100 -> 2.125414531 | BI150: 5
A151: 0200650241 | B151: 0065 | C151: 02 | D151: Allegheny | E151: 11 | F151: 1 | G151: 0241 | H151: 2394 | I151: 2700 | J151: 10 | K151: 1943 | L151: 2012 | M151: 1 | N151: 24 | O151: 62 | P151: 2 | Q151: 2 | R151: 4 | S151: 76 | T151: 3 | U151: OHIO RIVER BL | V151: PA | W151: 065 | Y151: LEETSDALE | Z151: FERRY ST | AA151: 69 | AB151: 4 | AC151: Y | AE151: 2015 | AF151: 2015 | AG151: GOOD | AH151: GOOD | AI151: 3 | AJ151: 2 | AK151: RCRS | AL151: 577 | AM151: 1154 | AN151: 0 | AO151: 0 | AP151: 0 | AQ151: 10282 | AR151: 20564 | AT151: 10 | AU151: 10 | AV151: 0 | AW151: 7.5 | AX151: 3 | AY151: 5 | AZ151: 5 | BA151: 0 | BB151: 0 | BD151: =(AT151*InputWeights!$C$6+AU151*InputWeights!$C$7) -> 10 | BE151: =(AY151*InputWeights!$C$15+AX151*InputWeights!$C$16+AW151*InputWeights!$C$17+AV151*InputWeights!$C$18) -> 4.85 | BF151: =(AZ151*InputWeights!$C$11+BA151*InputWeights!$C$10+BB151*InputWeights!$C$12) -> 2 | BG151: =(BE151*InputWeights!$C$14+BD151*InputWeights!$C$5+BF151*InputWeights!$C$9) -> 55.4 | BH151: =((_xlfn.RANK.EQ(BG151,$BG$2:$BG$6635,0))/(COUNT(BG$2:$BG$6635)))*100 -> 2.261079289 | BI151: 5
A152: 4120140240 | B152: 2014 | C152: 41 | D152: Lycoming | E152: 03 | F152: 1 | G152: 0240 | H152: 1111 | I152: 410027300 | J152: 10 | K152: 2008 | L152: 2008 | M152: 2 | N152: 39 | O152: 61 | P152: 2 | Q152: 0 | R152: 0 | S152: 141 | T152: 3 | U152: BROAD ST | W152: 000 | Y152: WARRENSVILLE | Z152: SEGMENT | AA152: 19 | AB152: 3 | AC152: Y | AE152: 2016 | AF152: 2016 | AG152: FAIR | AH152: GOOD | AI152: 3 | AJ152: 2 | AK152: RCRS | AL152: 294 | AM152: 294 | AN152: 0 | AO152: 0 | AP152: 3 | AQ152: 14075 | AR152: 14075 | AT152: 2.5 | AU152: 10 | AV152: 10 | AW152: 7.5 | AX152: 1 | AY152: 3 | AZ152: 5 | BA152: 10 | BB152: 0 | BD152: =(AT152*InputWeights!$C$6+AU152*InputWeights!$C$7) -> 6.25 | BE152: =(AY152*InputWeights!$C$15+AX152*InputWeights!$C$16+AW152*InputWeights!$C$17+AV152*InputWeights!$C$18) -> 4.65 | BF152: =(AZ152*InputWeights!$C$11+BA152*InputWeights!$C$10+BB152*InputWeights!$C$12) -> 6 | BG152: =(BE152*InputWeights!$C$14+BD152*InputWeights!$C$5+BF152*InputWeights!$C$9) -> 55.35 | BH152: =((_xlfn.RANK.EQ(BG152,$BG$2:$BG$6635,0))/(COUNT(BG$2:$BG$6635)))*100 -> 2.27615315 | BI152: 5
A153: 4680100750 | B153: 8010 | C153: 46 | D153: Montgomery | E153: 06 | F153: 1 | G153: 0750 | H153: 370 | I153: 460011600 | J153: 750 | K153: 1990 | L153: 2008 | M153: 1 | N153: 22 | O153: 52 | P153: 1 | Q153: 0 | R153: 0 | T153: 1 | U153: RAMP C RD | W153: 000 | AA153: 39 | AB153: 4 | AC153: Y | AF153: 0000 | AG153: OTHER | AH153: POOR | AI153: 1 | AJ153: 1 | AK153: Stakeholder Comment | AL153: 273 | AM153: 546 | AN153: 0 | AO153: 0 | AP153: 0 | AQ153: 3899 | AR153: 7798 | AT153: 5 | AU153: 10 | AV153: 10 | AW153: 10 | AX153: 2 | AY153: 2 | AZ153: 10 | BA153: 0 | BB153: 0 | BD153: =(AT153*InputWeights!$C$6+AU153*InputWeights!$C$7) -> 7.5 | BE153: =(AY153*InputWeights!$C$15+AX153*InputWeights!$C$16+AW153*InputWeights!$C$17+AV153*InputWeights!$C$18) -> 5.2 | BF153: =(AZ153*InputWeights!$C$11+BA153*InputWeights!$C$10+BB153*InputWeights!$C$12) -> 4 | BG153: =(BE153*InputWeights!$C$14+BD153*InputWeights!$C$5+BF153*InputWeights!$C$9) -> 55.3 | BH153: =((_xlfn.RANK.EQ(BG153,$BG$2:$BG$6635,0))/(COUNT(BG$2:$BG$6635)))*100 -> 2.291227012 | BI153: 5
A154: 6730070081 | B154: 3007 | C154: 67 | D154: Philadelphia | E154: 06 | F154: 1 | G154: 0081 | H154: 3984 | I154: 670059400 | J154: 0 | K154: 1929 | L154: 2008 | M154: 1 | N154: 42 | O154: 61 | P154: 2 | Q154: 1 | R154: 2 | S154: 178 | T154: 3 | U154: KELLY DR | W154: 000 | Y154: SEGMENT | Z154: FOUNTAIN GREE | AA154: 39 | AB154: 4 | AC154: Y | AD154: EAST RIVER DR | AE154: 2015 | AF154: 2015 | AG154: POOR | AH154: FAIR | AI154: 3 | AJ154: 2 | AK154: RCRS | AL154: 82 | AM154: 164 | AN154: 0 | AO154: 0 | AP154: 4 | AQ154: 11840 | AR154: 23680 | AT154: 1 | AU154: 10 | AV154: 0 | AW154: 7.5 | AX154: 1 | AY154: 5 | AZ154: 7.5 | BA154: 10 | BB154: 0 | BD154: =(AT154*InputWeights!$C$6+AU154*InputWeights!$C$7) -> 5.5 | BE154: =(AY154*InputWeights!$C$15+AX154*InputWeights!$C$16+AW154*InputWeights!$C$17+AV154*InputWeights!$C$18) -> 4.45 | BF154: =(AZ154*InputWeights!$C$11+BA154*InputWeights!$C$10+BB154*InputWeights!$C$12) -> 7 | BG154: =(BE154*InputWeights!$C$14+BD154*InputWeights!$C$5+BF154*InputWeights!$C$9) -> 55.3 | BH154: =((_xlfn.RANK.EQ(BG154,$BG$2:$BG$6635,0))/(COUNT(BG$2:$BG$6635)))*100 -> 2.291227012 | BI154: 5
A155: 1400260191 | B155: 0026 | C155: 14 | D155: Centre | E155: 02 | F155: 1 | G155: 0191 | H155: 2396 | I155: 19500 | J155: 0 | K155: 1959 | L155: 2006 | M155: 1 | N155: 24 | O155: 61 | P155: 2 | Q155: 4 | R155: 4 | S155: 80 | T155: 3 | U155: COLLEGE AV | V155: PA | W155: 026 | Y155: SEGMENT | Z155: BRIDGE | AA155: 59 | AB155: 3 | AC155: Y | AE155: 2015 | AF155: 2015 | AG155: GOOD | AH155: GOOD | AI155: 3 | AJ155: 2 | AK155: RCRS | AL155: 372 | AM155: 744 | AN155: 4 | AO155: 8.814691 | AP155: 1 | AQ155: 9281 | AR155: 18562 | AT155: 7.5 | AU155: 10 | AV155: 0 | AW155: 7.5 | AX155: 2 | AY155: 4 | AZ155: 5 | BA155: 0 | BB155: 10 | BD155: =(AT155*InputWeights!$C$6+AU155*InputWeights!$C$7) -> 8.75 | BE155: =(AY155*InputWeights!$C$15+AX155*InputWeights!$C$16+AW155*InputWeights!$C$17+AV155*InputWeights!$C$18) -> 4.25 | BF155: =(AZ155*InputWeights!$C$11+BA155*InputWeights!$C$10+BB155*InputWeights!$C$12) -> 4 | BG155: =(BE155*InputWeights!$C$14+BD155*InputWeights!$C$5+BF155*InputWeights!$C$9) -> 55.25 | BH155: =((_xlfn.RANK.EQ(BG155,$BG$2:$BG$6635,0))/(COUNT(BG$2:$BG$6635)))*100 -> 2.321374736 | BI155: 5
A156: 1400260201 | B156: 0026 | C156: 14 | D156: Centre | E156: 02 | F156: 1 | G156: 0201 | H156: 2694 | I156: 19600 | J156: 0 | K156: 1990 | L156: 2003 | M156: 1 | N156: 24 | O156: 61 | P156: 2 | Q156: 8 | R156: 3 | S156: 111 | T156: 3 | U156: COLLEGE AV | V156: PA | W156: 026 | Y156: BRIDGE | Z156: BENNER PIKE I | AA156: 59 | AB156: 3 | AC156: Y | AE156: 2015 | AF156: 2015 | AG156: GOOD | AH156: GOOD | AI156: 3 | AJ156: 2 | AK156: RCRS | AL156: 372 | AM156: 744 | AN156: 1 | AO156: 1.959911 | AP156: 1 | AQ156: 9281 | AR156: 18562 | AT156: 7.5 | AU156: 10 | AV156: 0 | AW156: 7.5 | AX156: 2 | AY156: 4 | AZ156: 5 | BA156: 0 | BB156: 10 | BD156: =(AT156*InputWeights!$C$6+AU156*InputWeights!$C$7) -> 8.75 | BE156: =(AY156*InputWeights!$C$15+AX156*InputWeights!$C$16+AW156*InputWeights!$C$17+AV156*InputWeights!$C$18) -> 4.25 | BF156: =(AZ156*InputWeights!$C$11+BA156*InputWeights!$C$10+BB156*InputWeights!$C$12) -> 4 | BG156: =(BE156*InputWeights!$C$14+BD156*InputWeights!$C$5+BF156*InputWeights!$C$9) -> 55.25 | BH156: =((_xlfn.RANK.EQ(BG156,$BG$2:$BG$6635,0))/(COUNT(BG$2:$BG$6635)))*100 -> 2.321374736 | BI156: 5
A157: 0208370200 | B157: 0837 | C157: 02 | D157: Allegheny | E157: 11 | F157: 1 | G157: 0200 | H157: 3058 | I157: 5100 | J157: 0 | K157: 1956 | L157: 2008 | M157: 2 | N157: 24 | O157: 62 | P157: 2 | Q157: 0 | R157: 0 | S157: 75 | T157: 3 | U157: NORTH STATE ST | V157: PA | W157: 837 | Y157: LEBANON SCHOO | Z157: DRAIN LEFT | AA157: 79 | AB157: 4 | AC157: Y | AE157: 2015 | AF157: 2015 | AG157: EXCELLENT | AH157: GOOD | AI157: 3 | AJ157: 2 | AK157: RCRS | AL157: 455 | AM157: 455 | AN157: 0 | AO157: 0 | AP157: 2 | AQ157: 11375 | AR157: 11375 | AT157: 5 | AU157: 10 | AV157: 0 | AW157: 7.5 | AX157: 1 | AY157: 3 | AZ157: 5 | BA157: 10 | BB157: 0 | BD157: =(AT157*InputWeights!$C$6+AU157*InputWeights!$C$7) -> 7.5 | BE157: =(AY157*InputWeights!$C$15+AX157*InputWeights!$C$16+AW157*InputWeights!$C$17+AV157*InputWeights!$C$18) -> 3.65 | BF157: =(AZ157*InputWeights!$C$11+BA157*InputWeights!$C$10+BB157*InputWeights!$C$12) -> 6 | BG157: =(BE157*InputWeights!$C$14+BD157*InputWeights!$C$5+BF157*InputWeights!$C$9) -> 55.1 | BH157: =((_xlfn.RANK.EQ(BG157,$BG$2:$BG$6635,0))/(COUNT(BG$2:$BG$6635)))*100 -> 2.35152246 | BI157: 5
A158: 0905320070 | B158: 0532 | C158: 09 | D158: Bucks | E158: 06 | F158: 1 | G158: 0070 | H158: 2184 | I158: 1600 | J158: 0 | K158: 1948 | L158: 1965 | M158: 2 | N158: 24 | O158: 52 | P158: 2 | Q158: 0 | R158: 0 | S158: 212 | T158: 3 | U158: BUCK RD | V158: PA | W158: 532 | Y158: OLD BRISTOL R | Z158: ROCKSVILLE RD | AA158: 69 | AB158: 4 | AC158: Y | AE158: 2015 | AF158: 2015 | AG158: POOR | AH158: POOR | AI158: 3 | AJ158: 2 | AK158: RCRS | AL158: 112 | AM158: 112 | AN158: 0 | AO158: 0 | AP158: 4 | AQ158: 11164 | AR158: 11164 | AT158: 1 | AU158: 10 | AV158: 0 | AW158: 7.5 | AX158: 1 | AY158: 3 | AZ158: 10 | BA158: 10 | BB158: 0 | BD158: =(AT158*InputWeights!$C$6+AU158*InputWeights!$C$7) -> 5.5 | BE158: =(AY158*InputWeights!$C$15+AX158*InputWeights!$C$16+AW158*InputWeights!$C$17+AV158*InputWeights!$C$18) -> 3.65 | BF158: =(AZ158*InputWeights!$C$11+BA158*InputWeights!$C$10+BB158*InputWeights!$C$12) -> 8 | BG158: =(BE158*InputWeights!$C$14+BD158*InputWeights!$C$5+BF158*InputWeights!$C$9) -> 55.1 | BH158: =((_xlfn.RANK.EQ(BG158,$BG$2:$BG$6635,0))/(COUNT(BG$2:$BG$6635)))*100 -> 2.35152246 | BI158: 5
A159: 1509260330 | B159: 0926 | C159: 15 | D159: Chester | E159: 06 | F159: 1 | G159: 0330 | H159: 3409 | I159: 3600 | J159: 0 | K159: 1937 | L159: 2005 | M159: 2 | N159: 22 | O159: 52 | P159: 2 | Q159: 0 | R159: 0 | S159: 235 | T159: 3 | U159: STREET RD | V159: PA | W159: 926 | Y159: BRINTONS BRID | Z159: CREEK RD | AA159: 59 | AB159: 4 | AC159: N | AF159: 2014 | AG159: POOR | AH159: POOR | AI159: 4 | AJ159: 3 | AK159: RCRS | AL159: 448 | AM159: 448 | AN159: 0 | AO159: 0 | AP159: 2 | AQ159: 10251 | AR159: 10251 | AT159: 5 | AU159: 10 | AV159: 0 | AW159: 2.5 | AX159: 1 | AY159: 3 | AZ159: 10 | BA159: 10 | BB159: 0 | BD159: =(AT159*InputWeights!$C$6+AU159*InputWeights!$C$7) -> 7.5 | BE159: =(AY159*InputWeights!$C$15+AX159*InputWeights!$C$16+AW159*InputWeights!$C$17+AV159*InputWeights!$C$18) -> 2.15 | BF159: =(AZ159*InputWeights!$C$11+BA159*InputWeights!$C$10+BB159*InputWeights!$C$12) -> 8 | BG159: =(BE159*InputWeights!$C$14+BD159*InputWeights!$C$5+BF159*InputWeights!$C$9) -> 55.1 | BH159: =((_xlfn.RANK.EQ(BG159,$BG$2:$BG$6635,0))/(COUNT(BG$2:$BG$6635)))*100 -> 2.35152246 | BI159: 5
A160: 2504260080 | B160: 0426 | C160: 25 | D160: Erie | E160: 01 | F160: 1 | G160: 0080 | H160: 2231 | I160: 3400 | J160: 0 | K160: 1900 | L160: 2000 | M160: 2 | N160: 37 | O160: 61 | P160: 2 | Q160: 0 | R160: 0 | S160: 224 | T160: 3 | U160: CENTER ST | V160: PA | W160: 426 | Y160: ELK ST | Z160: COLUMBUS AV | AA160: 49 | AB160: 2 | AC160: Y | AE160: 2016 | AF160: 2016 | AG160: POOR | AH160: POOR | AI160: 3 | AJ160: 2 | AK160: RCRS | AL160: 318 | AM160: 318 | AN160: 0 | AO160: 0 | AP160: 0 | AQ160: 5289 | AR160: 5289 | AT160: 10 | AU160: 10 | AV160: 0 | AW160: 7.5 | AX160: 1 | AY160: 2 | AZ160: 10 | BA160: 0 | BB160: 0 | BD160: =(AT160*InputWeights!$C$6+AU160*InputWeights!$C$7) -> 10 | BE160: =(AY160*InputWeights!$C$15+AX160*InputWeights!$C$16+AW160*InputWeights!$C$17+AV160*InputWeights!$C$18) -> 3.25 | BF160: =(AZ160*InputWeights!$C$11+BA160*InputWeights!$C$10+BB160*InputWeights!$C$12) -> 4 | BG160: =(BE160*InputWeights!$C$14+BD160*InputWeights!$C$5+BF160*InputWeights!$C$9) -> 55 | BH160: =((_xlfn.RANK.EQ(BG160,$BG$2:$BG$6635,0))/(COUNT(BG$2:$BG$6635)))*100 -> 2.396744046 | BI160: 5
A161: 0920060040 | B161: 2006 | C161: 09 | D161: Bucks | E161: 06 | F161: 1 | G161: 0040 | H161: 3890 | I161: 90007600 | J161: 0 | K161: 1972 | L161: 2012 | M161: 1 | N161: 34 | O161: 62 | P161: 2 | Q161: 4 | R161: 0 | S161: 125 | T161: 3 | U161: NEW FALLS RD | W161: 000 | Y161: GIANT FOOD PL | Z161: BRIDGE | AA161: 69 | AB161: 4 | AC161: Y | AE161: 2015 | AF161: 2015 | AG161: FAIR | AH161: FAIR | AI161: 4 | AJ161: 2 | AK161: RCRS | AL161: 717 | AM161: 1434 | AN161: 0 | AO161: 0 | AP161: 4 | AQ161: 10243 | AR161: 20486 | AT161: 1 | AU161: 10 | AV161: 10 | AW161: 2.5 | AX161: 3 | AY161: 5 | AZ161: 7.5 | BA161: 10 | BB161: 0 | BD161: =(AT161*InputWeights!$C$6+AU161*InputWeights!$C$7) -> 5.5 | BE161: =(AY161*InputWeights!$C$15+AX161*InputWeights!$C$16+AW161*InputWeights!$C$17+AV161*InputWeights!$C$18) -> 4.35 | BF161: =(AZ161*InputWeights!$C$11+BA161*InputWeights!$C$10+BB161*InputWeights!$C$12) -> 7 | BG161: =(BE161*InputWeights!$C$14+BD161*InputWeights!$C$5+BF161*InputWeights!$C$9) -> 54.9 | BH161: =((_xlfn.RANK.EQ(BG161,$BG$2:$BG$6635,0))/(COUNT(BG$2:$BG$6635)))*100 -> 2.411817908 | BI161: 5
A162: 1000380130 | B162: 0038 | C162: 10 | D162: Butler | E162: 10 | F162: 1 | G162: 0130 | H162: 2669 | I162: 1300 | J162: 0 | K162: 1929 | L162: 2015 | M162: 2 | N162: 24 | O162: 62 | P162: 2 | Q162: 0 | R162: 0 | S162: 130 | T162: 3 | U162: ONEIDA VALLEY RD | V162: PA | W162: 038 | Y162: DRAIN LEFT | Z162: BRIDGE | AA162: 59 | AB162: 1 | AC162: N | AE162: 2015 | AF162: 2015 | AG162: GOOD | AH162: FAIR | AI162: 4 | AJ162: 2 | AK162: RCRS | AL162: 440 | AM162: 440 | AN162: 1 | AO162: 1.978269 | AP162: 2 | AQ162: 4893 | AR162: 4893 | AT162: 5 | AU162: 10 | AV162: 0 | AW162: 2.5 | AX162: 1 | AY162: 1 | AZ162: 7.5 | BA162: 10 | BB162: 10 | BD162: =(AT162*InputWeights!$C$6+AU162*InputWeights!$C$7) -> 7.5 | BE162: =(AY162*InputWeights!$C$15+AX162*InputWeights!$C$16+AW162*InputWeights!$C$17+AV162*InputWeights!$C$18) -> 1.35 | BF162: =(AZ162*InputWeights!$C$11+BA162*InputWeights!$C$10+BB162*InputWeights!$C$12) -> 9 | BG162: =(BE162*InputWeights!$C$14+BD162*InputWeights!$C$5+BF162*InputWeights!$C$9) -> 54.9 | BH162: =((_xlfn.RANK.EQ(BG162,$BG$2:$BG$6635,0))/(COUNT(BG$2:$BG$6635)))*100 -> 2.411817908 | BI162: 5
A163: 3020030090 | B163: 2003 | C163: 30 | D163: Greene | E163: 12 | F163: 1 | G163: 0090 | H163: 3165 | I163: 300025800 | J163: 0 | K163: 1958 | L163: 2013 | M163: 2 | N163: 18 | O163: 52 | P163: 2 | Q163: 0 | R163: 0 | S163: 326 | T163: 3 | U163: BIG SHANNON RD | W163: 000 | Y163: FOX RUN RD | Z163: SEGMENT | AA163: 20 | AB163: 1 | AC163: N | AF163: 2014 | AG163: POOR | AH163: FAIR | AI163: 5 | AJ163: 2 | AK163: RCRS | AL163: 5 | AM163: 5 | AN163: 3 | AO163: 5.004739 | AP163: 2 | AQ163: 728 | AR163: 728 | AT163: 5 | AU163: 10 | AV163: 0 | AW163: 2.5 | AX163: 1 | AY163: 1 | AZ163: 7.5 | BA163: 10 | BB163: 10 | BD163: =(AT163*InputWeights!$C$6+AU163*InputWeights!$C$7) -> 7.5 | BE163: =(AY163*InputWeights!$C$15+AX163*InputWeights!$C$16+AW163*InputWeights!$C$17+AV163*InputWeights!$C$18) -> 1.35 | BF163: =(AZ163*InputWeights!$C$11+BA163*InputWeights!$C$10+BB163*InputWeights!$C$12) -> 9 | BG163: =(BE163*InputWeights!$C$14+BD163*InputWeights!$C$5+BF163*InputWeights!$C$9) -> 54.9 | BH163: =((_xlfn.RANK.EQ(BG163,$BG$2:$BG$6635,0))/(COUNT(BG$2:$BG$6635)))*100 -> 2.411817908 | BI163: 5
A164: 4806110070 | B164: 0611 | C164: 48 | D164: Northampton | E164: 05 | F164: 1 | G164: 0070 | H164: 2891 | I164: 11600 | J164: 0 | K164: 1920 | L164: 2008 | M164: 2 | N164: 22 | O164: 62 | P164: 2 | Q164: 0 | R164: 0 | S164: 104 | T164: 3 | U164: LACKAWANNA TR | V164: PA | W164: 611 | Y164: SEGMENT | Z164: BROWNS DR | AA164: 29 | AB164: 4 | AC164: Y | AE164: 2015 | AF164: 2015 | AG164: GOOD | AH164: FAIR | AI164: 3 | AJ164: 1 | AK164: Stakeholder Comment | AL164: 267 | AM164: 267 | AN164: 0 | AO164: 0 | AP164: 0 | AQ164: 3337 | AR164: 3337 | AT164: 5 | AU164: 10 | AV164: 0 | AW164: 7.5 | AX164: 1 | AY164: 1 | AZ164: 7.5 | BA164: 10 | BB164: 0 | BD164: =(AT164*InputWeights!$C$6+AU164*InputWeights!$C$7) -> 7.5 | BE164: =(AY164*InputWeights!$C$15+AX164*InputWeights!$C$16+AW164*InputWeights!$C$17+AV164*InputWeights!$C$18) -> 2.85 | BF164: =(AZ164*InputWeights!$C$11+BA164*InputWeights!$C$10+BB164*InputWeights!$C$12) -> 7 | BG164: =(BE164*InputWeights!$C$14+BD164*InputWeights!$C$5+BF164*InputWeights!$C$9) -> 54.9 | BH164: =((_xlfn.RANK.EQ(BG164,$BG$2:$BG$6635,0))/(COUNT(BG$2:$BG$6635)))*100 -> 2.411817908 | BI164: 5
A165: 5400110420 | B165: 0011 | C165: 54 | D165: Snyder | E165: 03 | F165: 1 | G165: 0420 | H165: 968 | I165: 26400 | J165: 10 | K165: 1986 | L165: 2007 | M165: 1 | N165: 24 | O165: 61 | P165: 2 | Q165: 8 | R165: 4 | S165: 110 | T165: 3 | U165: SR 0011 SH | V165: US | W165: 011 | Y165: GRANGER HOLLO | Z165: SEGMENT | AA165: 39 | AB165: 2 | AC165: Y | AE165: 2015 | AF165: 2015 | AG165: GOOD | AH165: FAIR | AI165: 3 | AJ165: 1 | AK165: Stakeholder Comment | AL165: 1657 | AM165: 3314 | AN165: 0 | AO165: 0 | AP165: 0 | AQ165: 8717 | AR165: 17434 | AT165: 5 | AU165: 10 | AV165: 10 | AW165: 7.5 | AX165: 5 | AY165: 4 | AZ165: 7.5 | BA165: 0 | BB165: 0 | BD165: =(AT165*InputWeights!$C$6+AU165*InputWeights!$C$7) -> 7.5 | BE165: =(AY165*InputWeights!$C$15+AX165*InputWeights!$C$16+AW165*InputWeights!$C$17+AV165*InputWeights!$C$18) -> 5.85 | BF165: =(AZ165*InputWeights!$C$11+BA165*InputWeights!$C$10+BB165*InputWeights!$C$12) -> 3 | BG165: =(BE165*InputWeights!$C$14+BD165*InputWeights!$C$5+BF165*InputWeights!$C$9) -> 54.9 | BH165: =((_xlfn.RANK.EQ(BG165,$BG$2:$BG$6635,0))/(COUNT(BG$2:$BG$6635)))*100 -> 2.411817908 | BI165: 5
A166: 5400110421 | B166: 0011 | C166: 54 | D166: Snyder | E166: 03 | F166: 1 | G166: 0421 | H166: 930 | I166: 26400 | J166: 10 | K166: 1986 | L166: 2007 | M166: 1 | N166: 26 | O166: 61 | P166: 2 | Q166: 8 | R166: 4 | S166: 175 | T166: 3 | U166: SR 0011 SH | V166: US | W166: 011 | Y166: GRANGER HOLLO | Z166: SEGMENT | AA166: 39 | AB166: 2 | AC166: Y | AE166: 2015 | AF166: 2015 | AG166: POOR | AH166: FAIR | AI166: 3 | AJ166: 1 | AK166: Stakeholder Comment | AL166: 1723 | AM166: 3446 | AN166: 0 | AO166: 0 | AP166: 0 | AQ166: 9067 | AR166: 18134 | AT166: 5 | AU166: 10 | AV166: 10 | AW166: 7.5 | AX166: 5 | AY166: 4 | AZ166: 7.5 | BA166: 0 | BB166: 0 | BD166: =(AT166*InputWeights!$C$6+AU166*InputWeights!$C$7) -> 7.5 | BE166: =(AY166*InputWeights!$C$15+AX166*InputWeights!$C$16+AW166*InputWeights!$C$17+AV166*InputWeights!$C$18) -> 5.85 | BF166: =(AZ166*InputWeights!$C$11+BA166*InputWeights!$C$10+BB166*InputWeights!$C$12) -> 3 | BG166: =(BE166*InputWeights!$C$14+BD166*InputWeights!$C$5+BF166*InputWeights!$C$9) -> 54.9 | BH166: =((_xlfn.RANK.EQ(BG166,$BG$2:$BG$6635,0))/(COUNT(BG$2:$BG$6635)))*100 -> 2.411817908 | BI166: 5
A167: 0920060051 | B167: 2006 | C167: 09 | D167: Bucks | E167: 06 | F167: 1 | G167: 0051 | H167: 3926 | I167: 90007700 | J167: 10 | K167: 1972 | L167: 2012 | M167: 1 | N167: 22 | O167: 62 | P167: 2 | Q167: 4 | R167: 11 | S167: 91 | T167: 3 | U167: NEW FALLS RD | W167: 000 | Y167: BRIDGE | Z167: INDIAN CREEK | AA167: 59 | AB167: 4 | AC167: Y | AE167: 2015 | AF167: 2015 | AG167: GOOD | AH167: GOOD | AI167: 3 | AJ167: 2 | AK167: RCRS | AL167: 1453 | AM167: 2906 | AN167: 0 | AO167: 0 | AP167: 4 | AQ167: 10772 | AR167: 21544 | AT167: 1 | AU167: 10 | AV167: 0 | AW167: 7.5 | AX167: 4 | AY167: 5 | AZ167: 5 | BA167: 10 | BB167: 0 | BD167: =(AT167*InputWeights!$C$6+AU167*InputWeights!$C$7) -> 5.5 | BE167: =(AY167*InputWeights!$C$15+AX167*InputWeights!$C$16+AW167*InputWeights!$C$17+AV167*InputWeights!$C$18) -> 5.05 | BF167: =(AZ167*InputWeights!$C$11+BA167*InputWeights!$C$10+BB167*InputWeights!$C$12) -> 6 | BG167: =(BE167*InputWeights!$C$14+BD167*InputWeights!$C$5+BF167*InputWeights!$C$9) -> 54.7 | BH167: =((_xlfn.RANK.EQ(BG167,$BG$2:$BG$6635,0))/(COUNT(BG$2:$BG$6635)))*100 -> 2.502261079 | BI167: 5
A168: 0221280011 | B168: 2128 | C168: 02 | D168: Allegheny | E168: 11 | F168: 1 | G168: 0011 | H168: 3892 | I168: 20000100 | J168: 0 | K168: 1988 | L168: 1988 | M168: 1 | N168: 22 | O168: 71 | P168: 2 | Q168: 1 | R168: 1 | S168: 250 | T168: 3 | U168: TENTH ST BY-PASS | W168: 000 | Y168: RAMP D RD | Z168: ELEVENTH ST | AA168: 59 | AB168: 4 | AC168: 4 | AE168: 2015 | AF168: 2015 | AG168: POOR | AH168: FAIR | AI168: 3 | AJ168: 2 | AK168: RCRS | AL168: 271 | AM168: 542 | AN168: 0 | AO168: 0 | AP168: 1 | AQ168: 6762 | AR168: 13524 | AT168: 7.5 | AU168: 10 | AV168: 10 | AW168: 7.5 | AX168: 2 | AY168: 3 | AZ168: 7.5 | BA168: 0 | BB168: 0 | BD168: =(AT168*InputWeights!$C$6+AU168*InputWeights!$C$7) -> 8.75 | BE168: =(AY168*InputWeights!$C$15+AX168*InputWeights!$C$16+AW168*InputWeights!$C$17+AV168*InputWeights!$C$18) -> 4.85 | BF168: =(AZ168*InputWeights!$C$11+BA168*InputWeights!$C$10+BB168*InputWeights!$C$12) -> 3 | BG168: =(BE168*InputWeights!$C$14+BD168*InputWeights!$C$5+BF168*InputWeights!$C$9) -> 54.65 | BH168: =((_xlfn.RANK.EQ(BG168,$BG$2:$BG$6635,0))/(COUNT(BG$2:$BG$6635)))*100 -> 2.517334941 | BI168: 5
A169: 0340350020 | B169: 4035 | C169: 03 | D169: Armstrong | E169: 10 | F169: 1 | G169: 0020 | H169: 2876 | I169: 30000400 | J169: 0 | K169: 1960 | L169: 2013 | M169: 2 | N169: 22 | O169: 52 | P169: 2 | Q169: 0 | R169: 0 | S169: 356 | T169: 3 | U169: YELLOW DOG RD | W169: 000 | Y169: MELLON HOLLOW | Z169: SEGMENT | AA169: 59 | AB169: 1 | AC169: N | AF169: 2014 | AG169: POOR | AH169: FAIR | AI169: 7 | AJ169: 2 | AK169: RCRS | AL169: 32 | AM169: 32 | AN169: 0 | AO169: 0 | AP169: 0 | AQ169: 345 | AR169: 345 | AT169: 10 | AU169: 10 | AV169: 0 | AW169: 1 | AX169: 1 | AY169: 1 | AZ169: 7.5 | BA169: 10 | BB169: 0 | BD169: =(AT169*InputWeights!$C$6+AU169*InputWeights!$C$7) -> 10 | BE169: =(AY169*InputWeights!$C$15+AX169*InputWeights!$C$16+AW169*InputWeights!$C$17+AV169*InputWeights!$C$18) -> 0.9 | BF169: =(AZ169*InputWeights!$C$11+BA169*InputWeights!$C$10+BB169*InputWeights!$C$12) -> 7 | BG169: =(BE169*InputWeights!$C$14+BD169*InputWeights!$C$5+BF169*InputWeights!$C$9) -> 54.6 | BH169: =((_xlfn.RANK.EQ(BG169,$BG$2:$BG$6635,0))/(COUNT(BG$2:$BG$6635)))*100 -> 2.532408803 | BI169: 5
A170: 1410020350 | B170: 1002 | C170: 14 | D170: Centre | E170: 02 | F170: 1 | G170: 0350 | H170: 907 | I170: 140010400 | J170: 0 | K170: 1942 | L170: 2005 | M170: 2 | N170: 21 | O170: 52 | P170: 2 | Q170: 0 | R170: 0 | S170: 150 | T170: 3 | U170: THOMAS RD | W170: 000 | Y170: RIDGE CREST D | Z170: MAIN ST | AA170: 49 | AB170: 1 | AC170: N | AF170: 2012 | AG170: GOOD | AH170: EXCELLENT | AI170: 7 | AJ170: 2 | AK170: RCRS | AL170: 19 | AM170: 19 | AN170: 1 | AO170: 5.821389 | AP170: 0 | AQ170: 189 | AR170: 189 | AT170: 10 | AU170: 10 | AV170: 0 | AW170: 1 | AX170: 1 | AY170: 1 | AZ170: 2.5 | BA170: 10 | BB170: 10 | BD170: =(AT170*InputWeights!$C$6+AU170*InputWeights!$C$7) -> 10 | BE170: =(AY170*InputWeights!$C$15+AX170*InputWeights!$C$16+AW170*InputWeights!$C$17+AV170*InputWeights!$C$18) -> 0.9 | BF170: =(AZ170*InputWeights!$C$11+BA170*InputWeights!$C$10+BB170*InputWeights!$C$12) -> 7 | BG170: =(BE170*InputWeights!$C$14+BD170*InputWeights!$C$5+BF170*InputWeights!$C$9) -> 54.6 | BH170: =((_xlfn.RANK.EQ(BG170,$BG$2:$BG$6635,0))/(COUNT(BG$2:$BG$6635)))*100 -> 2.532408803 | BI170: 5
A171: 5520050020 | B171: 2005 | C171: 55 | D171: Somerset | E171: 09 | F171: 1 | G171: 0020 | H171: 3215 | I171: 550042600 | J171: 0 | K171: 1938 | L171: 2012 | M171: 2 | N171: 20 | O171: 52 | P171: 2 | Q171: 0 | R171: 0 | S171: 233 | T171: 3 | U171: MATLICK RD | W171: 000 | Y171: KRETCHMAN FAR | Z171: BRIDGE | AA171: 59 | AB171: 1 | AC171: N | AE171: 2015 | AF171: 2015 | AG171: POOR | AH171: FAIR | AI171: 7 | AJ171: 2 | AK171: RCRS | AL171: 19 | AM171: 19 | AN171: 0 | AO171: 0 | AP171: 0 | AQ171: 256 | AR171: 256 | AT171: 10 | AU171: 10 | AV171: 0 | AW171: 1 | AX171: 1 | AY171: 1 | AZ171: 7.5 | BA171: 10 | BB171: 0 | BD171: =(AT171*InputWeights!$C$6+AU171*InputWeights!$C$7) -> 10 | BE171: =(AY171*InputWeights!$C$15+AX171*InputWeights!$C$16+AW171*InputWeights!$C$17+AV171*InputWeights!$C$18) -> 0.9 | BF171: =(AZ171*InputWeights!$C$11+BA171*InputWeights!$C$10+BB171*InputWeights!$C$12) -> 7 | BG171: =(BE171*InputWeights!$C$14+BD171*InputWeights!$C$5+BF171*InputWeights!$C$9) -> 54.6 | BH171: =((_xlfn.RANK.EQ(BG171,$BG$2:$BG$6635,0))/(COUNT(BG$2:$BG$6635)))*100 -> 2.532408803 | BI171: 5
A172: 5520050030 | B172: 2005 | C172: 55 | D172: Somerset | E172: 09 | F172: 1 | G172: 0030 | H172: 2536 | I172: 550042700 | J172: 0 | K172: 1938 | L172: 2012 | M172: 2 | N172: 20 | O172: 52 | P172: 2 | Q172: 0 | R172: 0 | S172: 246 | T172: 3 | U172: MATLICK RD | W172: 000 | Y172: BRIDGE | Z172: OLD MULE TRAI | AA172: 59 | AB172: 1 | AC172: N | AE172: 2015 | AF172: 2015 | AG172: POOR | AH172: FAIR | AI172: 7 | AJ172: 2 | AK172: RCRS | AL172: 19 | AM172: 19 | AN172: 0 | AO172: 0 | AP172: 0 | AQ172: 256 | AR172: 256 | AT172: 10 | AU172: 10 | AV172: 0 | AW172: 1 | AX172: 1 | AY172: 1 | AZ172: 7.5 | BA172: 10 | BB172: 0 | BD172: =(AT172*InputWeights!$C$6+AU172*InputWeights!$C$7) -> 10 | BE172: =(AY172*InputWeights!$C$15+AX172*InputWeights!$C$16+AW172*InputWeights!$C$17+AV172*InputWeights!$C$18) -> 0.9 | BF172: =(AZ172*InputWeights!$C$11+BA172*InputWeights!$C$10+BB172*InputWeights!$C$12) -> 7 | BG172: =(BE172*InputWeights!$C$14+BD172*InputWeights!$C$5+BF172*InputWeights!$C$9) -> 54.6 | BH172: =((_xlfn.RANK.EQ(BG172,$BG$2:$BG$6635,0))/(COUNT(BG$2:$BG$6635)))*100 -> 2.532408803 | BI172: 5
A173: 6400300641 | B173: 0030 | C173: 64 | D173: Westmoreland | E173: 12 | F173: 1 | G173: 0641 | H173: 3748 | I173: 12500 | J173: 0 | K173: 1929 | L173: 2008 | M173: 1 | N173: 22 | O173: 62 | P173: 2 | Q173: 7 | R173: 100 | S173: 85 | T173: 3 | U173: LINCOLN HW | V173: US | W173: 030 | Y173: BRIDGE | Z173: TWO MILE RUN | AA173: 70 | AB173: 1 | AC173: Y | AE173: 2015 | AF173: 2015 | AG173: GOOD | AH173: GOOD | AI173: 3 | AJ173: 2 | AK173: RCRS | AL173: 568 | AM173: 1136 | AN173: 0 | AO173: 0 | AP173: 3 | AQ173: 8382 | AR173: 16764 | AT173: 2.5 | AU173: 10 | AV173: 0 | AW173: 7.5 | AX173: 3 | AY173: 4 | AZ173: 5 | BA173: 10 | BB173: 0 | BD173: =(AT173*InputWeights!$C$6+AU173*InputWeights!$C$7) -> 6.25 | BE173: =(AY173*InputWeights!$C$15+AX173*InputWeights!$C$16+AW173*InputWeights!$C$17+AV173*InputWeights!$C$18) -> 4.45 | BF173: =(AZ173*InputWeights!$C$11+BA173*InputWeights!$C$10+BB173*InputWeights!$C$12) -> 6 | BG173: =(BE173*InputWeights!$C$14+BD173*InputWeights!$C$5+BF173*InputWeights!$C$9) -> 54.55 | BH173: =((_xlfn.RANK.EQ(BG173,$BG$2:$BG$6635,0))/(COUNT(BG$2:$BG$6635)))*100 -> 2.592704251 | BI173: 5
A174: 4620420040 | B174: 2042 | C174: 46 | D174: Montgomery | E174: 06 | F174: 1 | G174: 0040 | H174: 2227 | I174: 460004400 | J174: 0 | K174: 1938 | L174: 1995 | M174: 2 | N174: 22 | O174: 52 | P174: 2 | Q174: 0 | R174: 0 | S174: 188 | T174: 3 | U174: DAVISVILLE RD | W174: 000 | Y174: BRIDGE | Z174: BRIDGE | AA174: 59 | AB174: 4 | AC174: N | AE174: 2015 | AF174: 2015 | AG174: FAIR | AH174: FAIR | AI174: 4 | AJ174: 1 | AK174: Stakeholder Comment | AL174: 819 | AM174: 819 | AN174: 0 | AO174: 0 | AP174: 0 | AQ174: 16082 | AR174: 16082 | AT174: 5 | AU174: 10 | AV174: 0 | AW174: 2.5 | AX174: 2 | AY174: 4 | AZ174: 7.5 | BA174: 10 | BB174: 0 | BD174: =(AT174*InputWeights!$C$6+AU174*InputWeights!$C$7) -> 7.5 | BE174: =(AY174*InputWeights!$C$15+AX174*InputWeights!$C$16+AW174*InputWeights!$C$17+AV174*InputWeights!$C$18) -> 2.75 | BF174: =(AZ174*InputWeights!$C$11+BA174*InputWeights!$C$10+BB174*InputWeights!$C$12) -> 7 | BG174: =(BE174*InputWeights!$C$14+BD174*InputWeights!$C$5+BF174*InputWeights!$C$9) -> 54.5 | BH174: =((_xlfn.RANK.EQ(BG174,$BG$2:$BG$6635,0))/(COUNT(BG$2:$BG$6635)))*100 -> 2.607778113 | BI174: 5
A175: 4806110200 | B175: 0611 | C175: 48 | D175: Northampton | E175: 05 | F175: 1 | G175: 0200 | H175: 1309 | I175: 13000 | J175: 10 | K175: 1901 | L175: 1901 | M175: 2 | N175: 24 | O175: 72 | P175: 2 | Q175: 0 | R175: 0 | S175: 282 | T175: 3 | U175: SR 0611 SH | V175: PA | W175: 611 | Y175: LARRY HOLMES | Z175: BUSHKILL DR | AA175: 29 | AB175: 4 | AC175: N | AE175: 2015 | AF175: 2015 | AG175: POOR | AH175: FAIR | AI175: 4 | AJ175: 1 | AK175: Stakeholder Comment | AL175: 393 | AM175: 393 | AN175: 0 | AO175: 0 | AP175: 0 | AQ175: 5604 | AR175: 5604 | AT175: 5 | AU175: 10 | AV175: 10 | AW175: 2.5 | AX175: 1 | AY175: 2 | AZ175: 7.5 | BA175: 10 | BB175: 0 | BD175: =(AT175*InputWeights!$C$6+AU175*InputWeights!$C$7) -> 7.5 | BE175: =(AY175*InputWeights!$C$15+AX175*InputWeights!$C$16+AW175*InputWeights!$C$17+AV175*InputWeights!$C$18) -> 2.75 | BF175: =(AZ175*InputWeights!$C$11+BA175*InputWeights!$C$10+BB175*InputWeights!$C$12) -> 7 | BG175: =(BE175*InputWeights!$C$14+BD175*InputWeights!$C$5+BF175*InputWeights!$C$9) -> 54.5 | BH175: =((_xlfn.RANK.EQ(BG175,$BG$2:$BG$6635,0))/(COUNT(BG$2:$BG$6635)))*100 -> 2.607778113 | BI175: 5
A176: 1430140080 | B176: 3014 | C176: 14 | D176: Centre | E176: 02 | F176: 1 | G176: 0080 | H176: 2786 | I176: 140004800 | J176: 0 | K176: 1930 | L176: 1998 | M176: 1 | N176: 30 | O176: 62 | P176: 2 | Q176: 4 | R176: 8 | S176: 174 | T176: 3 | U176: NORTH ATHERTON ST | V176: US | W176: 322 | X176: B | Y176: BLUE COURSE D | Z176: WOODLAND DR | AA176: 39 | AB176: 3 | AC176: 6 | AE176: 2015 | AF176: 2015 | AG176: POOR | AH176: POOR | AI176: 3 | AJ176: 2 | AK176: RCRS | AL176: 1117 | AM176: 2234 | AN176: 0 | AO176: 0 | AP176: 3 | AQ176: 16175 | AR176: 32350 | AT176: 2.5 | AU176: 10 | AV176: 0 | AW176: 7.5 | AX176: 4 | AY176: 7 | AZ176: 10 | BA176: 0 | BB176: 0 | BD176: =(AT176*InputWeights!$C$6+AU176*InputWeights!$C$7) -> 6.25 | BE176: =(AY176*InputWeights!$C$15+AX176*InputWeights!$C$16+AW176*InputWeights!$C$17+AV176*InputWeights!$C$18) -> 5.85 | BF176: =(AZ176*InputWeights!$C$11+BA176*InputWeights!$C$10+BB176*InputWeights!$C$12) -> 4 | BG176: =(BE176*InputWeights!$C$14+BD176*InputWeights!$C$5+BF176*InputWeights!$C$9) -> 54.15 | BH176: =((_xlfn.RANK.EQ(BG176,$BG$2:$BG$6635,0))/(COUNT(BG$2:$BG$6635)))*100 -> 2.637925837 | BI176: 5
A177: 3630170070 | B177: 3017 | C177: 36 | D177: Lancaster | E177: 08 | F177: 1 | G177: 0070 | H177: 2172 | I177: 360021600 | J177: 0 | K177: 1931 | L177: 1994 | M177: 2 | N177: 19 | O177: 52 | P177: 2 | Q177: 0 | R177: 0 | S177: 600 | T177: 3 | U177: RIVER RD | W177: 000 | Y177: TUCQUAN GLEN | Z177: DOUTS HILL RD | AA177: 39 | AB177: 1 | AC177: N | AF177: 2014 | AG177: POOR | AH177: POOR | AI177: 6 | AJ177: 2 | AK177: RCRS | AL177: 49 | AM177: 49 | AN177: 1 | AO177: 2.430939 | AP177: 3 | AQ177: 274 | AR177: 274 | AT177: 2.5 | AU177: 10 | AV177: 0 | AW177: 2.5 | AX177: 1 | AY177: 1 | AZ177: 10 | BA177: 10 | BB177: 10 | BD177: =(AT177*InputWeights!$C$6+AU177*InputWeights!$C$7) -> 6.25 | BE177: =(AY177*InputWeights!$C$15+AX177*InputWeights!$C$16+AW177*InputWeights!$C$17+AV177*InputWeights!$C$18) -> 1.35 | BF177: =(AZ177*InputWeights!$C$11+BA177*InputWeights!$C$10+BB177*InputWeights!$C$12) -> 10 | BG177: =(BE177*InputWeights!$C$14+BD177*InputWeights!$C$5+BF177*InputWeights!$C$9) -> 54.15 | BH177: =((_xlfn.RANK.EQ(BG177,$BG$2:$BG$6635,0))/(COUNT(BG$2:$BG$6635)))*100 -> 2.652999699 | BI177: 5
A178: 5710100150 | B178: 1010 | C178: 57 | D178: Susquehanna | E178: 04 | F178: 1 | G178: 0150 | H178: 2916 | I178: 570045500 | J178: 0 | K178: 1962 | L178: 2008 | M178: 2 | N178: 16 | O178: 52 | P178: 2 | Q178: 0 | R178: 0 | S178: 382 | T178: 3 | U178: HARMONY RD | W178: 000 | Y178: SEGMENT | Z178: SUSQUEHANNA A | AA178: 29 | AB178: 1 | AC178: N | AF178: 2014 | AG178: POOR | AH178: POOR | AI178: 7 | AJ178: 1 | AK178: Stakeholder Comment | AL178: 14 | AM178: 14 | AN178: 0 | AO178: 0 | AP178: 0 | AQ178: 140 | AR178: 140 | AT178: 5 | AU178: 10 | AV178: 10 | AW178: 1 | AX178: 1 | AY178: 1 | AZ178: 10 | BA178: 10 | BB178: 0 | BD178: =(AT178*InputWeights!$C$6+AU178*InputWeights!$C$7) -> 7.5 | BE178: =(AY178*InputWeights!$C$15+AX178*InputWeights!$C$16+AW178*InputWeights!$C$17+AV178*InputWeights!$C$18) -> 1.9 | BF178: =(AZ178*InputWeights!$C$11+BA178*InputWeights!$C$10+BB178*InputWeights!$C$12) -> 8 | BG178: =(BE178*InputWeights!$C$14+BD178*InputWeights!$C$5+BF178*InputWeights!$C$9) -> 54.1 | BH178: =((_xlfn.RANK.EQ(BG178,$BG$2:$BG$6635,0))/(COUNT(BG$2:$BG$6635)))*100 -> 2.66807356 | BI178: 5
A179: 0200080100 | B179: 0008 | C179: 02 | D179: Allegheny | E179: 11 | F179: 1 | G179: 0100 | H179: 1794 | I179: 1000 | J179: 0 | K179: 1973 | L179: 2015 | M179: 1 | N179: 24 | O179: 62 | P179: 2 | Q179: 1 | R179: 1 | S179: 139 | T179: 3 | U179: WASHINGTON BL | V179: PA | W179: 008 | Y179: SEGMENT | Z179: SEGMENT | AA179: 59 | AB179: 4 | AC179: Y | AE179: 2016 | AF179: 2015 | AG179: FAIR | AH179: POOR | AI179: 3 | AJ179: 2 | AK179: RCRS | AL179: 963 | AM179: 1926 | AN179: 1 | AO179: 2.943144 | AP179: 0 | AQ179: 13754 | AR179: 27508 | AT179: 10 | AU179: 0 | AV179: 0 | AW179: 7.5 | AX179: 3 | AY179: 6 | AZ179: 10 | BA179: 0 | BB179: 10 | BD179: =(AT179*InputWeights!$C$6+AU179*InputWeights!$C$7) -> 5 | BE179: =(AY179*InputWeights!$C$15+AX179*InputWeights!$C$16+AW179*InputWeights!$C$17+AV179*InputWeights!$C$18) -> 5.25 | BF179: =(AZ179*InputWeights!$C$11+BA179*InputWeights!$C$10+BB179*InputWeights!$C$12) -> 6 | BG179: =(BE179*InputWeights!$C$14+BD179*InputWeights!$C$5+BF179*InputWeights!$C$9) -> 54 | BH179: =((_xlfn.RANK.EQ(BG179,$BG$2:$BG$6635,0))/(COUNT(BG$2:$BG$6635)))*100 -> 2.683147422 | BI179: 5
A180: 0200080110 | B180: 0008 | C180: 02 | D180: Allegheny | E180: 11 | F180: 1 | G180: 0110 | H180: 1065 | I180: 1100 | J180: 0 | K180: 1973 | L180: 2015 | M180: 1 | N180: 24 | O180: 62 | P180: 2 | Q180: 1 | R180: 1 | S180: 188 | T180: 3 | U180: WASHINGTON BL | V180: PA | W180: 008 | Y180: SEGMENT | Z180: SEGMENT | AA180: 59 | AB180: 4 | AC180: Y | AE180: 2016 | AF180: 2015 | AG180: POOR | AH180: POOR | AI180: 3 | AJ180: 2 | AK180: RCRS | AL180: 963 | AM180: 1926 | AN180: 1 | AO180: 4.957746 | AP180: 0 | AQ180: 13754 | AR180: 27508 | AT180: 10 | AU180: 0 | AV180: 0 | AW180: 7.5 | AX180: 3 | AY180: 6 | AZ180: 10 | BA180: 0 | BB180: 10 | BD180: =(AT180*InputWeights!$C$6+AU180*InputWeights!$C$7) -> 5 | BE180: =(AY180*InputWeights!$C$15+AX180*InputWeights!$C$16+AW180*InputWeights!$C$17+AV180*InputWeights!$C$18) -> 5.25 | BF180: =(AZ180*InputWeights!$C$11+BA180*InputWeights!$C$10+BB180*InputWeights!$C$12) -> 6 | BG180: =(BE180*InputWeights!$C$14+BD180*InputWeights!$C$5+BF180*InputWeights!$C$9) -> 54 | BH180: =((_xlfn.RANK.EQ(BG180,$BG$2:$BG$6635,0))/(COUNT(BG$2:$BG$6635)))*100 -> 2.683147422 | BI180: 5
A181: 0200280221 | B181: 0028 | C181: 02 | D181: Allegheny | E181: 11 | F181: 1 | G181: 0221 | H181: 2998 | I181: 2200 | J181: 0 | K181: 1967 | L181: 2001 | M181: 1 | N181: 30 | O181: 62 | P181: 2 | Q181: 2 | R181: 58 | S181: 73 | T181: 1 | U181: ALLEGHENY VALLEY EX | V181: PA | W181: 028 | Y181: O/P ALPHA DRI | Z181: SEGMENT | AA181: 29 | AB181: 4 | AC181: Y | AE181: 2015 | AF181: 2015 | AG181: EXCELLENT | AH181: GOOD | AI181: 2 | AJ181: 2 | AK181: RCRS | AL181: 1908 | AM181: 3816 | AN181: 0 | AO181: 0 | AP181: 0 | AQ181: 23841 | AR181: 47682 | AT181: 10 | AU181: 0 | AV181: 10 | AW181: 7.5 | AX181: 5 | AY181: 10 | AZ181: 5 | BA181: 0 | BB181: 0 | BD181: =(AT181*InputWeights!$C$6+AU181*InputWeights!$C$7) -> 5 | BE181: =(AY181*InputWeights!$C$15+AX181*InputWeights!$C$16+AW181*InputWeights!$C$17+AV181*InputWeights!$C$18) -> 8.25 | BF181: =(AZ181*InputWeights!$C$11+BA181*InputWeights!$C$10+BB181*InputWeights!$C$12) -> 2 | BG181: =(BE181*InputWeights!$C$14+BD181*InputWeights!$C$5+BF181*InputWeights!$C$9) -> 54 | BH181: =((_xlfn.RANK.EQ(BG181,$BG$2:$BG$6635,0))/(COUNT(BG$2:$BG$6635)))*100 -> 2.683147422 | BI181: 5
A182: 0200280231 | B182: 0028 | C182: 02 | D182: Allegheny | E182: 11 | F182: 1 | G182: 0231 | H182: 3039 | I182: 2300 | J182: 0 | K182: 1967 | L182: 2001 | M182: 1 | N182: 30 | O182: 62 | P182: 2 | Q182: 3 | R182: 99 | S182: 55 | T182: 1 | U182: ALLEGHENY VALLEY EX | V182: PA | W182: 028 | Y182: SEGMENT | Z182: BRIDGE | AA182: 29 | AB182: 4 | AC182: Y | AE182: 2015 | AF182: 2015 | AG182: EXCELLENT | AH182: GOOD | AI182: 2 | AJ182: 2 | AK182: RCRS | AL182: 1908 | AM182: 3816 | AN182: 0 | AO182: 0 | AP182: 0 | AQ182: 23841 | AR182: 47682 | AT182: 10 | AU182: 0 | AV182: 10 | AW182: 7.5 | AX182: 5 | AY182: 10 | AZ182: 5 | BA182: 0 | BB182: 0 | BD182: =(AT182*InputWeights!$C$6+AU182*InputWeights!$C$7) -> 5 | BE182: =(AY182*InputWeights!$C$15+AX182*InputWeights!$C$16+AW182*InputWeights!$C$17+AV182*InputWeights!$C$18) -> 8.25 | BF182: =(AZ182*InputWeights!$C$11+BA182*InputWeights!$C$10+BB182*InputWeights!$C$12) -> 2 | BG182: =(BE182*InputWeights!$C$14+BD182*InputWeights!$C$5+BF182*InputWeights!$C$9) -> 54 | BH182: =((_xlfn.RANK.EQ(BG182,$BG$2:$BG$6635,0))/(COUNT(BG$2:$BG$6635)))*100 -> 2.683147422 | BI182: 5
A183: 4804120060 | B183: 0412 | C183: 48 | D183: Northampton | E183: 05 | F183: 1 | G183: 0060 | H183: 1871 | I183: 2300 | J183: 0 | K183: 1954 | L183: 2009 | M183: 2 | N183: 40 | O183: 62 | P183: 2 | Q183: 0 | R183: 0 | S183: 140 | T183: 3 | U183: MAIN ST | V183: PA | W183: 412 | Y183: SPRUCE ST | Z183: WATER ST | AA183: 29 | AB183: 4 | AC183: N | AE183: 2015 | AF183: 2015 | AG183: GOOD | AH183: GOOD | AI183: 4 | AJ183: 2 | AK183: RCRS | AL183: 559 | AM183: 559 | AN183: 1 | AO183: 2.82202 | AP183: 4 | AQ183: 13703 | AR183: 13703 | AT183: 1 | AU183: 10 | AV183: 10 | AW183: 2.5 | AX183: 2 | AY183: 3 | AZ183: 5 | BA183: 10 | BB183: 10 | BD183: =(AT183*InputWeights!$C$6+AU183*InputWeights!$C$7) -> 5.5 | BE183: =(AY183*InputWeights!$C$15+AX183*InputWeights!$C$16+AW183*InputWeights!$C$17+AV183*InputWeights!$C$18) -> 3.35 | BF183: =(AZ183*InputWeights!$C$11+BA183*InputWeights!$C$10+BB183*InputWeights!$C$12) -> 8 | BG183: =(BE183*InputWeights!$C$14+BD183*InputWeights!$C$5+BF183*InputWeights!$C$9) -> 53.9 | BH183: =((_xlfn.RANK.EQ(BG183,$BG$2:$BG$6635,0))/(COUNT(BG$2:$BG$6635)))*100 -> 2.74344287 | BI183: 5
A184: 4804120070 | B184: 0412 | C184: 48 | D184: Northampton | E184: 05 | F184: 1 | G184: 0070 | H184: 2741 | I184: 2400 | J184: 0 | K184: 1954 | L184: 2009 | M184: 2 | N184: 40 | O184: 62 | P184: 2 | Q184: 0 | R184: 0 | S184: 119 | T184: 3 | U184: MAIN ST | V184: PA | W184: 412 | Y184: WATER ST | Z184: LINDEN AV | AA184: 29 | AB184: 4 | AC184: N | AE184: 2015 | AF184: 2015 | AG184: GOOD | AH184: GOOD | AI184: 4 | AJ184: 2 | AK184: RCRS | AL184: 950 | AM184: 950 | AN184: 3 | AO184: 5.778913 | AP184: 4 | AQ184: 13804 | AR184: 13804 | AT184: 1 | AU184: 10 | AV184: 10 | AW184: 2.5 | AX184: 2 | AY184: 3 | AZ184: 5 | BA184: 10 | BB184: 10 | BD184: =(AT184*InputWeights!$C$6+AU184*InputWeights!$C$7) -> 5.5 | BE184: =(AY184*InputWeights!$C$15+AX184*InputWeights!$C$16+AW184*InputWeights!$C$17+AV184*InputWeights!$C$18) -> 3.35 | BF184: =(AZ184*InputWeights!$C$11+BA184*InputWeights!$C$10+BB184*InputWeights!$C$12) -> 8 | BG184: =(BE184*InputWeights!$C$14+BD184*InputWeights!$C$5+BF184*InputWeights!$C$9) -> 53.9 | BH184: =((_xlfn.RANK.EQ(BG184,$BG$2:$BG$6635,0))/(COUNT(BG$2:$BG$6635)))*100 -> 2.74344287 | BI184: 5
A185: 4901470580 | B185: 0147 | C185: 49 | D185: Northumberland | E185: 03 | F185: 1 | G185: 0580 | H185: 2440 | I185: 10400 | J185: 10 | K185: 1988 | L185: 1988 | M185: 2 | N185: 36 | O185: 98 | P185: 2 | Q185: 0 | R185: 0 | S185: 102 | T185: 3 | U185: BRIDGE AV | V185: PA | W185: 147 | Y185: SHIKELLANY AV | Z185: PARK DR | AA185: 49 | AB185: 2 | AC185: Y | AE185: 2016 | AF185: 2016 | AG185: GOOD | AH185: GOOD | AI185: 3 | AJ185: 2 | AK185: RCRS | AL185: 888 | AM185: 888 | AN185: 0 | AO185: 0 | AP185: 4 | AQ185: 14789 | AR185: 14789 | AT185: 1 | AU185: 10 | AV185: 10 | AW185: 7.5 | AX185: 2 | AY185: 3 | AZ185: 5 | BA185: 10 | BB185: 0 | BD185: =(AT185*InputWeights!$C$6+AU185*InputWeights!$C$7) -> 5.5 | BE185: =(AY185*InputWeights!$C$15+AX185*InputWeights!$C$16+AW185*InputWeights!$C$17+AV185*InputWeights!$C$18) -> 4.85 | BF185: =(AZ185*InputWeights!$C$11+BA185*InputWeights!$C$10+BB185*InputWeights!$C$12) -> 6 | BG185: =(BE185*InputWeights!$C$14+BD185*InputWeights!$C$5+BF185*InputWeights!$C$9) -> 53.9 | BH185: =((_xlfn.RANK.EQ(BG185,$BG$2:$BG$6635,0))/(COUNT(BG$2:$BG$6635)))*100 -> 2.74344287 | BI185: 5
A186: 4901470590 | B186: 0147 | C186: 49 | D186: Northumberland | E186: 03 | F186: 1 | G186: 0590 | H186: 1931 | I186: 10500 | J186: 10 | K186: 1988 | L186: 1988 | M186: 2 | N186: 40 | O186: 98 | P186: 2 | Q186: 0 | R186: 0 | S186: 165 | T186: 3 | U186: BRIDGE AV | V186: PA | W186: 147 | Y186: PARK DR | Z186: SEGMENT | AA186: 29 | AB186: 2 | AC186: Y | AE186: 2016 | AF186: 2016 | AG186: FAIR | AH186: GOOD | AI186: 3 | AJ186: 2 | AK186: RCRS | AL186: 888 | AM186: 888 | AN186: 0 | AO186: 0 | AP186: 4 | AQ186: 14789 | AR186: 14789 | AT186: 1 | AU186: 10 | AV186: 10 | AW186: 7.5 | AX186: 2 | AY186: 3 | AZ186: 5 | BA186: 10 | BB186: 0 | BD186: =(AT186*InputWeights!$C$6+AU186*InputWeights!$C$7) -> 5.5 | BE186: =(AY186*InputWeights!$C$15+AX186*InputWeights!$C$16+AW186*InputWeights!$C$17+AV186*InputWeights!$C$18) -> 4.85 | BF186: =(AZ186*InputWeights!$C$11+BA186*InputWeights!$C$10+BB186*InputWeights!$C$12) -> 6 | BG186: =(BE186*InputWeights!$C$14+BD186*InputWeights!$C$5+BF186*InputWeights!$C$9) -> 53.9 | BH186: =((_xlfn.RANK.EQ(BG186,$BG$2:$BG$6635,0))/(COUNT(BG$2:$BG$6635)))*100 -> 2.74344287 | BI186: 5
A187: 0340100010 | B187: 4010 | C187: 03 | D187: Armstrong | E187: 10 | F187: 1 | G187: 0010 | H187: 2925 | I187: 30001600 | J187: 0 | K187: 1919 | L187: 2009 | M187: 2 | N187: 22 | O187: 62 | P187: 2 | Q187: 0 | R187: 0 | S187: 146 | T187: 3 | U187: MAIN ST | W187: 000 | Y187: YELLOW DOG RD | Z187: CEMETERY AL | AA187: 59 | AB187: 1 | AC187: N | AE187: 2015 | AF187: 2015 | AG187: GOOD | AH187: GOOD | AI187: 7 | AJ187: 2 | AK187: RCRS | AL187: 57 | AM187: 57 | AN187: 1 | AO187: 1.805128 | AP187: 1 | AQ187: 630 | AR187: 630 | AT187: 7.5 | AU187: 10 | AV187: 0 | AW187: 1 | AX187: 1 | AY187: 1 | AZ187: 5 | BA187: 10 | BB187: 10 | BD187: =(AT187*InputWeights!$C$6+AU187*InputWeights!$C$7) -> 8.75 | BE187: =(AY187*InputWeights!$C$15+AX187*InputWeights!$C$16+AW187*InputWeights!$C$17+AV187*InputWeights!$C$18) -> 0.9 | BF187: =(AZ187*InputWeights!$C$11+BA187*InputWeights!$C$10+BB187*InputWeights!$C$12) -> 8 | BG187: =(BE187*InputWeights!$C$14+BD187*InputWeights!$C$5+BF187*InputWeights!$C$9) -> 53.85 | BH187: =((_xlfn.RANK.EQ(BG187,$BG$2:$BG$6635,0))/(COUNT(BG$2:$BG$6635)))*100 -> 2.803738318 | BI187: 5
A188: 2010410050 | B188: 1041 | C188: 20 | D188: Crawford | E188: 01 | F188: 1 | G188: 0050 | H188: 2188 | I188: 200003500 | J188: 0 | K188: 1952 | L188: 2012 | M188: 2 | N188: 21 | O188: 52 | P188: 2 | Q188: 0 | R188: 0 | S188: 215 | T188: 3 | U188: BRITTON RUN RD | W188: 000 | Y188: BRIDGE | Z188: FIRTH RD | AA188: 39 | AB188: 1 | AC188: N | AF188: 2014 | AG188: FAIR | AH188: GOOD | AI188: 7 | AJ188: 2 | AK188: RCRS | AL188: 11 | AM188: 11 | AN188: 1 | AO188: 2.413163 | AP188: 1 | AQ188: 106 | AR188: 106 | AT188: 7.5 | AU188: 10 | AV188: 0 | AW188: 1 | AX188: 1 | AY188: 1 | AZ188: 5 | BA188: 10 | BB188: 10 | BD188: =(AT188*InputWeights!$C$6+AU188*InputWeights!$C$7) -> 8.75 | BE188: =(AY188*InputWeights!$C$15+AX188*InputWeights!$C$16+AW188*InputWeights!$C$17+AV188*InputWeights!$C$18) -> 0.9 | BF188: =(AZ188*InputWeights!$C$11+BA188*InputWeights!$C$10+BB188*InputWeights!$C$12) -> 8 | BG188: =(BE188*InputWeights!$C$14+BD188*InputWeights!$C$5+BF188*InputWeights!$C$9) -> 53.85 | BH188: =((_xlfn.RANK.EQ(BG188,$BG$2:$BG$6635,0))/(COUNT(BG$2:$BG$6635)))*100 -> 2.803738318 | BI188: 5
A189: 3210530050 | B189: 1053 | C189: 32 | D189: Indiana | E189: 10 | F189: 1 | G189: 0050 | H189: 1652 | I189: 320002700 | J189: 0 | K189: 1900 | L189: 2011 | M189: 2 | N189: 15 | O189: 52 | P189: 2 | Q189: 0 | R189: 0 | S189: 326 | T189: 3 | U189: LOCKVALE RD | W189: 000 | Y189: BRIDGE | Z189: SEGMENT | AA189: 59 | AB189: 1 | AC189: N | AF189: 2014 | AG189: POOR | AH189: POOR | AI189: 7 | AJ189: 2 | AK189: RCRS | AL189: 18 | AM189: 18 | AN189: 0 | AO189: 0 | AP189: 1 | AQ189: 59 | AR189: 59 | AT189: 7.5 | AU189: 10 | AV189: 0 | AW189: 1 | AX189: 1 | AY189: 1 | AZ189: 10 | BA189: 10 | BB189: 0 | BD189: =(AT189*InputWeights!$C$6+AU189*InputWeights!$C$7) -> 8.75 | BE189: =(AY189*InputWeights!$C$15+AX189*InputWeights!$C$16+AW189*InputWeights!$C$17+AV189*InputWeights!$C$18) -> 0.9 | BF189: =(AZ189*InputWeights!$C$11+BA189*InputWeights!$C$10+BB189*InputWeights!$C$12) -> 8 | BG189: =(BE189*InputWeights!$C$14+BD189*InputWeights!$C$5+BF189*InputWeights!$C$9) -> 53.85 | BH189: =((_xlfn.RANK.EQ(BG189,$BG$2:$BG$6635,0))/(COUNT(BG$2:$BG$6635)))*100 -> 2.803738318 | BI189: 5
A190: 2202300300 | B190: 0230 | C190: 22 | D190: Dauphin | E190: 08 | F190: 1 | G190: 0300 | H190: 2384 | I190: 3100 | J190: 0 | K190: 1950 | L190: 2001 | M190: 2 | N190: 44 | O190: 62 | P190: 2 | Q190: 0 | R190: 0 | S190: 322 | T190: 3 | U190: MAIN ST | V190: PA | W190: 230 | Y190: RACE ST | Z190: BRIDGE | AA190: 29 | AB190: 4 | AC190: Y | AE190: 2015 | AF190: 2015 | AG190: POOR | AH190: POOR | AI190: 3 | AJ190: 2 | AK190: RCRS | AL190: 248 | AM190: 248 | AN190: 2 | AO190: 4.42953 | AP190: 3 | AQ190: 6953 | AR190: 6953 | AT190: 2.5 | AU190: 10 | AV190: 10 | AW190: 7.5 | AX190: 1 | AY190: 2 | AZ190: 10 | BA190: 0 | BB190: 10 | BD190: =(AT190*InputWeights!$C$6+AU190*InputWeights!$C$7) -> 6.25 | BE190: =(AY190*InputWeights!$C$15+AX190*InputWeights!$C$16+AW190*InputWeights!$C$17+AV190*InputWeights!$C$18) -> 4.25 | BF190: =(AZ190*InputWeights!$C$11+BA190*InputWeights!$C$10+BB190*InputWeights!$C$12) -> 6 | BG190: =(BE190*InputWeights!$C$14+BD190*InputWeights!$C$5+BF190*InputWeights!$C$9) -> 53.75 | BH190: =((_xlfn.RANK.EQ(BG190,$BG$2:$BG$6635,0))/(COUNT(BG$2:$BG$6635)))*100 -> 2.848959904 | BI190: 5
A191: 4600730270 | B191: 0073 | C191: 46 | D191: Montgomery | E191: 06 | F191: 1 | G191: 0270 | H191: 2417 | I191: 8200 | J191: 10 | K191: 1936 | L191: 2008 | M191: 2 | N191: 22 | O191: 52 | P191: 2 | Q191: 0 | R191: 0 | S191: 131 | T191: 3 | U191: SKIPPACK PK | V191: PA | W191: 073 | Y191: OLDFORTY FOOT | Z191: KERR RD | AA191: 49 | AB191: 4 | AC191: Y | AE191: 2015 | AF191: 2015 | AG191: FAIR | AH191: GOOD | AI191: 3 | AJ191: 2 | AK191: RCRS | AL191: 931 | AM191: 931 | AN191: 0 | AO191: 0 | AP191: 3 | AQ191: 15524 | AR191: 15524 | AT191: 2.5 | AU191: 10 | AV191: 0 | AW191: 7.5 | AX191: 2 | AY191: 4 | AZ191: 5 | BA191: 10 | BB191: 0 | BD191: =(AT191*InputWeights!$C$6+AU191*InputWeights!$C$7) -> 6.25 | BE191: =(AY191*InputWeights!$C$15+AX191*InputWeights!$C$16+AW191*InputWeights!$C$17+AV191*InputWeights!$C$18) -> 4.25 | BF191: =(AZ191*InputWeights!$C$11+BA191*InputWeights!$C$10+BB191*InputWeights!$C$12) -> 6 | BG191: =(BE191*InputWeights!$C$14+BD191*InputWeights!$C$5+BF191*InputWeights!$C$9) -> 53.75 | BH191: =((_xlfn.RANK.EQ(BG191,$BG$2:$BG$6635,0))/(COUNT(BG$2:$BG$6635)))*100 -> 2.848959904 | BI191: 5
A192: 0601830150 | B192: 0183 | C192: 06 | D192: Berks | E192: 05 | F192: 1 | G192: 0150 | H192: 3341 | I192: 1700 | J192: 10 | K192: 1939 | L192: 2005 | M192: 2 | N192: 22 | O192: 62 | P192: 2 | Q192: 0 | R192: 0 | S192: 146 | T192: 3 | U192: BERNVILLE RD | V192: PA | W192: 183 | Y192: PLUM CREEK RD | Z192: SEGMENT | AA192: 49 | AB192: 1 | AC192: N | AE192: 2015 | AF192: 2015 | AG192: GOOD | AH192: FAIR | AI192: 4 | AJ192: 2 | AK192: RCRS | AL192: 1160 | AM192: 1160 | AN192: 1 | AO192: 1.580365 | AP192: 4 | AQ192: 13556 | AR192: 13556 | AT192: 1 | AU192: 10 | AV192: 0 | AW192: 2.5 | AX192: 3 | AY192: 3 | AZ192: 7.5 | BA192: 10 | BB192: 10 | BD192: =(AT192*InputWeights!$C$6+AU192*InputWeights!$C$7) -> 5.5 | BE192: =(AY192*InputWeights!$C$15+AX192*InputWeights!$C$16+AW192*InputWeights!$C$17+AV192*InputWeights!$C$18) -> 2.55 | BF192: =(AZ192*InputWeights!$C$11+BA192*InputWeights!$C$10+BB192*InputWeights!$C$12) -> 9 | BG192: =(BE192*InputWeights!$C$14+BD192*InputWeights!$C$5+BF192*InputWeights!$C$9) -> 53.7 | BH192: =((_xlfn.RANK.EQ(BG192,$BG$2:$BG$6635,0))/(COUNT(BG$2:$BG$6635)))*100 -> 2.879107627 | BI192: 5
A193: 4630200060 | B193: 3020 | C193: 46 | D193: Montgomery | E193: 06 | F193: 1 | G193: 0060 | H193: 2612 | I193: 460019000 | J193: 0 | K193: 1930 | L193: 1980 | M193: 2 | N193: 36 | O193: 61 | P193: 2 | Q193: 0 | R193: 0 | S193: 361 | T193: 3 | U193: MARKLEY ST | V193: US | W193: 202 | Y193: NORRISTOWN | Z193: STERIGER ST | AB193: 4 | AC193: Y | AE193: 2015 | AF193: 2015 | AG193: POOR | AH193: POOR | AI193: 3 | AJ193: 2 | AK193: RCRS | AL193: 515 | AM193: 515 | AN193: 0 | AO193: 0 | AP193: 1 | AQ193: 14726 | AR193: 14726 | AT193: 7.5 | AU193: 10 | AV193: 0 | AW193: 7.5 | AX193: 2 | AY193: 3 | AZ193: 10 | BA193: 0 | BB193: 0 | BD193: =(AT193*InputWeights!$C$6+AU193*InputWeights!$C$7) -> 8.75 | BE193: =(AY193*InputWeights!$C$15+AX193*InputWeights!$C$16+AW193*InputWeights!$C$17+AV193*InputWeights!$C$18) -> 3.85 | BF193: =(AZ193*InputWeights!$C$11+BA193*InputWeights!$C$10+BB193*InputWeights!$C$12) -> 4 | BG193: =(BE193*InputWeights!$C$14+BD193*InputWeights!$C$5+BF193*InputWeights!$C$9) -> 53.65 | BH193: =((_xlfn.RANK.EQ(BG193,$BG$2:$BG$6635,0))/(COUNT(BG$2:$BG$6635)))*100 -> 2.894181489 | BI193: 5
A194: 0220100010 | B194: 2010 | C194: 02 | D194: Allegheny | E194: 11 | F194: 1 | G194: 0010 | H194: 3319 | I194: 20000500 | J194: 0 | K194: 1900 | L194: 2011 | M194: 2 | N194: 20 | O194: 52 | P194: 2 | Q194: 0 | R194: 0 | S194: 150 | T194: 3 | U194: LOVEDALE RD | W194: 000 | Y194: MCKEESPORT RD | Z194: LINCOLN | AA194: 79 | AB194: 4 | AC194: N | AE194: 2015 | AF194: 2015 | AG194: GOOD | AH194: FAIR | AI194: 4 | AJ194: 2 | AK194: RCRS | AL194: 564 | AM194: 564 | AN194: 3 | AO194: 4.772522 | AP194: 3 | AQ194: 8054 | AR194: 8054 | AT194: 2.5 | AU194: 10 | AV194: 0 | AW194: =IF(AI194=1,10,IF(AI194=2,7.5,IF(AI194=3,7.5,IF(AI194=4,2.5,IF(AI194=5,2.5,IF(AI194=6,2.5,IF(AI194=7,1,5))))))) -> 2.5 | AX194: =IF(AM194<500, 1, IF(AM194<1000, 2, IF(AM194<2000, 3, IF(AM194<3000, 4,IF(AM194<4000, 5, IF(AM194<5000, 6,IF(AM194<6000,7,IF(AM194<7000,8, IF(AM194<8000,9,10))))))))) -> 2 | AY194: 2 | AZ194: 7.5 | BA194: 10 | BB194: 10 | BD194: =(AT194*InputWeights!$C$6+AU194*InputWeights!$C$7) -> 6.25 | BE194: =(AY194*InputWeights!$C$15+AX194*InputWeights!$C$16+AW194*InputWeights!$C$17+AV194*InputWeights!$C$18) -> 1.95 | BF194: =(AZ194*InputWeights!$C$11+BA194*InputWeights!$C$10+BB194*InputWeights!$C$12) -> 9 | BG194: =(BE194*InputWeights!$C$14+BD194*InputWeights!$C$5+BF194*InputWeights!$C$9) -> 53.55 | BH194: =((_xlfn.RANK.EQ(BG194,$BG$2:$BG$6635,0))/(COUNT(BG$2:$BG$6635)))*100 -> 2.909255351 | BI194: =IF(BH194<1,1,IF(BH194<5,5,IF(BH194<10,10,IF(BH194<15,15,IF(BH194<20,20,IF(BH194<25,25,0)))))) -> 5
A195: 0220100020 | B195: 2010 | C195: 02 | D195: Allegheny | E195: 11 | F195: 1 | G195: 0020 | H195: 3198 | I195: 20000600 | J195: 0 | K195: 1900 | L195: 2011 | M195: 2 | N195: 20 | O195: 52 | P195: 2 | Q195: 0 | R195: 0 | S195: 165 | T195: 3 | U195: LOVEDALE RD | W195: 000 | Y195: LINCOLN | Z195: MILL HILL RD | AA195: 79 | AB195: 4 | AC195: N | AE195: 2015 | AF195: 2015 | AG195: FAIR | AH195: FAIR | AI195: 4 | AJ195: 2 | AK195: RCRS | AL195: 564 | AM195: 564 | AN195: 5 | AO195: 8.255159 | AP195: 3 | AQ195: 8054 | AR195: 8054 | AT195: 2.5 | AU195: 10 | AV195: 0 | AW195: 2.5 | AX195: 2 | AY195: 2 | AZ195: 7.5 | BA195: 10 | BB195: 10 | BD195: =(AT195*InputWeights!$C$6+AU195*InputWeights!$C$7) -> 6.25 | BE195: =(AY195*InputWeights!$C$15+AX195*InputWeights!$C$16+AW195*InputWeights!$C$17+AV195*InputWeights!$C$18) -> 1.95 | BF195: =(AZ195*InputWeights!$C$11+BA195*InputWeights!$C$10+BB195*InputWeights!$C$12) -> 9 | BG195: =(BE195*InputWeights!$C$14+BD195*InputWeights!$C$5+BF195*InputWeights!$C$9) -> 53.55 | BH195: =((_xlfn.RANK.EQ(BG195,$BG$2:$BG$6635,0))/(COUNT(BG$2:$BG$6635)))*100 -> 2.909255351 | BI195: 5
A196: 0430160231 | B196: 3016 | C196: 04 | D196: Beaver | E196: 11 | F196: 1 | G196: 0231 | H196: 2072 | I196: 40003300 | J196: 0 | K196: 1963 | L196: 1989 | M196: 1 | N196: 25 | O196: 74 | P196: 2 | Q196: 2 | R196: 999 | S196: 218 | T196: 3 | U196: KENNEDY BL | W196: 000 | Y196: SEGMENT | Z196: WAUGAMAN ST | AA196: 29 | AB196: 4 | AC196: N | AE196: 2015 | AF196: 2015 | AG196: POOR | AH196: POOR | AI196: 4 | AJ196: 2 | AK196: RCRS | AL196: 186 | AM196: 372 | AN196: 0 | AO196: 0 | AP196: 2 | AQ196: 4634 | AR196: 9268 | AT196: 5 | AU196: 10 | AV196: 0 | AW196: 2.5 | AX196: 1 | AY196: 2 | AZ196: 10 | BA196: 10 | BB196: 0 | BD196: =(AT196*InputWeights!$C$6+AU196*InputWeights!$C$7) -> 7.5 | BE196: =(AY196*InputWeights!$C$15+AX196*InputWeights!$C$16+AW196*InputWeights!$C$17+AV196*InputWeights!$C$18) -> 1.75 | BF196: =(AZ196*InputWeights!$C$11+BA196*InputWeights!$C$10+BB196*InputWeights!$C$12) -> 8 | BG196: =(BE196*InputWeights!$C$14+BD196*InputWeights!$C$5+BF196*InputWeights!$C$9) -> 53.5 | BH196: =((_xlfn.RANK.EQ(BG196,$BG$2:$BG$6635,0))/(COUNT(BG$2:$BG$6635)))*100 -> 2.939403075 | BI196: 5
A197: 0920430060 | B197: 2043 | C197: 09 | D197: Bucks | E197: 06 | F197: 1 | G197: 0060 | H197: 3845 | I197: 90002200 | J197: 10 | K197: 1990 | L197: 1999 | M197: 2 | N197: 29 | O197: 61 | P197: 2 | Q197: 0 | R197: 0 | S197: 267 | T197: 3 | U197: BROWNSVILLE RD | W197: 000 | Y197: MANOR LN | Z197: CREEK RD | AA197: 69 | AB197: 4 | AC197: N | AE197: 2015 | AF197: 2015 | AG197: POOR | AH197: POOR | AI197: 5 | AJ197: 2 | AK197: RCRS | AL197: 333 | AM197: 333 | AN197: 1 | AO197: 1.373212 | AP197: 4 | AQ197: 6661 | AR197: 6661 | AT197: 1 | AU197: 10 | AV197: 0 | AW197: 2.5 | AX197: 1 | AY197: 2 | AZ197: 10 | BA197: 10 | BB197: 10 | BD197: =(AT197*InputWeights!$C$6+AU197*InputWeights!$C$7) -> 5.5 | BE197: =(AY197*InputWeights!$C$15+AX197*InputWeights!$C$16+AW197*InputWeights!$C$17+AV197*InputWeights!$C$18) -> 1.75 | BF197: =(AZ197*InputWeights!$C$11+BA197*InputWeights!$C$10+BB197*InputWeights!$C$12) -> 10 | BG197: =(BE197*InputWeights!$C$14+BD197*InputWeights!$C$5+BF197*InputWeights!$C$9) -> 53.5 | BH197: =((_xlfn.RANK.EQ(BG197,$BG$2:$BG$6635,0))/(COUNT(BG$2:$BG$6635)))*100 -> 2.939403075 | BI197: 5
A198: 1309020230 | B198: 0902 | C198: 13 | D198: Carbon | E198: 05 | F198: 1 | G198: 0230 | H198: 3586 | I198: 2300 | J198: 0 | K198: 1962 | L198: 1992 | M198: 2 | N198: 40 | O198: 52 | P198: 2 | Q198: 0 | R198: 0 | S198: 238 | T198: 3 | U198: NINTH ST | V198: PA | W198: 902 | Y198: MAHONING ST | Z198: BLAKESLEE BLV | AA198: 39 | AB198: 4 | AC198: N | AF198: 2014 | AG198: POOR | AH198: POOR | AI198: 5 | AJ198: 2 | AK198: RCRS | AL198: 272 | AM198: 272 | AN198: 1 | AO198: 1.472393 | AP198: 4 | AQ198: 6640 | AR198: 6640 | AT198: 1 | AU198: 10 | AV198: 0 | AW198: 2.5 | AX198: 1 | AY198: 2 | AZ198: 10 | BA198: 10 | BB198: 10 | BD198: =(AT198*InputWeights!$C$6+AU198*InputWeights!$C$7) -> 5.5 | BE198: =(AY198*InputWeights!$C$15+AX198*InputWeights!$C$16+AW198*InputWeights!$C$17+AV198*InputWeights!$C$18) -> 1.75 | BF198: =(AZ198*InputWeights!$C$11+BA198*InputWeights!$C$10+BB198*InputWeights!$C$12) -> 10 | BG198: =(BE198*InputWeights!$C$14+BD198*InputWeights!$C$5+BF198*InputWeights!$C$9) -> 53.5 | BH198: =((_xlfn.RANK.EQ(BG198,$BG$2:$BG$6635,0))/(COUNT(BG$2:$BG$6635)))*100 -> 2.939403075 | BI198: 5
A199: 6700950244 | B199: 0095 | C199: 67 | D199: Philadelphia | E199: 06 | F199: 1 | G199: 0244 | H199: 1808 | I199: 4800 | J199: 0 | K199: 1968 | L199: 2009 | M199: 1 | N199: 60 | O199: 62 | P199: 4 | Q199: 2 | R199: 20 | S199: 108 | T199: 1 | U199: DELAWARE EX | V199: I | W199: 095 | Y199: SEGMENT | Z199: BRIDGE | AA199: 29 | AB199: 4 | AC199: Y | AF199: 2014 | AG199: FAIR | AH199: GOOD | AI199: 1 | AJ199: 1 | AK199: Stakeholder Comment | AL199: 4638 | AM199: 9276 | AN199: 0 | AO199: 0 | AP199: 0 | AQ199: 80304 | AR199: 160608 | AT199: 5 | AU199: 0 | AV199: 10 | AW199: 10 | AX199: 10 | AY199: 10 | AZ199: 5 | BA199: 0 | BB199: 0 | BD199: =(AT199*InputWeights!$C$6+AU199*InputWeights!$C$7) -> 2.5 | BE199: =(AY199*InputWeights!$C$15+AX199*InputWeights!$C$16+AW199*InputWeights!$C$17+AV199*InputWeights!$C$18) -> 10 | BF199: =(AZ199*InputWeights!$C$11+BA199*InputWeights!$C$10+BB199*InputWeights!$C$12) -> 2 | BG199: =(BE199*InputWeights!$C$14+BD199*InputWeights!$C$5+BF199*InputWeights!$C$9) -> 53.5 | BH199: =((_xlfn.RANK.EQ(BG199,$BG$2:$BG$6635,0))/(COUNT(BG$2:$BG$6635)))*100 -> 2.939403075 | BI199: 5
A200: 6730950010 | B200: 3095 | C200: 67 | D200: Philadelphia | E200: 06 | F200: 1 | G200: 0010 | H200: 3311 | I200: 670000700 | J200: 0 | K200: 1971 | L200: 1971 | M200: 1 | N200: 24 | O200: 71 | P200: 2 | Q200: 6 | R200: 30 | S200: 133 | T200: 3 | U200: I-95 COLLECTOR RD | W200: 000 | Y200: DELAWARE EX | Z200: SEGMENT | AB200: 4 | AC200: Y | AE200: 2015 | AF200: 2015 | AG200: FAIR | AH200: GOOD | AI200: 3 | AJ200: 2 | AK200: RCRS | AL200: 1463 | AM200: 2926 | AN200: 0 | AO200: 0 | AP200: 2 | AQ200: 18291 | AR200: 36582 | AT200: 5 | AU200: 10 | AV200: 0 | AW200: 7.5 | AX200: 4 | AY200: 8 | AZ200: 5 | BA200: 0 | BB200: 0 | BD200: =(AT200*InputWeights!$C$6+AU200*InputWeights!$C$7) -> 7.5 | BE200: =(AY200*InputWeights!$C$15+AX200*InputWeights!$C$16+AW200*InputWeights!$C$17+AV200*InputWeights!$C$18) -> 6.25 | BF200: =(AZ200*InputWeights!$C$11+BA200*InputWeights!$C$10+BB200*InputWeights!$C$12) -> 2 | BG200: =(BE200*InputWeights!$C$14+BD200*InputWeights!$C$5+BF200*InputWeights!$C$9) -> 53.5 | BH200: =((_xlfn.RANK.EQ(BG200,$BG$2:$BG$6635,0))/(COUNT(BG$2:$BG$6635)))*100 -> 2.939403075 | BI200: 5
... 925 more rows

Sheet District 1
A1: join_key | B1: SR Number | C1: County Code | D1: County | E1: District | F1: juris | G1: Segment | H1: seg_lngth_ | I1: seq_no | J1: sub_route | K1: yr_built | L1: yr_resurf | M1: fac_type | N1: total_widt | O1: surf_type | P1: lane_cnt | Q1: divsr_type | R1: divsr_widt | S1: rough_indx | T1: access_ctr | U1: Street Name | V1: traf_rt_no | W1: traf_rt__1 | X1: traf_rt__2 | Y1: bgn_desc | Z1: end_desc | AA1: maint_resp | AB1: urban_rura | AC1: nhs_ind | AD1: street_n_1 | AE1: iri_year | AF1: opi_year | AG1: iri_rating | AH1: opi_rating | AI1: functionalClass | AJ1: WikimapOrRCRS | AK1: Source | AL1: ADTT | AM1: 2WAYADTT | AN1: NumberClog | AO1: ClogPerMile | AP1: Amount_Category | AQ1: cur_aadt | AR1: 2Way_AADT | AT1: Amount_Score | AU1: Floodzone | AV1: Detour_Score | AW1: FuncClass_Score | AX1: Truck_Score | AY1: AADT_Score | AZ1: OPI_Score | BA1: Scour_Score | BB1: Clog_Score | BD1: Exposure | BE1: Consequence | BF1: Sensitivity | BG1: TotalScore | BH1: Percentile | BI1: Percentile Category
A2: 2500080600 | B2: 0008 | C2: 25 | D2: Erie | E2: 01 | F2: 1 | G2: 0600 | H2: 2299 | I2: 30800 | J2: 10 | K2: 1900 | L2: 2009 | M2: 2 | N2: 22 | O2: 62 | P2: 2 | Q2: 0 | R2: 0 | S2: 108 | T2: 3 | U2: WATTSBURG RD | V2: PA | W2: 008 | Y2: RR OVERPASS | Z2: NORCROSS RD | AA2: 39 | AB2: 3 | AC2: Y | AE2: 2016 | AF2: 2016 | AG2: GOOD | AH2: FAIR | AI2: 3 | AJ2: 2 | AK2: RCRS | AL2: 400 | AM2: 400 | AN2: 0 | AO2: 0 | AP2: 0 | AQ2: 8049 | AR2: 8049 | AT2: 10 | AU2: 10 | AV2: 0 | AW2: =IF(AI2=1,10,IF(AI2=2,7.5,IF(AI2=3,7.5,IF(AI2=4,2.5,IF(AI2=5,2.5,IF(AI2=6,2.5,IF(AI2=7,1,5))))))) -> 7.5 | AX2: =IF(AM2<500, 1, IF(AM2<1000, 2, IF(AM2<2000, 3, IF(AM2<3000, 4,IF(AM2<4000, 5, IF(AM2<5000, 6,IF(AM2<6000,7,IF(AM2<7000,8, IF(AM2<8000,9,10))))))))) -> 1 | AY2: 2 | AZ2: 7.5 | BA2: 10 | BB2: 0 | BD2: =(AT2*InputWeights!$C$6+AU2*InputWeights!$C$7) -> 10 | BE2: =(AY2*InputWeights!$C$15+AX2*InputWeights!$C$16+AW2*InputWeights!$C$17+AV2*InputWeights!$C$18) -> 3.25 | BF2: =(AZ2*InputWeights!$C$11+BA2*InputWeights!$C$10+BB2*InputWeights!$C$12) -> 7 | BG2: =(BE2*InputWeights!$C$14+BD2*InputWeights!$C$5+BF2*InputWeights!$C$9) -> 64 | BH2: =((_xlfn.RANK.EQ(BG2,$BG$2:$BG$533,0))/(COUNT($BG$2:$BG$533)))*100 -> 0.1879699248 | BI2: =IF(BH2<1,1,IF(BH2<5,5,IF(BH2<10,10,IF(BH2<15,15,IF(BH2<20,20,IF(BH2<25,25,0)))))) -> 1
A3: 2010110030 | B3: 1011 | C3: 20 | D3: Crawford | E3: 01 | F3: 1 | G3: 0030 | H3: 3201 | I3: 200017600 | J3: 0 | K3: 1900 | L3: 2015 | M3: 2 | N3: 20 | O3: 52 | P3: 2 | Q3: 0 | R3: 0 | S3: 309 | T3: 3 | U3: MYSTIC PARK RD | W3: 000 | Y3: SEGMENT | Z3: SEGMENT | AA3: 39 | AB3: 1 | AC3: N | AF3: 2014 | AG3: POOR | AH3: POOR | AI3: 6 | AJ3: 2 | AK3: RCRS | AL3: 5 | AM3: 5 | AN3: 0 | AO3: 0 | AP3: 0 | AQ3: 530 | AR3: 530 | AT3: 10 | AU3: 10 | AV3: 0 | AW3: 2.5 | AX3: 1 | AY3: 1 | AZ3: 10 | BA3: 10 | BB3: 0 | BD3: =(AT3*InputWeights!$C$6+AU3*InputWeights!$C$7) -> 10 | BE3: =(AY3*InputWeights!$C$15+AX3*InputWeights!$C$16+AW3*InputWeights!$C$17+AV3*InputWeights!$C$18) -> 1.35 | BF3: =(AZ3*InputWeights!$C$11+BA3*InputWeights!$C$10+BB3*InputWeights!$C$12) -> 8 | BG3: =(BE3*InputWeights!$C$14+BD3*InputWeights!$C$5+BF3*InputWeights!$C$9) -> 59.4 | BH3: =((_xlfn.RANK.EQ(BG3,$BG$2:$BG$533,0))/(COUNT($BG$2:$BG$533)))*100 -> 0.3759398496 | BI3: 1
A4: 2010160010 | B4: 1016 | C4: 20 | D4: Crawford | E4: 01 | F4: 1 | G4: 0010 | H4: 3460 | I4: 200013000 | J4: 0 | K4: 1946 | L4: 2014 | M4: 2 | N4: 20 | O4: 52 | P4: 2 | Q4: 0 | R4: 0 | S4: 183 | T4: 3 | U4: MILLER STATION RD | W4: 000 | Y4: LAKES TO SEA | Z4: SEGMENT | AA4: 69 | AB4: 1 | AC4: N | AE4: 2015 | AF4: 2015 | AG4: FAIR | AH4: GOOD | AI4: 6 | AJ4: 3 | AK4: RCRS | AL4: 5 | AM4: 5 | AN4: 2 | AO4: 3.052023 | AP4: 0 | AQ4: 627 | AR4: 627 | AT4: 10 | AU4: 10 | AV4: 0 | AW4: 2.5 | AX4: 1 | AY4: 1 | AZ4: 5 | BA4: 10 | BB4: 10 | BD4: =(AT4*InputWeights!$C$6+AU4*InputWeights!$C$7) -> 10 | BE4: =(AY4*InputWeights!$C$15+AX4*InputWeights!$C$16+AW4*InputWeights!$C$17+AV4*InputWeights!$C$18) -> 1.35 | BF4: =(AZ4*InputWeights!$C$11+BA4*InputWeights!$C$10+BB4*InputWeights!$C$12) -> 8 | BG4: =(BE4*InputWeights!$C$14+BD4*InputWeights!$C$5+BF4*InputWeights!$C$9) -> 59.4 | BH4: 0.3759398496 | BI4: 1
A5: 6109570170 | B5: 0957 | C5: 61 | D5: Warren | E5: 01 | F5: 1 | G5: 0170 | H5: 3404 | I5: 1700 | J5: 0 | K5: 1900 | L5: 2015 | M5: 2 | N5: 20 | O5: 62 | P5: 2 | Q5: 0 | R5: 0 | S5: 316 | T5: 3 | U5: SR 0957 SH | V5: PA | W5: 957 | Y5: SR 0958 SH | Z5: SR 0958 SH | AA5: 49 | AB5: 1 | AC5: N | AE5: 2015 | AF5: 2015 | AG5: POOR | AH5: POOR | AI5: 4 | AJ5: 2 | AK5: RCRS | AL5: 110 | AM5: 110 | AN5: 0 | AO5: 0 | AP5: 0 | AQ5: 1388 | AR5: 1388 | AT5: 10 | AU5: 10 | AV5: 0 | AW5: 2.5 | AX5: 1 | AY5: 1 | AZ5: 10 | BA5: 10 | BB5: 0 | BD5: =(AT5*InputWeights!$C$6+AU5*InputWeights!$C$7) -> 10 | BE5: =(AY5*InputWeights!$C$15+AX5*InputWeights!$C$16+AW5*InputWeights!$C$17+AV5*InputWeights!$C$18) -> 1.35 | BF5: =(AZ5*InputWeights!$C$11+BA5*InputWeights!$C$10+BB5*InputWeights!$C$12) -> 8 | BG5: =(BE5*InputWeights!$C$14+BD5*InputWeights!$C$5+BF5*InputWeights!$C$9) -> 59.4 | BH5: 0.3759398496 | BI5: 1
A6: 2504260080 | B6: 0426 | C6: 25 | D6: Erie | E6: 01 | F6: 1 | G6: 0080 | H6: 2231 | I6: 3400 | J6: 0 | K6: 1900 | L6: 2000 | M6: 2 | N6: 37 | O6: 61 | P6: 2 | Q6: 0 | R6: 0 | S6: 224 | T6: 3 | U6: CENTER ST | V6: PA | W6: 426 | Y6: ELK ST | Z6: COLUMBUS AV | AA6: 49 | AB6: 2 | AC6: Y | AE6: 2016 | AF6: 2016 | AG6: POOR | AH6: POOR | AI6: 3 | AJ6: 2 | AK6: RCRS | AL6: 318 | AM6: 318 | AN6: 0 | AO6: 0 | AP6: 0 | AQ6: 5289 | AR6: 5289 | AT6: 10 | AU6: 10 | AV6: 0 | AW6: 7.5 | AX6: 1 | AY6: 2 | AZ6: 10 | BA6: 0 | BB6: 0 | BD6: =(AT6*InputWeights!$C$6+AU6*InputWeights!$C$7) -> 10 | BE6: =(AY6*InputWeights!$C$15+AX6*InputWeights!$C$16+AW6*InputWeights!$C$17+AV6*InputWeights!$C$18) -> 3.25 | BF6: =(AZ6*InputWeights!$C$11+BA6*InputWeights!$C$10+BB6*InputWeights!$C$12) -> 4 | BG6: =(BE6*InputWeights!$C$14+BD6*InputWeights!$C$5+BF6*InputWeights!$C$9) -> 55 | BH6: 0.9398496241 | BI6: 1
A7: 2010410050 | B7: 1041 | C7: 20 | D7: Crawford | E7: 01 | F7: 1 | G7: 0050 | H7: 2188 | I7: 200003500 | J7: 0 | K7: 1952 | L7: 2012 | M7: 2 | N7: 21 | O7: 52 | P7: 2 | Q7: 0 | R7: 0 | S7: 215 | T7: 3 | U7: BRITTON RUN RD | W7: 000 | Y7: BRIDGE | Z7: FIRTH RD | AA7: 39 | AB7: 1 | AC7: N | AF7: 2014 | AG7: FAIR | AH7: GOOD | AI7: 7 | AJ7: 2 | AK7: RCRS | AL7: 11 | AM7: 11 | AN7: 1 | AO7: 2.413163 | AP7: 1 | AQ7: 106 | AR7: 106 | AT7: 7.5 | AU7: 10 | AV7: 0 | AW7: 1 | AX7: 1 | AY7: 1 | AZ7: 5 | BA7: 10 | BB7: 10 | BD7: =(AT7*InputWeights!$C$6+AU7*InputWeights!$C$7) -> 8.75 | BE7: =(AY7*InputWeights!$C$15+AX7*InputWeights!$C$16+AW7*InputWeights!$C$17+AV7*InputWeights!$C$18) -> 0.9 | BF7: =(AZ7*InputWeights!$C$11+BA7*InputWeights!$C$10+BB7*InputWeights!$C$12) -> 8 | BG7: =(BE7*InputWeights!$C$14+BD7*InputWeights!$C$5+BF7*InputWeights!$C$9) -> 53.85 | BH7: 1.127819549 | BI7: 5
A8: 2006990080 | B8: 0699 | C8: 20 | D8: Crawford | E8: 01 | F8: 1 | G8: 0080 | H8: 2783 | I8: 800 | J8: 0 | K8: 1900 | L8: 2002 | M8: 2 | N8: 24 | O8: 62 | P8: 2 | Q8: 0 | R8: 0 | S8: 140 | T8: 3 | U8: FOREST ST | V8: PA | W8: 099 | Y8: SEGMENT | Z8: PLANK RD | AA8: 69 | AB8: 1 | AC8: N | AF8: 2014 | AG8: GOOD | AH8: POOR | AI8: 4 | AJ8: 2 | AK8: RCRS | AL8: 98 | AM8: 98 | AN8: 1 | AO8: 1.897233 | AP8: 0 | AQ8: 2759 | AR8: 2759 | AT8: 10 | AU8: 10 | AV8: 0 | AW8: 2.5 | AX8: 1 | AY8: 1 | AZ8: 10 | BA8: 0 | BB8: 10 | BD8: =(AT8*InputWeights!$C$6+AU8*InputWeights!$C$7) -> 10 | BE8: =(AY8*InputWeights!$C$15+AX8*InputWeights!$C$16+AW8*InputWeights!$C$17+AV8*InputWeights!$C$18) -> 1.35 | BF8: =(AZ8*InputWeights!$C$11+BA8*InputWeights!$C$10+BB8*InputWeights!$C$12) -> 6 | BG8: =(BE8*InputWeights!$C$14+BD8*InputWeights!$C$5+BF8*InputWeights!$C$9) -> 53.4 | BH8: 1.315789474 | BI8: 5
A9: 2010110080 | B9: 1011 | C9: 20 | D9: Crawford | E9: 01 | F9: 1 | G9: 0080 | H9: 3016 | I9: 200018100 | J9: 0 | K9: 1961 | L9: 2015 | M9: 2 | N9: 20 | O9: 52 | P9: 2 | Q9: 0 | R9: 0 | S9: 235 | T9: 3 | U9: MYSTIC PARK RD | W9: 000 | Y9: STROUP RD | Z9: SEGMENT | AA9: 39 | AB9: 1 | AC9: N | AF9: 2014 | AG9: POOR | AH9: GOOD | AI9: 6 | AJ9: 3 | AK9: RCRS | AL9: 5 | AM9: 5 | AN9: 0 | AO9: 0 | AP9: 0 | AQ9: 530 | AR9: 530 | AT9: 10 | AU9: 10 | AV9: 0 | AW9: 2.5 | AX9: 1 | AY9: 1 | AZ9: 5 | BA9: 10 | BB9: 0 | BD9: =(AT9*InputWeights!$C$6+AU9*InputWeights!$C$7) -> 10 | BE9: =(AY9*InputWeights!$C$15+AX9*InputWeights!$C$16+AW9*InputWeights!$C$17+AV9*InputWeights!$C$18) -> 1.35 | BF9: =(AZ9*InputWeights!$C$11+BA9*InputWeights!$C$10+BB9*InputWeights!$C$12) -> 6 | BG9: =(BE9*InputWeights!$C$14+BD9*InputWeights!$C$5+BF9*InputWeights!$C$9) -> 53.4 | BH9: 1.315789474 | BI9: 5
A10: 6060080100 | B10: 6008 | C10: 60 | D10: Venango | E10: 01 | F10: 1 | G10: 0100 | H10: 2505 | I10: 600001000 | J10: 20 | K10: 1900 | L10: 2008 | M10: 2 | N10: 36 | O10: 62 | P10: 2 | Q10: 0 | R10: 0 | S10: 160 | T10: 3 | U10: SENECA ST | W10: 000 | Y10: DUNCOMB ST | Z10: WILLIAM FLINN | AA10: 30 | AB10: 2 | AC10: N | AF10: 2014 | AG10: FAIR | AH10: GOOD | AI10: 4 | AJ10: 2 | AK10: RCRS | AL10: 107 | AM10: 107 | AN10: 0 | AO10: 0 | AP10: 0 | AQ10: 4924 | AR10: 4924 | AT10: 10 | AU10: 10 | AV10: 0 | AW10: 2.5 | AX10: 1 | AY10: 1 | AZ10: 5 | BA10: 10 | BB10: 0 | BD10: =(AT10*InputWeights!$C$6+AU10*InputWeights!$C$7) -> 10 | BE10: =(AY10*InputWeights!$C$15+AX10*InputWeights!$C$16+AW10*InputWeights!$C$17+AV10*InputWeights!$C$18) -> 1.35 | BF10: =(AZ10*InputWeights!$C$11+BA10*InputWeights!$C$10+BB10*InputWeights!$C$12) -> 6 | BG10: =(BE10*InputWeights!$C$14+BD10*InputWeights!$C$5+BF10*InputWeights!$C$9) -> 53.4 | BH10: 1.315789474 | BI10: 5
A11: 6100620660 | B11: 0062 | C11: 61 | D11: Warren | E11: 01 | F11: 1 | G11: 0660 | H11: 2837 | I11: 25700 | J11: 10 | K11: 1998 | L11: 1998 | M11: 2 | N11: 24 | O11: 61 | P11: 2 | Q11: 0 | R11: 0 | S11: 54 | T11: 3 | U11: MARKET ST | V11: US | W11: 062 | Y11: DRAIN LEFT | Z11: BRIDGE | AA11: 39 | AB11: 1 | AC11: Y | AE11: 2016 | AF11: 2016 | AG11: EXCELLENT | AH11: GOOD | AI11: 3 | AJ11: 3 | AK11: RCRS | AL11: 427 | AM11: 427 | AN11: 1 | AO11: 1.861121 | AP11: 0 | AQ11: 4579 | AR11: 4579 | AT11: 10 | AU11: 10 | AV11: 0 | AW11: 7.5 | AX11: 1 | AY11: 1 | AZ11: 5 | BA11: 0 | BB11: 10 | BD11: =(AT11*InputWeights!$C$6+AU11*InputWeights!$C$7) -> 10 | BE11: =(AY11*InputWeights!$C$15+AX11*InputWeights!$C$16+AW11*InputWeights!$C$17+AV11*InputWeights!$C$18) -> 2.85 | BF11: =(AZ11*InputWeights!$C$11+BA11*InputWeights!$C$10+BB11*InputWeights!$C$12) -> 4 | BG11: =(BE11*InputWeights!$C$14+BD11*InputWeights!$C$5+BF11*InputWeights!$C$9) -> 53.4 | BH11: 1.315789474 | BI11: 5
A12: 6109570300 | B12: 0957 | C12: 61 | D12: Warren | E12: 01 | F12: 1 | G12: 0300 | H12: 1766 | I12: 3100 | J12: 10 | K12: 1954 | L12: 2005 | M12: 2 | N12: 24 | O12: 52 | P12: 2 | Q12: 0 | R12: 0 | S12: 175 | T12: 3 | U12: SR 0957 SH | V12: PA | W12: 957 | Y12: DRAIN RIGHT | Z12: SEGMENT | AA12: 39 | AB12: 1 | AC12: N | AE12: 2015 | AF12: 2015 | AG12: FAIR | AH12: POOR | AI12: 5 | AJ12: 2 | AK12: RCRS | AL12: 96 | AM12: 96 | AN12: 1 | AO12: 2.989807 | AP12: 0 | AQ12: 2809 | AR12: 2809 | AT12: 10 | AU12: 10 | AV12: 0 | AW12: 2.5 | AX12: 1 | AY12: 1 | AZ12: 10 | BA12: 0 | BB12: 10 | BD12: =(AT12*InputWeights!$C$6+AU12*InputWeights!$C$7) -> 10 | BE12: =(AY12*InputWeights!$C$15+AX12*InputWeights!$C$16+AW12*InputWeights!$C$17+AV12*InputWeights!$C$18) -> 1.35 | BF12: =(AZ12*InputWeights!$C$11+BA12*InputWeights!$C$10+BB12*InputWeights!$C$12) -> 6 | BG12: =(BE12*InputWeights!$C$14+BD12*InputWeights!$C$5+BF12*InputWeights!$C$9) -> 53.4 | BH12: 1.315789474 | BI12: 5
A13: 2003220400 | B13: 0322 | C13: 20 | D13: Crawford | E13: 01 | F13: 1 | G13: 0400 | H13: 1728 | I13: 4500 | J13: 20 | K13: 1900 | L13: 2007 | M13: 2 | N13: 40 | O13: 62 | P13: 2 | Q13: 0 | R13: 0 | S13: 153 | T13: 3 | U13: MAIN ST | V13: US | W13: 322 | Y13: COTTAGE ST | Z13: CLARK RD | AA13: 49 | AB13: 2 | AC13: Y | AE13: 2016 | AF13: 2016 | AG13: FAIR | AH13: FAIR | AI13: 3 | AJ13: 3 | AK13: RCRS | AL13: 365 | AM13: 365 | AN13: 0 | AO13: 0 | AP13: 0 | AQ13: 5506 | AR13: 5506 | AT13: 10 | AU13: 10 | AV13: 0 | AW13: 7.5 | AX13: 1 | AY13: 2 | AZ13: 7.5 | BA13: 0 | BB13: 0 | BD13: =(AT13*InputWeights!$C$6+AU13*InputWeights!$C$7) -> 10 | BE13: =(AY13*InputWeights!$C$15+AX13*InputWeights!$C$16+AW13*InputWeights!$C$17+AV13*InputWeights!$C$18) -> 3.25 | BF13: =(AZ13*InputWeights!$C$11+BA13*InputWeights!$C$10+BB13*InputWeights!$C$12) -> 3 | BG13: =(BE13*InputWeights!$C$14+BD13*InputWeights!$C$5+BF13*InputWeights!$C$9) -> 52 | BH13: 2.255639098 | BI13: 5
A14: 2500060080 | B14: 0006 | C14: 25 | D14: Erie | E14: 01 | F14: 1 | G14: 0080 | H14: 2716 | I14: 10600 | J14: 0 | K14: 1900 | L14: 2009 | M14: 2 | N14: 22 | O14: 62 | P14: 2 | Q14: 0 | R14: 0 | S14: 67 | T14: 3 | U14: GRAND ARMY OF THE REP HW | V14: US | W14: 006 | Y14: FRENCH CREEK | Z14: BRIDGE | AA14: 49 | AB14: 1 | AC14: Y | AE14: 2016 | AF14: 2016 | AG14: EXCELLENT | AH14: GOOD | AI14: 3 | AJ14: 2 | AK14: RCRS | AL14: 285 | AM14: 285 | AN14: 0 | AO14: 0 | AP14: 2 | AQ14: 2645 | AR14: 2645 | AT14: 5 | AU14: 10 | AV14: 0 | AW14: 7.5 | AX14: 1 | AY14: 1 | AZ14: 5 | BA14: 10 | BB14: 0 | BD14: =(AT14*InputWeights!$C$6+AU14*InputWeights!$C$7) -> 7.5 | BE14: =(AY14*InputWeights!$C$15+AX14*InputWeights!$C$16+AW14*InputWeights!$C$17+AV14*InputWeights!$C$18) -> 2.85 | BF14: =(AZ14*InputWeights!$C$11+BA14*InputWeights!$C$10+BB14*InputWeights!$C$12) -> 6 | BG14: =(BE14*InputWeights!$C$14+BD14*InputWeights!$C$5+BF14*InputWeights!$C$9) -> 51.9 | BH14: 2.443609023 | BI14: 5
A15: 2500060090 | B15: 0006 | C15: 25 | D15: Erie | E15: 01 | F15: 1 | G15: 0090 | H15: 2267 | I15: 10700 | J15: 0 | K15: 1900 | L15: 2009 | M15: 2 | N15: 22 | O15: 62 | P15: 2 | Q15: 0 | R15: 0 | S15: 78 | T15: 3 | U15: CENTER ST | V15: US | W15: 006 | Y15: BRIDGE | Z15: RR OVERPASS | AA15: 49 | AB15: 1 | AC15: Y | AE15: 2016 | AF15: 2016 | AG15: GOOD | AH15: GOOD | AI15: 3 | AJ15: 2 | AK15: RCRS | AL15: 285 | AM15: 285 | AN15: 0 | AO15: 0 | AP15: 2 | AQ15: 2645 | AR15: 2645 | AT15: 5 | AU15: 10 | AV15: 0 | AW15: 7.5 | AX15: 1 | AY15: 1 | AZ15: 5 | BA15: 10 | BB15: 0 | BD15: =(AT15*InputWeights!$C$6+AU15*InputWeights!$C$7) -> 7.5 | BE15: =(AY15*InputWeights!$C$15+AX15*InputWeights!$C$16+AW15*InputWeights!$C$17+AV15*InputWeights!$C$18) -> 2.85 | BF15: =(AZ15*InputWeights!$C$11+BA15*InputWeights!$C$10+BB15*InputWeights!$C$12) -> 6 | BG15: =(BE15*InputWeights!$C$14+BD15*InputWeights!$C$5+BF15*InputWeights!$C$9) -> 51.9 | BH15: 2.443609023 | BI15: 5
A16: 2500060100 | B16: 0006 | C16: 25 | D16: Erie | E16: 01 | F16: 1 | G16: 0100 | H16: 2977 | I16: 10800 | J16: 0 | K16: 1900 | L16: 2009 | M16: 2 | N16: 22 | O16: 62 | P16: 2 | Q16: 0 | R16: 0 | S16: 92 | T16: 3 | U16: CENTER ST | V16: US | W16: 006 | Y16: RR OVERPASS | Z16: SEGMENT | AA16: 49 | AB16: 1 | AC16: Y | AE16: 2016 | AF16: 2016 | AG16: GOOD | AH16: GOOD | AI16: 3 | AJ16: 2 | AK16: RCRS | AL16: 285 | AM16: 285 | AN16: 0 | AO16: 0 | AP16: 2 | AQ16: 2645 | AR16: 2645 | AT16: 5 | AU16: 10 | AV16: 0 | AW16: 7.5 | AX16: 1 | AY16: 1 | AZ16: 5 | BA16: 10 | BB16: 0 | BD16: =(AT16*InputWeights!$C$6+AU16*InputWeights!$C$7) -> 7.5 | BE16: =(AY16*InputWeights!$C$15+AX16*InputWeights!$C$16+AW16*InputWeights!$C$17+AV16*InputWeights!$C$18) -> 2.85 | BF16: =(AZ16*InputWeights!$C$11+BA16*InputWeights!$C$10+BB16*InputWeights!$C$12) -> 6 | BG16: =(BE16*InputWeights!$C$14+BD16*InputWeights!$C$5+BF16*InputWeights!$C$9) -> 51.9 | BH16: 2.443609023 | BI16: 5
A17: 2706660040 | B17: 0666 | C17: 27 | D17: Forest | E17: 01 | F17: 1 | G17: 0040 | H17: 3275 | I17: 400 | J17: 0 | K17: 1952 | L17: 2009 | M17: 2 | N17: 18 | O17: 61 | P17: 2 | Q17: 0 | R17: 0 | S17: 143 | T17: 3 | U17: DAVID ZEISBURGER HW | V17: PA | W17: 666 | Y17: SEGMENT | Z17: BRIDGE | AA17: 29 | AB17: 1 | AC17: N | AF17: 2014 | AG17: GOOD | AH17: GOOD | AI17: 5 | AJ17: 2 | AK17: RCRS | AL17: 35 | AM17: 35 | AN17: 1 | AO17: 1.612214 | AP17: 2 | AQ17: 345 | AR17: 345 | AT17: 5 | AU17: 10 | AV17: 0 | AW17: 2.5 | AX17: 1 | AY17: 1 | AZ17: 5 | BA17: 10 | BB17: 10 | BD17: =(AT17*InputWeights!$C$6+AU17*InputWeights!$C$7) -> 7.5 | BE17: =(AY17*InputWeights!$C$15+AX17*InputWeights!$C$16+AW17*InputWeights!$C$17+AV17*InputWeights!$C$18) -> 1.35 | BF17: =(AZ17*InputWeights!$C$11+BA17*InputWeights!$C$10+BB17*InputWeights!$C$12) -> 8 | BG17: =(BE17*InputWeights!$C$14+BD17*InputWeights!$C$5+BF17*InputWeights!$C$9) -> 51.9 | BH17: 2.443609023 | BI17: 5
A18: 2706660490 | B18: 0666 | C18: 27 | D18: Forest | E18: 01 | F18: 1 | G18: 0490 | H18: 2593 | I18: 4900 | J18: 0 | K18: 1964 | L18: 2010 | M18: 2 | N18: 18 | O18: 52 | P18: 2 | Q18: 0 | R18: 0 | S18: 191 | T18: 3 | U18: DAVID ZEISBURGER HW | V18: PA | W18: 666 | Y18: DRAIN LEFT | Z18: BRIDGE | AA18: 29 | AB18: 1 | AC18: N | AF18: 2014 | AG18: FAIR | AH18: GOOD | AI18: 5 | AJ18: 3 | AK18: RCRS | AL18: 17 | AM18: 17 | AN18: 1 | AO18: 2.036251 | AP18: 2 | AQ18: 131 | AR18: 131 | AT18: 5 | AU18: 10 | AV18: 0 | AW18: 2.5 | AX18: 1 | AY18: 1 | AZ18: 5 | BA18: 10 | BB18: 10 | BD18: =(AT18*InputWeights!$C$6+AU18*InputWeights!$C$7) -> 7.5 | BE18: =(AY18*InputWeights!$C$15+AX18*InputWeights!$C$16+AW18*InputWeights!$C$17+AV18*InputWeights!$C$18) -> 1.35 | BF18: =(AZ18*InputWeights!$C$11+BA18*InputWeights!$C$10+BB18*InputWeights!$C$12) -> 8 | BG18: =(BE18*InputWeights!$C$14+BD18*InputWeights!$C$5+BF18*InputWeights!$C$9) -> 51.9 | BH18: 2.443609023 | BI18: 5
A19: 6130070280 | B19: 3007 | C19: 61 | D19: Warren | E19: 01 | F19: 1 | G19: 0280 | H19: 2349 | I19: 610056700 | J19: 0 | K19: 1964 | L19: 2016 | M19: 2 | N19: 20 | O19: 52 | P19: 2 | Q19: 0 | R19: 0 | S19: 292 | T19: 3 | U19: DAVEY HILL RD | W19: 000 | Y19: OLD GARLAND R | Z19: SR 0027 SH | AA19: 49 | AB19: 1 | AC19: N | AE19: 2015 | AF19: 2015 | AG19: POOR | AH19: POOR | AI19: 6 | AJ19: 2 | AK19: RCRS | AL19: 72 | AM19: 72 | AN19: 0 | AO19: 0 | AP19: 2 | AQ19: 714 | AR19: 714 | AT19: 5 | AU19: 10 | AV19: 0 | AW19: 2.5 | AX19: 1 | AY19: 1 | AZ19: 10 | BA19: 10 | BB19: 0 | BD19: =(AT19*InputWeights!$C$6+AU19*InputWeights!$C$7) -> 7.5 | BE19: =(AY19*InputWeights!$C$15+AX19*InputWeights!$C$16+AW19*InputWeights!$C$17+AV19*InputWeights!$C$18) -> 1.35 | BF19: =(AZ19*InputWeights!$C$11+BA19*InputWeights!$C$10+BB19*InputWeights!$C$12) -> 8 | BG19: =(BE19*InputWeights!$C$14+BD19*InputWeights!$C$5+BF19*InputWeights!$C$9) -> 51.9 | BH19: 2.443609023 | BI19: 5
A20: 2000060510 | B20: 0006 | C20: 20 | D20: Crawford | E20: 01 | F20: 1 | G20: 0510 | H20: 755 | I20: 5100 | J20: 0 | K20: 1973 | L20: 2008 | M20: 1 | N20: 24 | O20: 62 | P20: 2 | Q20: 2 | R20: 1 | S20: 179 | T20: 3 | U20: FRENCH CREEK PY | V20: US | W20: 006 | Y20: SEGMENT | Z20: LINDEN ST | AA20: 69 | AB20: 2 | AC20: Y | AF20: 2015 | AG20: POOR | AH20: FAIR | AI20: 3 | AJ20: 1 | AK20: Stakeholder Comment | AL20: 465 | AM20: 930 | AN20: 0 | AO20: 0 | AP20: 0 | AQ20: 12677 | AR20: 25354 | AT20: 5 | AU20: 10 | AV20: 0 | AW20: 7.5 | AX20: 2 | AY20: 6 | AZ20: 7.5 | BA20: 0 | BB20: 0 | BD20: =(AT20*InputWeights!$C$6+AU20*InputWeights!$C$7) -> 7.5 | BE20: =(AY20*InputWeights!$C$15+AX20*InputWeights!$C$16+AW20*InputWeights!$C$17+AV20*InputWeights!$C$18) -> 5.05 | BF20: =(AZ20*InputWeights!$C$11+BA20*InputWeights!$C$10+BB20*InputWeights!$C$12) -> 3 | BG20: =(BE20*InputWeights!$C$14+BD20*InputWeights!$C$5+BF20*InputWeights!$C$9) -> 51.7 | BH20: 3.571428571 | BI20: 5
A21: 2010410040 | B21: 1041 | C21: 20 | D21: Crawford | E21: 01 | F21: 1 | G21: 0040 | H21: 1900 | I21: 200003400 | J21: 0 | K21: 1952 | L21: 2012 | M21: 2 | N21: 21 | O21: 52 | P21: 2 | Q21: 0 | R21: 0 | S21: 254 | T21: 3 | U21: FISH FLATS RD | W21: 000 | Y21: WHITE RD | Z21: BRIDGE | AA21: 39 | AB21: 1 | AC21: N | AF21: 2014 | AG21: POOR | AH21: FAIR | AI21: 7 | AJ21: 2 | AK21: RCRS | AL21: 11 | AM21: 11 | AN21: 0 | AO21: 0 | AP21: 1 | AQ21: 106 | AR21: 106 | AT21: 7.5 | AU21: 10 | AV21: 0 | AW21: 1 | AX21: 1 | AY21: 1 | AZ21: 7.5 | BA21: 10 | BB21: 0 | BD21: =(AT21*InputWeights!$C$6+AU21*InputWeights!$C$7) -> 8.75 | BE21: =(AY21*InputWeights!$C$15+AX21*InputWeights!$C$16+AW21*InputWeights!$C$17+AV21*InputWeights!$C$18) -> 0.9 | BF21: =(AZ21*InputWeights!$C$11+BA21*InputWeights!$C$10+BB21*InputWeights!$C$12) -> 7 | BG21: =(BE21*InputWeights!$C$14+BD21*InputWeights!$C$5+BF21*InputWeights!$C$9) -> 50.85 | BH21: 3.759398496 | BI21: 5
A22: 2010060090 | B22: 1006 | C22: 20 | D22: Crawford | E22: 01 | F22: 1 | G22: 0090 | H22: 2263 | I22: 200017900 | J22: 10 | K22: 1900 | L22: 2014 | M22: 2 | N22: 21 | O22: 61 | P22: 2 | Q22: 0 | R22: 0 | S22: 115 | T22: 3 | U22: MCCLELLAND ST | W22: 000 | Y22: OLD PLANK RD | Z22: BRIDGE | AA22: 69 | AB22: 1 | AC22: N | AF22: 2014 | AG22: EXCELLENT | AH22: EXCELLENT | AI22: 6 | AJ22: 2 | AK22: RCRS | AL22: 103 | AM22: 103 | AN22: 0 | AO22: 0 | AP22: 0 | AQ22: 1139 | AR22: 1139 | AT22: 10 | AU22: 10 | AV22: 0 | AW22: 2.5 | AX22: 1 | AY22: 1 | AZ22: 2.5 | BA22: 10 | BB22: 0 | BD22: =(AT22*InputWeights!$C$6+AU22*InputWeights!$C$7) -> 10 | BE22: =(AY22*InputWeights!$C$15+AX22*InputWeights!$C$16+AW22*InputWeights!$C$17+AV22*InputWeights!$C$18) -> 1.35 | BF22: =(AZ22*InputWeights!$C$11+BA22*InputWeights!$C$10+BB22*InputWeights!$C$12) -> 5 | BG22: =(BE22*InputWeights!$C$14+BD22*InputWeights!$C$5+BF22*InputWeights!$C$9) -> 50.4 | BH22: 3.947368421 | BI22: 5
A23: 2010060100 | B23: 1006 | C23: 20 | D23: Crawford | E23: 01 | F23: 1 | G23: 0100 | H23: 2309 | I23: 200018000 | J23: 10 | K23: 1956 | L23: 2014 | M23: 2 | N23: 21 | O23: 52 | P23: 2 | Q23: 0 | R23: 0 | S23: 113 | T23: 3 | U23: MCCLELLAND ST | W23: 000 | Y23: BRIDGE | Z23: CAMBRIDGE SPR | AA23: 69 | AB23: 1 | AC23: N | AF23: 2014 | AG23: EXCELLENT | AH23: EXCELLENT | AI23: 6 | AJ23: 2 | AK23: RCRS | AL23: 103 | AM23: 103 | AN23: 0 | AO23: 0 | AP23: 0 | AQ23: 1139 | AR23: 1139 | AT23: 10 | AU23: 10 | AV23: 0 | AW23: 2.5 | AX23: 1 | AY23: 1 | AZ23: 2.5 | BA23: 10 | BB23: 0 | BD23: =(AT23*InputWeights!$C$6+AU23*InputWeights!$C$7) -> 10 | BE23: =(AY23*InputWeights!$C$15+AX23*InputWeights!$C$16+AW23*InputWeights!$C$17+AV23*InputWeights!$C$18) -> 1.35 | BF23: =(AZ23*InputWeights!$C$11+BA23*InputWeights!$C$10+BB23*InputWeights!$C$12) -> 5 | BG23: =(BE23*InputWeights!$C$14+BD23*InputWeights!$C$5+BF23*InputWeights!$C$9) -> 50.4 | BH23: 3.947368421 | BI23: 5
A24: 2530110060 | B24: 3011 | C24: 25 | D24: Erie | E24: 01 | F24: 1 | G24: 0060 | H24: 3453 | I24: 250015000 | J24: 0 | K24: 1964 | L24: 2011 | M24: 2 | N24: 18 | O24: 52 | P24: 2 | Q24: 0 | R24: 0 | S24: 216 | T24: 3 | U24: KNAPP RD | W24: 000 | Y24: WICKWIRE RD | Z24: BRIDGE | AA24: 59 | AB24: 1 | AC24: N | AF24: 2014 | AG24: FAIR | AH24: GOOD | AI24: 6 | AJ24: 2 | AK24: RCRS | AL24: 32 | AM24: 32 | AN24: 0 | AO24: 0 | AP24: 1 | AQ24: 582 | AR24: 582 | AT24: 7.5 | AU24: 10 | AV24: 0 | AW24: 2.5 | AX24: 1 | AY24: 1 | AZ24: 5 | BA24: 10 | BB24: 0 | BD24: =(AT24*InputWeights!$C$6+AU24*InputWeights!$C$7) -> 8.75 | BE24: =(AY24*InputWeights!$C$15+AX24*InputWeights!$C$16+AW24*InputWeights!$C$17+AV24*InputWeights!$C$18) -> 1.35 | BF24: =(AZ24*InputWeights!$C$11+BA24*InputWeights!$C$10+BB24*InputWeights!$C$12) -> 6 | BG24: =(BE24*InputWeights!$C$14+BD24*InputWeights!$C$5+BF24*InputWeights!$C$9) -> 49.65 | BH24: 4.323308271 | BI24: 5
A25: 2530110070 | B25: 3011 | C25: 25 | D25: Erie | E25: 01 | F25: 1 | G25: 0070 | H25: 541 | I25: 250015100 | J25: 0 | K25: 1952 | L25: 2011 | M25: 2 | N25: 18 | O25: 52 | P25: 2 | Q25: 0 | R25: 0 | S25: 190 | T25: 3 | U25: KNAPP RD | W25: 000 | Y25: BRIDGE | Z25: CARTER RD | AA25: 59 | AB25: 1 | AC25: N | AF25: 2014 | AG25: FAIR | AH25: GOOD | AI25: 6 | AJ25: 2 | AK25: RCRS | AL25: 32 | AM25: 32 | AN25: 0 | AO25: 0 | AP25: 1 | AQ25: 582 | AR25: 582 | AT25: 7.5 | AU25: 10 | AV25: 0 | AW25: 2.5 | AX25: 1 | AY25: 1 | AZ25: 5 | BA25: 10 | BB25: 0 | BD25: =(AT25*InputWeights!$C$6+AU25*InputWeights!$C$7) -> 8.75 | BE25: =(AY25*InputWeights!$C$15+AX25*InputWeights!$C$16+AW25*InputWeights!$C$17+AV25*InputWeights!$C$18) -> 1.35 | BF25: =(AZ25*InputWeights!$C$11+BA25*InputWeights!$C$10+BB25*InputWeights!$C$12) -> 6 | BG25: =(BE25*InputWeights!$C$14+BD25*InputWeights!$C$5+BF25*InputWeights!$C$9) -> 49.65 | BH25: 4.323308271 | BI25: 5
A26: 2530220010 | B26: 3022 | C26: 25 | D26: Erie | E26: 01 | F26: 1 | G26: 0010 | H26: 2112 | I26: 250008200 | J26: 0 | K26: 1958 | L26: 2015 | M26: 2 | N26: 20 | O26: 61 | P26: 2 | Q26: 0 | R26: 0 | S26: 211 | T26: 3 | U26: KINTER HILL RD | W26: 000 | Y26: CAMBRIDGE SPR | Z26: PERRY LN | AA26: 49 | AB26: 2 | AC26: N | AE26: 2015 | AF26: 2015 | AG26: FAIR | AH26: GOOD | AI26: 5 | AJ26: 2 | AK26: RCRS | AL26: 69 | AM26: 69 | AN26: 0 | AO26: 0 | AP26: 1 | AQ26: 1152 | AR26: 1152 | AT26: 7.5 | AU26: 10 | AV26: 0 | AW26: 2.5 | AX26: 1 | AY26: 1 | AZ26: 5 | BA26: 10 | BB26: 0 | BD26: =(AT26*InputWeights!$C$6+AU26*InputWeights!$C$7) -> 8.75 | BE26: =(AY26*InputWeights!$C$15+AX26*InputWeights!$C$16+AW26*InputWeights!$C$17+AV26*InputWeights!$C$18) -> 1.35 | BF26: =(AZ26*InputWeights!$C$11+BA26*InputWeights!$C$10+BB26*InputWeights!$C$12) -> 6 | BG26: =(BE26*InputWeights!$C$14+BD26*InputWeights!$C$5+BF26*InputWeights!$C$9) -> 49.65 | BH26: 4.323308271 | BI26: 5
A27: 2530220080 | B27: 3022 | C27: 25 | D27: Erie | E27: 01 | F27: 1 | G27: 0080 | H27: 1676 | I27: 250008900 | J27: 0 | K27: 1900 | L27: 2015 | M27: 2 | N27: 20 | O27: 52 | P27: 2 | Q27: 0 | R27: 0 | S27: 251 | T27: 3 | U27: KINTER HILL RD | W27: 000 | Y27: OLD ROUTE 86 | Z27: OLD RT 86 RD | AA27: 49 | AB27: 1 | AC27: N | AE27: 2015 | AF27: 2015 | AG27: POOR | AH27: GOOD | AI27: 6 | AJ27: 2 | AK27: RCRS | AL27: 28 | AM27: 28 | AN27: 0 | AO27: 0 | AP27: 1 | AQ27: 478 | AR27: 478 | AT27: 7.5 | AU27: 10 | AV27: 0 | AW27: 2.5 | AX27: 1 | AY27: 1 | AZ27: 5 | BA27: 10 | BB27: 0 | BD27: =(AT27*InputWeights!$C$6+AU27*InputWeights!$C$7) -> 8.75 | BE27: =(AY27*InputWeights!$C$15+AX27*InputWeights!$C$16+AW27*InputWeights!$C$17+AV27*InputWeights!$C$18) -> 1.35 | BF27: =(AZ27*InputWeights!$C$11+BA27*InputWeights!$C$10+BB27*InputWeights!$C$12) -> 6 | BG27: =(BE27*InputWeights!$C$14+BD27*InputWeights!$C$5+BF27*InputWeights!$C$9) -> 49.65 | BH27: 4.323308271 | BI27: 5
A28: 4320140020 | B28: 2014 | C28: 43 | D28: Mercer | E28: 01 | F28: 1 | G28: 0020 | H28: 1854 | I28: 430030300 | J28: 0 | K28: 1964 | L28: 2011 | M28: 2 | N28: 21 | O28: 52 | P28: 2 | Q28: 0 | R28: 0 | S28: 127 | T28: 3 | U28: MARKET ST | W28: 000 | Y28: MCKINLEY AV | Z28: OAKLAND ST | AA28: 29 | AB28: 1 | AC28: N | AF28: 2014 | AG28: GOOD | AH28: GOOD | AI28: 6 | AJ28: 2 | AK28: RCRS | AL28: 98 | AM28: 98 | AN28: 0 | AO28: 0 | AP28: 1 | AQ28: 1635 | AR28: 1635 | AT28: 7.5 | AU28: 10 | AV28: 0 | AW28: 2.5 | AX28: 1 | AY28: 1 | AZ28: 5 | BA28: 10 | BB28: 0 | BD28: =(AT28*InputWeights!$C$6+AU28*InputWeights!$C$7) -> 8.75 | BE28: =(AY28*InputWeights!$C$15+AX28*InputWeights!$C$16+AW28*InputWeights!$C$17+AV28*InputWeights!$C$18) -> 1.35 | BF28: =(AZ28*InputWeights!$C$11+BA28*InputWeights!$C$10+BB28*InputWeights!$C$12) -> 6 | BG28: =(BE28*InputWeights!$C$14+BD28*InputWeights!$C$5+BF28*InputWeights!$C$9) -> 49.65 | BH28: 4.323308271 | BI28: 5
A29: 4340190090 | B29: 4019 | C29: 43 | D29: Mercer | E29: 01 | F29: 1 | G29: 0090 | H29: 3779 | I29: 430021900 | J29: 0 | K29: 1960 | L29: 2014 | M29: 2 | N29: 20 | O29: 61 | P29: 2 | Q29: 0 | R29: 0 | S29: 178 | T29: 3 | U29: METHODIST RD | W29: 000 | Y29: SALEM RD | Z29: KENNARD RD | AA29: 59 | AB29: 1 | AC29: N | AE29: 2015 | AF29: 2015 | AG29: FAIR | AH29: GOOD | AI29: 6 | AJ29: 2 | AK29: RCRS | AL29: 108 | AM29: 108 | AN29: 0 | AO29: 0 | AP29: 1 | AQ29: 1204 | AR29: 1204 | AT29: 7.5 | AU29: 10 | AV29: 0 | AW29: 2.5 | AX29: 1 | AY29: 1 | AZ29: 5 | BA29: 10 | BB29: 0 | BD29: =(AT29*InputWeights!$C$6+AU29*InputWeights!$C$7) -> 8.75 | BE29: =(AY29*InputWeights!$C$15+AX29*InputWeights!$C$16+AW29*InputWeights!$C$17+AV29*InputWeights!$C$18) -> 1.35 | BF29: =(AZ29*InputWeights!$C$11+BA29*InputWeights!$C$10+BB29*InputWeights!$C$12) -> 6 | BG29: =(BE29*InputWeights!$C$14+BD29*InputWeights!$C$5+BF29*InputWeights!$C$9) -> 49.65 | BH29: 4.323308271 | BI29: 5
A30: 6100060210 | B30: 0006 | C30: 61 | D30: Warren | E30: 01 | F30: 1 | G30: 0210 | H30: 2585 | I30: 17400 | J30: 0 | K30: 1900 | L30: 2009 | M30: 2 | N30: 22 | O30: 62 | P30: 2 | Q30: 0 | R30: 0 | S30: 54 | T30: 3 | U30: GRAND ARMY OF THE REP HW | V30: US | W30: 006 | Y30: BRIDGE | Z30: LOTTSVILLE RD | AA30: 49 | AB30: 1 | AC30: Y | AE30: 2016 | AF30: 2016 | AG30: EXCELLENT | AH30: GOOD | AI30: 3 | AJ30: 2 | AK30: RCRS | AL30: 405 | AM30: 405 | AN30: 1 | AO30: 2.042553 | AP30: 1 | AQ30: 2608 | AR30: 2608 | AT30: 7.5 | AU30: 10 | AV30: 0 | AW30: 7.5 | AX30: 1 | AY30: 1 | AZ30: 5 | BA30: 0 | BB30: 10 | BD30: =(AT30*InputWeights!$C$6+AU30*InputWeights!$C$7) -> 8.75 | BE30: =(AY30*InputWeights!$C$15+AX30*InputWeights!$C$16+AW30*InputWeights!$C$17+AV30*InputWeights!$C$18) -> 2.85 | BF30: =(AZ30*InputWeights!$C$11+BA30*InputWeights!$C$10+BB30*InputWeights!$C$12) -> 4 | BG30: =(BE30*InputWeights!$C$14+BD30*InputWeights!$C$5+BF30*InputWeights!$C$9) -> 49.65 | BH30: 4.323308271 | BI30: 5
A31: 6100620600 | B31: 0062 | C31: 61 | D31: Warren | E31: 01 | F31: 1 | G31: 0600 | H31: 2920 | I31: 25100 | J31: 10 | K31: 1998 | L31: 1998 | M31: 2 | N31: 24 | O31: 61 | P31: 2 | Q31: 0 | R31: 0 | S31: 79 | T31: 3 | U31: MARKET ST | V31: US | W31: 062 | Y31: RT 957 | Z31: BECKWITH DR | AA31: 39 | AB31: 2 | AC31: Y | AE31: 2016 | AF31: 2016 | AG31: GOOD | AH31: GOOD | AI31: 3 | AJ31: 2 | AK31: RCRS | AL31: 326 | AM31: 326 | AN31: 0 | AO31: 0 | AP31: 0 | AQ31: 5429 | AR31: 5429 | AT31: 10 | AU31: 10 | AV31: 0 | AW31: 7.5 | AX31: 1 | AY31: 2 | AZ31: 5 | BA31: 0 | BB31: 0 | BD31: =(AT31*InputWeights!$C$6+AU31*InputWeights!$C$7) -> 10 | BE31: =(AY31*InputWeights!$C$15+AX31*InputWeights!$C$16+AW31*InputWeights!$C$17+AV31*InputWeights!$C$18) -> 3.25 | BF31: =(AZ31*InputWeights!$C$11+BA31*InputWeights!$C$10+BB31*InputWeights!$C$12) -> 2 | BG31: =(BE31*InputWeights!$C$14+BD31*InputWeights!$C$5+BF31*InputWeights!$C$9) -> 49 | BH31: 5.639097744 | BI31: 10
A32: 6130180010 | B32: 3018 | C32: 61 | D32: Warren | E32: 01 | F32: 1 | G32: 0010 | H32: 2504 | I32: 610021800 | J32: 0 | K32: 2012 | L32: 2013 | M32: 2 | N32: 18 | O32: 51 | P32: 2 | Q32: 0 | R32: 0 | S32: 307 | T32: 3 | U32: BIMBER RUN RD | W32: 000 | Y32: SR 0062 SH | Z32: SEGMENT | AA32: 49 | AB32: 1 | AC32: N | AE32: 2015 | AF32: 2015 | AG32: POOR | AH32: FAIR | AI32: 7 | AJ32: 2 | AK32: RCRS | AL32: 21 | AM32: 21 | AN32: 1 | AO32: 2.108626 | AP32: 0 | AQ32: 203 | AR32: 203 | AT32: 10 | AU32: 10 | AV32: 0 | AW32: 1 | AX32: 1 | AY32: 1 | AZ32: 7.5 | BA32: 0 | BB32: 10 | BD32: =(AT32*InputWeights!$C$6+AU32*InputWeights!$C$7) -> 10 | BE32: =(AY32*InputWeights!$C$15+AX32*InputWeights!$C$16+AW32*InputWeights!$C$17+AV32*InputWeights!$C$18) -> 0.9 | BF32: =(AZ32*InputWeights!$C$11+BA32*InputWeights!$C$10+BB32*InputWeights!$C$12) -> 5 | BG32: =(BE32*InputWeights!$C$14+BD32*InputWeights!$C$5+BF32*InputWeights!$C$9) -> 48.6 | BH32: 5.827067669 | BI32: 10
A33: 2003220390 | B33: 0322 | C33: 20 | D33: Crawford | E33: 01 | F33: 1 | G33: 0390 | H33: 313 | I33: 4400 | J33: 20 | K33: 1973 | L33: 2007 | M33: 1 | N33: 18 | O33: 61 | P33: 2 | Q33: 1 | R33: 3 | S33: 114 | T33: 3 | U33: LINDEN ST | V33: US | W33: 322 | Y33: PARK AV | Z33: COTTAGE ST | AA33: 49 | AB33: 2 | AC33: Y | AE33: 2016 | AF33: 2016 | AG33: GOOD | AH33: FAIR | AI33: 3 | AJ33: 1 | AK33: Stakeholder Comment | AL33: 408 | AM33: 816 | AN33: 0 | AO33: 0 | AP33: 0 | AQ33: 7725 | AR33: 15450 | AT33: 5 | AU33: 10 | AV33: 0 | AW33: 7.5 | AX33: 2 | AY33: 4 | AZ33: 7.5 | BA33: 0 | BB33: 0 | BD33: =(AT33*InputWeights!$C$6+AU33*InputWeights!$C$7) -> 7.5 | BE33: =(AY33*InputWeights!$C$15+AX33*InputWeights!$C$16+AW33*InputWeights!$C$17+AV33*InputWeights!$C$18) -> 4.25 | BF33: =(AZ33*InputWeights!$C$11+BA33*InputWeights!$C$10+BB33*InputWeights!$C$12) -> 3 | BG33: =(BE33*InputWeights!$C$14+BD33*InputWeights!$C$5+BF33*InputWeights!$C$9) -> 48.5 | BH33: 6.015037594 | BI33: 10
A34: 2010410010 | B34: 1041 | C34: 20 | D34: Crawford | E34: 01 | F34: 1 | G34: 0010 | H34: 2680 | I34: 200003100 | J34: 0 | K34: 1952 | L34: 2012 | M34: 2 | N34: 21 | O34: 52 | P34: 2 | Q34: 0 | R34: 0 | S34: 243 | T34: 3 | U34: SPARTA ST | W34: 000 | Y34: GARLAND ST | Z34: DRAIN RIGHT | AA34: 39 | AB34: 1 | AC34: N | AF34: 2014 | AG34: POOR | AH34: GOOD | AI34: 7 | AJ34: 2 | AK34: RCRS | AL34: 11 | AM34: 11 | AN34: 0 | AO34: 0 | AP34: 1 | AQ34: 106 | AR34: 106 | AT34: 7.5 | AU34: 10 | AV34: 0 | AW34: 1 | AX34: 1 | AY34: 1 | AZ34: 5 | BA34: 10 | BB34: 0 | BD34: =(AT34*InputWeights!$C$6+AU34*InputWeights!$C$7) -> 8.75 | BE34: =(AY34*InputWeights!$C$15+AX34*InputWeights!$C$16+AW34*InputWeights!$C$17+AV34*InputWeights!$C$18) -> 0.9 | BF34: =(AZ34*InputWeights!$C$11+BA34*InputWeights!$C$10+BB34*InputWeights!$C$12) -> 6 | BG34: =(BE34*InputWeights!$C$14+BD34*InputWeights!$C$5+BF34*InputWeights!$C$9) -> 47.85 | BH34: 6.203007519 | BI34: 10
A35: 6130140010 | B35: 3014 | C35: 61 | D35: Warren | E35: 01 | F35: 1 | G35: 0010 | H35: 2730 | I35: 610033900 | J35: 0 | K35: 1900 | L35: 2016 | M35: 2 | N35: 18 | O35: 62 | P35: 2 | Q35: 0 | R35: 0 | S35: 347 | T35: 3 | U35: KANE RD | W35: 000 | Y35: SR 0027 SH | Z35: DRAIN LEFT | AA35: 49 | AB35: 1 | AC35: N | AF35: 2014 | AG35: POOR | AH35: POOR | AI35: 7 | AJ35: 2 | AK35: RCRS | AL35: 13 | AM35: 13 | AN35: 2 | AO35: 3.868132 | AP35: 1 | AQ35: 201 | AR35: 201 | AT35: 7.5 | AU35: 10 | AV35: 0 | AW35: 1 | AX35: 1 | AY35: 1 | AZ35: 10 | BA35: 0 | BB35: 10 | BD35: =(AT35*InputWeights!$C$6+AU35*InputWeights!$C$7) -> 8.75 | BE35: =(AY35*InputWeights!$C$15+AX35*InputWeights!$C$16+AW35*InputWeights!$C$17+AV35*InputWeights!$C$18) -> 0.9 | BF35: =(AZ35*InputWeights!$C$11+BA35*InputWeights!$C$10+BB35*InputWeights!$C$12) -> 6 | BG35: =(BE35*InputWeights!$C$14+BD35*InputWeights!$C$5+BF35*InputWeights!$C$9) -> 47.85 | BH35: 6.203007519 | BI35: 10
A36: 2010110090 | B36: 1011 | C36: 20 | D36: Crawford | E36: 01 | F36: 1 | G36: 0090 | H36: 1945 | I36: 200018200 | J36: 0 | K36: 1961 | L36: 2015 | M36: 2 | N36: 20 | O36: 52 | P36: 2 | Q36: 0 | R36: 0 | S36: 291 | T36: 3 | U36: MYSTIC PARK RD | W36: 000 | Y36: SEGMENT | Z36: FREEMONT ST | AA36: 39 | AB36: 1 | AC36: N | AF36: 2014 | AG36: POOR | AH36: POOR | AI36: 6 | AJ36: 2 | AK36: RCRS | AL36: 5 | AM36: 5 | AN36: 0 | AO36: 0 | AP36: 0 | AQ36: 530 | AR36: 530 | AT36: 10 | AU36: 10 | AV36: 0 | AW36: 2.5 | AX36: 1 | AY36: 1 | AZ36: 10 | BA36: 0 | BB36: 0 | BD36: =(AT36*InputWeights!$C$6+AU36*InputWeights!$C$7) -> 10 | BE36: =(AY36*InputWeights!$C$15+AX36*InputWeights!$C$16+AW36*InputWeights!$C$17+AV36*InputWeights!$C$18) -> 1.35 | BF36: =(AZ36*InputWeights!$C$11+BA36*InputWeights!$C$10+BB36*InputWeights!$C$12) -> 4 | BG36: =(BE36*InputWeights!$C$14+BD36*InputWeights!$C$5+BF36*InputWeights!$C$9) -> 47.4 | BH36: 6.578947368 | BI36: 10
A37: 2020080020 | B37: 2008 | C37: 20 | D37: Crawford | E37: 01 | F37: 1 | G37: 0020 | H37: 3060 | I37: 200011300 | J37: 0 | K37: 1959 | L37: 2012 | M37: 2 | N37: 21 | O37: 61 | P37: 2 | Q37: 0 | R37: 0 | S37: 110 | T37: 3 | U37: WILSON SHUTE RD | W37: 000 | Y37: BRIDGE | Z37: TWENTYEIGHTH | AA37: 49 | AB37: 1 | AC37: N | AE37: 2015 | AF37: 2015 | AG37: EXCELLENT | AH37: GOOD | AI37: 5 | AJ37: 3 | AK37: RCRS | AL37: 122 | AM37: 122 | AN37: 2 | AO37: 3.45098 | AP37: 0 | AQ37: 1359 | AR37: 1359 | AT37: 10 | AU37: 10 | AV37: 0 | AW37: 2.5 | AX37: 1 | AY37: 1 | AZ37: 5 | BA37: 0 | BB37: 10 | BD37: =(AT37*InputWeights!$C$6+AU37*InputWeights!$C$7) -> 10 | BE37: =(AY37*InputWeights!$C$15+AX37*InputWeights!$C$16+AW37*InputWeights!$C$17+AV37*InputWeights!$C$18) -> 1.35 | BF37: =(AZ37*InputWeights!$C$11+BA37*InputWeights!$C$10+BB37*InputWeights!$C$12) -> 4 | BG37: =(BE37*InputWeights!$C$14+BD37*InputWeights!$C$5+BF37*InputWeights!$C$9) -> 47.4 | BH37: 6.578947368 | BI37: 10
A38: 6100620630 | B38: 0062 | C38: 61 | D38: Warren | E38: 01 | F38: 1 | G38: 0630 | H38: 2020 | I38: 25400 | J38: 10 | K38: 1998 | L38: 1998 | M38: 2 | N38: 24 | O38: 61 | P38: 2 | Q38: 0 | R38: 0 | S38: 65 | T38: 3 | U38: MARKET ST | V38: US | W38: 062 | Y38: AKELEY RD | Z38: SEGMENT | AA38: 39 | AB38: 1 | AC38: Y | AE38: 2016 | AF38: 2016 | AG38: EXCELLENT | AH38: GOOD | AI38: 3 | AJ38: 2 | AK38: RCRS | AL38: 427 | AM38: 427 | AN38: 0 | AO38: 0 | AP38: 0 | AQ38: 4579 | AR38: 4579 | AT38: 10 | AU38: 10 | AV38: 0 | AW38: 7.5 | AX38: 1 | AY38: 1 | AZ38: 5 | BA38: 0 | BB38: 0 | BD38: =(AT38*InputWeights!$C$6+AU38*InputWeights!$C$7) -> 10 | BE38: =(AY38*InputWeights!$C$15+AX38*InputWeights!$C$16+AW38*InputWeights!$C$17+AV38*InputWeights!$C$18) -> 2.85 | BF38: =(AZ38*InputWeights!$C$11+BA38*InputWeights!$C$10+BB38*InputWeights!$C$12) -> 2 | BG38: =(BE38*InputWeights!$C$14+BD38*InputWeights!$C$5+BF38*InputWeights!$C$9) -> 47.4 | BH38: 6.578947368 | BI38: 10
A39: 6100620640 | B39: 0062 | C39: 61 | D39: Warren | E39: 01 | F39: 1 | G39: 0640 | H39: 2248 | I39: 25500 | J39: 10 | K39: 1998 | L39: 1998 | M39: 2 | N39: 24 | O39: 61 | P39: 2 | Q39: 0 | R39: 0 | S39: 56 | T39: 3 | U39: MARKET ST | V39: US | W39: 062 | Y39: SEGMENT | Z39: SEGMENT | AA39: 39 | AB39: 1 | AC39: Y | AE39: 2016 | AF39: 2016 | AG39: EXCELLENT | AH39: GOOD | AI39: 3 | AJ39: 3 | AK39: RCRS | AL39: 427 | AM39: 427 | AN39: 0 | AO39: 0 | AP39: 0 | AQ39: 4579 | AR39: 4579 | AT39: 10 | AU39: 10 | AV39: 0 | AW39: 7.5 | AX39: 1 | AY39: 1 | AZ39: 5 | BA39: 0 | BB39: 0 | BD39: =(AT39*InputWeights!$C$6+AU39*InputWeights!$C$7) -> 10 | BE39: =(AY39*InputWeights!$C$15+AX39*InputWeights!$C$16+AW39*InputWeights!$C$17+AV39*InputWeights!$C$18) -> 2.85 | BF39: =(AZ39*InputWeights!$C$11+BA39*InputWeights!$C$10+BB39*InputWeights!$C$12) -> 2 | BG39: =(BE39*InputWeights!$C$14+BD39*InputWeights!$C$5+BF39*InputWeights!$C$9) -> 47.4 | BH39: 6.578947368 | BI39: 10
A40: 6100620650 | B40: 0062 | C40: 61 | D40: Warren | E40: 01 | F40: 1 | G40: 0650 | H40: 2994 | I40: 25600 | J40: 10 | K40: 1998 | L40: 1998 | M40: 2 | N40: 24 | O40: 61 | P40: 2 | Q40: 0 | R40: 0 | S40: 60 | T40: 3 | U40: MARKET ST | V40: US | W40: 062 | Y40: SEGMENT | Z40: DRAIN LEFT | AA40: 39 | AB40: 1 | AC40: Y | AE40: 2016 | AF40: 2016 | AG40: EXCELLENT | AH40: GOOD | AI40: 3 | AJ40: 3 | AK40: RCRS | AL40: 427 | AM40: 427 | AN40: 0 | AO40: 0 | AP40: 0 | AQ40: 4579 | AR40: 4579 | AT40: 10 | AU40: 10 | AV40: 0 | AW40: 7.5 | AX40: 1 | AY40: 1 | AZ40: 5 | BA40: 0 | BB40: 0 | BD40: =(AT40*InputWeights!$C$6+AU40*InputWeights!$C$7) -> 10 | BE40: =(AY40*InputWeights!$C$15+AX40*InputWeights!$C$16+AW40*InputWeights!$C$17+AV40*InputWeights!$C$18) -> 2.85 | BF40: =(AZ40*InputWeights!$C$11+BA40*InputWeights!$C$10+BB40*InputWeights!$C$12) -> 2 | BG40: =(BE40*InputWeights!$C$14+BD40*InputWeights!$C$5+BF40*InputWeights!$C$9) -> 47.4 | BH40: 6.578947368 | BI40: 10
A41: 6100620670 | B41: 0062 | C41: 61 | D41: Warren | E41: 01 | F41: 1 | G41: 0670 | H41: 1967 | I41: 25800 | J41: 10 | K41: 1998 | L41: 1998 | M41: 2 | N41: 24 | O41: 61 | P41: 2 | Q41: 0 | R41: 0 | S41: 68 | T41: 3 | U41: MARKET ST | V41: US | W41: 062 | Y41: BRIDGE | Z41: BRIDGE | AA41: 39 | AB41: 1 | AC41: Y | AE41: 2016 | AF41: 2016 | AG41: EXCELLENT | AH41: GOOD | AI41: 3 | AJ41: 3 | AK41: RCRS | AL41: 427 | AM41: 427 | AN41: 0 | AO41: 0 | AP41: 0 | AQ41: 4579 | AR41: 4579 | AT41: 10 | AU41: 10 | AV41: 0 | AW41: 7.5 | AX41: 1 | AY41: 1 | AZ41: 5 | BA41: 0 | BB41: 0 | BD41: =(AT41*InputWeights!$C$6+AU41*InputWeights!$C$7) -> 10 | BE41: =(AY41*InputWeights!$C$15+AX41*InputWeights!$C$16+AW41*InputWeights!$C$17+AV41*InputWeights!$C$18) -> 2.85 | BF41: =(AZ41*InputWeights!$C$11+BA41*InputWeights!$C$10+BB41*InputWeights!$C$12) -> 2 | BG41: =(BE41*InputWeights!$C$14+BD41*InputWeights!$C$5+BF41*InputWeights!$C$9) -> 47.4 | BH41: 6.578947368 | BI41: 10
A42: 6100620680 | B42: 0062 | C42: 61 | D42: Warren | E42: 01 | F42: 1 | G42: 0680 | H42: 2519 | I42: 25900 | J42: 10 | K42: 1998 | L42: 1998 | M42: 2 | N42: 24 | O42: 61 | P42: 2 | Q42: 0 | R42: 0 | S42: 53 | T42: 3 | U42: MARKET ST | V42: US | W42: 062 | Y42: BRIDGE | Z42: NEW YORK STAT | AA42: 39 | AB42: 1 | AC42: Y | AE42: 2016 | AF42: 2016 | AG42: EXCELLENT | AH42: GOOD | AI42: 3 | AJ42: 2 | AK42: RCRS | AL42: 427 | AM42: 427 | AN42: 0 | AO42: 0 | AP42: 0 | AQ42: 4579 | AR42: 4579 | AT42: 10 | AU42: 10 | AV42: 0 | AW42: 7.5 | AX42: 1 | AY42: 1 | AZ42: 5 | BA42: 0 | BB42: 0 | BD42: =(AT42*InputWeights!$C$6+AU42*InputWeights!$C$7) -> 10 | BE42: =(AY42*InputWeights!$C$15+AX42*InputWeights!$C$16+AW42*InputWeights!$C$17+AV42*InputWeights!$C$18) -> 2.85 | BF42: =(AZ42*InputWeights!$C$11+BA42*InputWeights!$C$10+BB42*InputWeights!$C$12) -> 2 | BG42: =(BE42*InputWeights!$C$14+BD42*InputWeights!$C$5+BF42*InputWeights!$C$9) -> 47.4 | BH42: 6.578947368 | BI42: 10
A43: 6109570310 | B43: 0957 | C43: 61 | D43: Warren | E43: 01 | F43: 1 | G43: 0310 | H43: 3764 | I43: 3200 | J43: 10 | K43: 1954 | L43: 2005 | M43: 2 | N43: 24 | O43: 52 | P43: 2 | Q43: 0 | R43: 0 | S43: 194 | T43: 3 | U43: SR 0957 SH | V43: PA | W43: 957 | Y43: SEGMENT | Z43: BRIDGE | AA43: 39 | AB43: 1 | AC43: N | AE43: 2015 | AF43: 2015 | AG43: FAIR | AH43: POOR | AI43: 5 | AJ43: 2 | AK43: RCRS | AL43: 96 | AM43: 96 | AN43: 0 | AO43: 0 | AP43: 0 | AQ43: 2809 | AR43: 2809 | AT43: 10 | AU43: 10 | AV43: 0 | AW43: 2.5 | AX43: 1 | AY43: 1 | AZ43: 10 | BA43: 0 | BB43: 0 | BD43: =(AT43*InputWeights!$C$6+AU43*InputWeights!$C$7) -> 10 | BE43: =(AY43*InputWeights!$C$15+AX43*InputWeights!$C$16+AW43*InputWeights!$C$17+AV43*InputWeights!$C$18) -> 1.35 | BF43: =(AZ43*InputWeights!$C$11+BA43*InputWeights!$C$10+BB43*InputWeights!$C$12) -> 4 | BG43: =(BE43*InputWeights!$C$14+BD43*InputWeights!$C$5+BF43*InputWeights!$C$9) -> 47.4 | BH43: 6.578947368 | BI43: 10
A44: 2006990010 | B44: 0699 | C44: 20 | D44: Crawford | E44: 01 | F44: 1 | G44: 0010 | H44: 1760 | I44: 100 | J44: 0 | K44: 1900 | L44: 2008 | M44: 2 | N44: 24 | O44: 61 | P44: 2 | Q44: 0 | R44: 0 | S44: 107 | T44: 3 | U44: MC CLELLAN ST | V44: PA | W44: 099 | Y44: MAIN ST | Z44: CAMBRIDGE | AA44: 69 | AB44: 1 | AC44: N | AF44: 2014 | AG44: GOOD | AH44: FAIR | AI44: 4 | AJ44: 2 | AK44: RCRS | AL44: 94 | AM44: 94 | AN44: 1 | AO44: 3 | AP44: 1 | AQ44: 3335 | AR44: 3335 | AT44: 7.5 | AU44: 10 | AV44: 0 | AW44: 2.5 | AX44: 1 | AY44: 1 | AZ44: 7.5 | BA44: 0 | BB44: 10 | BD44: =(AT44*InputWeights!$C$6+AU44*InputWeights!$C$7) -> 8.75 | BE44: =(AY44*InputWeights!$C$15+AX44*InputWeights!$C$16+AW44*InputWeights!$C$17+AV44*InputWeights!$C$18) -> 1.35 | BF44: =(AZ44*InputWeights!$C$11+BA44*InputWeights!$C$10+BB44*InputWeights!$C$12) -> 5 | BG44: =(BE44*InputWeights!$C$14+BD44*InputWeights!$C$5+BF44*InputWeights!$C$9) -> 46.65 | BH44: 8.082706767 | BI44: 10
A45: 2006990020 | B45: 0699 | C45: 20 | D45: Crawford | E45: 01 | F45: 1 | G45: 0020 | H45: 1355 | I45: 200 | J45: 0 | K45: 1900 | L45: 2002 | M45: 2 | N45: 24 | O45: 52 | P45: 2 | Q45: 0 | R45: 0 | S45: 101 | T45: 3 | U45: FOREST ST | V45: PA | W45: 099 | Y45: CAMBRIDGE | Z45: SEGMENT | AA45: 69 | AB45: 1 | AC45: N | AF45: 2014 | AG45: GOOD | AH45: FAIR | AI45: 4 | AJ45: 2 | AK45: RCRS | AL45: 94 | AM45: 94 | AN45: 1 | AO45: 3.896679 | AP45: 1 | AQ45: 3335 | AR45: 3335 | AT45: 7.5 | AU45: 10 | AV45: 0 | AW45: 2.5 | AX45: 1 | AY45: 1 | AZ45: 7.5 | BA45: 0 | BB45: 10 | BD45: =(AT45*InputWeights!$C$6+AU45*InputWeights!$C$7) -> 8.75 | BE45: =(AY45*InputWeights!$C$15+AX45*InputWeights!$C$16+AW45*InputWeights!$C$17+AV45*InputWeights!$C$18) -> 1.35 | BF45: =(AZ45*InputWeights!$C$11+BA45*InputWeights!$C$10+BB45*InputWeights!$C$12) -> 5 | BG45: =(BE45*InputWeights!$C$14+BD45*InputWeights!$C$5+BF45*InputWeights!$C$9) -> 46.65 | BH45: 8.082706767 | BI45: 10
A46: 6000620130 | B46: 0062 | C46: 60 | D46: Venango | E46: 01 | F46: 1 | G46: 0130 | H46: 1971 | I46: 8800 | J46: 0 | K46: 1938 | L46: 2013 | M46: 2 | N46: 24 | O46: 62 | P46: 2 | Q46: 0 | R46: 0 | S46: 55 | T46: 3 | U46: MAIN ST | V46: US | W46: 062 | Y46: VALLEY RD | Z46: BRIDGE | AA46: 30 | AB46: 1 | AC46: N | AE46: 2016 | AF46: 2016 | AG46: EXCELLENT | AH46: EXCELLENT | AI46: 4 | AJ46: 2 | AK46: RCRS | AL46: 74 | AM46: 74 | AN46: 0 | AO46: 0 | AP46: 1 | AQ46: 3697 | AR46: 3697 | AT46: 7.5 | AU46: 10 | AV46: 0 | AW46: 2.5 | AX46: 1 | AY46: 1 | AZ46: 2.5 | BA46: 10 | BB46: 0 | BD46: =(AT46*InputWeights!$C$6+AU46*InputWeights!$C$7) -> 8.75 | BE46: =(AY46*InputWeights!$C$15+AX46*InputWeights!$C$16+AW46*InputWeights!$C$17+AV46*InputWeights!$C$18) -> 1.35 | BF46: =(AZ46*InputWeights!$C$11+BA46*InputWeights!$C$10+BB46*InputWeights!$C$12) -> 5 | BG46: =(BE46*InputWeights!$C$14+BD46*InputWeights!$C$5+BF46*InputWeights!$C$9) -> 46.65 | BH46: 8.082706767 | BI46: 10
A47: 6000620140 | B47: 0062 | C47: 60 | D47: Venango | E47: 01 | F47: 1 | G47: 0140 | H47: 1413 | I47: 8900 | J47: 0 | K47: 1938 | L47: 2013 | M47: 2 | N47: 24 | O47: 62 | P47: 2 | Q47: 0 | R47: 0 | S47: 52 | T47: 3 | U47: MAIN ST | V47: US | W47: 062 | Y47: BRIDGE | Z47: FRENCH CREEK | AA47: 30 | AB47: 1 | AC47: N | AE47: 2016 | AF47: 2016 | AG47: EXCELLENT | AH47: EXCELLENT | AI47: 4 | AJ47: 2 | AK47: RCRS | AL47: 74 | AM47: 74 | AN47: 0 | AO47: 0 | AP47: 1 | AQ47: 3697 | AR47: 3697 | AT47: 7.5 | AU47: 10 | AV47: 0 | AW47: 2.5 | AX47: 1 | AY47: 1 | AZ47: 2.5 | BA47: 10 | BB47: 0 | BD47: =(AT47*InputWeights!$C$6+AU47*InputWeights!$C$7) -> 8.75 | BE47: =(AY47*InputWeights!$C$15+AX47*InputWeights!$C$16+AW47*InputWeights!$C$17+AV47*InputWeights!$C$18) -> 1.35 | BF47: =(AZ47*InputWeights!$C$11+BA47*InputWeights!$C$10+BB47*InputWeights!$C$12) -> 5 | BG47: =(BE47*InputWeights!$C$14+BD47*InputWeights!$C$5+BF47*InputWeights!$C$9) -> 46.65 | BH47: 8.082706767 | BI47: 10
A48: 6100060030 | B48: 0006 | C48: 61 | D48: Warren | E48: 01 | F48: 1 | G48: 0030 | H48: 2459 | I48: 15600 | J48: 0 | K48: 1900 | L48: 2002 | M48: 2 | N48: 24 | O48: 62 | P48: 2 | Q48: 0 | R48: 0 | S48: 117 | T48: 3 | U48: GRAND ARMY OF THE REP HW | V48: US | W48: 006 | Y48: SR 0957 SH | Z48: ERIE ST | AA48: 49 | AB48: 2 | AC48: Y | AE48: 2016 | AF48: 2016 | AG48: GOOD | AH48: FAIR | AI48: 3 | AJ48: 2 | AK48: RCRS | AL48: 396 | AM48: 396 | AN48: 0 | AO48: 0 | AP48: 1 | AQ48: 3043 | AR48: 3043 | AT48: 7.5 | AU48: 10 | AV48: 0 | AW48: 7.5 | AX48: 1 | AY48: 1 | AZ48: 7.5 | BA48: 0 | BB48: 0 | BD48: =(AT48*InputWeights!$C$6+AU48*InputWeights!$C$7) -> 8.75 | BE48: =(AY48*InputWeights!$C$15+AX48*InputWeights!$C$16+AW48*InputWeights!$C$17+AV48*InputWeights!$C$18) -> 2.85 | BF48: =(AZ48*InputWeights!$C$11+BA48*InputWeights!$C$10+BB48*InputWeights!$C$12) -> 3 | BG48: =(BE48*InputWeights!$C$14+BD48*InputWeights!$C$5+BF48*InputWeights!$C$9) -> 46.65 | BH48: 8.082706767 | BI48: 10
A49: 2520200020 | B49: 2020 | C49: 25 | D49: Erie | E49: 01 | F49: 1 | G49: 0020 | H49: 2987 | I49: 250011300 | J49: 0 | K49: 1962 | L49: 2013 | M49: 2 | N49: 24 | O49: 61 | P49: 2 | Q49: 0 | R49: 0 | S49: 154 | T49: 3 | U49: WASHINGTON ST | W49: 000 | Y49: GRAND ARMY OF | Z49: BRIDGE | AA49: 49 | AB49: 1 | AC49: N | AF49: 2014 | AG49: FAIR | AH49: GOOD | AI49: 6 | AJ49: 2 | AK49: RCRS | AL49: 97 | AM49: 97 | AN49: 0 | AO49: 0 | AP49: 2 | AQ49: 3050 | AR49: 3050 | AT49: 5 | AU49: 10 | AV49: 0 | AW49: 2.5 | AX49: 1 | AY49: 1 | AZ49: 5 | BA49: 10 | BB49: 0 | BD49: =(AT49*InputWeights!$C$6+AU49*InputWeights!$C$7) -> 7.5 | BE49: =(AY49*InputWeights!$C$15+AX49*InputWeights!$C$16+AW49*InputWeights!$C$17+AV49*InputWeights!$C$18) -> 1.35 | BF49: =(AZ49*InputWeights!$C$11+BA49*InputWeights!$C$10+BB49*InputWeights!$C$12) -> 6 | BG49: =(BE49*InputWeights!$C$14+BD49*InputWeights!$C$5+BF49*InputWeights!$C$9) -> 45.9 | BH49: 9.022556391 | BI49: 10
A50: 2520200030 | B50: 2020 | C50: 25 | D50: Erie | E50: 01 | F50: 1 | G50: 0030 | H50: 3634 | I50: 250011400 | J50: 0 | K50: 1956 | L50: 2013 | M50: 2 | N50: 24 | O50: 61 | P50: 2 | Q50: 0 | R50: 0 | S50: 171 | T50: 3 | U50: WASHINGTON ST | W50: 000 | Y50: BRIDGE | Z50: BRIDGE | AA50: 49 | AB50: 1 | AC50: N | AF50: 2014 | AG50: FAIR | AH50: GOOD | AI50: 6 | AJ50: 2 | AK50: RCRS | AL50: 97 | AM50: 97 | AN50: 0 | AO50: 0 | AP50: 2 | AQ50: 3050 | AR50: 3050 | AT50: 5 | AU50: 10 | AV50: 0 | AW50: 2.5 | AX50: 1 | AY50: 1 | AZ50: 5 | BA50: 10 | BB50: 0 | BD50: =(AT50*InputWeights!$C$6+AU50*InputWeights!$C$7) -> 7.5 | BE50: =(AY50*InputWeights!$C$15+AX50*InputWeights!$C$16+AW50*InputWeights!$C$17+AV50*InputWeights!$C$18) -> 1.35 | BF50: =(AZ50*InputWeights!$C$11+BA50*InputWeights!$C$10+BB50*InputWeights!$C$12) -> 6 | BG50: =(BE50*InputWeights!$C$14+BD50*InputWeights!$C$5+BF50*InputWeights!$C$9) -> 45.9 | BH50: 9.022556391 | BI50: 10
A51: 2706660210 | B51: 0666 | C51: 27 | D51: Forest | E51: 01 | F51: 1 | G51: 0210 | H51: 2316 | I51: 2100 | J51: 0 | K51: 1901 | L51: 2010 | M51: 2 | N51: 18 | O51: 52 | P51: 2 | Q51: 0 | R51: 0 | S51: 205 | T51: 3 | U51: DAVID ZEISBURGER HW | V51: PA | W51: 666 | Y51: SEGMENT | Z51: BRIDGE | AA51: 29 | AB51: 1 | AC51: N | AF51: 2014 | AG51: FAIR | AH51: GOOD | AI51: 5 | AJ51: 3 | AK51: RCRS | AL51: 17 | AM51: 17 | AN51: 0 | AO51: 0 | AP51: 2 | AQ51: 131 | AR51: 131 | AT51: 5 | AU51: 10 | AV51: 0 | AW51: 2.5 | AX51: 1 | AY51: 1 | AZ51: 5 | BA51: 10 | BB51: 0 | BD51: =(AT51*InputWeights!$C$6+AU51*InputWeights!$C$7) -> 7.5 | BE51: =(AY51*InputWeights!$C$15+AX51*InputWeights!$C$16+AW51*InputWeights!$C$17+AV51*InputWeights!$C$18) -> 1.35 | BF51: =(AZ51*InputWeights!$C$11+BA51*InputWeights!$C$10+BB51*InputWeights!$C$12) -> 6 | BG51: =(BE51*InputWeights!$C$14+BD51*InputWeights!$C$5+BF51*InputWeights!$C$9) -> 45.9 | BH51: 9.022556391 | BI51: 10
A52: 2706660220 | B52: 0666 | C52: 27 | D52: Forest | E52: 01 | F52: 1 | G52: 0220 | H52: 2684 | I52: 2200 | J52: 0 | K52: 1901 | L52: 2010 | M52: 2 | N52: 18 | O52: 52 | P52: 2 | Q52: 0 | R52: 0 | S52: 198 | T52: 3 | U52: DAVID ZEISBURGER HW | V52: PA | W52: 666 | Y52: BRIDGE | Z52: SEGMENT | AA52: 29 | AB52: 1 | AC52: N | AF52: 2014 | AG52: FAIR | AH52: GOOD | AI52: 5 | AJ52: 3 | AK52: RCRS | AL52: 17 | AM52: 17 | AN52: 0 | AO52: 0 | AP52: 2 | AQ52: 131 | AR52: 131 | AT52: 5 | AU52: 10 | AV52: 0 | AW52: 2.5 | AX52: 1 | AY52: 1 | AZ52: 5 | BA52: 10 | BB52: 0 | BD52: =(AT52*InputWeights!$C$6+AU52*InputWeights!$C$7) -> 7.5 | BE52: =(AY52*InputWeights!$C$15+AX52*InputWeights!$C$16+AW52*InputWeights!$C$17+AV52*InputWeights!$C$18) -> 1.35 | BF52: =(AZ52*InputWeights!$C$11+BA52*InputWeights!$C$10+BB52*InputWeights!$C$12) -> 6 | BG52: =(BE52*InputWeights!$C$14+BD52*InputWeights!$C$5+BF52*InputWeights!$C$9) -> 45.9 | BH52: 9.022556391 | BI52: 10
A53: 2706660290 | B53: 0666 | C53: 27 | D53: Forest | E53: 01 | F53: 1 | G53: 0290 | H53: 1374 | I53: 2900 | J53: 0 | K53: 1933 | L53: 2010 | M53: 2 | N53: 18 | O53: 52 | P53: 2 | Q53: 0 | R53: 0 | S53: 213 | T53: 3 | U53: DAVID ZEISBURGER HW | V53: PA | W53: 666 | Y53: DRAIN LEFT | Z53: BRIDGE | AA53: 29 | AB53: 1 | AC53: N | AF53: 2014 | AG53: FAIR | AH53: GOOD | AI53: 5 | AJ53: 3 | AK53: RCRS | AL53: 17 | AM53: 17 | AN53: 0 | AO53: 0 | AP53: 2 | AQ53: 131 | AR53: 131 | AT53: 5 | AU53: 10 | AV53: 0 | AW53: 2.5 | AX53: 1 | AY53: 1 | AZ53: 5 | BA53: 10 | BB53: 0 | BD53: =(AT53*InputWeights!$C$6+AU53*InputWeights!$C$7) -> 7.5 | BE53: =(AY53*InputWeights!$C$15+AX53*InputWeights!$C$16+AW53*InputWeights!$C$17+AV53*InputWeights!$C$18) -> 1.35 | BF53: =(AZ53*InputWeights!$C$11+BA53*InputWeights!$C$10+BB53*InputWeights!$C$12) -> 6 | BG53: =(BE53*InputWeights!$C$14+BD53*InputWeights!$C$5+BF53*InputWeights!$C$9) -> 45.9 | BH53: 9.022556391 | BI53: 10
A54: 2706660300 | B54: 0666 | C54: 27 | D54: Forest | E54: 01 | F54: 1 | G54: 0300 | H54: 3334 | I54: 3000 | J54: 0 | K54: 1933 | L54: 2010 | M54: 2 | N54: 18 | O54: 52 | P54: 2 | Q54: 0 | R54: 0 | S54: 259 | T54: 3 | U54: DAVID ZEISBURGER HW | V54: PA | W54: 666 | Y54: BRIDGE | Z54: HOWE | AA54: 29 | AB54: 1 | AC54: N | AF54: 2014 | AG54: POOR | AH54: GOOD | AI54: 5 | AJ54: 3 | AK54: RCRS | AL54: 17 | AM54: 17 | AN54: 0 | AO54: 0 | AP54: 2 | AQ54: 131 | AR54: 131 | AT54: 5 | AU54: 10 | AV54: 0 | AW54: 2.5 | AX54: 1 | AY54: 1 | AZ54: 5 | BA54: 10 | BB54: 0 | BD54: =(AT54*InputWeights!$C$6+AU54*InputWeights!$C$7) -> 7.5 | BE54: =(AY54*InputWeights!$C$15+AX54*InputWeights!$C$16+AW54*InputWeights!$C$17+AV54*InputWeights!$C$18) -> 1.35 | BF54: =(AZ54*InputWeights!$C$11+BA54*InputWeights!$C$10+BB54*InputWeights!$C$12) -> 6 | BG54: =(BE54*InputWeights!$C$14+BD54*InputWeights!$C$5+BF54*InputWeights!$C$9) -> 45.9 | BH54: 9.022556391 | BI54: 10
A55: 2706660500 | B55: 0666 | C55: 27 | D55: Forest | E55: 01 | F55: 1 | G55: 0500 | H55: 3655 | I55: 5000 | J55: 0 | K55: 1964 | L55: 2010 | M55: 2 | N55: 18 | O55: 52 | P55: 2 | Q55: 0 | R55: 0 | S55: 222 | T55: 3 | U55: DAVID ZEISBURGER HW | V55: PA | W55: 666 | Y55: BRIDGE | Z55: SEGMENT | AA55: 29 | AB55: 1 | AC55: N | AF55: 2014 | AG55: POOR | AH55: GOOD | AI55: 4 | AJ55: 3 | AK55: RCRS | AL55: 17 | AM55: 17 | AN55: 0 | AO55: 0 | AP55: 2 | AQ55: 131 | AR55: 131 | AT55: 5 | AU55: 10 | AV55: 0 | AW55: 2.5 | AX55: 1 | AY55: 1 | AZ55: 5 | BA55: 10 | BB55: 0 | BD55: =(AT55*InputWeights!$C$6+AU55*InputWeights!$C$7) -> 7.5 | BE55: =(AY55*InputWeights!$C$15+AX55*InputWeights!$C$16+AW55*InputWeights!$C$17+AV55*InputWeights!$C$18) -> 1.35 | BF55: =(AZ55*InputWeights!$C$11+BA55*InputWeights!$C$10+BB55*InputWeights!$C$12) -> 6 | BG55: =(BE55*InputWeights!$C$14+BD55*InputWeights!$C$5+BF55*InputWeights!$C$9) -> 45.9 | BH55: 9.022556391 | BI55: 10
A56: 6100620170 | B56: 0062 | C56: 61 | D56: Warren | E56: 01 | F56: 1 | G56: 0170 | H56: 2623 | I56: 20400 | J56: 0 | K56: 1900 | L56: 2003 | M56: 2 | N56: 23 | O56: 62 | P56: 2 | Q56: 0 | R56: 0 | S56: 180 | T56: 3 | U56: SR 0062 SH | V56: US | W56: 062 | Y56: DRAIN RIGHT | Z56: DRAIN RIGHT | AA56: 49 | AB56: 1 | AC56: Y | AE56: 2016 | AF56: 2016 | AG56: POOR | AH56: POOR | AI56: 3 | AJ56: 1 | AK56: Stakeholder Comment | AL56: 125 | AM56: 125 | AN56: 0 | AO56: 0 | AP56: 0 | AQ56: 1358 | AR56: 1358 | AT56: 5 | AU56: 10 | AV56: 0 | AW56: 7.5 | AX56: 1 | AY56: 1 | AZ56: 10 | BA56: 0 | BB56: 0 | BD56: =(AT56*InputWeights!$C$6+AU56*InputWeights!$C$7) -> 7.5 | BE56: =(AY56*InputWeights!$C$15+AX56*InputWeights!$C$16+AW56*InputWeights!$C$17+AV56*InputWeights!$C$18) -> 2.85 | BF56: =(AZ56*InputWeights!$C$11+BA56*InputWeights!$C$10+BB56*InputWeights!$C$12) -> 4 | BG56: =(BE56*InputWeights!$C$14+BD56*InputWeights!$C$5+BF56*InputWeights!$C$9) -> 45.9 | BH56: 9.022556391 | BI56: 10
A57: 2003220380 | B57: 0322 | C57: 20 | D57: Crawford | E57: 01 | F57: 1 | G57: 0380 | H57: 254 | I57: 4300 | J57: 20 | K57: 1973 | L57: 2007 | M57: 1 | N57: 24 | O57: 61 | P57: 2 | Q57: 1 | R57: 1 | S57: 229 | T57: 3 | U57: LINDEN ST | V57: US | W57: 322 | Y57: FRENCH CREEK | Z57: PARK AV | AA57: 49 | AB57: 2 | AC57: Y | AF57: 2009 | AG57: POOR | AH57: GOOD | AI57: 3 | AJ57: 1 | AK57: Stakeholder Comment | AL57: 408 | AM57: 816 | AN57: 0 | AO57: 0 | AP57: 0 | AQ57: 7725 | AR57: 15450 | AT57: 5 | AU57: 10 | AV57: 0 | AW57: 7.5 | AX57: 2 | AY57: 4 | AZ57: 5 | BA57: 0 | BB57: 0 | BD57: =(AT57*InputWeights!$C$6+AU57*InputWeights!$C$7) -> 7.5 | BE57: =(AY57*InputWeights!$C$15+AX57*InputWeights!$C$16+AW57*InputWeights!$C$17+AV57*InputWeights!$C$18) -> 4.25 | BF57: =(AZ57*InputWeights!$C$11+BA57*InputWeights!$C$10+BB57*InputWeights!$C$12) -> 2 | BG57: =(BE57*InputWeights!$C$14+BD57*InputWeights!$C$5+BF57*InputWeights!$C$9) -> 45.5 | BH57: 10.52631579 | BI57: 15
A58: 2030210060 | B58: 3021 | C58: 20 | D58: Crawford | E58: 01 | F58: 1 | G58: 0060 | H58: 3767 | I58: 200008000 | J58: 0 | K58: 1900 | L58: 2012 | M58: 2 | N58: 20 | O58: 52 | P58: 2 | Q58: 0 | R58: 0 | S58: 231 | T58: 3 | U58: MAIN ST | W58: 000 | Y58: SEGMENT | Z58: PERRY HW | AA58: 49 | AB58: 1 | AC58: N | AE58: 2015 | AF58: 2015 | AG58: POOR | AH58: GOOD | AI58: 6 | AJ58: 2 | AK58: RCRS | AL58: 43 | AM58: 43 | AN58: 0 | AO58: 0 | AP58: 0 | AQ58: 334 | AR58: 334 | AT58: 10 | AU58: 10 | AV58: 10 | AW58: 2.5 | AX58: 1 | AY58: 1 | AZ58: 5 | BA58: 0 | BB58: 0 | BD58: =(AT58*InputWeights!$C$6+AU58*InputWeights!$C$7) -> 10 | BE58: =(AY58*InputWeights!$C$15+AX58*InputWeights!$C$16+AW58*InputWeights!$C$17+AV58*InputWeights!$C$18) -> 2.35 | BF58: =(AZ58*InputWeights!$C$11+BA58*InputWeights!$C$10+BB58*InputWeights!$C$12) -> 2 | BG58: =(BE58*InputWeights!$C$14+BD58*InputWeights!$C$5+BF58*InputWeights!$C$9) -> 45.4 | BH58: 10.71428571 | BI58: 15
A59: 2501970360 | B59: 0197 | C59: 25 | D59: Erie | E59: 01 | F59: 1 | G59: 0360 | H59: 2931 | I59: 3900 | J59: 10 | K59: 1952 | L59: 2011 | M59: 2 | N59: 24 | O59: 62 | P59: 2 | Q59: 0 | R59: 0 | S59: 117 | T59: 3 | U59: WATERFORD ST (OLD SR 97) | V59: PA | W59: 097 | Y59: RAMP D RD | Z59: HAROLD RD | AA59: 39 | AB59: 3 | AC59: N | AE59: 2015 | AF59: 2015 | AG59: GOOD | AH59: FAIR | AI59: 4 | AJ59: 2 | AK59: RCRS | AL59: 528 | AM59: 528 | AN59: 0 | AO59: 0 | AP59: 0 | AQ59: 13777 | AR59: 13777 | AT59: 10 | AU59: 0 | AV59: 0 | AW59: 2.5 | AX59: 2 | AY59: 3 | AZ59: 7.5 | BA59: 10 | BB59: 0 | BD59: =(AT59*InputWeights!$C$6+AU59*InputWeights!$C$7) -> 5 | BE59: =(AY59*InputWeights!$C$15+AX59*InputWeights!$C$16+AW59*InputWeights!$C$17+AV59*InputWeights!$C$18) -> 2.35 | BF59: =(AZ59*InputWeights!$C$11+BA59*InputWeights!$C$10+BB59*InputWeights!$C$12) -> 7 | BG59: =(BE59*InputWeights!$C$14+BD59*InputWeights!$C$5+BF59*InputWeights!$C$9) -> 45.4 | BH59: 10.71428571 | BI59: 15
A60: 2003220381 | B60: 0322 | C60: 20 | D60: Crawford | E60: 01 | F60: 1 | G60: 0381 | H60: 254 | I60: 4300 | J60: 0 | K60: 1973 | L60: 2007 | M60: 1 | N60: 36 | O60: 61 | P60: 1 | Q60: 1 | R60: 1 | S60: 329 | T60: 3 | U60: LINDEN ST | V60: US | W60: 322 | Y60: FRENCH CREEK | Z60: PARK AV | AA60: 49 | AB60: 2 | AC60: Y | AF60: 2014 | AG60: POOR | AH60: FAIR | AI60: 3 | AJ60: 1 | AK60: Stakeholder Comment | AL60: 452 | AM60: 904 | AN60: 0 | AO60: 0 | AP60: 0 | AQ60: 4966 | AR60: 9932 | AT60: 5 | AU60: 10 | AV60: 0 | AW60: 7.5 | AX60: 2 | AY60: 2 | AZ60: 7.5 | BA60: 0 | BB60: 0 | BD60: =(AT60*InputWeights!$C$6+AU60*InputWeights!$C$7) -> 7.5 | BE60: =(AY60*InputWeights!$C$15+AX60*InputWeights!$C$16+AW60*InputWeights!$C$17+AV60*InputWeights!$C$18) -> 3.45 | BF60: =(AZ60*InputWeights!$C$11+BA60*InputWeights!$C$10+BB60*InputWeights!$C$12) -> 3 | BG60: =(BE60*InputWeights!$C$14+BD60*InputWeights!$C$5+BF60*InputWeights!$C$9) -> 45.3 | BH60: 11.09022556 | BI60: 15
A61: 2003220391 | B61: 0322 | C61: 20 | D61: Crawford | E61: 01 | F61: 1 | G61: 0391 | H61: 315 | I61: 4400 | J61: 0 | K61: 1971 | L61: 2007 | M61: 1 | N61: 40 | O61: 61 | P61: 2 | Q61: 1 | R61: 3 | S61: 189 | T61: 3 | U61: LINDEN ST | V61: US | W61: 322 | Y61: PARK AV | Z61: COTTAGE ST | AA61: 49 | AB61: 2 | AC61: Y | AE61: 2016 | AF61: 2016 | AG61: POOR | AH61: FAIR | AI61: 3 | AJ61: 1 | AK61: Stakeholder Comment | AL61: 452 | AM61: 904 | AN61: 0 | AO61: 0 | AP61: 0 | AQ61: 4966 | AR61: 9932 | AT61: 5 | AU61: 10 | AV61: 0 | AW61: 7.5 | AX61: 2 | AY61: 2 | AZ61: 7.5 | BA61: 0 | BB61: 0 | BD61: =(AT61*InputWeights!$C$6+AU61*InputWeights!$C$7) -> 7.5 | BE61: =(AY61*InputWeights!$C$15+AX61*InputWeights!$C$16+AW61*InputWeights!$C$17+AV61*InputWeights!$C$18) -> 3.45 | BF61: =(AZ61*InputWeights!$C$11+BA61*InputWeights!$C$10+BB61*InputWeights!$C$12) -> 3 | BG61: =(BE61*InputWeights!$C$14+BD61*InputWeights!$C$5+BF61*InputWeights!$C$9) -> 45.3 | BH61: 11.09022556 | BI61: 15
A62: 2020400010 | B62: 2040 | C62: 20 | D62: Crawford | E62: 01 | F62: 1 | G62: 0010 | H62: 2400 | I62: 200003000 | J62: 0 | K62: 1990 | L62: 2004 | M62: 2 | N62: 24 | O62: 61 | P62: 2 | Q62: 0 | R62: 0 | S62: 163 | T62: 3 | U62: SPRING ST | W62: 000 | Y62: SR 0102 SH | Z62: LINCOLN AV | AA62: 69 | AB62: 2 | AC62: N | AF62: 2014 | AG62: FAIR | AH62: POOR | AI62: 5 | AJ62: 3 | AK62: RCRS | AL62: 150 | AM62: 150 | AN62: 0 | AO62: 0 | AP62: 1 | AQ62: 5954 | AR62: 5954 | AT62: 7.5 | AU62: 10 | AV62: 0 | AW62: 2.5 | AX62: 1 | AY62: 2 | AZ62: 10 | BA62: 0 | BB62: 0 | BD62: =(AT62*InputWeights!$C$6+AU62*InputWeights!$C$7) -> 8.75 | BE62: =(AY62*InputWeights!$C$15+AX62*InputWeights!$C$16+AW62*InputWeights!$C$17+AV62*InputWeights!$C$18) -> 1.75 | BF62: =(AZ62*InputWeights!$C$11+BA62*InputWeights!$C$10+BB62*InputWeights!$C$12) -> 4 | BG62: =(BE62*InputWeights!$C$14+BD62*InputWeights!$C$5+BF62*InputWeights!$C$9) -> 45.25 | BH62: 11.46616541 | BI62: 15
A63: 6110150070 | B63: 1015 | C63: 61 | D63: Warren | E63: 01 | F63: 1 | G63: 0070 | H63: 3494 | I63: 610042000 | J63: 0 | K63: 1900 | L63: 2013 | M63: 2 | N63: 20 | O63: 62 | P63: 2 | Q63: 0 | R63: 0 | S63: 200 | T63: 3 | U63: MAIN ST | W63: 000 | Y63: DRAIN LEFT | Z63: AKELEY RD | AA63: 39 | AB63: 2 | AC63: N | AE63: 2015 | AF63: 2015 | AG63: FAIR | AH63: FAIR | AI63: 7 | AJ63: 2 | AK63: RCRS | AL63: 15 | AM63: 15 | AN63: 2 | AO63: 3.022324 | AP63: 1 | AQ63: 390 | AR63: 390 | AT63: 7.5 | AU63: 10 | AV63: 0 | AW63: 1 | AX63: 1 | AY63: 1 | AZ63: 7.5 | BA63: 0 | BB63: 10 | BD63: =(AT63*InputWeights!$C$6+AU63*InputWeights!$C$7) -> 8.75 | BE63: =(AY63*InputWeights!$C$15+AX63*InputWeights!$C$16+AW63*InputWeights!$C$17+AV63*InputWeights!$C$18) -> 0.9 | BF63: =(AZ63*InputWeights!$C$11+BA63*InputWeights!$C$10+BB63*InputWeights!$C$12) -> 5 | BG63: =(BE63*InputWeights!$C$14+BD63*InputWeights!$C$5+BF63*InputWeights!$C$9) -> 44.85 | BH63: 11.65413534 | BI63: 15
A64: 6130140020 | B64: 3014 | C64: 61 | D64: Warren | E64: 01 | F64: 1 | G64: 0020 | H64: 2740 | I64: 610034000 | J64: 0 | K64: 1900 | L64: 2016 | M64: 2 | N64: 18 | O64: 62 | P64: 2 | Q64: 0 | R64: 0 | S64: 297 | T64: 3 | U64: KANE RD | W64: 000 | Y64: DRAIN LEFT | Z64: SEGMENT | AA64: 49 | AB64: 1 | AC64: N | AF64: 2014 | AG64: POOR | AH64: FAIR | AI64: 7 | AJ64: 2 | AK64: RCRS | AL64: 13 | AM64: 13 | AN64: 1 | AO64: 1.927007 | AP64: 1 | AQ64: 201 | AR64: 201 | AT64: 7.5 | AU64: 10 | AV64: 0 | AW64: 1 | AX64: 1 | AY64: 1 | AZ64: 7.5 | BA64: 0 | BB64: 10 | BD64: =(AT64*InputWeights!$C$6+AU64*InputWeights!$C$7) -> 8.75 | BE64: =(AY64*InputWeights!$C$15+AX64*InputWeights!$C$16+AW64*InputWeights!$C$17+AV64*InputWeights!$C$18) -> 0.9 | BF64: =(AZ64*InputWeights!$C$11+BA64*InputWeights!$C$10+BB64*InputWeights!$C$12) -> 5 | BG64: =(BE64*InputWeights!$C$14+BD64*InputWeights!$C$5+BF64*InputWeights!$C$9) -> 44.85 | BH64: 11.65413534 | BI64: 15
A65: 6130140040 | B65: 3014 | C65: 61 | D65: Warren | E65: 01 | F65: 1 | G65: 0040 | H65: 2569 | I65: 610034200 | J65: 0 | K65: 1966 | L65: 2016 | M65: 2 | N65: 18 | O65: 52 | P65: 2 | Q65: 0 | R65: 0 | S65: 184 | T65: 3 | U65: OLD GARLAND RD | W65: 000 | Y65: COLE HILL RD | Z65: SEGMENT | AA65: 49 | AB65: 1 | AC65: N | AF65: 2014 | AG65: FAIR | AH65: FAIR | AI65: 7 | AJ65: 2 | AK65: RCRS | AL65: 13 | AM65: 13 | AN65: 2 | AO65: 4.110549 | AP65: 1 | AQ65: 201 | AR65: 201 | AT65: 7.5 | AU65: 10 | AV65: 0 | AW65: 1 | AX65: 1 | AY65: 1 | AZ65: 7.5 | BA65: 0 | BB65: 10 | BD65: =(AT65*InputWeights!$C$6+AU65*InputWeights!$C$7) -> 8.75 | BE65: =(AY65*InputWeights!$C$15+AX65*InputWeights!$C$16+AW65*InputWeights!$C$17+AV65*InputWeights!$C$18) -> 0.9 | BF65: =(AZ65*InputWeights!$C$11+BA65*InputWeights!$C$10+BB65*InputWeights!$C$12) -> 5 | BG65: =(BE65*InputWeights!$C$14+BD65*InputWeights!$C$5+BF65*InputWeights!$C$9) -> 44.85 | BH65: 11.65413534 | BI65: 15
A66: 2006990090 | B66: 0699 | C66: 20 | D66: Crawford | E66: 01 | F66: 1 | G66: 0090 | H66: 2488 | I66: 900 | J66: 0 | K66: 1900 | L66: 2002 | M66: 2 | N66: 24 | O66: 62 | P66: 2 | Q66: 0 | R66: 0 | S66: 106 | T66: 3 | U66: FOREST ST | V66: PA | W66: 099 | Y66: PLANK RD | Z66: BRIDGE | AA66: 69 | AB66: 1 | AC66: N | AF66: 2014 | AG66: GOOD | AH66: FAIR | AI66: 4 | AJ66: 2 | AK66: RCRS | AL66: 98 | AM66: 98 | AN66: 0 | AO66: 0 | AP66: 0 | AQ66: 2759 | AR66: 2759 | AT66: 10 | AU66: 10 | AV66: 0 | AW66: =IF(AI66=1,10,IF(AI66=2,7.5,IF(AI66=3,7.5,IF(AI66=4,2.5,IF(AI66=5,2.5,IF(AI66=6,2.5,IF(AI66=7,1,5))))))) -> 2.5 | AX66: =IF(AM66<500, 1, IF(AM66<1000, 2, IF(AM66<2000, 3, IF(AM66<3000, 4,IF(AM66<4000, 5, IF(AM66<5000, 6,IF(AM66<6000,7,IF(AM66<7000,8, IF(AM66<8000,9,10))))))))) -> 1 | AY66: 1 | AZ66: 7.5 | BA66: 0 | BB66: 0 | BD66: =(AT66*InputWeights!$C$6+AU66*InputWeights!$C$7) -> 10 | BE66: =(AY66*InputWeights!$C$15+AX66*InputWeights!$C$16+AW66*InputWeights!$C$17+AV66*InputWeights!$C$18) -> 1.35 | BF66: =(AZ66*InputWeights!$C$11+BA66*InputWeights!$C$10+BB66*InputWeights!$C$12) -> 3 | BG66: =(BE66*InputWeights!$C$14+BD66*InputWeights!$C$5+BF66*InputWeights!$C$9) -> 44.4 | BH66: 12.21804511 | BI66: =IF(BH66<1,1,IF(BH66<5,5,IF(BH66<10,10,IF(BH66<15,15,IF(BH66<20,20,IF(BH66<25,25,0)))))) -> 15
A67: 2006990100 | B67: 0699 | C67: 20 | D67: Crawford | E67: 01 | F67: 1 | G67: 0100 | H67: 2797 | I67: 1000 | J67: 0 | K67: 1900 | L67: 2002 | M67: 2 | N67: 24 | O67: 62 | P67: 2 | Q67: 0 | R67: 0 | S67: 112 | T67: 3 | U67: FOREST ST | V67: PA | W67: 099 | Y67: BRIDGE | Z67: BRIDGE | AA67: 69 | AB67: 1 | AC67: N | AF67: 2014 | AG67: GOOD | AH67: FAIR | AI67: 4 | AJ67: 2 | AK67: RCRS | AL67: 344 | AM67: 344 | AN67: 0 | AO67: 0 | AP67: 0 | AQ67: 3823 | AR67: 3823 | AT67: 10 | AU67: 10 | AV67: 0 | AW67: 2.5 | AX67: 1 | AY67: 1 | AZ67: 7.5 | BA67: 0 | BB67: 0 | BD67: =(AT67*InputWeights!$C$6+AU67*InputWeights!$C$7) -> 10 | BE67: =(AY67*InputWeights!$C$15+AX67*InputWeights!$C$16+AW67*InputWeights!$C$17+AV67*InputWeights!$C$18) -> 1.35 | BF67: =(AZ67*InputWeights!$C$11+BA67*InputWeights!$C$10+BB67*InputWeights!$C$12) -> 3 | BG67: =(BE67*InputWeights!$C$14+BD67*InputWeights!$C$5+BF67*InputWeights!$C$9) -> 44.4 | BH67: =((_xlfn.RANK.EQ(BG67,$BG$2:$BG$533,0))/(COUNT($BG$2:$BG$533)))*100 -> 12.21804511 | BI67: 15
A68: 2006990110 | B68: 0699 | C68: 20 | D68: Crawford | E68: 01 | F68: 1 | G68: 0110 | H68: 1676 | I68: 1100 | J68: 0 | K68: 1900 | L68: 2002 | M68: 2 | N68: 24 | O68: 62 | P68: 2 | Q68: 0 | R68: 0 | S68: 123 | T68: 3 | U68: FOREST ST | V68: PA | W68: 099 | Y68: BRIDGE | Z68: FOREST ST | AA68: 69 | AB68: 1 | AC68: N | AF68: 2014 | AG68: GOOD | AH68: FAIR | AI68: 4 | AJ68: 2 | AK68: RCRS | AL68: 344 | AM68: 344 | AN68: 0 | AO68: 0 | AP68: 0 | AQ68: 3823 | AR68: 3823 | AT68: 10 | AU68: 10 | AV68: 0 | AW68: 2.5 | AX68: 1 | AY68: 1 | AZ68: 7.5 | BA68: 0 | BB68: 0 | BD68: =(AT68*InputWeights!$C$6+AU68*InputWeights!$C$7) -> 10 | BE68: =(AY68*InputWeights!$C$15+AX68*InputWeights!$C$16+AW68*InputWeights!$C$17+AV68*InputWeights!$C$18) -> 1.35 | BF68: =(AZ68*InputWeights!$C$11+BA68*InputWeights!$C$10+BB68*InputWeights!$C$12) -> 3 | BG68: =(BE68*InputWeights!$C$14+BD68*InputWeights!$C$5+BF68*InputWeights!$C$9) -> 44.4 | BH68: 12.21804511 | BI68: 15
A69: 2540120060 | B69: 4012 | C69: 25 | D69: Erie | E69: 01 | F69: 1 | G69: 0060 | H69: 1114 | I69: 250016400 | J69: 0 | K69: 1968 | L69: 1968 | M69: 2 | N69: 24 | O69: 72 | P69: 2 | Q69: 0 | R69: 0 | S69: 326 | T69: 3 | U69: INTERCHANGE RD | W69: 000 | Y69: VILLAGE COMMO | Z69: SEGMENT | AA69: 39 | AB69: 3 | AC69: N | AE69: 2016 | AF69: 2016 | AG69: POOR | AH69: POOR | AI69: 4 | AJ69: 2 | AK69: RCRS | AL69: 979 | AM69: 979 | AN69: 0 | AO69: 0 | AP69: 3 | AQ69: 13985 | AR69: 13985 | AT69: 2.5 | AU69: 10 | AV69: 10 | AW69: 2.5 | AX69: 2 | AY69: 3 | AZ69: 10 | BA69: 0 | BB69: 0 | BD69: =(AT69*InputWeights!$C$6+AU69*InputWeights!$C$7) -> 6.25 | BE69: =(AY69*InputWeights!$C$15+AX69*InputWeights!$C$16+AW69*InputWeights!$C$17+AV69*InputWeights!$C$18) -> 3.35 | BF69: =(AZ69*InputWeights!$C$11+BA69*InputWeights!$C$10+BB69*InputWeights!$C$12) -> 4 | BG69: =(BE69*InputWeights!$C$14+BD69*InputWeights!$C$5+BF69*InputWeights!$C$9) -> 44.15 | BH69: 12.78195489 | BI69: 15
A70: 2010140030 | B70: 1014 | C70: 20 | D70: Crawford | E70: 01 | F70: 1 | G70: 0030 | H70: 3466 | I70: 200011900 | J70: 0 | K70: 1900 | L70: 2014 | M70: 2 | N70: 20 | O70: 52 | P70: 2 | Q70: 0 | R70: 0 | S70: 250 | T70: 3 | U70: JOHNSTOWN RD | W70: 000 | Y70: SEGMENT | Z70: SEGMENT | AA70: 69 | AB70: 1 | AC70: N | AE70: 2015 | AF70: 2015 | AG70: POOR | AH70: GOOD | AI70: 7 | AJ70: 2 | AK70: RCRS | AL70: 98 | AM70: 98 | AN70: 0 | AO70: 0 | AP70: 2 | AQ70: 445 | AR70: 445 | AT70: 5 | AU70: 10 | AV70: 0 | AW70: 1 | AX70: 1 | AY70: 1 | AZ70: 5 | BA70: 10 | BB70: 0 | BD70: =(AT70*InputWeights!$C$6+AU70*InputWeights!$C$7) -> 7.5 | BE70: =(AY70*InputWeights!$C$15+AX70*InputWeights!$C$16+AW70*InputWeights!$C$17+AV70*InputWeights!$C$18) -> 0.9 | BF70: =(AZ70*InputWeights!$C$11+BA70*InputWeights!$C$10+BB70*InputWeights!$C$12) -> 6 | BG70: =(BE70*InputWeights!$C$14+BD70*InputWeights!$C$5+BF70*InputWeights!$C$9) -> 44.1 | BH70: 12.96992481 | BI70: 15
A71: 6120040010 | B71: 2004 | C71: 61 | D71: Warren | E71: 01 | F71: 1 | G71: 0010 | H71: 3424 | I71: 610054800 | J71: 0 | K71: 1900 | L71: 2004 | M71: 2 | N71: 22 | O71: 62 | P71: 2 | Q71: 0 | R71: 0 | S71: 153 | T71: 3 | U71: HORTON AV | W71: 000 | Y71: MAIN ST | Z71: GRAND ARMY OF | AA71: 49 | AB71: 1 | AC71: N | AE71: 2015 | AF71: 2015 | AG71: GOOD | AH71: GOOD | AI71: 7 | AJ71: 2 | AK71: RCRS | AL71: 18 | AM71: 18 | AN71: 0 | AO71: 0 | AP71: 2 | AQ71: 940 | AR71: 940 | AT71: 5 | AU71: 10 | AV71: 0 | AW71: 1 | AX71: 1 | AY71: 1 | AZ71: 5 | BA71: 10 | BB71: 0 | BD71: =(AT71*InputWeights!$C$6+AU71*InputWeights!$C$7) -> 7.5 | BE71: =(AY71*InputWeights!$C$15+AX71*InputWeights!$C$16+AW71*InputWeights!$C$17+AV71*InputWeights!$C$18) -> 0.9 | BF71: =(AZ71*InputWeights!$C$11+BA71*InputWeights!$C$10+BB71*InputWeights!$C$12) -> 6 | BG71: =(BE71*InputWeights!$C$14+BD71*InputWeights!$C$5+BF71*InputWeights!$C$9) -> 44.1 | BH71: 12.96992481 | BI71: 15
A72: 2500200241 | B72: 0020 | C72: 25 | D72: Erie | E72: 01 | F72: 1 | G72: 0241 | H72: 2625 | I72: 2400 | J72: 10 | K72: 1952 | L72: 2011 | M72: 1 | N72: 26 | O72: 62 | P72: 2 | Q72: 3 | R72: 10 | S72: 106 | T72: 3 | U72: RIDGE RD | V72: US | W72: 020 | Y72: CREEK RD | Z72: RICE AV | AA72: 59 | AB72: 3 | AC72: N | AE72: 2016 | AF72: 2016 | AG72: GOOD | AH72: GOOD | AI72: 4 | AJ72: 2 | AK72: RCRS | AL72: 294 | AM72: 588 | AN72: 0 | AO72: 0 | AP72: 1 | AQ72: 4207 | AR72: 8414 | AT72: 7.5 | AU72: 10 | AV72: 10 | AW72: 2.5 | AX72: 2 | AY72: 2 | AZ72: 5 | BA72: 0 | BB72: 0 | BD72: =(AT72*InputWeights!$C$6+AU72*InputWeights!$C$7) -> 8.75 | BE72: =(AY72*InputWeights!$C$15+AX72*InputWeights!$C$16+AW72*InputWeights!$C$17+AV72*InputWeights!$C$18) -> 2.95 | BF72: =(AZ72*InputWeights!$C$11+BA72*InputWeights!$C$10+BB72*InputWeights!$C$12) -> 2 | BG72: =(BE72*InputWeights!$C$14+BD72*InputWeights!$C$5+BF72*InputWeights!$C$9) -> 44.05 | BH72: 13.34586466 | BI72: 15
A73: 2530110090 | B73: 3011 | C73: 25 | D73: Erie | E73: 01 | F73: 1 | G73: 0090 | H73: 2657 | I73: 250015300 | J73: 0 | K73: 1900 | L73: 2011 | M73: 2 | N73: 18 | O73: 52 | P73: 2 | Q73: 0 | R73: 0 | S73: 204 | T73: 3 | U73: KNAPP RD | W73: 000 | Y73: SEGMENT | Z73: SEGMENT | AA73: 59 | AB73: 1 | AC73: N | AF73: 2014 | AG73: FAIR | AH73: GOOD | AI73: 6 | AJ73: 2 | AK73: RCRS | AL73: 32 | AM73: 32 | AN73: 1 | AO73: 1.987204 | AP73: 1 | AQ73: 582 | AR73: 582 | AT73: 7.5 | AU73: 10 | AV73: 0 | AW73: 2.5 | AX73: 1 | AY73: 1 | AZ73: 5 | BA73: 0 | BB73: 10 | BD73: =(AT73*InputWeights!$C$6+AU73*InputWeights!$C$7) -> 8.75 | BE73: =(AY73*InputWeights!$C$15+AX73*InputWeights!$C$16+AW73*InputWeights!$C$17+AV73*InputWeights!$C$18) -> 1.35 | BF73: =(AZ73*InputWeights!$C$11+BA73*InputWeights!$C$10+BB73*InputWeights!$C$12) -> 4 | BG73: =(BE73*InputWeights!$C$14+BD73*InputWeights!$C$5+BF73*InputWeights!$C$9) -> 43.65 | BH73: 13.53383459 | BI73: 15
A74: 2720020120 | B74: 2002 | C74: 27 | D74: Forest | E74: 01 | F74: 1 | G74: 0120 | H74: 2497 | I74: 270027800 | J74: 0 | K74: 1962 | L74: 2002 | M74: 2 | N74: 19 | O74: 52 | P74: 2 | Q74: 0 | R74: 0 | S74: 237 | T74: 3 | U74: RIVER RD | W74: 000 | Y74: DRAIN LEFT | Z74: SEGMENT | AA74: 29 | AB74: 1 | AC74: N | AF74: 2014 | AG74: POOR | AH74: POOR | AI74: 6 | AJ74: 3 | AK74: RCRS | AL74: 2 | AM74: 2 | AN74: 0 | AO74: 0 | AP74: 1 | AQ74: 139 | AR74: 139 | AT74: 7.5 | AU74: 10 | AV74: 0 | AW74: 2.5 | AX74: 1 | AY74: 1 | AZ74: 10 | BA74: 0 | BB74: 0 | BD74: =(AT74*InputWeights!$C$6+AU74*InputWeights!$C$7) -> 8.75 | BE74: =(AY74*InputWeights!$C$15+AX74*InputWeights!$C$16+AW74*InputWeights!$C$17+AV74*InputWeights!$C$18) -> 1.35 | BF74: =(AZ74*InputWeights!$C$11+BA74*InputWeights!$C$10+BB74*InputWeights!$C$12) -> 4 | BG74: =(BE74*InputWeights!$C$14+BD74*InputWeights!$C$5+BF74*InputWeights!$C$9) -> 43.65 | BH74: 13.53383459 | BI74: 15
A75: 2720020150 | B75: 2002 | C75: 27 | D75: Forest | E75: 01 | F75: 1 | G75: 0150 | H75: 2502 | I75: 270028100 | J75: 0 | K75: 1968 | L75: 2002 | M75: 2 | N75: 19 | O75: 52 | P75: 2 | Q75: 0 | R75: 0 | S75: 209 | T75: 3 | U75: RIVER RD | W75: 000 | Y75: SEGMENT | Z75: SEGMENT | AA75: 29 | AB75: 1 | AC75: N | AF75: 2014 | AG75: FAIR | AH75: GOOD | AI75: 6 | AJ75: 3 | AK75: RCRS | AL75: 2 | AM75: 2 | AN75: 1 | AO75: 2.110312 | AP75: 1 | AQ75: 139 | AR75: 139 | AT75: 7.5 | AU75: 10 | AV75: 0 | AW75: 2.5 | AX75: 1 | AY75: 1 | AZ75: 5 | BA75: 0 | BB75: 10 | BD75: =(AT75*InputWeights!$C$6+AU75*InputWeights!$C$7) -> 8.75 | BE75: =(AY75*InputWeights!$C$15+AX75*InputWeights!$C$16+AW75*InputWeights!$C$17+AV75*InputWeights!$C$18) -> 1.35 | BF75: =(AZ75*InputWeights!$C$11+BA75*InputWeights!$C$10+BB75*InputWeights!$C$12) -> 4 | BG75: =(BE75*InputWeights!$C$14+BD75*InputWeights!$C$5+BF75*InputWeights!$C$9) -> 43.65 | BH75: 13.53383459 | BI75: 15
A76: 4330390090 | B76: 3039 | C76: 43 | D76: Mercer | E76: 01 | F76: 1 | G76: 0090 | H76: 2688 | I76: 430006600 | J76: 10 | K76: 1968 | L76: 2012 | M76: 2 | N76: 20 | O76: 52 | P76: 2 | Q76: 0 | R76: 0 | S76: 194 | T76: 3 | U76: VALLEY RD | W76: 000 | Y76: LAKE RD | Z76: VALLEY RD | AA76: 59 | AB76: 1 | AC76: N | AF76: 2014 | AG76: FAIR | AH76: GOOD | AI76: 6 | AJ76: 2 | AK76: RCRS | AL76: 118 | AM76: 118 | AN76: 1 | AO76: 1.964286 | AP76: 1 | AQ76: 727 | AR76: 727 | AT76: 7.5 | AU76: 10 | AV76: 0 | AW76: 2.5 | AX76: 1 | AY76: 1 | AZ76: 5 | BA76: 0 | BB76: 10 | BD76: =(AT76*InputWeights!$C$6+AU76*InputWeights!$C$7) -> 8.75 | BE76: =(AY76*InputWeights!$C$15+AX76*InputWeights!$C$16+AW76*InputWeights!$C$17+AV76*InputWeights!$C$18) -> 1.35 | BF76: =(AZ76*InputWeights!$C$11+BA76*InputWeights!$C$10+BB76*InputWeights!$C$12) -> 4 | BG76: =(BE76*InputWeights!$C$14+BD76*InputWeights!$C$5+BF76*InputWeights!$C$9) -> 43.65 | BH76: 13.53383459 | BI76: 15
A77: 6004270040 | B77: 0427 | C77: 60 | D77: Venango | E77: 01 | F77: 1 | G77: 0040 | H77: 2309 | I77: 400 | J77: 0 | K77: 1936 | L77: 2013 | M77: 2 | N77: 20 | O77: 62 | P77: 2 | Q77: 0 | R77: 0 | S77: 203 | T77: 3 | U77: SR 0427 SH | V77: PA | W77: 427 | Y77: SEGMENT | Z77: SEGMENT | AA77: 30 | AB77: 1 | AC77: N | AF77: 2014 | AG77: FAIR | AH77: GOOD | AI77: 5 | AJ77: 2 | AK77: RCRS | AL77: 67 | AM77: 67 | AN77: 1 | AO77: 2.286704 | AP77: 1 | AQ77: 749 | AR77: 749 | AT77: 7.5 | AU77: 10 | AV77: 0 | AW77: 2.5 | AX77: 1 | AY77: 1 | AZ77: 5 | BA77: 0 | BB77: 10 | BD77: =(AT77*InputWeights!$C$6+AU77*InputWeights!$C$7) -> 8.75 | BE77: =(AY77*InputWeights!$C$15+AX77*InputWeights!$C$16+AW77*InputWeights!$C$17+AV77*InputWeights!$C$18) -> 1.35 | BF77: =(AZ77*InputWeights!$C$11+BA77*InputWeights!$C$10+BB77*InputWeights!$C$12) -> 4 | BG77: =(BE77*InputWeights!$C$14+BD77*InputWeights!$C$5+BF77*InputWeights!$C$9) -> 43.65 | BH77: 13.53383459 | BI77: 15
A78: 6100060150 | B78: 0006 | C78: 61 | D78: Warren | E78: 01 | F78: 1 | G78: 0150 | H78: 2782 | I78: 16800 | J78: 0 | K78: 1900 | L78: 2009 | M78: 2 | N78: 22 | O78: 62 | P78: 2 | Q78: 0 | R78: 0 | S78: 55 | T78: 3 | U78: GRAND ARMY OF THE REP HW | V78: US | W78: 006 | Y78: DRAIN RIGHT | Z78: SWAMP RD | AA78: 49 | AB78: 1 | AC78: Y | AE78: 2016 | AF78: 2016 | AG78: EXCELLENT | AH78: GOOD | AI78: 3 | AJ78: 2 | AK78: RCRS | AL78: 405 | AM78: 405 | AN78: 0 | AO78: 0 | AP78: 1 | AQ78: 2608 | AR78: 2608 | AT78: 7.5 | AU78: 10 | AV78: 0 | AW78: 7.5 | AX78: 1 | AY78: 1 | AZ78: 5 | BA78: 0 | BB78: 0 | BD78: =(AT78*InputWeights!$C$6+AU78*InputWeights!$C$7) -> 8.75 | BE78: =(AY78*InputWeights!$C$15+AX78*InputWeights!$C$16+AW78*InputWeights!$C$17+AV78*InputWeights!$C$18) -> 2.85 | BF78: =(AZ78*InputWeights!$C$11+BA78*InputWeights!$C$10+BB78*InputWeights!$C$12) -> 2 | BG78: =(BE78*InputWeights!$C$14+BD78*InputWeights!$C$5+BF78*InputWeights!$C$9) -> 43.65 | BH78: 13.53383459 | BI78: 15
A79: 6100060160 | B79: 0006 | C79: 61 | D79: Warren | E79: 01 | F79: 1 | G79: 0160 | H79: 3235 | I79: 16900 | J79: 0 | K79: 1900 | L79: 2009 | M79: 2 | N79: 22 | O79: 62 | P79: 2 | Q79: 0 | R79: 0 | S79: 60 | T79: 3 | U79: GRAND ARMY OF THE REP HW | V79: US | W79: 006 | Y79: SWAMP RD | Z79: SEGMENT | AA79: 49 | AB79: 1 | AC79: Y | AE79: 2016 | AF79: 2016 | AG79: EXCELLENT | AH79: GOOD | AI79: 3 | AJ79: 2 | AK79: RCRS | AL79: 405 | AM79: 405 | AN79: 0 | AO79: 0 | AP79: 1 | AQ79: 2608 | AR79: 2608 | AT79: 7.5 | AU79: 10 | AV79: 0 | AW79: 7.5 | AX79: 1 | AY79: 1 | AZ79: 5 | BA79: 0 | BB79: 0 | BD79: =(AT79*InputWeights!$C$6+AU79*InputWeights!$C$7) -> 8.75 | BE79: =(AY79*InputWeights!$C$15+AX79*InputWeights!$C$16+AW79*InputWeights!$C$17+AV79*InputWeights!$C$18) -> 2.85 | BF79: =(AZ79*InputWeights!$C$11+BA79*InputWeights!$C$10+BB79*InputWeights!$C$12) -> 2 | BG79: =(BE79*InputWeights!$C$14+BD79*InputWeights!$C$5+BF79*InputWeights!$C$9) -> 43.65 | BH79: 13.53383459 | BI79: 15
A80: 6100060180 | B80: 0006 | C80: 61 | D80: Warren | E80: 01 | F80: 1 | G80: 0180 | H80: 2961 | I80: 17100 | J80: 0 | K80: 1900 | L80: 2009 | M80: 2 | N80: 22 | O80: 62 | P80: 2 | Q80: 0 | R80: 0 | S80: 61 | T80: 3 | U80: GRAND ARMY OF THE REP HW | V80: US | W80: 006 | Y80: PORTER HILL R | Z80: BRIDGE | AA80: 49 | AB80: 1 | AC80: Y | AE80: 2016 | AF80: 2016 | AG80: EXCELLENT | AH80: GOOD | AI80: 3 | AJ80: 2 | AK80: RCRS | AL80: 405 | AM80: 405 | AN80: 0 | AO80: 0 | AP80: 1 | AQ80: 2608 | AR80: 2608 | AT80: 7.5 | AU80: 10 | AV80: 0 | AW80: 7.5 | AX80: 1 | AY80: 1 | AZ80: 5 | BA80: 0 | BB80: 0 | BD80: =(AT80*InputWeights!$C$6+AU80*InputWeights!$C$7) -> 8.75 | BE80: =(AY80*InputWeights!$C$15+AX80*InputWeights!$C$16+AW80*InputWeights!$C$17+AV80*InputWeights!$C$18) -> 2.85 | BF80: =(AZ80*InputWeights!$C$11+BA80*InputWeights!$C$10+BB80*InputWeights!$C$12) -> 2 | BG80: =(BE80*InputWeights!$C$14+BD80*InputWeights!$C$5+BF80*InputWeights!$C$9) -> 43.65 | BH80: 13.53383459 | BI80: 15
A81: 6140010120 | B81: 4001 | C81: 61 | D81: Warren | E81: 01 | F81: 1 | G81: 0120 | H81: 2711 | I81: 610057000 | J81: 0 | K81: 1955 | L81: 2015 | M81: 2 | N81: 20 | O81: 52 | P81: 2 | Q81: 0 | R81: 0 | S81: 128 | T81: 3 | U81: SCOTTS CROSSING RD | W81: 000 | Y81: SR 0426 SH | Z81: BRIDGE | AA81: 49 | AB81: 1 | AC81: N | AE81: 2015 | AF81: 2015 | AG81: GOOD | AH81: GOOD | AI81: 5 | AJ81: 2 | AK81: RCRS | AL81: 24 | AM81: 24 | AN81: 1 | AO81: 1.947621 | AP81: 1 | AQ81: 949 | AR81: 949 | AT81: 7.5 | AU81: 10 | AV81: 0 | AW81: 2.5 | AX81: 1 | AY81: 1 | AZ81: 5 | BA81: 0 | BB81: 10 | BD81: =(AT81*InputWeights!$C$6+AU81*InputWeights!$C$7) -> 8.75 | BE81: =(AY81*InputWeights!$C$15+AX81*InputWeights!$C$16+AW81*InputWeights!$C$17+AV81*InputWeights!$C$18) -> 1.35 | BF81: =(AZ81*InputWeights!$C$11+BA81*InputWeights!$C$10+BB81*InputWeights!$C$12) -> 4 | BG81: =(BE81*InputWeights!$C$14+BD81*InputWeights!$C$5+BF81*InputWeights!$C$9) -> 43.65 | BH81: 13.53383459 | BI81: 15
A82: 2540160170 | B82: 4016 | C82: 25 | D82: Erie | E82: 01 | F82: 1 | G82: 0170 | H82: 2488 | I82: 250012100 | J82: 0 | K82: 1954 | L82: 2010 | M82: 2 | N82: 40 | O82: 52 | P82: 2 | Q82: 0 | R82: 0 | S82: 159 | T82: 3 | U82: THIRTYEIGHTH ST | W82: 000 | Y82: RASPBERRY ST | Z82: PEACH ST | AA82: 39 | AB82: 3 | AC82: Y | AE82: 2016 | AF82: 2016 | AG82: FAIR | AH82: POOR | AI82: 3 | AJ82: 2 | AK82: RCRS | AL82: 220 | AM82: 220 | AN82: 0 | AO82: 0 | AP82: 0 | AQ82: 15040 | AR82: 15040 | AT82: 10 | AU82: 0 | AV82: 0 | AW82: 7.5 | AX82: 1 | AY82: 4 | AZ82: 10 | BA82: 0 | BB82: 0 | BD82: =(AT82*InputWeights!$C$6+AU82*InputWeights!$C$7) -> 5 | BE82: =(AY82*InputWeights!$C$15+AX82*InputWeights!$C$16+AW82*InputWeights!$C$17+AV82*InputWeights!$C$18) -> 4.05 | BF82: =(AZ82*InputWeights!$C$11+BA82*InputWeights!$C$10+BB82*InputWeights!$C$12) -> 4 | BG82: =(BE82*InputWeights!$C$14+BD82*InputWeights!$C$5+BF82*InputWeights!$C$9) -> 43.2 | BH82: 15.22556391 | BI82: 20
A83: 2020030120 | B83: 2003 | C83: 20 | D83: Crawford | E83: 01 | F83: 1 | G83: 0120 | H83: 2294 | I83: 200013800 | J83: 0 | K83: 1900 | L83: 2011 | M83: 2 | N83: 20 | O83: 52 | P83: 2 | Q83: 0 | R83: 0 | S83: 107 | T83: 3 | U83: MERCER PK | W83: 000 | Y83: SEGMENT | Z83: VERNON | AA83: 49 | AB83: 1 | AC83: N | AF83: 2014 | AG83: GOOD | AH83: FAIR | AI83: 5 | AJ83: 2 | AK83: RCRS | AL83: 163 | AM83: 163 | AN83: 2 | AO83: 4.603313 | AP83: 2 | AQ83: 2328 | AR83: 2328 | AT83: 5 | AU83: 10 | AV83: 0 | AW83: 2.5 | AX83: 1 | AY83: 1 | AZ83: 7.5 | BA83: 0 | BB83: 10 | BD83: =(AT83*InputWeights!$C$6+AU83*InputWeights!$C$7) -> 7.5 | BE83: =(AY83*InputWeights!$C$15+AX83*InputWeights!$C$16+AW83*InputWeights!$C$17+AV83*InputWeights!$C$18) -> 1.35 | BF83: =(AZ83*InputWeights!$C$11+BA83*InputWeights!$C$10+BB83*InputWeights!$C$12) -> 5 | BG83: =(BE83*InputWeights!$C$14+BD83*InputWeights!$C$5+BF83*InputWeights!$C$9) -> 42.9 | BH83: 15.41353383 | BI83: 20
A84: 2091050010 | B84: 9105 | C84: 20 | D84: Crawford | E84: 01 | F84: 1 | G84: 0010 | H84: 358 | I84: 200000600 | J84: 10 | K84: 1900 | L84: 1900 | M84: 1 | N84: 21 | O84: 99 | P84: 2 | Q84: 0 | R84: 0 | T84: 1 | U84: PARK AV | W84: 000 | AB84: 2 | AC84: N | AF84: 0000 | AG84: OTHER | AH84: POOR | AI84: 99 | AJ84: 1 | AK84: Stakeholder Comment | AL84: 27 | AM84: 54 | AN84: 0 | AO84: 0 | AP84: 0 | AQ84: 284 | AR84: 568 | AT84: 5 | AU84: 10 | AV84: 0 | AW84: 5 | AX84: 1 | AY84: 1 | AZ84: 10 | BA84: 0 | BB84: 0 | BD84: =(AT84*InputWeights!$C$6+AU84*InputWeights!$C$7) -> 7.5 | BE84: =(AY84*InputWeights!$C$15+AX84*InputWeights!$C$16+AW84*InputWeights!$C$17+AV84*InputWeights!$C$18) -> 2.1 | BF84: =(AZ84*InputWeights!$C$11+BA84*InputWeights!$C$10+BB84*InputWeights!$C$12) -> 4 | BG84: =(BE84*InputWeights!$C$14+BD84*InputWeights!$C$5+BF84*InputWeights!$C$9) -> 42.9 | BH84: 15.41353383 | BI84: 20
